Workbook

Sheet Menú
B38: DataMéxico: | C38: https://datamexico.org/
B39: Gob.mx | C39: https://www.gob.mx/se/acciones-y-programas/competitividad-y-normatividad-inversion-extranjera-directa
B40: Datos Abiertos | C40: https://datos.gob.mx/busca/dataset?q=inversion%20extranjera&
C45: Datos recientes sobre IED en México
C46: IED en México en enero-marzo de 2022 (Secretaría de Economía)
C47: Expectativas de IED para 2022 (Banco de México)
C48: Flujos mundiales de IED, proyecciones 2021-2022 (UNCTAD)
C50: Variación de la IED en México en enero-marzo 2022 con respecto al mismo periodo de 2020
C51: IED en México por trimestre
C52: IED en México por año
C53: IED en México por tipo de inversión
C54: IED en México por país de origen
C55: IED en México por sector económico
C56: IED en México por entidad federativa
C58: Países y Estados, principales países de origen y entidades federativas de destino de la IED en México
C59: Principales países de origen de los flujos de IED en México
C60: Principales entidades federativas receptoras de los flujos de IED en México
C62: Series históricas de IED en México
C63: IED por tipo de inversión (1980-2021), de acuerdo a los datos publicados por la Secretaría de Economía
C64: IED por tipo de inversión (1980-2021), de acuerdo a los datos publicados por el Banco de México
C65: IED por país de origen (1980-2021), de acuerdo a los datos publicados por la Secretaría de Economía
C66: IED por sector económico (1980-2021), de acuerdo a los datos publicados por la Secretaría de Economía
C67: IED por entidad federativa (1989-2021), de acuerdo a los datos publicados por la Secretaría de Economía
C69: Inward o IED recibida a nivel internacional
C70: Principales países receptores de IED
C71: Participación de la IED recibida por México respecto al total mundial
C72: Participación de la IED recibida por México respecto a los países en desarrollo y Latinoamérica
C73: Acervos de IED
C75: Outward o IED emitida a nivel internacional
C76: Principales países emisores de flujos de IED
C78: IED en la Balanza de Pagos y la congruencia entre las cifras publicadas por Banco de México y la Secretaría de Economía
C80: Estadísticas complementarias, referencias internacionales para posicionar a México en el mundo
C81: IED como porcentaje del PIB en países seleccionados
C82: IED como porcentaje de la Formación Bruta de Capital Fijo (FBKF) en países seleccionados
C83: Flujos de IED per cápita
C85: Siglas utilizadas en el documento

Sheet Datos recientes
A4: CONTENIDO
A5: * IED en México enero-marzo 2022 (Secretaría de Economía)
A6: * Expectativas de IED en México para 2022 (Banco de México)
A7: * Flujos mundiales de IED, proyecciones 2021-2022 (UNCTAD)

Sheet Variaciones (2) (hidden)
A7: CONTENIDO
A8: * Nota Metodológica
A9: * IED en México en enero-junio por trimestre
A10: * IED en México en enero-junio por año
A11: * IED en México en enero-junio por tipo de inversión
A12: * IED en México en enero-junio por país de origen
A13: * IED en México en enero-junio por sector económico
A14: * IED en México en enero-junio por entidad federativa
A34: https://www.gob.mx/se/acciones-y-programas/competitividad-y-normatividad-inversion-extranjera-directa?state=published
A36: IED en México en enero-junio por trimestre (millones de dólares)
B38: Tipo de inversión | C38: Originalmente publicado* | F38: Actualizado
C39: 2020 A | D39: 2021 B | E39: Variación [(B-A)/A]100 | F39: 2020 C | G39: 2021 B | H39: Variación [(B-C)/C]100
B40: Primer trimestre | C40: 11373.4839 | D40: 12477.95888 | E40: =((D40-C40)/C40)*100 -> 9.710964481 | F40: 16730.04545 | G40: 12477.95888 | H40: =((G40-F40)/F40)*100 -> -25.41586981
B41: Segundo trimestre | C41: 6595.780748 | D41: 5955.51066 | E41: =((D41-C41)/C41)*100 -> -9.707267607 | F41: 7278.919703 | G41: 5955.51066 | H41: =((G41-F41)/F41)*100 -> -18.18139362
B42: Enero-junio | C42: 17969.26465 | D42: 18433.46954 | E42: =((D42-C42)/C42)*100 -> 2.583327159 | F42: 24008.96516 | G42: 18433.46954 | H42: =((G42-F42)/F42)*100 -> -23.22255698
B43: *El dato para enero-junio incluye los datos originalmente publicados para cada trimestre más las actualizaciones que se recibieron para el primero y segundo trimestres; por ello, el dato enero-junio no es la suma de los datos originalmente publicados en cada trimestre. Para consultar las cifras originalmente publicadas desde 2009, se pueden revisar los informes al H. Congreso de Unión publicados en la página: gob.mx:
B44: https://www.gob.mx/se/acciones-y-programas/competitividad-y-normatividad-inversion-extranjera-directa
B45: Fuente: Secretaría de Economía
A47: IED en México en enero-junio por año (millones de dólares)
B49: Año | C49: Originalmente publicado | F49: Actualizado
C50: Monto | D50: Variación Anual | F50: Monto | G50: Variación anual
B51: 1999 | C51: 6967.520185 | F51: 6967.526434
B52: 2000 | C52: 10358.3 | D52: =IF(AND(C52=0,C51=0),0,IF(AND(C52=0,C51<0),-100,IF(AND(C52=0,C51>0),100,IF(AND(C52<0,C51=0),100,IF(AND(C52<0,C51<0),-((C51-C52)/C52)*100,IF(AND(C52<0,C51>0),-((C51-C52)/C52)*100,IF(C52>0,((C51-C52)/C52)*100,"error"))))))) -> -32.73490645 | E52: =IF(AND(C52=0,D52=0),0,IF(AND(C52=0,D52<0),-100,IF(AND(C52=0,D52>0),100,IF(AND(C52<0,D52=0),100,IF(AND(C52<0,D52<0),-((D52-C52)/C52)*100,IF(AND(C52<0,D52>0),-((D52-C52)/C52)*100,IF(C52>0,((D52-C52)/C52)*100,"error"))))))) -> -100.3160259 | F52: 18248.6726 | G52: =IF(AND(F52=0,F51=0),0,IF(AND(F52=0,F51<0),-100,IF(AND(F52=0,F51>0),100,IF(AND(F52<0,F51=0),100,IF(AND(F52<0,F51<0),-((F51-F52)/F52)*100,IF(AND(F52<0,F51>0),-((F51-F52)/F52)*100,IF(F52>0,((F51-F52)/F52)*100,"error"))))))) -> -61.8189959 | H52: =IF(AND(F52=0,G52=0),0,IF(AND(F52=0,G52<0),-100,IF(AND(F52=0,G52>0),100,IF(AND(F52<0,G52=0),100,IF(AND(F52<0,G52<0),-((G52-F52)/F52)*100,IF(AND(F52<0,G52>0),-((G52-F52)/F52)*100,IF(F52>0,((G52-F52)/F52)*100,"error"))))))) -> -100.3387589
B53: 2001 | C53: 23168.4 | D53: =IF(AND(C53=0,C52=0),0,IF(AND(C53=0,C52<0),-100,IF(AND(C53=0,C52>0),100,IF(AND(C53<0,C52=0),100,IF(AND(C53<0,C52<0),-((C52-C53)/C53)*100,IF(AND(C53<0,C52>0),-((C52-C53)/C53)*100,IF(C53>0,((C52-C53)/C53)*100,"error"))))))) -> -55.29125878 | E53: =IF(AND(C53=0,D53=0),0,IF(AND(C53=0,D53<0),-100,IF(AND(C53=0,D53>0),100,IF(AND(C53<0,D53=0),100,IF(AND(C53<0,D53<0),-((D53-C53)/C53)*100,IF(AND(C53<0,D53>0),-((D53-C53)/C53)*100,IF(C53>0,((D53-C53)/C53)*100,"error"))))))) -> -100.2386494 | F53: 30057.15939 | G53: =IF(AND(F53=0,F52=0),0,IF(AND(F53=0,F52<0),-100,IF(AND(F53=0,F52>0),100,IF(AND(F53<0,F52=0),100,IF(AND(F53<0,F52<0),-((F52-F53)/F53)*100,IF(AND(F53<0,F52>0),-((F52-F53)/F53)*100,IF(F53>0,((F52-F53)/F53)*100,"error"))))))) -> -39.28676904 | H53: =IF(AND(F53=0,G53=0),0,IF(AND(F53=0,G53<0),-100,IF(AND(F53=0,G53>0),100,IF(AND(F53<0,G53=0),100,IF(AND(F53<0,G53<0),-((G53-F53)/F53)*100,IF(AND(F53<0,G53>0),-((G53-F53)/F53)*100,IF(F53>0,((G53-F53)/F53)*100,"error"))))))) -> -100.1307069
B54: 2002 | C54: 9696.4 | D54: 138.9381626 | E54: -98.56711602 | F54: 24099.20092 | G54: 24.72263908 | H54: -99.89741303
B55: 2003 | C55: 9431.4 | D55: 2.809763132 | E55: -99.97020842 | F55: 18270.16745 | G55: 31.9046527 | H55: -99.82537296
B56: 2004 | C56: 15846.4 | D56: -40.48238086 | E56: -100.2554674 | F56: 25030.30885 | G56: -27.00782256 | H56: -100.1079005
B57: 2005 | C57: 11093.3 | D57: 42.84658307 | E57: -99.61376161 | F57: 26058.30386 | G57: -3.944980492 | H57: -100.0151391
B58: 2006 | C58: 14638.3 | D58: -24.21729299 | E58: -100.1654379 | F58: 21244.43233 | G58: 22.65945004 | H58: -99.89333935
B59: 2007 | C59: 19729.2 | D59: -25.8038846 | E59: -100.1307903 | F59: 32483.98514 | G59: -34.60028924 | H59: -100.1065149
B60: 2008 | C60: 18589.3 | D60: 6.132022185 | E60: -99.96701316 | F60: 29533.59219 | G60: 9.989956302 | H60: -99.96617426
B61: 2009 | C61: 11417.5 | D61: 62.81410116 | E61: -99.44984365 | F61: 17854.57474 | G61: 65.41190488 | H61: -99.63364064
B62: 2010 | C62: 17725.9 | D62: -35.58860199 | E62: -100.2007718 | F62: 27193.30724 | G62: -34.34202547 | H62: -100.1262885
B63: 2011 | C63: 19439.8 | D63: -8.816448729 | E63: -100.0453526 | F63: 25581.98611 | G63: 6.298655324 | H63: -99.97537855
B64: 2012 | C64: 12659.4 | D64: 53.56020033 | E64: -99.5769136 | F64: 21758.14122 | G64: 17.57431781 | H64: -99.91922877
B65: 2013 | C65: 35188.4 | D65: -64.02393971 | E65: -100.1819462 | F65: 48254.78523 | G65: -54.90987864 | H65: -100.1137916
B66: 2014 | C66: 22568.4 | D66: 55.91889545 | E66: -99.75222481 | F66: 30521.62342 | G66: 58.10032305 | H66: -99.80964209
B67: 2015 | C67: 28382.3 | D67: -20.48424546 | E67: -100.0721726 | F67: 35915.95275 | G67: -15.01931292 | H67: -100.0418179
B68: 2016 | C68: 26738.6 | D68: 6.147292678 | E68: -99.97700967 | F68: 31160.41296 | G68: 15.26147873 | H68: -99.95102286
B69: 2017 | C69: 29695 | D69: -9.955884829 | E69: -100.0335271 | F69: 34036.11007 | G69: -8.448959363 | H69: -100.0248235
B70: 2018 | C70: 31604.3 | D70: -6.041266537 | E70: -100.0191153 | F70: 34083.62216 | G70: -0.1393986042 | H70: -100.000409
B71: 2019 | C71: 32921.2 | D71: -4.000157953 | E71: -100.0121507 | F71: 34352.33052 | G71: -0.7822129056 | H71: -100.002277
B72: 2020 | C72: 29079.43309 | D72: 13.21128544 | E72: -99.95456828 | F72: 28062.04671 | G72: 22.41562733 | H72: -99.9201212
B73: 2021 | C73: 31621.20435 | D73: -8.038186123 | E73: -100.0254202 | F73: 31658.42176 | G73: -11.35993158 | H73: -100.0358828
B74: 2022 | C74: 19427.5 | D74: =IF(AND(C74=0,C73=0),0,IF(AND(C74=0,C73<0),-100,IF(AND(C74=0,C73>0),100,IF(AND(C74<0,C73=0),100,IF(AND(C74<0,C73<0),-((C73-C74)/C74)*100,IF(AND(C74<0,C73>0),-((C73-C74)/C74)*100,IF(C74>0,((C73-C74)/C74)*100,"error"))))))) -> 62.76517489 | E74: =IF(AND(C74=0,D74=0),0,IF(AND(C74=0,D74<0),-100,IF(AND(C74=0,D74>0),100,IF(AND(C74<0,D74=0),100,IF(AND(C74<0,D74<0),-((D74-C74)/C74)*100,IF(AND(C74<0,D74>0),-((D74-C74)/C74)*100,IF(C74>0,((D74-C74)/C74)*100,"error"))))))) -> -99.67692614 | F74: 19427.45779 | G74: =IF(AND(F74=0,F73=0),0,IF(AND(F74=0,F73<0),-100,IF(AND(F74=0,F73>0),100,IF(AND(F74<0,F73=0),100,IF(AND(F74<0,F73<0),-((F73-F74)/F74)*100,IF(AND(F74<0,F73>0),-((F73-F74)/F74)*100,IF(F74>0,((F73-F74)/F74)*100,"error"))))))) -> 62.95709975 | H74: =IF(AND(F74=0,G74=0),0,IF(AND(F74=0,G74<0),-100,IF(AND(F74=0,G74>0),100,IF(AND(F74<0,G74=0),100,IF(AND(F74<0,G74<0),-((G74-F74)/F74)*100,IF(AND(F74<0,G74>0),-((G74-F74)/F74)*100,IF(F74>0,((G74-F74)/F74)*100,"error"))))))) -> -99.67593753
B75: Fuente: Secretaría de Economía
A77: IED en México en enero-junio por tipo de inversión (millones de dólares)
B79: Tipo de inversión | C79: Originalmente publicado | F79: Actualizado
C80: 2020 A | D80: 2021 B | E80: Variación [(B-A)/A]100 | F80: 2020 C | G80: 2021 B | H80: Variación [(B-C)/C]100
B81: Total | C81: 17969.26465 | D81: 18433.46954 | E81: =((D81-C81)/C81)*100 -> 2.583327159 | F81: 24008.96516 | G81: 18433.46954 | H81: =((G81-F81)/F81)*100 -> -23.22255698
B82: Nuevas inversiones | C82: 3039.740549 | D82: 6025.000694 | E82: =((D82-C82)/C82)*100 -> 98.20772851 | F82: 3375.612891 | G82: 6025.000694 | H82: =((G82-F82)/F82)*100 -> 78.48612648
B83: Reinversiones | C83: 9607.576493 | D83: 8658.214019 | E83: =((D83-C83)/C83)*100 -> -9.881393855 | F83: 15113.26273 | G83: 8658.214019 | H83: =((G83-F83)/F83)*100 -> -42.71115263
B84: Cuentas | C84: 5321.947607 | D84: 3750.254829 | E84: =((D84-C84)/C84)*100 -> -29.53228581 | F84: 5520.089533 | G84: 3750.254829 | H84: =((G84-F84)/F84)*100 -> -32.06170286
B85: Fuente: Secretaría de Economía
B87: IED en México en enero-junio por país de origen (millones de dólares)
B89: País de Origen | C89: Originalmente publicado | F89: Actualizado
C90: 2020 A | D90: 2021 B | E90: Variación [(B-A)/A]100 | F90: 2020 C | G90: 2021 B | H90: Variación [(B-C)/C]100
B91: Total | C91: 17969.26465 | D91: 18433.46954 | E91: =IF(AND(C91=0,D91=0),0,IF(AND(C91=0,D91<0),-100,IF(AND(C91=0,D91>0),100,IF(AND(C91<0,D91=0),100,IF(AND(C91<0,D91<0),-((D91-C91)/C91)*100,IF(AND(C91<0,D91>0),-((D91-C91)/C91)*100,IF(C91>0,((D91-C91)/C91)*100,"error"))))))) -> 2.583327159 | F91: 24008.96516 | G91: 18433.46954 | H91: =IF(AND(F91=0,G91=0),0,IF(AND(F91=0,G91<0),-100,IF(AND(F91=0,G91>0),100,IF(AND(F91<0,G91=0),100,IF(AND(F91<0,G91<0),-((G91-F91)/F91)*100,IF(AND(F91<0,G91>0),-((G91-F91)/F91)*100,IF(F91>0,((G91-F91)/F91)*100,"error"))))))) -> -23.22255698
B92: Estados Unidos | C92: 6937.076486 | D92: 9361.67914 | E92: 34.95136112 | F92: 9403.673004 | G92: 9361.67914 | H92: -0.446568747
B93: España | C93: 2003.863529 | D93: 1680.061531 | E93: -16.15888471 | F93: 4341.927376 | G93: 1680.061531 | H93: -61.30608861
B94: Canadá | C94: 3423.288104 | D94: 973.8376063 | E94: -71.55256652 | F94: 3602.20824 | G94: 973.8376063 | H94: -72.96553832
B95: Alemania | C95: 1217.524386 | D95: 1081.013743 | E95: -11.21214858 | F95: 1359.635414 | G95: 1081.013743 | H95: -20.49238116
B96: Reino Unido | C96: 585.0154588 | D96: 1092.076491 | E96: 86.67480912 | F96: 780.9387679 | G96: 1092.076491 | H96: 39.8415005
B97: Luxemburgo | C97: 6.1635035 | D97: 983.0469124 | E97: 15849.4825 | F97: 7.77777895 | G97: 983.0469124 | H97: 12539.17268
B98: Japón | C98: 316.6635036 | D98: 484.9490049 | E98: 53.14332074 | F98: 394.6286816 | G98: 484.9490049 | H98: 22.88741989
B99: Italia | C99: 343.6367646 | D99: 308.0672172 | E99: -10.35091439 | F99: 431.3274456 | G99: 308.0672172 | H99: -28.57694997
B100: Suiza | C100: 137.9659515 | D100: 174.5378732 | E100: 26.50793287 | F100: 558.362622 | G100: 174.5378732 | H100: -68.74112515
B101: Países Bajos | C101: 545.8009208 | D101: 99.953741 | E101: -81.68677677 | F101: 486.6993954 | G101: 99.953741 | H101: -79.4629412
B102: Resto | C102: 2452.266042 | D102: 2194.246283 | E102: -10.52168708 | F102: 2641.786431 | G102: 2194.246283 | H102: -16.94081487
B103: Fuente: Secretaría de Economía
A105: IED en México en enero-junio por sector económico (millones de dólares)
B107: Sector Económico | C107: Originalmente publicado | F107: Actualizado
C108: 2020 A | D108: 2021 B | E108: Variación [(B-A)/A]100 | F108: 2020 C | G108: 2021 B | H108: Variación [(B-C)/C]100
B109: Total | C109: 17969.26465 | D109: 18433.46954 | E109: =IF(AND(C109=0,D109=0),0,IF(AND(C109=0,D109<0),-100,IF(AND(C109=0,D109>0),100,IF(AND(C109<0,D109=0),100,IF(AND(C109<0,D109<0),-((D109-C109)/C109)*100,IF(AND(C109<0,D109>0),-((D109-C109)/C109)*100,IF(C109>0,((D109-C109)/C109)*100,"error"))))))) -> 2.583327159 | F109: 24008.96516 | G109: 18433.46954 | H109: =IF(AND(F109=0,G109=0),0,IF(AND(F109=0,G109<0),-100,IF(AND(F109=0,G109>0),100,IF(AND(F109<0,G109=0),100,IF(AND(F109<0,G109<0),-((G109-F109)/F109)*100,IF(AND(F109<0,G109>0),-((G109-F109)/F109)*100,IF(F109>0,((G109-F109)/F109)*100,"error"))))))) -> -23.22255698
B110: Agropecuario | C110: 56.34755081 | D110: 68.88787857 | E110: 22.25532003 | F110: 93.24710667 | G110: 68.88787857 | H110: -26.12330717
B111: Industrial | C111: 9971.56428 | D111: 10939.94243 | E111: 9.71139655 | F111: 11414.89221 | G111: 10939.94243 | H111: -4.160790734
B112: Minería | C112: 872.965765 | D112: 2496.613052 | E112: 185.9920917 | F112: 960.3726071 | G112: 2496.613052 | H112: 159.9629595
B113: Electricidad y agua | C113: 866.216542 | D113: 666.1099491 | E113: -23.10122045 | F113: 1031.038592 | G113: 666.1099491 | H113: -35.39427579
B114: Construcción | C114: 470.9498851 | D114: 295.2964939 | E114: -37.29768214 | F114: 703.56027 | G114: 295.2964939 | H114: -58.02825905
B115: Manufacturas | C115: 7761.432087 | D115: 7481.922934 | E115: -3.601257473 | F115: 8719.920737 | G115: 7481.922934 | H115: -14.19735156
B116: Servicios | C116: 7941.352818 | D116: 7424.639235 | E116: -6.50661915 | F116: 12500.82584 | G116: 7424.639235 | H116: -40.60681008
B117: Comercio | C117: 1183.278359 | D117: 1593.905605 | E117: 34.70250616 | F117: 1542.684263 | G117: 1593.905605 | H117: 3.320273824
B118: Transportes | C118: 2533.710113 | D118: 1903.176928 | E118: -24.88576658 | F118: 2572.752442 | G118: 1903.176928 | H118: -26.02564874
B119: Información en medios masivos | C119: 718.207324 | D119: 418.6013028 | E119: -41.71581257 | F119: 730.6259919 | G119: 418.6013028 | H119: -42.70648629
B120: Serv. financieros | C120: 2763.307805 | D120: 2131.109831 | E120: -22.8783045 | F120: 6465.211411 | G120: 2131.109831 | H120: -67.03727542
B121: Serv. inmobiliarios y de alquiler | C121: 176.8194903 | D121: 203.5863517 | E121: 15.13795871 | F121: 283.8277395 | G121: 203.5863517 | H121: -28.27115769
B122: Serv. profesionales | C122: 190.8394154 | D122: 226.7253252 | E122: 18.80424427 | F122: 197.972477 | G122: 226.7253252 | H122: 14.5236594
B123: Serv. de apoyo a los negocios | C123: 29.20500333 | D123: 94.72689491 | E123: 224.3515977 | F123: 23.89691594 | G123: 94.72689491 | H123: 296.3979919
B124: Serv. educativos | C124: 7.03827142 | D124: 27.93412686 | E124: 296.8890256 | F124: 7.03827142 | G124: 27.93412686 | H124: 296.8890256
B125: Serv. de salud | C125: 11.58013913 | D125: 6.46963726 | E125: -44.13161027 | F125: 11.58276694 | G125: 6.46963726 | H125: -44.14428527
B126: Serv. de esparcimiento | C126: 11.85426171 | D126: 42.97672685 | E126: 262.5424164 | F126: 21.36411755 | G126: 42.97672685 | H126: 101.1631267
B127: Serv. de alojamiento temporal | C127: 311.032299 | D127: 716.831506 | E127: 130.4685103 | F127: 624.9147729 | G127: 716.831506 | H127: 14.70868302
B128: Otros servicios | C128: 4.48033689 | D128: 58.59499904 | E128: 1207.825739 | F128: 18.95467484 | G128: 58.59499904 | H128: 209.1321773
B129: Fuente: Secretaría de Economía
A131: IED en México en enero-junio por entidad federativa (millones de dólares)
B133: Entidad Federativa | C133: Originalmente publicado | F133: Actualizado
C134: 2020 A | D134: 2021 B | E134: Variación [(B-A)/A]100 | F134: 2020 C | G134: 2021 B | H134: Variación [(B-C)/C]100
B135: Total | C135: 17969.26465 | D135: 18433.46954 | E135: =IF(AND(C135=0,D135=0),0,IF(AND(C135=0,D135<0),-100,IF(AND(C135=0,D135>0),100,IF(AND(C135<0,D135=0),100,IF(AND(C135<0,D135<0),-((D135-C135)/C135)*100,IF(AND(C135<0,D135>0),-((D135-C135)/C135)*100,IF(C135>0,((D135-C135)/C135)*100,"error"))))))) -> 2.583327159 | F135: 24008.96516 | G135: 18433.46954 | H135: =((G135-F135)/F135)*100 -> -23.22255698
B136: Aguascalientes | C136: 226.9628869 | D136: 238.0387725 | E136: 4.880042636 | F136: 243.8393466 | G136: 238.0387725 | H136: -2.378850735
B137: Baja California | C137: 761.199707 | D137: 1625.823745 | E137: 113.5870167 | F137: 940.8416763 | G137: 1625.823745 | H137: 72.80524302
B138: Baja California Sur | C138: 127.5704124 | D138: 526.8750299 | E138: 313.0072325 | F138: 405.8009758 | G138: 526.8750299 | H138: 29.83582135
B139: Campeche | C139: 93.41446254 | D139: 108.7046168 | E139: 16.36808034 | F139: 108.7034041 | G139: 108.7046168 | H139: 0.001115622836
B140: Chiapas | C140: 57.88959263 | D140: 183.7954965 | E140: 217.4931593 | F140: 147.5629813 | G140: 183.7954965 | H140: 24.55393274
B141: Chihuahua | C141: 465.2932647 | D141: 1049.117525 | E141: 125.4744706 | F141: 570.3019884 | G141: 1049.117525 | H141: 83.95824436
B142: Ciudad de México | C142: 3419.767894 | D142: 3270.230288 | E142: -4.372741387 | F142: 5441.289778 | G142: 3270.230288 | H142: -39.89972192
B143: Coahuila | C143: 623.7258173 | D143: 963.2731688 | E143: 54.4385597 | F143: 807.0473402 | G143: 963.2731688 | H143: 19.35770317
B144: Colima | C144: 78.32186789 | D144: 25.88981908 | E144: -66.94432886 | F144: 101.3647926 | G144: 25.88981908 | H144: -74.4587658
B145: Durango | C145: 512.0703988 | D145: 412.0404774 | E145: -19.53440809 | F145: 554.1859579 | G145: 412.0404774 | H145: -25.64941938
B146: Estado de México | C146: 1335.849042 | D146: 620.6292182 | E146: -53.54046762 | F146: 2114.037863 | G146: 620.6292182 | H146: -70.64247387
B147: Guanajuato | C147: 324.5283359 | D147: 1016.09211 | E147: 213.0981173 | F147: 545.9084749 | G147: 1016.09211 | H147: 86.12865646
B148: Guerrero | C148: 219.2513958 | D148: 229.5054244 | E148: 4.676836204 | F148: 293.9502487 | G148: 229.5054244 | H148: -21.92371824
B149: Hidalgo | C149: 197.7722793 | D149: 65.69595134 | E149: -66.78202245 | F149: 234.8774139 | G149: 65.69595134 | H149: -72.02968551
B150: Jalisco | C150: 1542.681281 | D150: 874.7203962 | E150: -43.29869644 | F150: 2043.650529 | G150: 874.7203962 | H150: -57.19814207
B151: Michoacán | C151: 161.0017754 | D151: 992.9080247 | E151: 516.706258 | F151: 256.5837275 | G151: 992.9080247 | H151: 286.9723285
B152: Morelos | C152: 62.92930486 | D152: 127.6393566 | E152: 102.8297577 | F152: 108.2905435 | G152: 127.6393566 | H152: 17.86750025
B153: Nayarit | C153: 639.7652438 | D153: 122.583846 | E153: -80.83924578 | F153: 667.6340899 | G153: 122.583846 | H153: -81.6390673
B154: Nuevo León | C154: 1922.550609 | D154: 1454.802434 | E154: -24.32956368 | F154: 2022.958507 | G154: 1454.802434 | H154: -28.08540415
B155: Oaxaca | C155: 242.9426853 | D155: 99.21897631 | E155: -59.15951279 | F155: 285.7605379 | G155: 99.21897631 | H155: -65.27897902
B156: Puebla | C156: 544.8946227 | D156: 207.7472314 | E156: -61.87387015 | F156: 661.6197995 | G156: 207.7472314 | H156: -68.60020944
B157: Querétaro | C157: 616.7941245 | D157: 341.7705473 | E157: -44.58920185 | F157: 809.7854564 | G157: 341.7705473 | H157: -57.79492647
B158: Quintana Roo | C158: 1.681422014 | D158: 164.5953297 | E158: 9689.055235 | F158: 89.01807411 | G158: 164.5953297 | H158: 84.901023
B159: San Luis Potosí | C159: 883.282893 | D159: 662.9706337 | E159: -24.94243477 | F159: 1022.390596 | G159: 662.9706337 | H159: -35.15485799
B160: Sinaloa | C160: 660.9737993 | D160: 180.2938487 | E160: -72.72299614 | F160: 737.4296556 | G160: 180.2938487 | H160: -75.55104445
B161: Sonora | C161: 295.8316302 | D161: 911.9259293 | E161: 208.2584268 | F161: 390.0473912 | G161: 911.9259293 | H161: 133.7987511
B162: Tabasco | C162: 291.9264156 | D162: 169.0348771 | E162: -42.09675176 | F162: 327.1886382 | G162: 169.0348771 | H162: -48.33718004
B163: Tamaulipas | C163: 386.558813 | D163: 601.966805 | E163: 55.72450681 | F163: 507.4222548 | G163: 601.966805 | H163: 18.63232235
B164: Tlaxcala | C164: 315.2717619 | D164: 74.04223818 | E164: -76.5147891 | F164: 341.1821653 | G164: 74.04223818 | H164: -78.2983269
B165: Veracruz | C165: 849.7418337 | D165: 468.6764166 | E165: -44.84484604 | F165: 1052.41433 | G165: 468.6764166 | H165: -55.46654933
B166: Yucatán | C166: 81.10830138 | D166: 39.95046378 | E166: -50.74429731 | F166: 128.8347221 | G166: 39.95046378 | H166: -68.99091866
B167: Zacatecas | C167: 25.71077445 | D167: 602.9105442 | E167: 2244.97232 | F167: 47.04189669 | G167: 602.9105442 | H167: 1181.645908
B168: Fuente: Secretaría de Economía

Sheet Variaciones
A7: CONTENIDO
A8: * Nota Metodológica
A9: * IED en México en enero-marzo por trimestre
A10: * IED en México en enero-marzo por año
A11: * IED en México en enero-marzo por tipo de inversión
A12: * IED en México en enero-marzo por país de origen
A13: * IED en México en enero-marzo por sector económico
A14: * IED en México en enero-marzo por entidad federativa
A34: https://www.gob.mx/se/acciones-y-programas/competitividad-y-normatividad-inversion-extranjera-directa?state=published
A36: IED en México en enero-marzo por trimestre (millones de dólares)
B38: Tipo de inversión | C38: Originalmente publicado* | F38: Actualizado
C39: 2021 A | D39: 2022 B | E39: Variación [(B-A)/A]100 | F39: 2021 C | G39: 2022 B | H39: Variación [(B-C)/C]100
B40: Primer trimestre | C40: 11864.03046 | D40: 19427.45779 | E40: =((D40-C40)/C40)*100 -> 63.7509095 | F40: 16149.53695 | G40: 19427.45779 | H40: =((G40-F40)/F40)*100 -> 20.29730542
B41: Enero-marzo | C41: 11864.03046 | D41: 19427.45779 | E41: =((D41-C41)/C41)*100 -> 63.7509095 | F41: 16149.53695 | G41: 19427.45779 | H41: =((G41-F41)/F41)*100 -> 20.29730542
B42: *El dato para enero-marzo incluye los datos originalmente publicados para cada trimestre más las actualizaciones que se recibieron para el primero y segundo trimestres; por ello, el dato enero-marzo no es la suma de los datos originalmente publicados en cada trimestre. Para consultar las cifras originalmente publicadas desde 2009, se pueden revisar los informes al H. Congreso de Unión publicados en la página: gob.mx:
B43: https://www.gob.mx/se/acciones-y-programas/competitividad-y-normatividad-inversion-extranjera-directa
B44: Fuente: Secretaría de Economía
A46: IED en México en enero-marzo por año (millones de dólares)
B48: Año | C48: Originalmente publicado | F48: Actualizado
C49: Monto | D49: Variación Anual | F49: Monto | G49: Variación anual
B50: 2000 | C50: 10358.3 | D50: -32.73490645 | E50: -100.3160259 | F50: 18248.6726 | G50: -61.8189959 | H50: -100.3387589
B51: 2001 | C51: 23168.4 | D51: -55.29125878 | E51: -100.2386494 | F51: 30057.15939 | G51: -39.28676904 | H51: -100.1307069
B52: 2002 | C52: 9696.4 | D52: 138.9381626 | E52: -98.56711602 | F52: 24099.20092 | G52: 24.72263908 | H52: -99.89741303
B53: 2003 | C53: 9431.4 | D53: 2.809763132 | E53: -99.97020842 | F53: 18270.16745 | G53: 31.9046527 | H53: -99.82537296
B54: 2004 | C54: 15846.4 | D54: -40.48238086 | E54: -100.2554674 | F54: 25030.30885 | G54: -27.00782256 | H54: -100.1079005
B55: 2005 | C55: 11093.3 | D55: 42.84658307 | E55: -99.61376161 | F55: 26058.30386 | G55: -3.944980492 | H55: -100.0151391
B56: 2006 | C56: 14638.3 | D56: -24.21729299 | E56: -100.1654379 | F56: 21244.43233 | G56: 22.65945004 | H56: -99.89333935
B57: 2007 | C57: 19729.2 | D57: -25.8038846 | E57: -100.1307903 | F57: 32483.98514 | G57: -34.60028924 | H57: -100.1065149
B58: 2008 | C58: 18589.3 | D58: 6.132022185 | E58: -99.96701316 | F58: 29533.59219 | G58: 9.989956302 | H58: -99.96617426
B59: 2009 | C59: 11417.5 | D59: 62.81410116 | E59: -99.44984365 | F59: 17854.57474 | G59: 65.41190488 | H59: -99.63364064
B60: 2010 | C60: 17725.9 | D60: -35.58860199 | E60: -100.2007718 | F60: 27193.30724 | G60: -34.34202547 | H60: -100.1262885
B61: 2011 | C61: 19439.8 | D61: -8.816448729 | E61: -100.0453526 | F61: 25581.98611 | G61: 6.298655324 | H61: -99.97537855
B62: 2012 | C62: 12659.4 | D62: 53.56020033 | E62: -99.5769136 | F62: 21758.14122 | G62: 17.57431781 | H62: -99.91922877
B63: 2013 | C63: 35188.4 | D63: -64.02393971 | E63: -100.1819462 | F63: 48254.78523 | G63: -54.90987864 | H63: -100.1137916
B64: 2014 | C64: 22568.4 | D64: 55.91889545 | E64: -99.75222481 | F64: 30521.62342 | G64: 58.10032305 | H64: -99.80964209
B65: 2015 | C65: 28382.3 | D65: -20.48424546 | E65: -100.0721726 | F65: 35915.95275 | G65: -15.01931292 | H65: -100.0418179
B66: 2016 | C66: 26738.6 | D66: 6.147292678 | E66: -99.97700967 | F66: 31160.41296 | G66: 15.26147873 | H66: -99.95102286
B67: 2017 | C67: 29695 | D67: -9.955884829 | E67: -100.0335271 | F67: 34036.11007 | G67: -8.448959363 | H67: -100.0248235
B68: 2018 | C68: 31604.3 | D68: -6.041266537 | E68: -100.0191153 | F68: 34083.62216 | G68: -0.1393986042 | H68: -100.000409
B69: 2019 | C69: 32921.2 | D69: -4.000157953 | E69: -100.0121507 | F69: 34352.33052 | G69: -0.7822129056 | H69: -100.002277
B70: 2020 | C70: 29079.43309 | D70: 13.21128544 | E70: -99.95456828 | F70: 28062.04671 | G70: 22.41562733 | H70: -99.9201212
B71: 2021 | C71: 31621.20435 | D71: -8.038186123 | E71: -100.0254202 | F71: 31658.42176 | G71: -11.35993158 | H71: -100.0358828
B72: 2022 | C72: 19427.5 | D72: 62.76517489 | E72: -99.67692614 | F72: 19427.45779 | G72: 62.95709975 | H72: -99.67593753
B73: Fuente: Secretaría de Economía
A75: IED en México en enero-marzo por tipo de inversión (millones de dólares)
B77: Tipo de inversión | C77: Originalmente publicado | F77: Actualizado
C78: 2021 A | D78: 2022 B | E78: Variación [(B-A)/A]100 | F78: 2021 C | G78: 2022 B | H78: Variación [(B-C)/C]100
B79: Total | C79: 11864.03046 | D79: 19427.45779 | E79: =((D79-C79)/C79)*100 -> 63.7509095 | F79: 31658.42176 | G79: 19427.45779 | H79: =((G79-F79)/F79)*100 -> -38.63415577
B80: Nuevas inversiones | C80: 2209.418013 | D80: 8792.20968 | E80: =((D80-C80)/C80)*100 -> 297.9423372 | F80: 13807.04914 | G80: 8792.20968 | H80: =((G80-F80)/F80)*100 -> -36.32086344
B81: Reinversiones | C81: 7025.211257 | D81: 9259.124451 | E81: =((D81-C81)/C81)*100 -> 31.79851983 | F81: 12609.98278 | G81: 9259.124451 | H81: =((G81-F81)/F81)*100 -> -26.57306029
B82: Cuentas | C82: 2629.401193 | D82: 1376.123656 | E82: =((D82-C82)/C82)*100 -> -47.66399058 | F82: 5241.389844 | G82: 1376.123656 | H82: =((G82-F82)/F82)*100 -> -73.74506196
B83: Fuente: Secretaría de Economía
B85: IED en México en enero-marzo por país de origen (millones de dólares)
B87: País de Origen | C87: Originalmente publicado | F87: Actualizado
C88: 2021 A | D88: 2022 B | E88: Variación [(B-A)/A]100 | F88: 2021 C | G88: 2022 B | H88: Variación [(B-C)/C]100
B89: Total | C89: 11864.03046 | D89: 19427.45779 | E89: =IF(AND(C89=0,D89=0),0,IF(AND(C89=0,D89<0),-100,IF(AND(C89=0,D89>0),100,IF(AND(C89<0,D89=0),100,IF(AND(C89<0,D89<0),-((D89-C89)/C89)*100,IF(AND(C89<0,D89>0),-((D89-C89)/C89)*100,IF(C89>0,((D89-C89)/C89)*100,"error"))))))) -> 63.7509095 | F89: 31658.42176 | G89: 19427.45779 | H89: =IF(AND(F89=0,G89=0),0,IF(AND(F89=0,G89<0),-100,IF(AND(F89=0,G89>0),100,IF(AND(F89<0,G89=0),100,IF(AND(F89<0,G89<0),-((G89-F89)/F89)*100,IF(AND(F89<0,G89>0),-((G89-F89)/F89)*100,IF(F89>0,((G89-F89)/F89)*100,"error"))))))) -> -38.63415577
B90: Estados Unidos | C90: 5047.985092 | D90: 7602.278697 | E90: 50.60026046 | F90: 14754.86965 | G90: 7602.278697 | H90: -48.47613788
B91: España | C91: 1434.433766 | D91: 2093.150842 | E91: 45.92174919 | F91: 4463.090647 | G91: 2093.150842 | H91: -53.10086647
B92: Canadá | C92: 564.4369792 | D92: 1374.121455 | E92: 143.4499343 | F92: 2618.547904 | G92: 1374.121455 | H92: -47.52353193
B93: Alemania | C93: 268.1640917 | D93: 334.3324631 | E93: 24.674583 | F93: 2089.233527 | G93: 334.3324631 | H93: -83.99736272
B94: Reino Unido | C94: 652.6473174 | D94: 589.4031636 | E94: -9.690402786 | F94: 1807.200288 | G94: 589.4031636 | H94: -67.38584166
B95: Japón | C95: 432.3613273 | D95: 269.2914405 | E95: -37.71611302 | F95: 1595.962414 | G95: 269.2914405 | H95: -83.12670536
B96: Francia | C96: 311.1057896 | D96: 665.7411658 | E96: 113.9918922 | F96: 480.0528179 | G96: 665.7411658 | H96: 38.68081615
B97: Luxemburgo | C97: 967.2480562 | D97: -4.62028456 | E97: -100.4776732 | F97: 970.2535715 | G97: -4.62028456 | H97: -100.4761935
B98: Corea | C98: 89.45286401 | D98: 72.91352833 | E98: -18.4894423 | F98: 692.7711768 | G98: 72.91352833 | H98: -89.4750921
B99: Suiza | C99: 95.06947608 | D99: 170.5678746 | E99: 79.41392093 | F99: 384.0066483 | G99: 170.5678746 | H99: -55.58205166
B100: Resto | C100: 2001.125703 | D100: 6260.277442 | E100: 212.8377908 | F100: 1802.433118 | G100: 6260.277442 | H100: 247.3237026
B101: Fuente: Secretaría de Economía
A103: IED en México en enero-marzo por sector económico (millones de dólares)
B105: Sector Económico | C105: Originalmente publicado | F105: Actualizado
C106: 2021 A | D106: 2022 B | E106: Variación [(B-A)/A]100 | F106: 2021 C | G106: 2022 B | H106: Variación [(B-C)/C]100
B107: Total | C107: 11864.03046 | D107: 19427.45779 | E107: =IF(AND(C107=0,D107=0),0,IF(AND(C107=0,D107<0),-100,IF(AND(C107=0,D107>0),100,IF(AND(C107<0,D107=0),100,IF(AND(C107<0,D107<0),-((D107-C107)/C107)*100,IF(AND(C107<0,D107>0),-((D107-C107)/C107)*100,IF(C107>0,((D107-C107)/C107)*100,"error"))))))) -> 63.7509095 | F107: 31658.42176 | G107: 19427.45779 | H107: =IF(AND(F107=0,G107=0),0,IF(AND(F107=0,G107<0),-100,IF(AND(F107=0,G107>0),100,IF(AND(F107<0,G107=0),100,IF(AND(F107<0,G107<0),-((G107-F107)/F107)*100,IF(AND(F107<0,G107>0),-((G107-F107)/F107)*100,IF(F107>0,((G107-F107)/F107)*100,"error"))))))) -> -38.63415577
B108: Agropecuario | C108: 58.22606074 | D108: 41.75814092 | E108: -28.28273047 | F108: 204.5272673 | G108: 41.75814092 | H108: -79.58309351
B109: Industrial | C109: =SUM(C110:C113) -> 7706.836048 | D109: 7614.323135 | E109: -1.200400681 | F109: =SUM(F110:F113) -> 17277.3072 | G109: =SUM(G110:G113) -> 7614.323135 | H109: -55.92876225
B110: Minería | C110: 1651.576779 | D110: 1132.779902 | E110: -31.41221675 | F110: 4780.105418 | G110: 1132.779902 | H110: -76.30219833
B111: Electricidad y agua | C111: 402.9409303 | D111: 369.3499036 | E111: -8.336464282 | F111: 585.861961 | G111: 369.3499036 | H111: -36.95615552
B112: Construcción | C112: 117.4072973 | D112: 1418.696704 | E112: 1108.354793 | F112: 252.4343205 | G112: 1418.696704 | H112: 462.0062681
B113: Manufacturas | C113: 5534.911041 | D113: 4693.496626 | E113: -15.2019501 | F113: 11658.9055 | G113: 4693.496626 | H113: -59.74324842
B114: Servicios | C114: =SUM(C115:C126) -> 4098.968354 | D114: 11771.37651 | E114: 187.1790044 | F114: =SUM(F115:F126) -> 14176.58729 | G114: 11771.4 | H114: -16.96591178
B115: Comercio | C115: 1359.853504 | D115: 938.4301868 | E115: -30.9903468 | F115: 2789.440502 | G115: 938.4301868 | H115: -66.35776292
B116: Transportes | C116: 18.93085381 | D116: 2979.081913 | E116: 15636.64845 | F116: 3146.834798 | G116: 2979.081913 | H116: -5.330844982
B117: Información en medios masivos | C117: 97.39189083 | D117: 3773.017078 | E117: 3774.056706 | F117: 591.6623171 | G117: 3773.017078 | H117: 537.6977153
B118: Serv. financieros | C118: 1734.809831 | D118: 3343.167658 | E118: 92.71090112 | F118: 4875.77922 | G118: 3343.167658 | H118: -31.4331616
B119: Serv. inmobiliarios y de alquiler | C119: 150.5820644 | D119: 80.97362461 | E119: -46.22624884 | F119: 325.3730515 | G119: 80.97362461 | H119: -75.11360445
B120: Serv. profesionales | C120: 200.7617375 | D120: 337.4829683 | E120: 68.10123904 | F120: 248.0342738 | G120: 337.4829683 | H120: 36.06303803
B121: Serv. de apoyo a los negocios | C121: 72.99025824 | D121: 113.3594102 | E121: 55.30758892 | F121: 174.6012044 | G121: 113.3594102 | H121: -35.07524154
B122: Serv. educativos | C122: 25.95166148 | D122: 2.16036934 | E122: -91.67541029 | F122: 24.10856808 | G122: 2.16036934 | H122: -91.0389977
B123: Serv. de salud | C123: 4.11038 | D123: 0.75198511 | E123: -81.70521679 | F123: 12.09849544 | G123: 0.75198511 | H123: -93.78447416
B124: Serv. de esparcimiento | C124: 42.07621052 | D124: 0.76370782 | E124: -98.18494154 | F124: 95.91642472 | G124: 0.76370782 | H124: -99.20377785
B125: Serv. de alojamiento temporal | C125: 375.2732163 | D125: 328.8234434 | E125: -12.37758808 | F125: 1763.937165 | G125: 328.8234434 | H125: -81.3585512
B126: Otros servicios | C126: 16.23674658 | D126: -126.6358352 | E126: -879.933557 | F126: 128.8012733 | G126: -126.8 | H126: -198.4462318
B127: Fuente: Secretaría de Economía
A129: IED en México en enero-marzo por entidad federativa (millones de dólares)
B131: Entidad Federativa | C131: Originalmente publicado | F131: Actualizado
C132: 2021 A | D132: 2022 B | E132: Variación [(B-A)/A]100 | F132: 2021 C | G132: 2022 B | H132: Variación [(B-C)/C]100
B133: Total | C133: 11864.03046 | D133: 19427.45779 | E133: =IF(AND(C133=0,D133=0),0,IF(AND(C133=0,D133<0),-100,IF(AND(C133=0,D133>0),100,IF(AND(C133<0,D133=0),100,IF(AND(C133<0,D133<0),-((D133-C133)/C133)*100,IF(AND(C133<0,D133>0),-((D133-C133)/C133)*100,IF(C133>0,((D133-C133)/C133)*100,"error"))))))) -> 63.7509095 | F133: 31658.42176 | G133: 19427.45779 | H133: =((G133-F133)/F133)*100 -> -38.63415577
B134: Aguascalientes | C134: 112.4065511 | D134: 250.8566848 | E134: =IF(AND(C134=0,D134=0),0,IF(AND(C134=0,D134<0),-100,IF(AND(C134=0,D134>0),100,IF(AND(C134<0,D134=0),100,IF(AND(C134<0,D134<0),-((D134-C134)/C134)*100,IF(AND(C134<0,D134>0),-((D134-C134)/C134)*100,IF(C134>0,((D134-C134)/C134)*100,"error"))))))) -> 123.1690967 | F134: 41.9770759 | G134: 250.8566848 | H134: 497.6040002
B135: Baja California | C135: 295.1646972 | D135: 839.563989 | E135: 184.4391613 | F135: 2225.030953 | G135: 839.563989 | H135: -62.26731193
B136: Baja California Sur | C136: 280.161178 | D136: 208.830091 | E136: -25.46073213 | F136: 1309.385511 | G136: 208.830091 | H136: -84.05129054
B137: Campeche | C137: 33.75569238 | D137: 83.40491714 | E137: 147.0840065 | F137: 218.3977244 | G137: 83.40491714 | H137: -61.81053747
B138: Chiapas | C138: 190.0612697 | D138: 248.4174966 | E138: 30.70390243 | F138: 158.921326 | G138: 248.4174966 | H138: 56.31476455
B139: Chihuahua | C139: 514.8503736 | D139: 774.3564366 | E139: 50.40417106 | F139: 1894.179459 | G139: 774.3564366 | H139: -59.11916197
B140: Ciudad de México | C140: 2202.091838 | D140: 7973.217569 | E140: 262.0747069 | F140: 5325.927689 | G140: 7973.217569 | H140: 49.70570454
B141: Coahuila de Zaragoza | C141: 365.0299139 | D141: 259.3634659 | E141: -28.94733939 | F141: 1037.144407 | G141: 259.3634659 | H141: -74.99254067
B142: Colima | C142: 28.55599185 | D142: 56.06087744 | E142: 96.31913938 | F142: 89.75136274 | G142: 56.06087744 | H142: -37.53757522
B143: Durango | C143: 300.8743822 | D143: 97.12450622 | E143: -67.7192503 | F143: 461.7095964 | G143: 97.12450622 | H143: -78.96415691
B144: Estado de México | C144: 568.9539731 | D144: 797.6403974 | E144: 40.19418709 | F144: 1624.055134 | G144: 797.6403974 | H144: -50.88587939
B145: Guanajuato | C145: 969.5886959 | D145: 638.8149377 | E145: -34.11485298 | F145: 1797.171528 | G145: 638.8149377 | H145: -64.45442588
B146: Guerrero | C146: 98.33305991 | D146: 73.60380423 | E146: -25.14846553 | F146: 669.0633727 | G146: 73.60380423 | H146: -88.99897869
B147: Hidalgo | C147: 52.46357506 | D147: 154.778634 | E147: 195.0211338 | F147: 176.1339854 | G147: 154.778634 | H147: -12.12449225
B148: Jalisco | C148: 637.7574267 | D148: 1318.943579 | E148: 106.8095994 | F148: 2142.829535 | G148: 1318.943579 | H148: -38.44850663
B149: Michoacán de Ocampo | C149: 964.1972458 | D149: 108.52059 | E149: -88.74498029 | F149: 1033.536017 | G149: 108.52059 | H149: -89.50006693
B150: Morelos | C150: 59.74130163 | D150: 45.51793939 | E150: -23.80825635 | F150: 94.42929312 | G150: 45.51793939 | H150: -51.79680173
B151: Nayarit | C151: 70.59615227 | D151: 199.2212083 | E151: 182.1983945 | F151: 250.9445555 | G151: 199.2212083 | H151: -20.61146419
B152: Nuevo León | C152: 1015.184652 | D152: 1105.793714 | E152: 8.925377397 | F152: 3231.636694 | G152: 1105.793714 | H152: -65.7822392
B153: Oaxaca | C153: 146.245106 | D153: 136.9174617 | E153: -6.378089856 | F153: -92.63525112 | G153: 136.9174617 | H153: -247.8027641
B154: Puebla | C154: 36.92527113 | D154: 354.1305584 | E154: 859.046603 | F154: 626.4133368 | G154: 354.1305584 | H154: -43.46695104
B155: Querétaro | C155: 271.0252719 | D155: 506.6069682 | E155: 86.92240933 | F155: 869.8561361 | G155: 506.6069682 | H155: -41.75968334
B156: Quintana Roo | C156: 90.97688263 | D156: 228.360073 | E156: 151.0089007 | F156: 313.5897011 | G156: 228.360073 | H156: -27.17870764
B157: San Luis Potosí | C157: 608.1233477 | D157: 268.1638512 | E157: -55.90304958 | F157: 699.3431165 | G157: 268.1638512 | H157: -61.65489517
B158: Sinaloa | C158: 74.87809696 | D158: 281.1373143 | E158: 275.4600152 | F158: 541.3897484 | G158: 281.1373143 | H158: -48.07117883
B159: Sonora | C159: 495.4385143 | D159: 347.3756928 | E159: -29.88520618 | F159: 897.4544835 | G159: 347.3756928 | H159: -61.29322443
B160: Tabasco | C160: 117.6044758 | D160: 136.8554231 | E160: 16.36923008 | F160: 300.1432081 | G160: 136.8554231 | H160: -54.4032917
B161: Tamaulipas | C161: 399.0794352 | D161: 881.2441448 | E161: 120.8192322 | F161: 1271.39661 | G161: 881.2441448 | H161: -30.68692039
B162: Tlaxcala | C162: 50.84406261 | D162: 38.41210117 | E162: -24.45115674 | F162: 50.77741782 | G162: 38.41210117 | H162: -24.35199973
B163: Veracruz de Ignacio de la Llave | C163: 586.7437794 | D163: 571.5467346 | E163: -2.590064917 | F163: 935.4231359 | G163: 571.5467346 | H163: -38.89965806
B164: Yucatán | C164: 23.88082266 | D164: 128.4676334 | E164: 437.9531316 | F164: 145.1319297 | G164: 128.4676334 | H164: -11.482171
B165: Zacatecas | C165: 202.4974253 | D165: 314.2089921 | E165: 55.16690721 | F165: 1317.912972 | G165: 314.2089921 | H165: -76.15859326
B166: Fuente: Secretaría de Economía

Sheet Países y Estados
A6: CONTENIDO
A7: * Nota Metodológica
A8: * Flujos de IED en México por país de origen
A9: * Flujos de IED en México por entidad federativa
A24: Flujos de IED en México por país de origen (millones de dólares)
B26: País de origen | C26: Monto | E26: Lugar
C27: Enero 1999-marzo 2022 | D27: Enero-marzo 2022 | E27: Enero 1999-marzo 2022 | F27: Enero-marzo 2022
B28: Estados Unidos de América | C28: 306214.6988 | D28: 7602.278697 | E28: 1 | F28: 1
B29: España | C29: 79941.5613 | D29: 2093.150842 | E29: 2 | F29: 3
B30: Canadá | C30: 48945.62746 | D30: 1374.121455 | E30: 3 | F30: 4
B31: Japón | C31: 29860.20011 | D31: 269.2914405 | E31: 4 | F31: 9
B32: Alemania | C32: 29164.45033 | D32: 334.3324631 | E32: 5 | F32: 8
B33: Bélgica | C33: 21180.73201 | D33: 55.5174849 | E33: 6 | F33: 16
B34: Países Bajos | C34: 20787.82591 | D34: 57.76080881 | E34: 7 | F34: 15
B35: Reino Unido de la Gran Bretaña e Irlanda del Norte | C35: 18143.59744 | D35: 589.4031636 | E35: 8 | F35: 7
B36: Francia | C36: 10737.05613 | D36: 665.7411658 | E36: 9 | F36: 5
B37: Argentina | C37: 9514.539888 | D37: 617.921356 | E37: 10 | F37: 6
B38: Italia | C38: 8958.624918 | D38: 109.3429074 | E38: 11 | F38: 13
B39: Suiza | C39: 8665.74077 | D39: 170.5678746 | E39: 12 | F39: 10
B40: Corea República de | C40: 8131.602371 | D40: 72.91352833 | E40: 13 | F40: 14
B41: Brasil | C41: 5895.016974 | D41: 137.7136757 | E41: 14 | F41: 11
B42: Australia | C42: 4557.872375 | D42: 24.23417235 | E42: 15 | F42: 21
B43: Luxemburgo | C43: 4425.250239 | D43: -4.62028456 | E43: 16 | F43: 44
B44: Suecia | C44: 2510.416772 | D44: 18.81608467 | E44: 17 | F44: 22
B45: Dinamarca | C45: 2292.871501 | D45: 35.43203491 | E45: 18 | F45: 19
B46: Israel | C46: 2222.166352 | D46: 0.1407646 | E46: 19 | F46: 39
B47: Finlandia | C47: 2029.819397 | D47: -5.55015045 | E47: 20 | F47: 46
B48: Fuente: Secretaría de Economía
A50: Flujos de IED en México por entidad federativa (millones de dólares)
B52: Entidad Federativa | C52: Monto | E52: Orden
C53: Enero 1999-marzo 2022 | D53: Enero-marzo 2022 | E53: Enero 1999-marzo 2022 | F53: Enero-marzo 2022
B54: Aguascalientes | C54: 10996.25788 | D54: 250.8566848 | E54: 17 | F54: 17
B55: Baja California | C55: 31582.9943 | D55: 839.563989 | E55: 6 | F55: 5
B56: Baja California Sur | C56: 12264.34958 | D56: 208.830091 | E56: 16 | F56: 20
B57: Campeche | C57: 3519.151034 | D57: 83.40491714 | E57: 30 | F57: 28
B58: Chiapas | C58: 3487.988863 | D58: 248.4174966 | E58: 31 | F58: 18
B59: Chihuahua | C59: 37730.17309 | D59: 774.3564366 | E59: 4 | F59: 7
B60: Ciudad de México | C60: 143549.9413 | D60: 7973.217569 | E60: 1 | F60: 1
B61: Coahuila de Zaragoza | C61: 25103.21276 | D61: 259.3634659 | E61: 8 | F61: 16
B62: Colima | C62: 2525.314954 | D62: 56.06087744 | E62: 32 | F62: 30
B63: Durango | C63: 5920.155947 | D63: 97.12450622 | E63: 25 | F63: 27
B64: Estado de México | C64: 58511.99151 | D64: 797.6403974 | E64: 3 | F64: 6
B65: Guanajuato | C65: 25103.97772 | D65: 638.8149377 | E65: 7 | F65: 8
B66: Guerrero | C66: 6794.138398 | D66: 73.60380423 | E66: 22 | F66: 29
B67: Hidalgo | C67: 4977.427803 | D67: 154.778634 | E67: 26 | F67: 22
B68: Jalisco | C68: 37693.29154 | D68: 1318.943579 | E68: 5 | F68: 2
B69: Michoacán de Ocampo | C69: 9756.105259 | D69: 108.52059 | E69: 18 | F69: 26
B70: Morelos | C70: 6887.785892 | D70: 45.51793939 | E70: 21 | F70: 31
B71: Nayarit | C71: 4597.472891 | D71: 199.2212083 | E71: 27 | F71: 21
B72: Nuevo León | C72: 60875.9912 | D72: 1105.793714 | E72: 2 | F72: 3
B73: Oaxaca | C73: 6356.355207 | D73: 136.9174617 | E73: 23 | F73: 23
B74: Puebla | C74: 17479.11537 | D74: 354.1305584 | E74: 13 | F74: 11
B75: Querétaro | C75: 19627.25462 | D75: 506.6069682 | E75: 11 | F75: 10
B76: Quintana Roo | C76: 9489.348199 | D76: 228.360073 | E76: 19 | F76: 19
B77: San Luis Potosí | C77: 17045.59697 | D77: 268.1638512 | E77: 14 | F77: 15
B78: Sinaloa | C78: 7631.222832 | D78: 281.1373143 | E78: 20 | F78: 14
B79: Sonora | C79: 17599.3294 | D79: 347.3756928 | E79: 12 | F79: 12
B80: Tabasco | C80: 6054.027685 | D80: 136.8554231 | E80: 24 | F80: 24
B81: Tamaulipas | C81: 24879.83038 | D81: 881.2441448 | E81: 9 | F81: 4
B82: Tlaxcala | C82: 3710.358476 | D82: 38.41210117 | E82: 28 | F82: 32
B83: Veracruz de Ignacio de la Llave | C83: 19926.28984 | D83: 571.5467346 | E83: 10 | F83: 9
B84: Yucatán | C84: 3691.071613 | D84: 128.4676334 | E84: 29 | F84: 25
B85: Zacatecas | C85: 13479.39076 | D85: 314.2089921 | E85: 15 | F85: 13
B86: Fuente: Secretaría de Economía

Sheet Series Históricas (2) (hidden)
A67: IED por tipo de inversión (1980-2021) (millones de dólares/participación porcentual) Cifras de la Secretaría de Economía
A72: Tipo de inversión | B72: 1980 | D72: 1981 | F72: 1982 | H72: 1983 | J72: 1984 | L72: 1985 | N72: 1986 | P72: 1987 | R72: 1988 | T72: 1989 | V72: 1990 | X72: 1991 | Z72: 1992 | AB72: 1993 | AD72: 1994 | AF72: 1995 | AH72: 1996 | AJ72: 1997 | AL72: 1998 | AN72: 1999 | AP72: 2000 | AR72: 2001 | AT72: 2002 | AV72: 2003 | AX72: 2004 | AZ72: 2005 | BB72: 2006 | BD72: 2007 | BF72: 2008 | BH72: 2009 | BJ72: 2010 | BL72: 2011 | BN72: 2012 | BP72: 2013 | BR72: 2014 | BT72: 2015 | BV72: 2016 | BX72: 2017 | BZ72: 2018 | CB72: 2019 | CD72: 2020 | CF72: 2021
A73: Nuevas invesrsiones | B73: nd | C73: nd | D73: nd | E73: nd | F73: nd | G73: nd | H73: nd | I73: nd | J73: nd | K73: nd | L73: nd | M73: nd | N73: nd | O73: nd | P73: nd | Q73: nd | R73: nd | S73: nd | T73: nd | U73: nd | V73: nd | W73: nd | X73: nd | Y73: nd | Z73: nd | AA73: nd | AB73: nd | AC73: nd | AD73: 9752.1 | AE73: 64.78810117 | AF73: 7008.3 | AG73: 72.27883088 | AH73: 6431.4 | AI73: 63.75653833 | AJ73: 10465.3 | AK73: 73.80579962 | AL73: 6263 | AM73: 50.44239584 | AN73: 6606.934209 | AO73: =AN73/$AN$76*100 -> 47.32653144 | AP73: 8704.298465 | AQ73: =AP73/$AP$76*100 -> 47.6982554 | AR73: 23110.77998 | AS73: =AR73/$AR$76*100 -> 76.88943483 | AT73: 15637.67775 | AU73: =AT73/$AT$76*100 -> 64.88878117 | AV73: 8917.70597 | AW73: =AV73/$AV$76*100 -> 48.81020381 | AX73: 14731.96373 | AY73: =AX73/$AX$76*100 -> 58.85649998 | AZ73: 14273.83689 | BA73: =AZ73/$AZ$76*100 -> 54.77653866 | BB73: 6980.535458 | BC73: =BB73/$BB$76*100 -> 32.85818774 | BD73: 18117.44375 | BE73: =BD73/$BD$76*100 -> 55.77346396 | BF73: 13084.59523 | BG73: =BF73/$BF$76*100 -> 44.3041102 | BH73: 11013.00527 | BI73: =BH73/$BH$76*100 -> 61.6817002 | BJ73: 15640.28577 | BK73: =BJ73/$BJ$76*100 -> 57.51520265 | BL73: 9649.010111 | BM73: =BL73/$BL$76*100 -> 37.71798667 | BN73: 4332.626597 | BO73: =BN73/$BN$76*100 -> 19.91266879 | BP73: 22037.07087 | BQ73: =BP73/$BP$76*100 -> 45.66815657 | BR73: 6052.795625 | BS73: =BR73/$BR$76*100 -> 19.83117196 | BT73: 13427.8052 | BU73: =BT73/$BT$76*100 -> 37.38674368 | BV73: 10985.49765 | BW73: =BV73/$BV$76*100 -> 35.25466003 | BX73: 11960.85615 | BY73: =BX73/$BX$76*100 -> 35.14166609 | BZ73: 11316.93128 | CA73: =BZ73/$BZ$76*100 -> 33.20342897 | CB73: 13374.17413 | CC73: =CB73/$CB$76*100 -> 38.93236332 | CD73: 6685.351313 | CE73: =CD73/$CD$76*100 -> 23.82346299 | CF73: 13807.04914 | CG73: =CF73/$CF$76*100 -> 43.61256302
A74: Reinversiones | B74: nd | C74: nd | D74: nd | E74: nd | F74: nd | G74: nd | H74: nd | I74: nd | J74: nd | K74: nd | L74: nd | M74: nd | N74: nd | O74: nd | P74: nd | Q74: nd | R74: nd | S74: nd | T74: nd | U74: nd | V74: nd | W74: nd | X74: nd | Y74: nd | Z74: nd | AA74: nd | AB74: nd | AC74: nd | AD74: 2366.601 | AE74: 15.72251977 | AF74: 1572 | AG74: 16.21253687 | AH74: 2589.736 | AI74: 25.67288655 | AJ74: 2150 | AK74: 15.16272531 | AL74: 2864 | AM74: 23.06674464 | AN74: 2367.168675 | AO74: =AN74/$AN$76*100 -> 16.95640961 | AP74: 3906.76736 | AQ74: =AP74/$AP$76*100 -> 21.40850157 | AR74: 3900.080174 | AS74: =AR74/$AR$76*100 -> 12.97554477 | AT74: 2592.763463 | AU74: =AT74/$AT$76*100 -> 10.75871134 | AV74: 2257.277719 | AW74: =AV74/$AV$76*100 -> 12.35499196 | AX74: 2821.174987 | AY74: =AX74/$AX$76*100 -> 11.27103546 | AZ74: 4408.848962 | BA74: =AZ74/$AZ$76*100 -> 16.91917089 | BB74: 8102.918738 | BC74: =BB74/$BB$76*100 -> 38.14137565 | BD74: 8509.977966 | BE74: =BD74/$BD$76*100 -> 26.19745677 | BF74: 9328.889029 | BG74: =BF74/$BF$76*100 -> 31.58738351 | BH74: 5365.221117 | BI74: =BH74/$BH$76*100 -> 30.04955982 | BJ74: 5305.815165 | BK74: =BJ74/$BJ$76*100 -> 19.51147434 | BL74: 10755.93219 | BM74: =BL74/$BL$76*100 -> 42.04494578 | BN74: 10636.39194 | BO74: =BN74/$BN$76*100 -> 48.88465348 | BP74: 18398.50395 | BQ74: =BP74/$BP$76*100 -> 38.12783306 | BR74: 18016.32609 | BS74: =BR74/$BR$76*100 -> 59.02807278 | BT74: 11948.81035 | BU74: =BT74/$BT$76*100 -> 33.26881076 | BV74: 10661.15107 | BW74: =BV74/$BV$76*100 -> 34.21376694 | BX74: 11965.26699 | BY74: =BX74/$BX$76*100 -> 35.1546254 | BZ74: 13302.5142 | CA74: =BZ74/$BZ$76*100 -> 39.02905077 | CB74: 18109.13167 | CC74: =CB74/$CB$76*100 -> 52.71587515 | CD74: 16049.45327 | CE74: =CD74/$CD$76*100 -> 57.19273949 | CF74: 12609.98278 | CG74: =CF74/$CF$76*100 -> 39.83136895
A75: Cuentas | B75: nd | C75: nd | D75: nd | E75: nd | F75: nd | G75: nd | H75: nd | I75: nd | J75: nd | K75: nd | L75: nd | M75: nd | N75: nd | O75: nd | P75: nd | Q75: nd | R75: nd | S75: nd | T75: nd | U75: nd | V75: nd | W75: nd | X75: nd | Y75: nd | Z75: nd | AA75: nd | AB75: nd | AC75: nd | AD75: 2933.6 | AE75: 19.48937907 | AF75: 1115.9 | AG75: 11.50863225 | AH75: 1066.3 | AI75: 10.57057512 | AJ75: 1564.209 | AK75: 11.03147507 | AL75: 3289.143 | AM75: 26.49085952 | AN75: 4986.21495 | AO75: =AN75/$AN$76*100 -> 35.71705895 | AP75: 5637.606776 | AQ75: 30.89324303 | AR75: 3046.299236 | AS75: 10.1350204 | AT75: 5868.75971 | AU75: 24.35250749 | AV75: 7095.183763 | AW75: 38.83480423 | AX75: 7477.17014 | AY75: 29.87246456 | AZ75: 7375.618008 | BA75: 28.30429044 | BB75: 6160.97813 | BC75: 29.00043661 | BD75: 5856.563432 | BE75: 18.02907927 | BF75: 7120.10793 | BG75: 24.10850629 | BH75: 1476.34836 | BI75: 8.26873998 | BJ75: 6247.206308 | BK75: 22.973323 | BL75: 5177.04381 | BM75: 20.23706755 | BN75: 6789.122686 | BO75: 31.20267773 | BP75: 7819.210404 | BQ75: 16.20401037 | BR75: 6452.50171 | BS75: 21.14075526 | BT75: 10539.3372 | BU75: 29.34444556 | BV75: 9513.76424 | BW75: 30.53157303 | BX75: 10109.98692 | BY75: 29.70370851 | BZ75: 9464.176689 | CA75: 27.76752026 | CB75: 2869.024725 | CC75: 8.351761528 | CD75: 5327.242127 | CE75: 18.98379752 | CF75: 5241.389844 | CG75: 16.55606803
A76: Total | B76: 1622.6 | C76: 100 | D76: 1701.1 | E76: 100 | F76: 626.5 | G76: 100 | H76: 683.7 | I76: 100 | J76: 1429.8 | K76: 100 | L76: 1729 | M76: 100 | N76: 2424.2 | O76: 100 | P76: 3877.2 | Q76: 100 | R76: 3157.1 | S76: 100 | T76: 2499.7 | U76: 100 | V76: 3722.4 | W76: 100 | X76: 3565 | Y76: 100 | Z76: 3599.6 | AA76: 100 | AB76: 4900.7 | AC76: 100 | AD76: 15052.301 | AE76: 100 | AF76: 9696.2 | AG76: 100 | AH76: 10087.436 | AI76: 100 | AJ76: 14179.509 | AK76: 100 | AL76: 12416.143 | AM76: 100 | AN76: 13960.31783 | AO76: =AN76/$AN$76*100 -> 100 | AP76: 18248.6726 | AQ76: 100 | AR76: 30057.15939 | AS76: 100 | AT76: 24099.20092 | AU76: 100 | AV76: 18270.16745 | AW76: 100 | AX76: 25030.30885 | AY76: 100 | AZ76: 26058.30386 | BA76: 100 | BB76: 21244.43233 | BC76: 100 | BD76: 32483.98514 | BE76: 100 | BF76: 29533.59219 | BG76: 100 | BH76: 17854.57474 | BI76: 100 | BJ76: 27193.30724 | BK76: 100 | BL76: 25581.98611 | BM76: 100 | BN76: 21758.14122 | BO76: 100 | BP76: 48254.78523 | BQ76: 100 | BR76: 30521.62342 | BS76: 100 | BT76: 35915.95275 | BU76: 100 | BV76: 31160.41296 | BW76: 100 | BX76: 34036.11007 | BY76: 100 | BZ76: 34083.62216 | CA76: 100 | CB76: 34352.33052 | CC76: 100 | CD76: 28062.04671 | CE76: 100 | CF76: 31658.42176 | CG76: 100
A77: nd: Dato no disponible
A78: Fuente: Secretaría de Economía
A79: IED por tipo de inversión (1980-2021) (millones de dólares/participación porcentual) Cifras del Banco de México
A84: Tipo de inversión | B84: 1980 | D84: 1981 | F84: 1982 | H84: 1983 | J84: 1984 | L84: 1985 | N84: 1986 | P84: 1987 | R84: 1988 | T84: 1989 | V84: 1990 | X84: 1991 | Z84: 1992 | AB84: 1993 | AD84: 1994 | AF84: 1995 | AH84: 1996 | AJ84: 1997 | AL84: 1998 | AN84: 1999 | AP84: 2000 | AR84: 2001 | AT84: 2002 | AV84: 2003 | AX84: 2004 | AZ84: 2005 | BB84: 2006 | BD84: 2007 | BF84: 2008 | BH84: 2009 | BJ84: 2010 | BL84: 2011 | BN84: 2012 | BP84: 2013 | BR84: 2014 | BT84: 2015 | BV84: 2016 | BX84: 2017 | BZ84: 2018 | CB84: 2019 | CD84: 2020
A85: Nuevas invesrsiones | B85: 811.662 | C85: 38.83990673 | D85: 1515.099 | E85: 49.25709548 | F85: 1248.9 | G85: 65.72127108 | H85: 1810.699 | I85: 82.61999572 | J85: 1272.999 | K85: 82.60868437 | L85: 1535.201 | M85: 77.39468643 | N85: 1869.901 | O85: 77.88985625 | P85: 2318.4 | Q85: 87.99821149 | R85: 2204.898 | S85: 76.55906467 | T85: 1659.402 | U85: 52.25640057 | V85: 1114.739 | W85: 42.33339334 | X85: 3422.3 | Y85: 71.87443951 | Z85: 3012.3 | AA85: 68.57359055 | AB85: 3040.965 | AC85: 69.28919766 | AD85: 5672.3 | AE85: 51.69559793 | AF85: 6838.4 | AG85: 71.78442837 | AH85: 5529.415 | AI85: 60.19753412 | AJ85: 9115.347 | AK85: 71.04959049 | AL85: 6603.6215 | AM85: 51.76564559 | AN85: 6606.924368 | AO85: =AN85/$AN$88*100 -> 47.32649431 | AP85: 8704.326873 | AQ85: =AP85/$AP$88*100 -> 47.69833682 | AR85: 23110.76709 | AS85: =AR85/$AR$88*100 -> 76.88942491 | AT85: 15638.66024 | AU85: =AT85/$AT$88*100 -> 64.89021254 | AV85: 8918.28746 | AW85: =AV85/$AV$88*100 -> 48.81183299 | AX85: 14733.86363 | AY85: =AX85/$AX$88*100 -> 58.85962271 | AZ85: 14274.21113 | BA85: =AZ85/$AZ$88*100 -> 54.77718815 | BB85: 6985.443338 | BC85: =BB85/$BB$88*100 -> 32.87369523 | BD85: 18117.82997 | BE85: =BD85/$BD$88*100 -> 55.77398978 | BF85: 13083.69113 | BG85: =BF85/$BF$88*100 -> 44.30240515 | BH85: 11013.32585 | BI85: =BH85/$BH$88*100 -> 61.6823882 | BJ85: 15640.28577 | BK85: =BJ85/$BJ$88*100 -> 57.51520265 | BL85: 9649.005851 | BM85: =BL85/$BL$88*100 -> 37.71934465 | BN85: 4324.273421 | BO85: =BN85/$BN$88*100 -> 19.8827495 | BP85: 22027.56241 | BQ85: =BP85/$BP$88*100 -> 45.65840618 | BR85: 6049.647112 | BS85: =BR85/$BR$88*100 -> 19.81857584 | BT85: 13355.88876 | BU85: =BT85/$BT$88*100 -> 37.60392532 | BV85: 10987.80076 | BW85: =BV85/$BV$88*100 -> 35.24790719 | BX85: 11955.83943 | BY85: =BX85/$BX$88*100 -> 34.87484214 | BZ85: 11313.45391 | CA85: =BZ85/$BZ$88*100 -> 33.33017785 | CB85: 13254.4597 | CC85: =CB85/$CB$88*100 -> 38.67810133 | CD85: 6624.224801 | CE85: =CD85/$CD$88*100 -> 23.97048716
A86: Reinversiones | B86: 938.2 | C86: 44.89504312 | D86: 1356.201 | E86: 44.09119282 | F86: 640.7 | G86: 33.71576458 | H86: 225.3 | I86: 10.2801653 | J86: 428.8 | K86: 27.82610501 | L86: 524.2 | M86: 26.42669893 | N86: 595.298 | O86: 24.79686125 | P86: 412.499 | Q86: 15.65699372 | R86: 691.898 | S86: 24.02426948 | T86: 1074.998 | U86: 33.85287356 | V86: 1069.999 | W86: 40.63434448 | X86: 1408 | Y86: 29.57052591 | Z86: 1020 | AA86: 23.21981953 | AB86: 1399.236 | AC86: 31.88196503 | AD86: 2366.601 | AE86: 21.56847377 | AF86: 1572 | AG86: 16.50168481 | AH86: 2589.736 | AI86: 28.19389053 | AJ86: 2150 | AK86: 16.75817932 | AL86: 2864 | AM86: 22.45083383 | AN86: 2367.168675 | AO86: =AN86/$AN$88*100 -> 16.95642156 | AP86: 3906.76736 | AQ86: =AP86/$AP$88*100 -> 21.40846824 | AR86: 3900.080174 | AS86: =AR86/$AR$88*100 -> 12.97555034 | AT86: 2592.763463 | AU86: =AT86/$AT$88*100 -> 10.75827275 | AV86: 2257.277719 | AW86: =AV86/$AV$88*100 -> 12.35459874 | AX86: 2821.174987 | AY86: =AX86/$AX$88*100 -> 11.27018001 | AZ86: 4408.848962 | BA86: =AZ86/$AZ$88*100 -> 16.91892791 | BB86: 8102.918738 | BC86: =BB86/$BB$88*100 -> 38.13256628 | BD86: 8509.977966 | BE86: =BD86/$BD$88*100 -> 26.1971453 | BF86: 9328.889029 | BG86: =BF86/$BF$88*100 -> 31.58835051 | BH86: 5365.221117 | BI86: =BH86/$BH$88*100 -> 30.04902028 | BJ86: 5305.815165 | BK86: =BJ86/$BJ$88*100 -> 19.51147434 | BL86: 10755.00415 | BM86: =BL86/$BL$88*100 -> 42.04285026 | BN86: 10635.47429 | BO86: =BN86/$BN$88*100 -> 48.90127209 | BP86: 18397.49205 | BQ86: =BP86/$BP$88*100 -> 38.13404992 | BR86: 18012.87867 | BS86: =BR86/$BR$88*100 -> 59.00998777 | BT86: 11947.80127 | BU86: =BT86/$BT$88*100 -> 33.63941066 | BV86: 10649.51096 | BW86: =BV86/$BV$88*100 -> 34.162703 | BX86: 11953.02419 | BY86: =BX86/$BX$88*100 -> 34.86663016 | BZ86: 13257.18154 | CA86: =BZ86/$BZ$88*100 -> 39.05652704 | CB86: 18024.97476 | CC86: =CB86/$CB$88*100 -> 52.59903581 | CD86: 15985.70127 | CE86: =CD86/$CD$88*100 -> 57.84602101
A87: Cuentas | B87: 339.901 | C87: 16.26505015 | D87: 204.6 | E87: 6.651711694 | F87: 10.698 | G87: 0.5629643351 | H87: 155.6 | I87: 7.099838976 | J87: -160.8 | K87: -10.43478938 | L87: -75.801 | M87: -3.82138536 | N87: -64.5 | O87: -2.686717494 | P87: -96.3 | Q87: -3.655205213 | R87: -16.8 | S87: -0.5833341435 | T87: 441.1 | U87: 13.89072587 | V87: 448.5 | W87: 17.03226218 | X87: -68.802 | Y87: -1.444965429 | Z87: 360.499 | AA87: 8.206589921 | AB87: -51.4 | AC87: -1.171162693 | AD87: 2933.6 | AE87: 26.7359283 | AF87: 1115.9 | AG87: 11.71388682 | AH87: 1066.3 | AI87: 11.60857534 | AJ87: 1564.209 | AK87: 12.19223019 | AL87: 3289.143 | AM87: 25.78352058 | AN87: 4986.21495 | AO87: 35.71708413 | AP87: 5637.606776 | AQ87: 30.89319494 | AR87: 3046.299236 | AS87: 10.13502475 | AT87: 5868.75971 | AU87: 24.35151472 | AV87: 7095.183763 | AW87: 38.83356827 | AX87: 7477.17014 | AY87: 29.87019728 | AZ87: 7375.618008 | BA87: 28.30388395 | BB87: 6160.97813 | BC87: 28.99373849 | BD87: 5856.563432 | BE87: 18.02886492 | BF87: 7120.10793 | BG87: 24.10924434 | BH87: 1476.34836 | BI87: 8.268591516 | BJ87: 6247.206308 | BK87: 22.973323 | BL87: 5177.04381 | BM87: 20.23780509 | BN87: 6789.122686 | BO87: 31.21597841 | BP87: 7819.210404 | BQ87: 16.20754389 | BR87: 6462.609624 | BS87: 21.17143639 | BT87: 10213.58282 | BU87: 28.75666402 | BV87: 9535.605015 | BW87: 30.58938981 | BX87: 10373.26842 | BY87: 30.2585277 | BZ87: 9372.93953 | CA87: 27.61329511 | CB87: 2989.206561 | CC87: 8.722862862 | CD87: 5024.993306 | CE87: 18.18349183
A88: Total | B88: 2089.763 | C88: 100 | D88: 3075.9 | E88: 100 | F88: 1900.298 | G88: 100 | H88: 2191.599 | I88: 100 | J88: 1540.999 | K88: 100 | L88: 1983.6 | M88: 100 | N88: 2400.699 | O88: 100 | P88: 2634.599 | Q88: 100 | R88: 2879.996 | S88: 100 | T88: 3175.5 | U88: 100 | V88: 2633.238 | W88: 100 | X88: 4761.498 | Y88: 100 | Z88: 4392.799 | AA88: 100 | AB88: 4388.801 | AC88: 100 | AD88: 10972.501 | AE88: 100 | AF88: 9526.3 | AG88: 100 | AH88: 9185.451 | AI88: 100 | AJ88: 12829.556 | AK88: 100 | AL88: 12756.7645 | AM88: 100 | AN88: 13960.30799 | AO88: 100 | AP88: 18248.70101 | AQ88: 100 | AR88: 30057.1465 | AS88: 100 | AT88: 24100.18341 | AU88: 100 | AV88: 18270.74894 | AW88: 100 | AX88: 25032.20876 | AY88: 100 | AZ88: 26058.6781 | BA88: 100 | BB88: 21249.34021 | BC88: 100 | BD88: 32484.37136 | BE88: 100 | BF88: 29532.68809 | BG88: 100 | BH88: 17854.89532 | BI88: 100 | BJ88: 27193.30724 | BK88: 100 | BL88: 25581.05381 | BM88: 100 | BN88: 21748.8704 | BO88: 100 | BP88: 48244.26486 | BQ88: 100 | BR88: 30525.1354 | BS88: 100 | BT88: 35517.27285 | BU88: 100 | BV88: 31172.91673 | BW88: 100 | BX88: 34282.13204 | BY88: 100 | BZ88: 33943.57498 | CA88: 100 | CB88: 34268.64102 | CC88: 100 | CD88: 27634.91938 | CE88: 100
A89: ND: Dato no disponible
A90: Fuente: Banco de México
A92: IED por país de origen (1980-2020) (millones de dólares/participación porcentual)
A96: País de origen | B96: 1980 | D96: 1981 | F96: 1982 | H96: 1983 | J96: 1984 | L96: 1985 | N96: 1986 | P96: 1987 | R96: 1988 | T96: 1989 | V96: 1990 | X96: 1991 | Z96: 1992 | AB96: 1993 | AD96: 1994* | AF96: 1995* | AH96: 1996* | AJ96: 1997* | AL96: 1998* | AN96: 1999 | AP96: 2000 | AR96: 2001 | AT96: 2002 | AV96: 2003 | AX96: 2004 | AZ96: 2005 | BB96: 2006 | BD96: 2007 | BF96: 2008 | BH96: 2009 | BJ96: 2010 | BL96: 2011 | BN96: 2012 | BP96: 2013 | BR96: 2014 | BT96: 2015 | BV96: 2016 | BX96: 2017 | BZ96: 2018 | CB96: 2019 | CD96: 2020 | CF96: 2021
A97: Estados Unidos | B97: 1078.6 | C97: 66.47356095 | D97: 1072.1 | E97: 63.0239257 | F97: 426.1 | G97: 68.01276935 | H97: 266.6 | I97: 38.99371069 | J97: 912 | K97: 63.78514478 | L97: 1326.8 | M97: 76.73799884 | N97: 1206.4 | O97: 49.76487089 | P97: 2669.6 | Q97: 68.85381203 | R97: 1241.6 | S97: 39.32723069 | T97: 1813.8 | U97: 72.56070728 | V97: 2308 | W97: 62.00300881 | X97: 2386.5 | Y97: 66.94249649 | Z97: 1651.7 | AA97: 45.88565396 | AB97: 3503.6 | AC97: 71.4918277 | AD97: 4951.067838 | AE97: 46.50243581 | AF97: 5518.342373 | AG97: 65.89380237 | AH97: 5328.541568 | AI97: 67.89767413 | AJ97: 7407.565965 | AK97: 60.98970791 | AL97: 5542.413049 | AM97: 66.18992117 | AN97: 7346.672878 | AO97: =AN97/$AN$109*100 -> 52.6253984 | AP97: 11924.27147 | AQ97: =AP97/$AP$109*100 -> 65.34322652 | AR97: 21542.71981 | AS97: =AR97/$AR$109*100 -> 71.67250748 | AT97: 13600.63335 | AU97: =AT97/$AT$109*100 -> 56.4360345 | AV97: 11133.11562 | AW97: =AV97/$AV$109*100 -> 60.93603493 | AX97: 10010.1989 | AY97: =AX97/$AX$109*100 -> 39.99231077 | AZ97: 14420.25758 | BA97: =AZ97/$AZ$109*100 -> 55.33843515 | BB97: 14394.43834 | BC97: =BB97/$BB$109*100 -> 67.75628606 | BD97: 16190.80636 | BE97: =BD97/$BD$109*100 -> 49.84242632 | BF97: 11944.22202 | BG97: =BF97/$BF$109*100 -> 40.4428352 | BH97: 8429.90635 | BI97: =BH97/$BH$109*100 -> 47.21426565 | BJ97: 11191.12982 | BK97: =BJ97/$BJ$109*100 -> 41.15398586 | BL97: 13099.10877 | BM97: =BL97/$BL$109*100 -> 51.20442452 | BN97: 9748.280447 | BO97: =BN97/$BN$109*100 -> 44.80291008 | BP97: 16948.46119 | BQ97: =BP97/$BP$109*100 -> 35.1228611 | BR97: 10497.2339 | BS97: =BR97/$BR$109*100 -> 34.39277705 | BT97: 19404.60095 | BU97: =BT97/$BT$109*100 -> 54.02780508 | BV97: 11083.98806 | BW97: =BV97/$BV$109*100 -> 35.57073545 | BX97: 15416.71775 | BY97: =BX97/$BX$109*100 -> 45.29518127 | BZ97: 11876.64219 | CA97: =BZ97/$BZ$109*100 -> 34.84559866 | CB97: 13048.66677 | CC97: =CB97/$CB$109*100 -> 37.98480794 | CD97: 10605.47789 | CE97: =CD97/$CD$109*100 -> 37.79295928 | CF97: 14754.86965 | CG97: =CF97/$CF$109*100 -> 46.60645993
A98: España | B98: 80 | C98: 4.930358684 | D98: 101.8 | E98: 5.984363059 | F98: 40.4 | G98: 6.448523543 | H98: 12.7 | I98: 1.857539857 | J98: 11.7 | K98: 0.8182962652 | L98: 14 | M98: 0.8097165992 | N98: 93.7 | O98: 3.865192641 | P98: 125.8 | Q98: 3.244609512 | R98: 34.1 | S98: 1.08010516 | T98: 44 | U98: 1.760211225 | V98: 10.4 | W98: 0.2793896411 | X98: 43.8 | Y98: 1.228611501 | Z98: 37.2 | AA98: 1.033448161 | AB98: 63.5 | AC98: 1.295733263 | AD98: 145.4702079 | AE98: 1.366315152 | AF98: 49.83656544 | AG98: 0.5950918903 | AH98: 78.90380925 | AI98: 1.005413031 | AJ98: 327.2986252 | AK98: 2.694791737 | AL98: 335.2179597 | AM98: 4.003319516 | AN98: 991.949808 | AO98: =AN98/$AN$109*100 -> 7.105495876 | AP98: 3731.863039 | AQ98: =AP98/$AP$109*100 -> 20.45005202 | AR98: 2851.954939 | AS98: =AR98/$AR$109*100 -> 9.48843802 | AT98: 5415.412608 | AU98: =AT98/$AT$109*100 -> 22.47133681 | AV98: 1959.069333 | AW98: =AV98/$AV$109*100 -> 10.72277711 | AX98: 6527.597825 | AY98: =AX98/$AX$109*100 -> 26.07877459 | AZ98: 2526.343012 | BA98: =AZ98/$AZ$109*100 -> 9.694963364 | BB98: 1566.026058 | BC98: =BB98/$BB$109*100 -> 7.371465773 | BD98: 4649.476619 | BE98: =BD98/$BD$109*100 -> 14.31313491 | BF98: 5300.485479 | BG98: =BF98/$BF$109*100 -> 17.94731046 | BH98: 2748.96111 | BI98: =BH98/$BH$109*100 -> 15.39639644 | BJ98: 3982.534633 | BK98: =BJ98/$BJ$109*100 -> 14.64527502 | BL98: 3533.242879 | BM98: =BL98/$BL$109*100 -> 13.81144866 | BN98: -349.7568699 | BO98: =BN98/$BN$109*100 -> -1.60747587 | BP98: 453.8677865 | BQ98: =BP98/$BP$109*100 -> 0.9405653436 | BR98: 4457.037245 | BS98: =BR98/$BR$109*100 -> 14.60288394 | BT98: 3905.698083 | BU98: =BT98/$BT$109*100 -> 10.87454956 | BV98: 3567.187633 | BW98: =BV98/$BV$109*100 -> 11.44781886 | BX98: 3360.995703 | BY98: =BX98/$BX$109*100 -> 9.874793849 | BZ98: 4167.00501 | CA98: =BZ98/$BZ$109*100 -> 12.22582796 | CB98: 4061.0592 | CC98: =CB98/$CB$109*100 -> 11.82178658 | CD98: 3977.308681 | CE98: =CD98/$CD$109*100 -> 14.17326655 | CF98: 4463.090647 | CG98: =CF98/$CF$109*100 -> 14.097641
A99: Países Bajos | B99: 0 | C99: 0 | D99: 0 | E99: 0 | F99: 0 | G99: 0 | H99: 0 | I99: 0 | J99: 0 | K99: 0 | L99: 0 | M99: 0 | N99: 0 | O99: 0 | P99: 0 | Q99: 0 | R99: 218.2 | S99: 6.911406037 | T99: 47.8 | U99: 1.912229468 | V99: 126.1 | W99: 3.387599398 | X99: 119.5 | Y99: 3.352033661 | Z99: 83.1 | AA99: 2.308589843 | AB99: 88.3 | AC99: 1.801783419 | AD99: 783.1886612 | AE99: 7.356025333 | AF99: 743.7912887 | AG99: 8.881514205 | AH99: 427.8118158 | AI99: 5.451290355 | AJ99: 368.2726978 | AK99: 3.032149073 | AL99: 1051.67556 | AM99: 12.55956959 | AN99: 326.156134 | AO99: 2.336308799 | AP99: 1016.995602 | AQ99: 5.572983988 | AR99: 1183.454641 | AS99: 3.937346924 | AT99: 454.410053 | AU99: 1.885581412 | AV99: 446.2081335 | AW99: 2.442277197 | AX99: 2905.506308 | AY99: 11.60795228 | AZ99: 1791.464838 | BA99: 6.874832867 | BB99: 216.219137 | BC99: 1.017768485 | BD99: 812.808548 | BE99: 2.502182366 | BF99: 484.354844 | BG99: 1.640013314 | BH99: 246.0837781 | BI99: 1.378267372 | BJ99: 5767.346126 | BK99: 21.20869696 | BL99: 232.2798774 | BM99: 0.9079821887 | BN99: 894.2934638 | BO99: 4.110155617 | BP99: 1008.361563 | BQ99: 2.08966128 | BR99: 570.4255282 | BS99: 1.868922633 | BT99: 299.5494325 | BU99: 0.8340289191 | BV99: 225.6082031 | BW99: 0.724021865 | BX99: -213.056015 | BY99: -0.6259705195 | BZ99: 752.9783845 | CA99: 2.209208813 | CB99: 884.0259993 | CC99: 2.573409099 | CD99: 713.2470353 | CE99: 2.541678597 | CF99: -288.6565172 | CG99: -0.9117842935
A100: Canadá | B100: 17.5 | C100: 1.078515962 | D100: 5.2 | E100: 0.3056845571 | F100: 8.1 | G100: 1.292897047 | H100: 22.1 | I100: 3.232411877 | J100: 32.5 | K100: 2.273045181 | L100: 34.9 | M100: 2.018507808 | N100: 40.6 | O100: 1.674779309 | P100: 19.3 | Q100: 0.4977819045 | R100: 33.9 | S100: 1.073770232 | T100: 37.5 | U100: 1.500180022 | V100: 56 | W100: 1.50440576 | X100: 74.2 | Y100: 2.081346424 | Z100: 88.5 | AA100: 2.458606512 | AB100: 74.2 | AC100: 1.514069419 | AD100: 739.1758025 | AE100: 6.942638726 | AF100: 170.3231248 | AG100: 2.03380609 | AH100: 547.1498534 | AI100: 6.971926928 | AJ100: 239.5939701 | AK100: 1.972681219 | AL100: 213.2534947 | AM100: 2.546766521 | AN100: 612.503279 | AO100: 4.387459413 | AP100: 573.488236 | AQ100: 3.14262987 | AR100: 807.3953942 | AS100: 2.686199929 | AT100: 330.0011479 | AU100: 1.369344772 | AV100: 381.7802424 | AW100: 2.089637347 | AX100: 841.8361641 | AY100: 3.363267186 | AZ100: 601.1816098 | BA100: 2.307063473 | BB100: 975.1892027 | BC100: 4.590328363 | BD100: 1747.704324 | BE100: 5.380202942 | BF100: 4873.098437 | BG100: 16.50018869 | BH100: 2153.054753 | BI100: 12.05884085 | BJ100: 2131.358433 | BK100: 7.837805142 | BL100: 1589.576192 | BM100: 6.213654346 | BN100: 1680.648268 | BO100: 7.724227225 | BP100: 5105.137564 | BQ100: 10.57954675 | BR100: 2963.751263 | BS100: 9.710332973 | BT100: 1096.284276 | BU100: 3.05236028 | BV100: 2299.05336 | BW100: 7.378122246 | BX100: 2826.097886 | BY100: 8.303234066 | BZ100: 4193.818473 | CA100: 12.30449761 | CB100: 2954.947939 | CC100: 8.601884921 | CD100: 4215.051661 | CE100: 15.02047126 | CF100: 2618.547904 | CG100: 8.271252191
A101: Alemania | B101: 170.8 | C101: 10.52631579 | D101: 146.3 | E101: 8.600317442 | F101: 39.9 | G101: 6.368715084 | H101: 110 | I101: 16.08892789 | J101: 152.5 | K101: 10.66582739 | L101: 55.5 | M101: 3.209947947 | N101: 218.5 | O101: 9.013282732 | P101: 46.9 | Q101: 1.20963582 | R101: 136.7 | S101: 4.329923031 | T101: 84.7 | U101: 3.388406609 | V101: 288.2 | W101: 7.742316785 | X101: 84.7 | Y101: 2.375876578 | Z101: 84.9 | AA101: 2.358595399 | AB101: 111.4 | AC101: 2.273144653 | AD101: 306.8741051 | AE101: 2.882285972 | AF101: 547.9420918 | AG101: 6.542904637 | AH101: 203.2067124 | AI101: 2.589313222 | AJ101: 482.7232605 | AK101: 3.974470265 | AL101: 134.0166625 | AM101: 1.60048561 | AN101: 685.711369 | AO101: 4.911860727 | AP101: 297.5913936 | AQ101: 1.630756385 | AR101: 731.1770714 | AS101: 2.432621998 | AT101: 716.533482 | AU101: 2.973266559 | AV101: 485.352271 | AW101: 2.656528859 | AX101: 450.08456 | AY101: 1.798158236 | AZ101: 503.003925 | BA101: 1.930301864 | BB101: 508.3063917 | BC101: 2.392656974 | BD101: 740.7249766 | BE101: 2.280277414 | BF101: 697.0412276 | BG101: 2.360164057 | BH101: 263.7780655 | BI101: 1.477369634 | BJ101: 606.1507944 | BK101: 2.22904404 | BL101: 854.0630941 | BM101: 3.338533179 | BN101: 1171.780352 | BO101: 5.385480036 | BP101: 1983.113042 | BQ101: 4.109671263 | BR101: 2148.837358 | BS101: 7.040377007 | BT101: 1237.856501 | BU101: 3.446536724 | BV101: 2771.086844 | BW101: 8.892972144 | BX101: 2643.298496 | BY101: 7.766159208 | BZ101: 2936.482749 | CA101: 8.615524299 | CB101: 3433.193422 | CC101: 9.994062615 | CD101: 875.7169521 | CE101: 3.120645337 | CF101: 2089.233527 | CG101: 6.599297786
A102: Japón | B102: 123.1 | C102: 7.586589424 | D102: 212.1 | E102: 12.4684028 | F102: 65.4 | G102: 10.43894653 | H102: 3.8 | I102: 0.5557993272 | J102: 35.6 | K102: 2.489858721 | L102: 79.3 | M102: 4.586466165 | N102: 142.2 | O102: 5.865852652 | P102: 132.8 | Q102: 3.425152172 | R102: 148.8 | S102: 4.713186152 | T102: 15.7 | U102: 0.628075369 | V102: 120.8 | W102: 3.245218139 | X102: 73.5 | Y102: 2.06171108 | Z102: 86.9 | AA102: 2.414157129 | AB102: 73.6 | AC102: 1.50182627 | AD102: 629.9515828 | AE102: 5.916760586 | AF102: 155.6440001 | AG102: 1.858524587 | AH102: 145.1189277 | AI102: 1.849143436 | AJ102: 351.6862158 | AK102: 2.895585363 | AL102: 97.26059889 | AM102: 1.161528619 | AN102: 1461.174972 | AO102: 10.46663113 | AP102: 697.056417 | AQ102: 3.819765044 | AR102: 459.127714 | AS102: 1.527515319 | AT102: 415.380256 | AU102: 1.723626677 | AV102: 426.557465 | AW102: 2.334721157 | AX102: 885.99246 | AY102: 3.539678496 | AZ102: 364.423084 | BA102: 1.398491191 | BB102: 548.954849 | BC102: 2.583993964 | BD102: 711.199391 | BE102: 2.18938467 | BF102: 867.635338 | BG102: 2.937791422 | BH102: 779.6376726 | BI102: 4.366598946 | BJ102: 1267.865547 | BK102: 4.662417617 | BL102: 954.3184759 | BM102: 3.73043153 | BN102: 2307.501195 | BO102: 10.60523126 | BP102: 1684.940266 | BQ102: 3.49175788 | BR102: 2500.180111 | BS102: 8.191504353 | BT102: 2244.078789 | BU102: 6.248139384 | BV102: 1963.796843 | BW102: 6.302217 | BX102: 2459.859593 | BY102: 7.227205425 | BZ102: 2279.765836 | CA102: 6.688742838 | CB102: 1489.248939 | CC102: 4.335219521 | CD102: 1226.251043 | CE102: 4.369784768 | CF102: 1595.962414 | CG102: 5.041193858
A103: Reino Unido | B103: 48.6 | C103: 2.9951929 | D103: 40.9 | E103: 2.404326612 | F103: 7.4 | G103: 1.181165204 | H103: 49.2 | I103: 7.196138657 | J103: 44.3 | K103: 3.098335432 | L103: 56.3 | M103: 3.256217467 | N103: 104.3 | O103: 4.302450293 | P103: 430.9 | Q103: 11.11369029 | R103: 767.6 | S103: 24.31345222 | T103: 44.7 | U103: 1.788214586 | V103: 114.4 | W103: 3.073286052 | X103: 74.2 | Y103: 2.081346424 | Z103: 426.8 | AA103: 11.85687299 | AB103: 189.2 | AC103: 3.860672965 | AD103: 592.2008464 | AE103: 5.562190369 | AF103: 223.6282458 | AG103: 2.670315547 | AH103: 82.96851097 | AI103: 1.057206526 | AJ103: 1829.653182 | AK103: 15.06432932 | AL103: 165.7981652 | AM103: 1.980034217 | AN103: 406.0156685 | AO103: 2.908355478 | AP103: 955.709413 | AQ103: 5.237144826 | AR103: 1112.274298 | AS103: 3.700530326 | AT103: 1516.436366 | AU103: 6.292475716 | AV103: 1153.683726 | AW103: 6.31457664 | AX103: 428.955018 | AY103: 1.713742409 | AZ103: 796.3390641 | BA103: 3.055989632 | BB103: 1192.239686 | BC103: 5.61201009 | BD103: 592.9884005 | BE103: 1.825479226 | BF103: 830.1151346 | BG103: 2.810748957 | BH103: 15.31597581 | BI103: 0.0857818012 | BJ103: 527.8049702 | BK103: 1.940937031 | BL103: 249.2876741 | BM103: 0.974465677 | BN103: 259.6888757 | BO103: 1.193525095 | BP103: 1353.677251 | BQ103: 2.805270491 | BR103: 238.8789765 | BS103: 0.7826548843 | BT103: 750.7078879 | BU103: 2.090179517 | BV103: 500.4207526 | BW103: 1.605950323 | BX103: 494.0280922 | BY103: 1.451482238 | BZ103: 734.5796078 | CA103: 2.155227529 | CB103: 736.6006352 | CC103: 2.144252294 | CD103: 901.2465125 | CE103: 3.211620741 | CF103: 1807.200288 | CG103: 5.708434557
A104: Suiza | B104: 111.4 | C104: 6.865524467 | D104: 74.9 | E104: 4.403033331 | F104: 23.1 | G104: 3.687150838 | H104: 16.2 | I104: 2.36946029 | J104: 59.8 | K104: 4.182403133 | L104: 141.2 | M104: 8.166570272 | N104: 34.1 | O104: 1.406649616 | P104: 95.2 | Q104: 2.455380171 | R104: 86.3 | S104: 2.73352127 | T104: 194.4 | U104: 7.776933232 | V104: 148 | W104: 3.975929508 | X104: 68.5 | Y104: 1.921458626 | Z104: 315.3 | AA104: 8.75930659 | AB104: 101.7 | AC104: 2.075213745 | AD104: 53.72467172 | AE104: 0.5046038915 | AF104: 199.958646 | AG104: 2.38767996 | AH104: 83.76070802 | AI104: 1.067300909 | AJ104: 26.63356436 | AK104: 0.2192857031 | AL104: 51.56747783 | AM104: 0.6158413785 | AN104: 103.271914 | AO104: 0.7397533153 | AP104: 67.37873059 | AQ104: 0.3692253791 | AR104: 106.1388045 | AS104: 0.3531232049 | AT104: 250.914128 | AU104: 1.041171982 | AV104: 328.761784 | AW104: 1.799445927 | AX104: 1673.329072 | AY104: 6.685211445 | AZ104: 328.787413 | BA104: 1.261737582 | BB104: 579.535091 | BC104: 2.7279387 | BD104: 327.048857 | BE104: 1.006800291 | BF104: 425.8506755 | BG104: 1.441919672 | BH104: 101.8170322 | BI104: 0.5702573915 | BJ104: -152.3514311 | BK104: -0.5602534098 | BL104: 32.925629 | BM104: 0.1287063047 | BN104: 216.220926 | BO104: 0.9937472314 | BP104: 439.3341854 | BQ104: 0.9104468776 | BR104: 296.8035797 | BS104: 0.9724370674 | BT104: 225.7141114 | BU104: 0.6284508528 | BV104: 583.9773561 | BW104: 1.874100182 | BX104: 300.4468321 | BY104: 0.8827296408 | BZ104: 631.113466 | CA104: 1.851661959 | CB104: 721.673595 | CC104: 2.100799521 | CD104: 522.4744961 | CE104: 1.861854559 | CF104: 384.0066483 | CG104: 1.212968388
A105: Francia | B105: 19.5 | C105: 1.201774929 | D105: 10.3 | E105: 0.6054905649 | F105: 6.8 | G105: 1.085395052 | H105: 110 | I105: 16.08892789 | J105: 8.7 | K105: 0.60847671 | L105: 10.7 | M105: 0.6188548294 | N105: 316.9 | O105: 13.07235377 | P105: 31.2 | Q105: 0.8047044259 | R105: 152.4 | S105: 4.827214849 | T105: 16.5 | U105: 0.6600792095 | V105: 181 | W105: 4.862454331 | X105: 500.5 | Y105: 14.03927069 | Z105: 69 | AA105: 1.916879653 | AB105: 76.9 | AC105: 1.569163589 | AD105: 90.3210267 | AE105: 0.84833169 | AF105: 125.7390985 | AG105: 1.50143408 | AH105: 125.1179843 | AI105: 1.59428617 | AJ105: 90.73643913 | AK105: 0.7470725129 | AL105: 124.293316 | AM105: 1.484365151 | AN105: 402.853827 | AO105: 2.885706699 | AP105: -2184.996485 | AQ105: -11.97345436 | AR105: -69.91787183 | AS105: -0.2326163658 | AT105: 314.0598951 | AU105: 1.303196301 | AV105: 726.4511554 | AW105: 3.976160357 | AX105: 404.891631 | AY105: 1.617605413 | AZ105: 809.5467561 | BA105: 3.106674788 | BB105: -282.613741 | BC105: -1.330295565 | BD105: 361.9176568 | BE105: 1.1141418 | BF105: 866.4343146 | BG105: 2.933724787 | BH105: 491.047222 | BI105: 2.75025997 | BJ105: 565.4408797 | BK105: 2.0793384 | BL105: 572.3106733 | BM105: 2.237162787 | BN105: 719.7520653 | BO105: 3.307966696 | BP105: 769.759271 | BQ105: 1.595197797 | BR105: 1200.700244 | BS105: 3.933933092 | BT105: 972.0252088 | BU105: 2.706388483 | BV105: 454.8182468 | BW105: 1.459602757 | BX105: 546.9575742 | BY105: 1.606992024 | BZ105: 620.7076996 | CA105: 1.821131852 | CB105: 1036.436933 | CC105: 3.017078949 | CD105: 292.6789933 | CE105: 1.042970943 | CF105: 480.0528179 | CG105: 1.516351072
A106: Suecia | B106: 10.9 | C106: 0.6717613706 | D106: 15.3 | E106: 0.8994180236 | F106: -2 | G106: -0.3192338388 | H106: 29.1 | I106: 4.256252742 | J106: 61.1 | K106: 4.273324941 | L106: 5.5 | M106: 0.3181029497 | N106: 24.6 | O106: 1.014767758 | P106: 36.7 | Q106: 0.9465593727 | R106: 32.5 | S106: 1.029425739 | T106: 6.9 | U106: 0.276033124 | V106: 13.3 | W106: 0.3572963679 | X106: 13.9 | Y106: 0.3899018233 | Z106: 2 | AA106: 0.05556172908 | AB106: 2.4 | AC106: 0.04897259575 | AD106: 9.25636603 | AE106: 0.08693954137 | AF106: 60.98301244 | AG106: 0.7281901516 | AH106: 97.49683486 | AI106: 1.242330239 | AJ106: 7.20380358 | AK106: 0.05931204371 | AL106: 58.06559379 | AM106: 0.6934447219 | AN106: 726.456726 | AO106: 5.203726266 | AP106: -193.967771 | AQ106: -1.062914412 | AR106: 107.166386 | AS106: 0.3565419626 | AT106: -43.207296 | AU106: -0.1792893305 | AV106: 6.128692 | AW106: 0.03354480475 | AX106: 416.46762 | AY106: 1.663853301 | AZ106: 153.150627 | BA106: 0.5877229303 | BB106: 111.883029 | BC106: 0.5266463574 | BD106: 94.251738 | BE106: 0.2901483226 | BF106: 150.118515 | BG106: 0.5082975144 | BH106: 9.16454334 | BI106: 0.05132882453 | BJ106: -192.2483228 | BK106: -0.7069692592 | BL106: 56.442337 | BM106: 0.2206331313 | BN106: 251.09941 | BO106: 1.154048075 | BP106: 300.0431224 | BQ106: 0.6217893645 | BR106: 115.0246876 | BS106: 0.3768629408 | BT106: -33.17970403 | BU106: -0.09238152265 | BV106: 84.80482412 | BW106: 0.272155649 | BX106: -40.05781665 | BY106: -0.1176921116 | BZ106: 161.6670749 | CA106: 0.4743248066 | CB106: 84.22649354 | CC106: 0.2451842197 | CD106: 258.3080935 | CE106: 0.9204891439 | CF106: -92.14232217 | CG106: -0.2910515339
A107: Italia | B107: -29.3 | C107: -1.805743868 | D107: 5.1 | E107: 0.2998060079 | F107: 1.9 | G107: 0.3032721468 | H107: 1 | I107: 0.1462629808 | J107: 0.5 | K107: 0.03496992586 | L107: 0.6 | M107: 0.03470213997 | N107: 4 | O107: 0.1650028876 | P107: 2.8 | Q107: 0.07221706386 | R107: 0 | S107: 0 | T107: 6.6 | U107: 0.2640316838 | V107: 4.6 | W107: 0.1235761874 | X107: 1.9 | Y107: 0.05329593268 | Z107: 7.5 | AA107: 0.2083564841 | AB107: 4.6 | AC107: 0.09386414186 | AD107: 2.503026719 | AE107: 0.02350944142 | AF107: 10.54482384 | AG107: 0.1259143582 | AH107: 18.6448915 | AI107: 0.2375780973 | AJ107: 29.29672902 | AK107: 0.2412126945 | AL107: 16.92162419 | AM107: 0.2020854384 | AN107: 69.05509376 | AO107: 0.4946527334 | AP107: 59.54987172 | AQ107: 0.3263244019 | AR107: 49.6730703 | AS107: 0.1652620251 | AT107: 49.6212698 | AU107: 0.2059042122 | AV107: 29.64923534 | AW107: 0.162282231 | AX107: 74.84864663 | AY107: 0.2990320538 | AZ107: 114.6980335 | BA107: 0.440159245 | BB107: 100.2285622 | BC107: 0.4717874341 | BD107: 131.2602532 | BE107: 0.404076817 | BF107: 167.2649139 | BG107: 0.5663547894 | BH107: 78.76987545 | BI107: 0.4411747498 | BJ107: 149.1864075 | BK107: 0.54861443 | BL107: 222.3542683 | BM107: 0.8691829762 | BN107: 564.0030526 | BO107: 2.592147219 | BP107: -419.46687 | BQ107: -0.8692751776 | BR107: 284.1098502 | BS107: 0.9308477672 | BT107: 606.6783438 | BU107: 1.689161215 | BV107: 806.2364348 | BW107: 2.587374037 | BX107: 1864.731261 | BY107: 5.478685012 | BZ107: 1530.868541 | CA107: 4.491507779 | CB107: 1502.134807 | CC107: 4.372730421 | CD107: 685.9733698 | CE107: 2.444488019 | CF107: 127.8537191 | CG107: 0.403853736
A108: Resto | B108: -8.5 | C108: -0.5238506101 | D108: 17.1 | E108: 1.005231909 | F108: 9.4 | G108: 1.500399042 | H108: 63 | I108: 9.214567793 | J108: 111.1 | K108: 7.770317527 | L108: 4.2 | M108: 0.2429149798 | N108: 238.9 | O108: 9.854797459 | P108: 286 | Q108: 7.376457237 | R108: 305 | S108: 9.660764626 | T108: 187.1 | U108: 7.484898188 | V108: 351.6 | W108: 9.44551902 | X108: 123.8 | Y108: 3.472650771 | Z108: 746.7 | AA108: 20.74397155 | AB108: 611.3 | AC108: 12.47372824 | AD108: 2343.190537 | AE108: 22.00819522 | AF108: 567.8253757 | AG108: 6.780328323 | AH108: 709.1390918 | AI108: 9.036036288 | AJ108: 984.9691122 | AK108: 8.109678502 | AL108: 582.983976 | AM108: 6.962249669 | AN108: 828.4961648 | AO108: 5.934651164 | AP108: 1303.732679 | AQ108: 7.14426034 | AR108: 1175.99513 | AS108: 3.912529173 | AT108: 1079.005667 | AU108: 4.477350393 | AV108: 1193.409794 | AW108: 6.532013445 | AX108: 410.6006451 | AY108: 1.640413818 | AZ108: 3649.107913 | BA108: 14.00362791 | BB108: 1334.025723 | BC108: 6.279413364 | BD108: 6123.798019 | BE108: 18.85174492 | BF108: 2926.971292 | BG108: 9.910651144 | BH108: 2537.038364 | BI108: 14.20945836 | BJ108: 1349.089389 | BK108: 4.961108175 | BL108: 4186.076243 | BM108: 16.3633747 | BN108: 4294.630038 | BO108: 19.73803733 | BP108: 18627.55686 | BQ108: 38.60250703 | BR108: 5248.640684 | BS108: 17.19646629 | BT108: 5205.938877 | BU108: 14.4947815 | BV108: 6819.434403 | BW108: 21.88492948 | BX108: 4376.090708 | BY108: 12.85719989 | BZ108: 4197.993133 | CA108: 12.31674589 | CB108: 4400.115786 | CC108: 12.80878391 | CD108: 3788.311987 | CE108: 13.4997708 | CF108: 3718.402987 | CG108: 11.74538331
A109: Total | B109: 1622.6 | C109: 100 | D109: 1701.1 | E109: 100 | F109: 626.5 | G109: 100 | H109: 683.7 | I109: 100 | J109: 1429.8 | K109: 100 | L109: 1729 | M109: 100 | N109: 2424.2 | O109: 100 | P109: 3877.2 | Q109: 100 | R109: 3157.1 | S109: 100 | T109: 2499.7 | U109: 100 | V109: 3722.4 | W109: 100 | X109: 3565 | Y109: 100 | Z109: 3599.6 | AA109: 100 | AB109: 4900.7 | AC109: 100 | AD109: 10646.9 | AE109: 100 | AF109: 8374.6 | AG109: 100 | AH109: 7847.9 | AI109: 100 | AJ109: 12145.6 | AK109: 100 | AL109: 8373.5 | AM109: 100 | AN109: 13960.31783 | AO109: 100 | AP109: 18248.6726 | AQ109: 100 | AR109: 30057.15939 | AS109: 100 | AT109: 24099.20092 | AU109: 100 | AV109: 18270.16745 | AW109: 100 | AX109: 25030.30885 | AY109: 100 | AZ109: 26058.30386 | BA109: 100 | BB109: 21244.43233 | BC109: 100 | BD109: 32483.98514 | BE109: 100 | BF109: 29533.59219 | BG109: 100 | BH109: 17854.57474 | BI109: 100 | BJ109: 27193.30724 | BK109: 100 | BL109: 25581.98611 | BM109: 100 | BN109: 21758.14122 | BO109: 100 | BP109: 48254.78523 | BQ109: 100 | BR109: 30521.62342 | BS109: 100 | BT109: 35915.95275 | BU109: 100 | BV109: 31160.41296 | BW109: 100 | BX109: 34036.11007 | BY109: 100 | BZ109: 34083.62216 | CA109: 100 | CB109: 34352.33052 | CC109: 100 | CD109: 28062.04671 | CE109: 100 | CF109: 31658.42176 | CG109: 100
A110: * La diferencia entre el total de IED publicado por la Secretaría de Economía y la desagregación por país de origen, se debe a que esta última sólo incuye las nuevas inversiones reportadas al RNIE más el valor de la importación temporal de maquinaria y equipo de empresas maquiladoras.
A111: Fuente: Secretaría de Economía
A113: País de origen | AN113: 1999 | AO113: 2000 | AP113: 2001 | AQ113: 2002 | AR113: 2003 | AS113: 2004 | AT113: 2005 | AU113: 2006 | AV113: 2007 | AW113: 2008 | AX113: 2009 | AY113: 2010 | AZ113: 2011 | BA113: 2012 | BB113: 2013 | BC113: 2014 | BD113: 2015 | BE113: 2016 | BF113: 2017 | BG113: 2018 | BH113: 2019 | BI113: 2020 | BJ113: 2021 | BK113: 2022
A114: Estados Unidos | AN114: 7346.672878 | AO114: 11924.27147 | AP114: 21542.71981 | AQ114: 13600.63335 | AR114: 11133.11562 | AS114: 10010.1989 | AT114: 14420.25758 | AU114: 14394.43834 | AV114: 16190.80636 | AW114: 11944.22202 | AX114: 8429.90635 | AY114: 11191.12982 | AZ114: 13099.10877 | BA114: 9748.280447 | BB114: 16948.46119 | BC114: 10497.2339 | BD114: 19404.60095 | BE114: 11083.98806 | BF114: 15416.71775 | BG114: 11876.64219 | BH114: 13048.66677 | BI114: 10605.47789 | BJ114: 14754.86965 | BK114: 7602.278697
A115: España | AN115: 991.949808 | AO115: 3731.863039 | AP115: 2851.954939 | AQ115: 5415.412608 | AR115: 1959.069333 | AS115: 6527.597825 | AT115: 2526.343012 | AU115: 1566.026058 | AV115: 4649.476619 | AW115: 5300.485479 | AX115: 2748.96111 | AY115: 3982.534633 | AZ115: 3533.242879 | BA115: -349.7568699 | BB115: 453.8677865 | BC115: 4457.037245 | BD115: 3905.698083 | BE115: 3567.187633 | BF115: 3360.995703 | BG115: 4167.00501 | BH115: 4061.0592 | BI115: 3977.308681 | BJ115: 4463.090647 | BK115: 2093.150842
A116: Países Bajos | AN116: 326.156134 | AO116: 1016.995602 | AP116: 1183.454641 | AQ116: 454.410053 | AR116: 446.2081335 | AS116: 2905.506308 | AT116: 1791.464838 | AU116: 216.219137 | AV116: 812.808548 | AW116: 484.354844 | AX116: 246.0837781 | AY116: 5767.346126 | AZ116: 232.2798774 | BA116: 894.2934638 | BB116: 1008.361563 | BC116: 570.4255282 | BD116: 299.5494325 | BE116: 225.6082031 | BF116: -213.056015 | BG116: 752.9783845 | BH116: 884.0259993 | BI116: 713.2470353 | BJ116: -288.6565172 | BK116: 57.76080881
A117: Canadá | AN117: 612.503279 | AO117: 573.488236 | AP117: 807.3953942 | AQ117: 330.0011479 | AR117: 381.7802424 | AS117: 841.8361641 | AT117: 601.1816098 | AU117: 975.1892027 | AV117: 1747.704324 | AW117: 4873.098437 | AX117: 2153.054753 | AY117: 2131.358433 | AZ117: 1589.576192 | BA117: 1680.648268 | BB117: 5105.137564 | BC117: 2963.751263 | BD117: 1096.284276 | BE117: 2299.05336 | BF117: 2826.097886 | BG117: 4193.818473 | BH117: 2954.947939 | BI117: 4215.051661 | BJ117: 2618.547904 | BK117: 1374.121455
A118: Alemania | AN118: 685.711369 | AO118: 297.5913936 | AP118: 731.1770714 | AQ118: 716.533482 | AR118: 485.352271 | AS118: 450.08456 | AT118: 503.003925 | AU118: 508.3063917 | AV118: 740.7249766 | AW118: 697.0412276 | AX118: 263.7780655 | AY118: 606.1507944 | AZ118: 854.0630941 | BA118: 1171.780352 | BB118: 1983.113042 | BC118: 2148.837358 | BD118: 1237.856501 | BE118: 2771.086844 | BF118: 2643.298496 | BG118: 2936.482749 | BH118: 3433.193422 | BI118: 875.7169521 | BJ118: 2089.233527 | BK118: 334.3324631
A119: Japón | AN119: 1461.174972 | AO119: 697.056417 | AP119: 459.127714 | AQ119: 415.380256 | AR119: 426.557465 | AS119: 885.99246 | AT119: 364.423084 | AU119: 548.954849 | AV119: 711.199391 | AW119: 867.635338 | AX119: 779.6376726 | AY119: 1267.865547 | AZ119: 954.3184759 | BA119: 2307.501195 | BB119: 1684.940266 | BC119: 2500.180111 | BD119: 2244.078789 | BE119: 1963.796843 | BF119: 2459.859593 | BG119: 2279.765836 | BH119: 1489.248939 | BI119: 1226.251043 | BJ119: 1595.962414 | BK119: 269.2914405
A120: Reino Unido | AN120: 406.0156685 | AO120: 955.709413 | AP120: 1112.274298 | AQ120: 1516.436366 | AR120: 1153.683726 | AS120: 428.955018 | AT120: 796.3390641 | AU120: 1192.239686 | AV120: 592.9884005 | AW120: 830.1151346 | AX120: 15.31597581 | AY120: 527.8049702 | AZ120: 249.2876741 | BA120: 259.6888757 | BB120: 1353.677251 | BC120: 238.8789765 | BD120: 750.7078879 | BE120: 500.4207526 | BF120: 494.0280922 | BG120: 734.5796078 | BH120: 736.6006352 | BI120: 901.2465125 | BJ120: 1807.200288 | BK120: 589.4031636
A121: Suiza | AN121: 103.271914 | AO121: 67.37873059 | AP121: 106.1388045 | AQ121: 250.914128 | AR121: 328.761784 | AS121: 1673.329072 | AT121: 328.787413 | AU121: 579.535091 | AV121: 327.048857 | AW121: 425.8506755 | AX121: 101.8170322 | AY121: -152.3514311 | AZ121: 32.925629 | BA121: 216.220926 | BB121: 439.3341854 | BC121: 296.8035797 | BD121: 225.7141114 | BE121: 583.9773561 | BF121: 300.4468321 | BG121: 631.113466 | BH121: 721.673595 | BI121: 522.4744961 | BJ121: 384.0066483 | BK121: 170.5678746
A122: Francia | AN122: 402.853827 | AO122: -2184.996485 | AP122: -69.91787183 | AQ122: 314.0598951 | AR122: 726.4511554 | AS122: 404.891631 | AT122: 809.5467561 | AU122: -282.613741 | AV122: 361.9176568 | AW122: 866.4343146 | AX122: 491.047222 | AY122: 565.4408797 | AZ122: 572.3106733 | BA122: 719.7520653 | BB122: 769.759271 | BC122: 1200.700244 | BD122: 972.0252088 | BE122: 454.8182468 | BF122: 546.9575742 | BG122: 620.7076996 | BH122: 1036.436933 | BI122: 292.6789933 | BJ122: 480.0528179 | BK122: 665.7411658
A123: Suecia | AN123: 726.456726 | AO123: -193.967771 | AP123: 107.166386 | AQ123: -43.207296 | AR123: 6.128692 | AS123: 416.46762 | AT123: 153.150627 | AU123: 111.883029 | AV123: 94.251738 | AW123: 150.118515 | AX123: 9.16454334 | AY123: -192.2483228 | AZ123: 56.442337 | BA123: 251.09941 | BB123: 300.0431224 | BC123: 115.0246876 | BD123: -33.17970403 | BE123: 84.80482412 | BF123: -40.05781665 | BG123: 161.6670749 | BH123: 84.22649354 | BI123: 258.3080935 | BJ123: -92.14232217 | BK123: 18.81608467
A124: Italia | AN124: 69.05509376 | AO124: 59.54987172 | AP124: 49.6730703 | AQ124: 49.6212698 | AR124: 29.64923534 | AS124: 74.84864663 | AT124: 114.6980335 | AU124: 100.2285622 | AV124: 131.2602532 | AW124: 167.2649139 | AX124: 78.76987545 | AY124: 149.1864075 | AZ124: 222.3542683 | BA124: 564.0030526 | BB124: -419.46687 | BC124: 284.1098502 | BD124: 606.6783438 | BE124: 806.2364348 | BF124: 1864.731261 | BG124: 1530.868541 | BH124: 1502.134807 | BI124: 685.9733698 | BJ124: 127.8537191 | BK124: 109.3429074
A125: Resto | AN125: =AN126-SUM(AN114:AN124) -> 828.4961648 | AO125: 1303.732679 | AP125: 1175.99513 | AQ125: 1079.005667 | AR125: 1193.409794 | AS125: 410.6006451 | AT125: 3649.107913 | AU125: 1334.025723 | AV125: 6123.798019 | AW125: 2926.971292 | AX125: 2537.038364 | AY125: 1349.089389 | AZ125: 4186.076243 | BA125: 4294.630038 | BB125: 18627.55686 | BC125: 5248.640684 | BD125: 5205.938877 | BE125: 6819.434403 | BF125: 4376.090708 | BG125: 4197.993133 | BH125: 4400.115786 | BI125: 3788.311987 | BJ125: 3718.402987 | BK125: 6142.650885
A126: Total | AN126: 13960.31783 | AO126: 18248.6726 | AP126: 30057.15939 | AQ126: 24099.20092 | AR126: 18270.16745 | AS126: 25030.30885 | AT126: 26058.30386 | AU126: 21244.43233 | AV126: 32483.98514 | AW126: 29533.59219 | AX126: 17854.57474 | AY126: 27193.30724 | AZ126: 25581.98611 | BA126: 21758.14122 | BB126: 48254.78523 | BC126: 30521.62342 | BD126: 35915.95275 | BE126: 31160.41296 | BF126: 34036.11007 | BG126: 34083.62216 | BH126: 34352.33052 | BI126: 28062.04671 | BJ126: 31658.42176 | BK126: 19427.45779
A129: IED por sector económico (1980-2020) (millones de dólares/participación porcentual)
A135: Sector económico | B135: 1980 | D135: 1981 | F135: 1982 | H135: 1983 | J135: 1984 | L135: 1985 | N135: 1986 | P135: 1987 | R135: 1988 | T135: 1989 | V135: 1990 | X135: 1991 | Z135: 1992 | AB135: 1993 | AD135: 1994* | AF135: 1995* | AH135: 1996* | AJ135: 1997* | AL135: 1998* | AN135: 1999 | AP135: 2000 | AR135: 2001 | AT135: 2002 | AV135: 2003 | AX135: 2004 | AZ135: 2005 | BB135: 2006 | BD135: 2007 | BF135: 2008 | BH135: 2009 | BJ135: 2010 | BL135: 2011 | BN135: 2012 | BP135: 2013 | BR135: 2014 | BT135: 2015 | BV135: 2016 | BX135: 2017 | BZ135: 2018 | CB135: 2019 | CD135: 2020 | CF135: 2020
A136: Agropecuario | B136: 0.9 | C136: 0.05546653519 | D136: -5.4 | E136: -0.3174416554 | F136: 1.8 | G136: 0.2873104549 | H136: 0.2 | I136: 0.02925259617 | J136: 0.8 | K136: 0.05595188138 | L136: 0.4 | M136: 0.02313475998 | N136: 0.2 | O136: 0.008250144378 | P136: 15.2 | Q136: 0.3920354895 | R136: -12 | S136: -0.3800956574 | T136: 19.3 | U136: 0.7720926511 | V136: 61.1 | W136: 1.641414141 | X136: 44.9 | Y136: 1.259467041 | Z136: 39.3 | AA136: 1.091787976 | AB136: 34.5 | AC136: 0.7039810639 | AD136: 10.26 | AE136: 0.09636607839 | AF136: 9.99 | AG136: 0.1192892795 | AH136: 31.73 | AI136: 0.4043119815 | AJ136: 9.5 | AK136: 0.07821762614 | AL136: 27.645 | AM136: 0.3301486833 | AN136: 87.791614 | AO136: =AN136/$AN$141*100 -> 0.6288654387 | AP136: 97.800556 | AQ136: =AP136/$AP$141*100 -> 0.5359324381 | AR136: 75.181085 | AS136: =AR136/$AR$141*100 -> 0.2501270464 | AT136: 17.335837 | AU136: =AT136/$AT$141*100 -> 0.07193531874 | AV136: 1.264678 | AW136: =AV136/$AV$141*100 -> 0.006922093097 | AX136: 24.942117 | AY136: =AX136/$AX$141*100 -> 0.09964765975 | AZ136: 9.959782 | BA136: =AZ136/$AZ$141*100 -> 0.03822114461 | BB136: -2.039788 | BC136: =BB136/$BB$141*100 -> -0.009601518029 | BD136: 78.996996 | BE136: =BD136/$BD$141*100 -> 0.2431875142 | BF136: 61.48692755 | BG136: =BF136/$BF$141*100 -> 0.2081931895 | BH136: 22.24872672 | BI136: =BH136/$BH$141*100 -> 0.1246107905 | BJ136: 101.2795637 | BK136: =BJ136/$BJ$141*100 -> 0.3724429793 | BL136: 139.6361804 | BM136: =BL136/$BL$141*100 -> 0.5458379181 | BN136: 148.2298852 | BO136: =BN136/$BN$141*100 -> 0.6812617111 | BP136: 214.3823283 | BQ136: =BP136/$BP$141*100 -> 0.4442716453 | BR136: 186.1133731 | BS136: =BR136/$BR$141*100 -> 0.6097754714 | BT136: 183.5504721 | BU136: =BT136/$BT$141*100 -> 0.5110555561 | BV136: 103.3460592 | BW136: =BV136/$BV$141*100 -> 0.3316581823 | BX136: 136.5306184 | BY136: =BX136/$BX$141*100 -> 0.4011346129 | BZ136: -18.293792 | CA136: =BZ136/$BZ$141*100 -> -0.05367326252 | CB136: 105.9638397 | CC136: =CB136/$CB$141*100 -> 0.3084618657 | CD136: 135.9183964 | CE136: =CD136/$CD$141*100 -> 0.4843495481 | CF136: 204.5272673 | CG136: =CF136/$CF$141*100 -> 0.6460437883
A137: Extractivo | B137: 86.7 | C137: 5.343276223 | D137: -189 | E137: -11.11045794 | F137: 6.7 | G137: 1.06943336 | H137: 15 | I137: 2.193944713 | J137: 5.7 | K137: 0.3986571548 | L137: 18 | M137: 1.041064199 | N137: 30.8 | O137: 1.270522234 | P137: 48.8 | Q137: 1.258640256 | R137: 24.9 | S137: 0.7886984891 | T137: 9.5 | U137: 0.3800456055 | V137: 93.9 | W137: 2.522566086 | X137: 31 | Y137: 0.8695652174 | Z137: 8.6 | AA137: 0.238915435 | AB137: 55.1 | AC137: 1.124329177 | AD137: 92.91 | AE137: 0.8726483765 | AF137: 71.19 | AG137: 0.8500704511 | AH137: 79.895 | AI137: 1.018043043 | AJ137: 124.07 | AK137: 1.021522197 | AL137: 46.93 | AM137: 0.5604585896 | AN137: 229.078375 | AO137: =AN137/$AN$141*100 -> 1.640925212 | AP137: 165.423991 | AQ137: =AP137/$AP$141*100 -> 0.9064987608 | AR137: 49.962199 | AS137: =AR137/$AR$141*100 -> 0.1662239547 | AT137: 277.995428 | AU137: =AT137/$AT$141*100 -> 1.153546248 | AV137: 145.992586 | AW137: =AV137/$AV$141*100 -> 0.7990763434 | AX137: 347.821528 | AY137: =AX137/$AX$141*100 -> 1.389601423 | AZ137: 224.533319 | BA137: =AZ137/$AZ$141*100 -> 0.8616574595 | BB137: 404.800328 | BC137: =BB137/$BB$141*100 -> 1.905441961 | BD137: 1853.92545 | BE137: =BD137/$BD$141*100 -> 5.707198306 | BF137: 4539.147168 | BG137: =BF137/$BF$141*100 -> 15.36943809 | BH137: 1524.547492 | BI137: =BH137/$BH$141*100 -> 8.53869394 | BJ137: 1389.843677 | BK137: =BJ137/$BJ$141*100 -> 5.110976995 | BL137: 915.1439038 | BM137: =BL137/$BL$141*100 -> 3.577298103 | BN137: 2910.623174 | BO137: =BN137/$BN$141*100 -> 13.37716831 | BP137: 5744.883644 | BQ137: =BP137/$BP$141*100 -> 11.90531388 | BR137: 2679.320161 | BS137: =BR137/$BR$141*100 -> 8.778432666 | BT137: 1749.727379 | BU137: =BT137/$BT$141*100 -> 4.871727587 | BV137: 1066.840602 | BW137: =BV137/$BV$141*100 -> 3.423704954 | BX137: 1728.608038 | BY137: =BX137/$BX$141*100 -> 5.078747349 | BZ137: 1732.562603 | CA137: =BZ137/$BZ$141*100 -> 5.083270183 | CB137: 2006.761059 | CC137: =CB137/$CB$141*100 -> 5.841702814 | CD137: 1413.487322 | CE137: =CD137/$CD$141*100 -> 5.03700723 | CF137: 4780.105418 | CG137: =CF137/$CF$141*100 -> 15.099001
A138: Industrial | B138: 1285.7 | C138: 79.23702699 | D138: 1405.6 | E138: 82.62888719 | F138: 381.3 | G138: 60.86193136 | H138: 597 | I138: 87.31899956 | J138: 1269.6 | K138: 88.79563575 | L138: 1165.8 | M138: 67.42625795 | N138: 1918.9 | O138: 79.15601023 | P138: 2400.5 | Q138: 61.91323636 | R138: 1020 | S138: 32.30813088 | T138: 982.4 | U138: 39.30071609 | V138: 1192.9 | W138: 32.04652912 | X138: 963.6 | Y138: 27.02945302 | Z138: 1100.8 | AA138: 30.58117569 | AB138: 2320.5 | AC138: 47.35037852 | AD138: 6143.365 | AE138: 57.70097399 | AF138: 4422.06 | AG138: 52.80323836 | AH138: 4362.64 | AI138: 55.58990303 | AJ138: 6707.632 | AK138: 55.22684758 | AL138: 4912.925 | AM138: 58.67229952 | AN138: 9671.253102 | AO138: 69.27674009 | AP138: 10656.60406 | AQ138: 58.39659846 | AR138: 7645.211708 | AS138: 25.43557629 | AT138: 10261.74589 | AU138: 42.58127031 | AV138: 9856.36546 | AW138: 53.94786603 | AX138: 14248.61005 | AY138: 56.92542644 | AZ138: 14440.81481 | BA138: 55.41732451 | BB138: 11799.5825 | BC138: 55.54199954 | BD138: 17262.66287 | BE138: 53.1420723 | BF138: 10745.58906 | BG138: 36.38429418 | BH138: 7470.994936 | BI138: 41.84358935 | BJ138: 15518.2174 | BK138: 57.06631142 | BL138: 13317.83872 | BM138: 52.05944002 | BN138: 12531.10345 | BO138: 57.59271123 | BP138: 33862.25897 | BQ138: 70.17388805 | BR138: 20592.69012 | BS138: 67.46918353 | BT138: 21105.44164 | BU138: 58.76341853 | BV138: 20485.55472 | BW138: 65.74224399 | BX138: 20216.88658 | BY138: 59.39834648 | BZ138: 22484.81959 | CA138: 65.96957179 | CB138: 17500.67537 | CC138: 50.94465237 | CD138: 11742.23787 | CE138: 41.8438398 | CF138: 12497.20179 | CG138: 39.4751257
A139: Comercio | B139: 118 | C139: 7.272279058 | D139: 170.1 | E139: 9.999412145 | F139: 1.2 | G139: 0.1915403033 | H139: 58.6 | I139: 8.571010677 | J139: 31.5 | K139: 2.203105329 | L139: 109.5 | M139: 6.333140544 | N139: 151.2 | O139: 6.237109149 | P139: -21.2 | Q139: -0.5467863407 | R139: 246.8 | S139: 7.817300687 | T139: 386.3 | U139: 15.45385446 | V139: 171.4 | W139: 4.6045562 | X139: 387.5 | Y139: 10.86956522 | Z139: 750.9 | AA139: 20.86065118 | AB139: 759.9 | AC139: 15.50594813 | AD139: 1189.02 | AE139: 11.16775775 | AF139: 911.25 | AG139: 10.88111671 | AH139: 676.98 | AI139: 8.626256706 | AJ139: 1768.1895 | AK139: 14.55827213 | AL139: 986.575 | AM139: 11.78211023 | AN139: 1470.067323 | AO139: 10.53032847 | AP139: 2284.389071 | AQ139: 12.51811088 | AR139: 2393.281529 | AS139: 7.962434167 | AT139: 1529.837139 | AU139: 6.348082428 | AV139: 1416.429091 | AW139: 7.752688061 | AX139: 1357.643089 | AY139: 5.423996552 | AZ139: 2372.13392 | BA139: 9.103178524 | BB139: 321.5479354 | BC139: 1.513563321 | BD139: 1162.338734 | BE139: 3.578190081 | BF139: 1476.996816 | BG139: 5.001074053 | BH139: 1850.265897 | BI139: 10.36297937 | BJ139: 2687.067935 | BK139: 9.881357612 | BL139: 2718.37773 | BM139: 10.62614028 | BN139: 2820.092565 | BO139: 12.96109137 | BP139: 1444.791078 | BQ139: 2.994088712 | BR139: 1953.285075 | BS139: 6.399676217 | BT139: 3032.688769 | BU139: 8.443848866 | BV139: 1966.513795 | BW139: 6.310936244 | BX139: 3097.160445 | BY139: 9.099631065 | BZ139: 2964.731841 | CA139: 8.698406019 | CB139: 3276.75792 | CC139: 9.538677201 | CD139: 2122.786317 | CE139: 7.564616861 | CF139: 2789.440502 | CG139: 8.811053572
A140: Servicios | B140: 131.3 | C140: 8.091951189 | D140: 319.8 | E140: 18.79960026 | F140: 235.5 | G140: 37.58978452 | H140: 12.9 | I140: 1.886792453 | J140: 122.2 | K140: 8.546649881 | L140: 435.3 | M140: 25.17640254 | N140: 323.1 | O140: 13.32810824 | P140: 1433.9 | Q140: 36.98287424 | R140: 1877.4 | S140: 59.4659656 | T140: 1102.2 | U140: 44.09329119 | V140: 2203.1 | W140: 59.18493445 | X140: 2138 | Y140: 59.97194951 | Z140: 1700 | AA140: 47.22746972 | AB140: 1730.7 | AC140: 35.31536311 | AD140: 3211.345 | AE140: 30.1622538 | AF140: 2960.11 | AG140: 35.3462852 | AH140: 2696.655 | AI140: 34.36148524 | AJ140: 3536.2085 | AK140: 29.11514046 | AL140: 2399.425 | AM140: 28.65498298 | AN140: 2502.12742 | AO140: 17.92314079 | AP140: 5044.45492 | AQ140: 27.64285946 | AR140: 19893.52287 | AS140: 66.18563854 | AT140: 12012.28663 | AU140: 49.84516569 | AV140: 6850.115637 | AW140: 37.49344747 | AX140: 9051.292066 | AY140: 36.16132793 | AZ140: 9010.862026 | BA140: 34.57961836 | BB140: 8720.541347 | BC140: 41.0485967 | BD140: 12126.06109 | BE140: 37.32935179 | BF140: 12710.37221 | BG140: 43.03700049 | BH140: 6986.517691 | BI140: 39.13012655 | BJ140: 7496.898669 | BK140: 27.56891099 | BL140: 8490.989581 | BM140: 33.19128368 | BN140: 3348.092155 | BO140: 15.38776737 | BP140: 6988.469213 | BQ140: 14.48243771 | BR140: 5110.214691 | BS140: 16.74293212 | BT140: 9844.544498 | BU140: 27.40994946 | BV140: 7538.157787 | BW140: 24.19145663 | BX140: 8856.924381 | BY140: 26.0221405 | BZ140: 6919.801918 | CA140: 20.30242527 | CB140: 11462.17234 | CC140: 33.36650574 | CD140: 12647.61681 | CE140: 45.07018656 | CF140: 11387.14679 | CG140: 35.96877594
A141: Total | B141: 1622.6 | C141: 100 | D141: 1701.1 | E141: 100 | F141: 626.5 | G141: 100 | H141: 683.7 | I141: 100 | J141: 1429.8 | K141: 100 | L141: 1729 | M141: 100 | N141: 2424.2 | O141: 100 | P141: 3877.2 | Q141: 100 | R141: 3157.1 | S141: 100 | T141: 2499.7 | U141: 100 | V141: 3722.4 | W141: 100 | X141: 3565 | Y141: 100 | Z141: 3599.6 | AA141: 100 | AB141: 4900.7 | AC141: 100 | AD141: 10646.9 | AE141: 100 | AF141: 8374.6 | AG141: 100 | AH141: 7847.9 | AI141: 100 | AJ141: 12145.6 | AK141: 100 | AL141: 8373.5 | AM141: 100 | AN141: 13960.31783 | AO141: 100 | AP141: 18248.6726 | AQ141: 100 | AR141: 30057.15939 | AS141: 100 | AT141: 24099.20092 | AU141: 100 | AV141: 18270.16745 | AW141: 100 | AX141: 25030.30885 | AY141: 100 | AZ141: 26058.30386 | BA141: 100 | BB141: 21244.43233 | BC141: 100 | BD141: 32483.98514 | BE141: 100 | BF141: 29533.59219 | BG141: 100 | BH141: 17854.57474 | BI141: 100 | BJ141: 27193.30724 | BK141: 100 | BL141: 25581.98611 | BM141: 100 | BN141: 21758.14122 | BO141: 100 | BP141: 48254.78523 | BQ141: 100 | BR141: 30521.62342 | BS141: 100 | BT141: 35915.95275 | BU141: 100 | BV141: 31160.41296 | BW141: 100 | BX141: 34036.11007 | BY141: 100 | BZ141: 34083.62216 | CA141: 100 | CB141: 34352.33052 | CC141: 100 | CD141: 28062.04671 | CE141: 100 | CF141: 31658.42176 | CG141: 100
A142: * La diferencia entre el total de IED publicado por la Secretaría de Economía y la desagregación por país de origen, se debe a que esta última sólo incuye las nuevas inversiones reportadas al RNIE más el valor de la importación temporal de maquinaria y equipo de empresas maquiladoras.
A143: Fuente: Secretaría de Economía
AJ145: Etiquetas de fila | AK145: 1999 | AL145: 2000 | AM145: 2001 | AN145: 2002 | AO145: 2003 | AP145: 2004 | AQ145: 2005 | AR145: 2006 | AS145: 2007 | AT145: 2008 | AU145: 2009 | AV145: 2010 | AW145: 2011 | AX145: 2012 | AY145: 2013 | AZ145: 2014 | BA145: 2015 | BB145: 2016 | BC145: 2017 | BD145: 2018 | BE145: 2019 | BF145: 2020 | BG145: 2021
AI146: Agropecuario | AJ146: 11 Agricultura, cría y explotación de animales, aprovechamiento forestal, pesca y caza | AK146: 87.791614 | AL146: 97.800556 | AM146: 75.181085 | AN146: 17.335837 | AO146: 1.264678 | AP146: 24.942117 | AQ146: 9.959782 | AR146: -2.039788 | AS146: 78.996996 | AT146: 61.48692755 | AU146: 22.24872672 | AV146: 101.2795637 | AW146: 139.6361804 | AX146: 148.2298852 | AY146: 214.3823283 | AZ146: 186.1133731 | BA146: 183.5504721 | BB146: 103.3460592 | BC146: 136.5306184 | BD146: -18.293792 | BE146: 105.9638397 | BF146: 135.9183964 | BG146: 204.5272673
AI147: Extractivo | AJ147: 21 Minería | AK147: 229.078375 | AL147: 165.423991 | AM147: 49.962199 | AN147: 277.995428 | AO147: 145.992586 | AP147: 347.821528 | AQ147: 224.533319 | AR147: 404.800328 | AS147: 1853.92545 | AT147: 4539.147168 | AU147: 1524.547492 | AV147: 1389.843677 | AW147: 915.1439038 | AX147: 2910.623174 | AY147: 5744.883644 | AZ147: 2679.320161 | BA147: 1749.727379 | BB147: 1066.840602 | BC147: 1728.608038 | BD147: 1732.562603 | BE147: 2006.761059 | BF147: 1413.487322 | BG147: 4780.105418
AI148: Industrial | AK148: =SUM(AK149:AK151) -> 9671.253102 | AL148: =SUM(AL149:AL151) -> 10656.60406 | AM148: 7645.211708 | AN148: 10261.74589 | AO148: 9856.36546 | AP148: 14248.61005 | AQ148: 14440.81481 | AR148: 11799.5825 | AS148: 17262.66287 | AT148: 10745.58906 | AU148: 7470.994936 | AV148: 15518.2174 | AW148: 13317.83872 | AX148: 12531.10345 | AY148: 33862.25897 | AZ148: 20592.69012 | BA148: 21105.44164 | BB148: 20485.55472 | BC148: 20216.88658 | BD148: 22484.81959 | BE148: 17500.67537 | BF148: 11742.23787 | BG148: =SUM(BG149:BG151) -> 12497.20179
AJ149: 22 Generación, transmisión y distribución de energía eléctrica, suministro de agua y de gas por ductos al consumidor final | AK149: 345.580997 | AL149: 182.072565 | AM149: 542.928768 | AN149: 861.204398 | AO149: 471.805013 | AP149: 284.250587 | AQ149: 321.361013 | AR149: -51.326237 | AS149: 1165.801646 | AT149: 664.198932 | AU149: 46.849777 | AV149: 613.6782447 | AW149: 44.53721688 | AX149: 1339.875238 | AY149: 1552.742621 | AZ149: 714.4002414 | BA149: 1166.173611 | BB149: 1333.693761 | BC149: 2134.378706 | BD149: 5010.907575 | BE149: 1245.211155 | BF149: 433.0578236 | BG149: 585.861961
AJ150: 23 Construcción | AK150: 206.969991 | AL150: 227.8539471 | AM150: 321.6415512 | AN150: 362.730954 | AO150: 65.602408 | AP150: 364.344695 | AQ150: 466.5431747 | AR150: 626.721688 | AS150: 2263.785466 | AT150: 867.9929933 | AU150: 848.9533421 | AV150: 457.8438623 | AW150: 1665.4392 | AX150: 1459.617118 | AY150: 1035.056404 | AZ150: 959.9672379 | BA150: 2194.988461 | BB150: 1202.958359 | BC150: 3089.445735 | BD150: 1797.789279 | BE150: 366.3346295 | BF150: 464.1563505 | BG150: 252.4343205
AJ151: 31-33 Industrias manufactureras | AK151: 9118.702114 | AL151: 10246.67755 | AM151: 6780.641389 | AN151: 9037.810537 | AO151: 9318.958039 | AP151: 13600.01477 | AQ151: 13652.91062 | AR151: 11224.18705 | AS151: 13833.07576 | AT151: 9213.397139 | AU151: 6575.191817 | AV151: 14446.69529 | AW151: 11607.8623 | AX151: 9731.611089 | AY151: 31274.45994 | AZ151: 18918.32264 | BA151: 17744.27956 | BB151: 17948.90259 | BC151: 14993.06214 | BD151: 15676.12274 | BE151: 15889.12958 | BF151: 10845.0237 | BG151: 11658.9055
AI152: comercio | AJ152: 43 y 46 Comercio | AK152: 1470.067323 | AL152: 2284.389071 | AM152: 2393.281529 | AN152: 1529.837139 | AO152: 1416.429091 | AP152: 1357.643089 | AQ152: 2372.13392 | AR152: 321.5479354 | AS152: 1162.338734 | AT152: 1476.996816 | AU152: 1850.265897 | AV152: 2687.067935 | AW152: 2718.37773 | AX152: 2820.092565 | AY152: 1444.791078 | AZ152: 1953.285075 | BA152: 3032.688769 | BB152: 1966.513795 | BC152: 3097.160445 | BD152: 2964.731841 | BE152: 3276.75792 | BF152: 2122.786317 | BG152: 2789.440502
AI153: servicios | AK153: =SUM(AK154:AK164) -> 2502.12742 | AL153: =SUM(AL154:AL164) -> 5044.45492 | AM153: 19893.52287 | AN153: 12012.28663 | AO153: 6850.115637 | AP153: 9051.292066 | AQ153: 9010.862026 | AR153: 8720.541347 | AS153: 12126.06109 | AT153: 12710.37221 | AU153: 6986.517691 | AV153: 7496.898669 | AW153: 8490.989581 | AX153: 3348.092155 | AY153: 6988.469213 | AZ153: 5110.214691 | BA153: 9844.544498 | BB153: 7538.157787 | BC153: 8856.924381 | BD153: 6919.801918 | BE153: 11462.17234 | BF153: 12647.61681 | BG153: =SUM(BG154:BG164) -> 11387.14679
AJ154: 48 y 49 Transportes, correos y almacenamiento | AK154: 412.3768127 | AL154: 262.5445881 | AM154: 46.41365358 | AN154: 233.644856 | AO154: 204.52908 | AP154: 355.959295 | AQ154: 1712.902111 | AR154: 344.422919 | AS154: 588.4626838 | AT154: 1464.474646 | AU154: -12.3209146 | AV154: 654.3153627 | AW154: 231.5154242 | AX154: 1413.99549 | AY154: 1472.827472 | AZ154: 2030.020925 | BA154: 2925.959039 | BB154: 1864.525459 | BC154: 3374.792241 | BD154: 1352.374371 | BE154: 980.6439566 | BF154: 2822.881633 | BG154: 3146.834798
AJ155: 51 Información en medios masivos | AK155: 420.953643 | AL155: -1625.822455 | AM155: 3090.620024 | AN155: 3930.91609 | AO155: 2199.644219 | AP155: 1666.678424 | AQ155: 1506.764941 | AR155: 666.197035 | AS155: 235.769542 | AT155: 1258.056949 | AU155: 535.3474558 | AV155: 2573.583161 | AW155: 1429.647539 | AX155: 1230.756023 | AY155: 2676.139355 | AZ155: -3920.774473 | BA155: 2305.395311 | BB155: 919.6024925 | BC155: 631.1350845 | BD155: 1122.814614 | BE155: 1813.535587 | BF155: 1240.136457 | BG155: 591.6623171
AJ156: 52 Servicios financieros y de seguros | AK156: 363.221336 | AL156: 4659.808114 | AM156: 15698.98514 | AN156: 6469.183292 | AO156: 1892.191494 | AP156: 5563.16812 | AQ156: 2087.277773 | AR156: 4372.158601 | AS156: 5962.548225 | AT156: 7191.015112 | AU156: 3114.478769 | AV156: 2459.615292 | AW156: 2724.929466 | AX156: -2456.694328 | AY156: -311.1114258 | AZ156: 4814.104422 | BA156: 3236.441142 | BB156: 3401.444068 | BC156: 2571.559726 | BD156: 2361.233946 | BE156: 5410.711326 | BF156: 6640.815746 | BG156: 4875.77922
AJ157: 53 Servicios inmobiliarios y de alquiler de bienes muebles e intangibles | AK157: 284.4392871 | AL157: 358.1824814 | AM157: 232.498629 | AN157: 332.307625 | AO157: 1321.91984 | AP157: 335.5408153 | AQ157: 1305.143987 | AR157: 1131.02592 | AS157: 1965.306076 | AT157: 1858.319337 | AU157: 1358.09097 | AV157: 615.0213899 | AW157: 1138.712936 | AX157: 688.691614 | AY157: 596.1923535 | AZ157: 650.0815232 | BA157: 339.2635045 | BB157: 433.7321183 | BC157: 561.4609147 | BD157: 318.6288737 | BE157: 1229.758652 | BF157: 356.9523802 | BG157: 325.3730515
AJ158: 54 Servicios profesionales, científicos y técnicos | AK158: 64.43263743 | AL158: 148.8084332 | AM158: -59.48427446 | AN158: 94.13346837 | AO158: 220.4552186 | AP158: 109.804484 | AQ158: 13.990762 | AR158: 347.557752 | AS158: 282.8850157 | AT158: 357.1440986 | AU158: 611.6268622 | AV158: -17.85016759 | AW158: 781.6527528 | AX158: 821.6880618 | AY158: 539.0803379 | AZ158: 238.421081 | BA158: 372.0215369 | BB158: 161.2065951 | BC158: 240.7282947 | BD158: 155.3440443 | BE158: 487.0955817 | BF158: 341.180648 | BG158: 248.0342738
AJ159: 56 Servicios de apoyo a los negocios y manejo de residuos y desechos, y servicios de remediación | AK159: 266.2130451 | AL159: 385.6750474 | AM159: 371.1943158 | AN159: 386.972228 | AO159: 239.60846 | AP159: 164.1611434 | AQ159: 686.560677 | AR159: 314.585982 | AS159: 559.9730575 | AT159: -80.388347 | AU159: 771.2971157 | AV159: 111.6807243 | AW159: 719.506217 | AX159: 210.5633511 | AY159: 487.9065111 | AZ159: 190.5787473 | BA159: -22.58927402 | BB159: 51.08719703 | BC159: 262.6766222 | BD159: 124.8258934 | BE159: 176.5213348 | BF159: 5.9985669 | BG159: 174.6012044
AJ160: 61 Servicios educativos | AK160: 2.689915 | AL160: 57.012948 | AM160: 5.07549385 | AN160: -19.119224 | AO160: 1.579927 | AP160: 3.634711 | AQ160: 17.768682 | AR160: 1.40655042 | AS160: 39.813802 | AT160: 172.211522 | AU160: 5.0596613 | AV160: 8.501746 | AW160: 14.43112932 | AX160: 8.61840751 | AY160: 14.583641 | AZ160: 4.10130746 | BA160: 21.21687009 | BB160: 0.01839301 | BC160: 30.17531193 | BD160: 63.67817023 | BE160: -7.01792089 | BF160: -1.40596858 | BG160: 24.10856808
AJ161: 62 Servicios de salud y de asistencia social | AK161: 10.19237 | AL161: 1.128847 | AM161: -0.04626975 | AN161: 2.06758 | AO161: 12.65043444 | AP161: 8.73045 | AQ161: 3.23973057 | AR161: 4.898976 | AS161: 22.416423 | AT161: 21.181508 | AU161: 3.67374939 | AV161: 5.54817796 | AW161: 23.45756585 | AX161: 37.424541 | AY161: 12.56650455 | AZ161: -1.23260673 | BA161: 16.44514936 | BB161: 11.92265825 | BC161: 11.31873822 | BD161: 6.55797946 | BE161: 23.48650024 | BF161: 16.25825778 | BG161: 12.09849544
AJ162: 71 Servicios de esparcimiento culturales y deportivos, y otros servicios recreativos | AK162: 72.864599 | AL162: 27.490407 | AM162: 2.64652735 | AN162: 5.077879 | AO162: 18.631951 | AP162: 3.10441 | AQ162: 38.522173 | AR162: 3.700444 | AS162: 269.089363 | AT162: -9.72246072 | AU162: 70.49016037 | AV162: 44.60703835 | AW162: 114.6777143 | AX162: 9.6182139 | AY162: 44.41050526 | AZ162: 125.4902979 | BA162: 117.353365 | BB162: 51.53454408 | BC162: 223.3418737 | BD162: 40.72972677 | BE162: 37.54432791 | BF162: -24.98283345 | BG162: 95.91642472
AJ163: 72 Servicios de alojamiento temporal y de preparación de alimentos y bebidas | AK163: 587.0567058 | AL163: 719.9128559 | AM163: 531.0548451 | AN163: 571.1288189 | AO163: 631.4113838 | AP163: 800.5459774 | AQ163: 1617.972869 | AR163: 1527.481353 | AS163: 2137.046909 | AT163: 450.1166445 | AU163: 506.0010568 | AV163: 1010.735947 | AW163: 1084.359842 | AX163: 1380.361698 | AY163: 1395.650868 | AZ163: 959.8410344 | BA163: 531.8267544 | BB163: 619.9477933 | BC163: 922.7017221 | BD163: 1315.985725 | BE163: 1244.447651 | BF163: 1180.259779 | BG163: 1763.937165
AJ164: 81 Otros servicios excepto actividades gubernamentales | AK164: 17.687069 | AL164: 49.713653 | AM164: -25.435213 | AN164: 5.974019 | AO164: 107.493629 | AP164: 39.964236 | AQ164: 20.71831967 | AR164: 7.105814 | AS164: 62.74999404 | AT164: 27.963206 | AU164: 22.77280497 | AV164: 31.13999818 | AW164: 228.0989945 | AX164: 3.0690821 | AY164: 60.22309004 | AZ164: 19.58243287 | BA164: 1.21110014 | BB164: 23.13646848 | BC164: 27.03385295 | BD164: 57.62857417 | BE164: 65.44534024 | BF164: 69.52214082 | BG164: 128.8012733
AJ165: Total general | AK165: 13960.31783 | AL165: 18248.6726 | AM165: 30057.15939 | AN165: 24099.20092 | AO165: 18270.16745 | AP165: 25030.30885 | AQ165: 26058.30386 | AR165: 21244.43233 | AS165: 32483.98514 | AT165: 29533.59219 | AU165: 17854.57474 | AV165: 27193.30724 | AW165: 25581.98611 | AX165: 21758.14122 | AY165: 48254.78523 | AZ165: 30521.62342 | BA165: 35915.95275 | BB165: 31160.41296 | BC165: 34036.11007 | BD165: 34083.62216 | BE165: 34352.33052 | BF165: 28062.04671 | BG165: 31658.42176
A175: IED por entidad federativa (1980-2020) (millones de dólares/participación porcentual)
A179: Entidad federativa | B179: 1980 | D179: 1981 | F179: 1982 | H179: 1983 | J179: 1984 | L179: 1985 | N179: 1986 | P179: 1987 | R179: 1988 | T179: 1989 | V179: 1990 | X179: 1991 | Z179: 1992 | AB179: 1993 | AD179: 1994* | AF179: 1995* | AH179: 1996* | AJ179: 1997* | AL179: 1998* | AN179: 1999 | AP179: 2000 | AR179: 2001 | AT179: 2002 | AV179: 2003 | AX179: 2004 | AZ179: 2005 | BB179: 2006 | BD179: 2007 | BF179: 2008 | BH179: 2009 | BJ179: 2010 | BL179: 2011 | BN179: 2012 | BP179: 2013 | BR179: 2014 | BT179: 2015 | BV179: 2016 | BX179: 2017 | BZ179: 2018 | CB179: 2019 | CD179: 2020 | CF179: 2021
A180: Aguascalientes | B180: nd | C180: nd | D180: nd | E180: nd | F180: nd | G180: nd | H180: nd | I180: nd | J180: nd | K180: nd | L180: nd | M180: nd | N180: nd | O180: nd | P180: nd | Q180: nd | R180: nd | S180: nd | T180: 0.4 | U180: 0.01600192023 | V180: 0 | W180: 0 | X180: 61.8 | Y180: 1.733471712 | Z180: 31.5 | AA180: 0.875097233 | AB180: 9.3 | AC180: 0.1897688085 | AD180: 28.5 | AE180: 0.2676835511 | AF180: 27.1 | AG180: 0.323597545 | AH180: 34.8 | AI180: 0.4434307267 | AJ180: 18.1 | AK180: 0.1490251614 | AL180: 69.1 | AM180: 0.8252224279 | AN180: 818.846072 | AO180: =AN180/$AN$212*100 -> 5.865525998 | AP180: 288.2483511 | AQ180: =AP180/$AP$212*100 -> 1.579557907 | AR180: 254.5625875 | AS180: =AR180/$AR$212*100 -> 0.8469282947 | AT180: 115.1542767 | AU180: =AT180/$AT$212*100 -> 0.477834419 | AV180: 119.8299376 | AW180: =AV180/$AV$212*100 -> 0.6558776098 | AX180: 441.5118119 | AY180: =AX180/$AX$212*100 -> 1.763908766 | AZ180: 133.876424 | BA180: =AZ180/$AZ$212*100 -> 0.513757245 | BB180: 140.5939138 | BC180: =BB180/$BB$212*100 -> 0.6617918127 | BD180: 410.573807 | BE180: =BD180/$BD$212*100 -> 1.26392684 | BF180: 337.4852046 | BG180: =BF180/$BF$212*100 -> 1.142716411 | BH180: 342.2060574 | BI180: =BH180/$BH$212*100 -> 1.91662956 | BJ180: 333.1545323 | BK180: =BJ180/$BJ$212*100 -> 1.225134293 | BL180: 187.7217372 | BM180: =BL180/$BL$212*100 -> 0.7338043901 | BN180: 355.2095029 | BO180: =BN180/$BN$212*100 -> 1.632536067 | BP180: 69.13911588 | BQ180: =BP180/$BP$212*100 -> 0.1432792946 | BR180: 978.7988459 | BS180: =BR180/$BR$212*100 -> 3.206902963 | BT180: 812.5841424 | BU180: =BT180/$BT$212*100 -> 2.262460216 | BV180: 594.8797316 | BW180: =BV180/$BV$212*100 -> 1.909088087 | BX180: 1576.337274 | BY180: =BX180/$BX$212*100 -> 4.631367305 | BZ180: 1196.980198 | CA180: =BZ180/$BZ$212*100 -> 3.511892582 | CB180: 452.1233792 | CC180: =CB180/$CB$212*100 -> 1.316135972 | CD180: 743.6072165 | CE180: =CD180/$CD$212*100 -> 2.649868073 | CF180: 41.9770759 | CG180: =CF180/$CF$212*100 -> 0.1325937099
A181: Baja California | B181: nd | C181: nd | D181: nd | E181: nd | F181: nd | G181: nd | H181: nd | I181: nd | J181: nd | K181: nd | L181: nd | M181: nd | N181: nd | O181: nd | P181: nd | Q181: nd | R181: nd | S181: nd | T181: 84.1 | U181: 3.364403728 | V181: 36.6 | W181: 0.9832102082 | X181: 62.8 | Y181: 1.761521416 | Z181: 98.3 | AA181: 2.730858984 | AB181: 189.6 | AC181: 3.868835064 | AD181: 227.1 | AE181: 2.133015244 | AF181: 538.1 | AG181: 6.425381511 | AH181: 427.7 | AI181: 5.449865569 | AJ181: 679.4 | AK181: 5.593795284 | AL181: 726.2 | AM181: 8.672598077 | AN181: 1238.714183 | AO181: =AN181/$AN$212*100 -> 8.873108745 | AP181: 1054.173063 | AQ181: =AP181/$AP$212*100 -> 5.776710923 | AR181: 1326.086279 | AS181: =AR181/$AR$212*100 -> 4.411881583 | AT181: 1535.124825 | AU181: =AT181/$AT$212*100 -> 6.370023759 | AV181: 1099.407609 | AW181: =AV181/$AV$212*100 -> 6.017501546 | AX181: 1365.615627 | AY181: =AX181/$AX$212*100 -> 5.45584809 | AZ181: 1343.459457 | BA181: =AZ181/$AZ$212*100 -> 5.155590573 | BB181: 1340.591468 | BC181: =BB181/$BB$212*100 -> 6.310319086 | BD181: 1790.829226 | BE181: =BD181/$BD$212*100 -> 5.512960366 | BF181: 1457.864111 | BG181: =BF181/$BF$212*100 -> 4.936291196 | BH181: 829.5231895 | BI181: =BH181/$BH$212*100 -> 4.645998023 | BJ181: 1414.82295 | BK181: =BJ181/$BJ$212*100 -> 5.202835158 | BL181: 766.3223272 | BM181: =BL181/$BL$212*100 -> 2.995554465 | BN181: 1018.515251 | BO181: =BN181/$BN$212*100 -> 4.681076568 | BP181: 1290.826481 | BQ181: =BP181/$BP$212*100 -> 2.675022746 | BR181: 1214.614855 | BS181: =BR181/$BR$212*100 -> 3.979522446 | BT181: 1167.269082 | BU181: =BT181/$BT$212*100 -> 3.25000172 | BV181: 1566.921937 | BW181: =BV181/$BV$212*100 -> 5.028566018 | BX181: 1678.434623 | BY181: =BX181/$BX$212*100 -> 4.931335043 | BZ181: 1638.506347 | CA181: =BZ181/$BZ$212*100 -> 4.807312848 | CB181: 1184.563768 | CC181: =CB181/$CB$212*100 -> 3.448277745 | CD181: 1196.212694 | CE181: =CD181/$CD$212*100 -> 4.262742153 | CF181: 2225.030953 | CG181: =CF181/$CF$212*100 -> 7.028243447
A182: Baja California Sur | B182: nd | C182: nd | D182: nd | E182: nd | F182: nd | G182: nd | H182: nd | I182: nd | J182: nd | K182: nd | L182: nd | M182: nd | N182: nd | O182: nd | P182: nd | Q182: nd | R182: nd | S182: nd | T182: 324.8 | U182: 12.99355923 | V182: 31.4 | W182: 0.8435191404 | X182: 13.1 | Y182: 0.3674511234 | Z182: 46.8 | AA182: 1.30014446 | AB182: 147.6 | AC182: 3.011814639 | AD182: 8.3 | AE182: 0.077956964 | AF182: 20.9 | AG182: 0.2495641583 | AH182: 34.6 | AI182: 0.4408822742 | AJ182: 42.5 | AK182: 0.349920959 | AL182: 46.8 | AM182: 0.5589060727 | AN182: 135.1224975 | AO182: 0.9679041632 | AP182: 173.5108817 | AQ182: 0.9508137138 | AR182: 243.1471944 | AS182: 0.8089493462 | AT182: 330.8221803 | AU182: 1.372751658 | AV182: 155.0360055 | AW182: 0.8485746283 | AX182: 227.8124783 | AY182: 0.9101464932 | AZ182: 744.905623 | BA182: 2.858611317 | BB182: 599.5178098 | BC182: 2.821999668 | BD182: 910.1209691 | BE182: 2.801752818 | BF182: 837.646718 | BG182: 2.836250709 | BH182: 455.9895744 | BI182: 2.553908905 | BJ182: 521.6034337 | BK182: 1.918131653 | BL182: 711.1604288 | BM182: 2.779926569 | BN182: 738.6066266 | BO182: 3.394621898 | BP182: 421.3367491 | BQ182: 0.8731501904 | BR182: 238.813583 | BS182: 0.7824406315 | BT182: 372.743819 | BU182: 1.037822445 | BV182: 522.5922628 | BW182: 1.677103136 | BX182: 595.5750429 | BY182: 1.749832874 | BZ182: 491.9284237 | CA182: 1.443298548 | CB182: 640.0168738 | CC182: 1.863095936 | CD182: 678.1247979 | CE182: 2.416519382 | CF182: 1309.385511 | CG182: 4.13597848
A183: Campeche | B183: nd | C183: nd | D183: nd | E183: nd | F183: nd | G183: nd | H183: nd | I183: nd | J183: nd | K183: nd | L183: nd | M183: nd | N183: nd | O183: nd | P183: nd | Q183: nd | R183: nd | S183: nd | T183: 0 | U183: 0 | V183: 0 | W183: 0 | X183: 0 | Y183: 0 | Z183: 0.3 | AA183: 0.008334259362 | AB183: 5.2 | AC183: 0.1061072908 | AD183: 2.1 | AE183: 0.01972405113 | AF183: 0.5 | AG183: 0.005970434409 | AH183: 0 | AI183: 0 | AJ183: 1.8 | AK183: 0.01482018179 | AL183: 0.1 | AM183: 0.001194243745 | AN183: 30.505075 | AO183: 0.2185127542 | AP183: 25.308216 | AQ183: 0.1386852433 | AR183: 51.634708 | AS183: 0.1717883827 | AT183: 190.918863 | AU183: 0.7922207197 | AV183: 65.706121 | AW183: 0.3596361181 | AX183: 149.047489 | AY183: 0.5954680379 | AZ183: 129.300058 | BA183: 0.4961952194 | BB183: 30.41914107 | BC183: 0.1431864152 | BD183: 134.523132 | BE183: 0.4141213937 | BF183: 150.0526385 | BG183: 0.5080744582 | BH183: 26.16739962 | BI183: 0.1465585151 | BJ183: 73.20354795 | BK183: 0.2691969289 | BL183: 24.79756059 | BM183: 0.09693368014 | BN183: 209.6683149 | BO183: 0.9636315562 | BP183: 278.4169567 | BQ183: 0.5769727404 | BR183: 218.5742756 | BS183: 0.7161292589 | BT183: 543.0011228 | BU183: 1.511866124 | BV183: 142.1458303 | BW183: 0.456174411 | BX183: 328.3481086 | BY183: 0.9647051557 | BZ183: 123.4900957 | CA183: 0.3623150589 | CB183: 151.8657313 | CC183: 0.4420827611 | CD183: 140.254007 | CE183: 0.4997996347 | CF183: 218.3977244 | CG183: 0.6898566393
A184: Chiapas | B184: nd | C184: nd | D184: nd | E184: nd | F184: nd | G184: nd | H184: nd | I184: nd | J184: nd | K184: nd | L184: nd | M184: nd | N184: nd | O184: nd | P184: nd | Q184: nd | R184: nd | S184: nd | T184: 0.9 | U184: 0.03600432052 | V184: 0 | W184: 0 | X184: 2.3 | Y184: 0.06451431937 | Z184: 19.8 | AA184: 0.5500611179 | AB184: 4.2 | AC184: 0.08570204257 | AD184: 0.4 | AE184: 0.00375696212 | AF184: 0.4 | AG184: 0.004776347527 | AH184: 1 | AI184: 0.01274226226 | AJ184: 0.4 | AK184: 0.003293373732 | AL184: 0.4 | AM184: 0.004776974981 | AN184: 34.01038882 | AO184: 0.2436218804 | AP184: 43.472612 | AQ184: 0.2382234201 | AR184: 199.301561 | AS184: 0.6630751709 | AT184: 207.626804 | AU184: 0.8615505744 | AV184: 114.2917081 | AW184: 0.6255646447 | AX184: 232.204182 | AY184: 0.9276920368 | AZ184: 142.076015 | BA184: 0.5452235717 | BB184: 89.256227 | BC184: 0.4201393835 | BD184: 186.876594 | BE184: 0.5752883865 | BF184: 63.203183 | BG184: 0.2140043873 | BH184: 91.88158019 | BI184: 0.5146108575 | BJ184: 157.6758362 | BK184: 0.5798332463 | BL184: 92.80881925 | BM184: 0.3627897335 | BN184: 121.0916849 | BO184: 0.5565350628 | BP184: 182.4139759 | BQ184: 0.3780225629 | BR184: 36.56443398 | BS184: 0.1197984572 | BT184: 270.0755851 | BU184: 0.7519655317 | BV184: 138.7924341 | BW184: 0.4454126917 | BX184: 217.0837728 | BY184: 0.6378042978 | BZ184: 70.22050105 | CA184: 0.2060241741 | CB184: 256.6473096 | CC184: 0.7471030514 | CD184: 133.0748327 | CE184: 0.4742164178 | CF184: 158.921326 | CG184: 0.5019875191
A185: Chihuahua | B185: nd | C185: nd | D185: nd | E185: nd | F185: nd | G185: nd | H185: nd | I185: nd | J185: nd | K185: nd | L185: nd | M185: nd | N185: nd | O185: nd | P185: nd | Q185: nd | R185: nd | S185: nd | T185: 77.8 | U185: 3.112373485 | V185: 24.1 | W185: 0.6474143721 | X185: 17.8 | Y185: 0.4992847325 | Z185: 95.3 | AA185: 2.647516391 | AB185: 27.2 | AC185: 0.5550227519 | AD185: 308.4 | AE185: 2.896617795 | AF185: 528.7 | AG185: 6.313137344 | AH185: 536.7 | AI185: 6.838772156 | AJ185: 504 | AK185: 4.149650902 | AL185: 620 | AM185: 7.40431122 | AN185: 635.015674 | AO185: 4.548719317 | AP185: 1387.364799 | AQ185: 7.602551866 | AR185: 1076.448629 | AS185: 3.581338527 | AT185: 1362.675931 | AU185: 5.654444457 | AV185: 1120.02145 | AW185: 6.130329416 | AX185: 1459.538949 | AY185: 5.831086453 | AZ185: 1692.013764 | BA185: 6.493184566 | BB185: 1948.818072 | BC185: 9.173312057 | BD185: 2267.159666 | BE185: 6.979315056 | BF185: 2625.23309 | BG185: 8.888973183 | BH185: 1424.710974 | BI185: 7.979529026 | BJ185: 1847.780537 | BK185: 6.794982754 | BL185: 1218.112005 | BM185: 4.761600604 | BN185: 1186.894459 | BO185: 5.454944181 | BP185: 2311.444191 | BQ185: 4.790082848 | BR185: 1933.601542 | BS185: 6.335185764 | BT185: 2480.429492 | BU185: 6.906205466 | BV185: 1983.085243 | BW185: 6.364117337 | BX185: 1822.019987 | BY185: 5.353196895 | BZ185: 1241.943411 | CA185: 3.64381287 | CB185: 1402.643371 | CC185: 4.083109791 | CD185: 634.6819601 | CE185: 2.261709442 | CF185: 1894.179459 | CG185: 5.983177157
A186: Ciudad de México | B186: nd | C186: nd | D186: nd | E186: nd | F186: nd | G186: nd | H186: nd | I186: nd | J186: nd | K186: nd | L186: nd | M186: nd | N186: nd | O186: nd | P186: nd | Q186: nd | R186: nd | S186: nd | T186: 1292.3 | U186: 51.69820378 | V186: 2226.02 | W186: 59.79905977 | X186: 2389.4 | Y186: 67.02196292 | Z186: 2028.6 | AA186: 56.35626181 | AB186: 3088.89 | AC186: 63.0295672 | AD186: 7602.9 | AE186: 71.40951826 | AF186: 4486.4 | AG186: 53.57151386 | AH186: 4777 | AI186: 60.86978682 | AJ186: 6643.8 | AK186: 54.701291 | AL186: 4000.6 | AM186: 47.77691527 | AN186: 3640.473033 | AO186: 26.07729334 | AP186: 5311.350189 | AQ186: 29.10540566 | AR186: 10219.45417 | AS186: 34.00006645 | AT186: 6504.404235 | AU186: 26.99012409 | AV186: 3521.352366 | AW186: 19.27378266 | AX186: 5573.005617 | AY186: 22.26502937 | AZ186: 6234.294464 | BA186: 23.9244062 | BB186: 5671.130318 | BC186: 26.69466631 | BD186: 6931.510735 | BE186: 21.33824007 | BF186: 7724.060544 | BG186: 26.15347464 | BH186: 5252.792046 | BI186: 29.41986646 | BJ186: 4064.556146 | BK186: 14.94689892 | BL186: 7507.591731 | BM186: 29.34718086 | BN186: 1332.022629 | BO186: 6.12195047 | BP186: 5813.97605 | BQ186: 12.04849638 | BR186: 6123.571003 | BS186: 20.06305798 | BT186: 5907.411935 | BU186: 16.44787756 | BV186: 6743.540291 | BW186: 21.64137009 | BX186: 5103.023742 | BY186: 14.99296991 | BZ186: 5825.560017 | CA186: 17.09196279 | CB186: 8335.695829 | CC186: 24.26529933 | CD186: 6910.018965 | CE186: 24.62407335 | CF186: 5325.927689 | CG186: 16.82309917
A187: Coahuila de Zaragoza | B187: nd | C187: nd | D187: nd | E187: nd | F187: nd | G187: nd | H187: nd | I187: nd | J187: nd | K187: nd | L187: nd | M187: nd | N187: nd | O187: nd | P187: nd | Q187: nd | R187: nd | S187: nd | T187: 17.2 | U187: 0.6880825699 | V187: 3.2 | W187: 0.08596373405 | X187: 24 | Y187: 0.6731928978 | Z187: 7.7 | AA187: 0.213912657 | AB187: 30.8 | AC187: 0.6284816455 | AD187: 102.3 | AE187: 0.9608430623 | AF187: 120.4 | AG187: 1.437680606 | AH187: 147.6 | AI187: 1.88075791 | AJ187: 114.4 | AK187: 0.9419048874 | AL187: 134.6 | AM187: 1.607452081 | AN187: 481.6971304 | AO187: 3.450473951 | AP187: 511.216768 | AQ187: 2.801391527 | AR187: 1129.868729 | AS187: 3.759066898 | AT187: 885.79995 | AU187: 3.675640337 | AV187: 824.4513931 | AW187: 4.512555209 | AX187: 841.530276 | AY187: 3.362045115 | AZ187: 642.152013 | BA187: 2.464289374 | BB187: 608.277464 | BC187: 2.863232374 | BD187: 666.2903059 | BE187: 2.051134745 | BF187: 583.083045 | BG187: 1.974304518 | BH187: 381.2102947 | BI187: 2.135084706 | BJ187: 751.200891 | BK187: 2.762447702 | BL187: 647.1415265 | BM187: 2.529676639 | BN187: 539.3666573 | BO187: 2.478918818 | BP187: 1804.578936 | BQ187: 3.739689084 | BR187: 1625.454563 | BS187: 5.325583572 | BT187: 1367.224338 | BU187: 3.806732756 | BV187: 1209.584445 | BW187: 3.881798506 | BX187: 2672.544098 | BY187: 7.852084428 | BZ187: 3290.191669 | CA187: 9.653292287 | CB187: 1491.783976 | CC187: 4.34259904 | CD187: 852.0564147 | CE187: 3.036330256 | CF187: 1037.144407 | CG187: 3.276045833
A188: Colima | B188: nd | C188: nd | D188: nd | E188: nd | F188: nd | G188: nd | H188: nd | I188: nd | J188: nd | K188: nd | L188: nd | M188: nd | N188: nd | O188: nd | P188: nd | Q188: nd | R188: nd | S188: nd | T188: 33.9 | U188: 1.35616274 | V188: 22.6 | W188: 0.6071188717 | X188: 18.7 | Y188: 0.5245294662 | Z188: 128.3 | AA188: 3.564284921 | AB188: 18.3 | AC188: 0.3734160426 | AD188: 102.9 | AE188: 0.9664785055 | AF188: 3 | AG188: 0.03582260645 | AH188: 4 | AI188: 0.05096904904 | AJ188: 3.5 | AK188: 0.02881702016 | AL188: 4.1 | AM188: 0.04896399355 | AN188: 31.64576 | AO188: 0.2266836642 | AP188: 15.85637245 | AQ188: 0.08689055252 | AR188: 94.618385 | AS188: 0.314794834 | AT188: 65.52592756 | AU188: 0.2719008309 | AV188: 74.740079 | AW188: 0.4090826162 | AX188: 156.7449724 | AY188: 0.6262206885 | AZ188: 52.147011 | BA188: 0.2001166741 | BB188: 106.4999816 | BC188: 0.5013077305 | BD188: 118.7007917 | BE188: 0.365413268 | BF188: 187.5431177 | BG188: 0.6350162773 | BH188: 134.864699 | BI188: 0.7553509445 | BJ188: 264.8388771 | BK188: 0.9739119806 | BL188: 154.6133261 | BM188: 0.6043835904 | BN188: 60.45569382 | BO188: 0.27785321 | BP188: 167.7873814 | BQ188: 0.3477113837 | BR188: 195.635703 | BS188: 0.6409741064 | BT188: 165.322271 | BU188: 0.4603031754 | BV188: -24.22497056 | BW188: -0.07774277765 | BX188: 132.2200718 | BY188: 0.3884699853 | BZ188: 90.6961999 | CA188: 0.266099065 | CB188: 41.36634316 | CC188: 0.1204178655 | CD188: 91.90471918 | CE188: 0.327505403 | CF188: 89.75136274 | CG188: 0.2834991694
A189: Durango | B189: nd | C189: nd | D189: nd | E189: nd | F189: nd | G189: nd | H189: nd | I189: nd | J189: nd | K189: nd | L189: nd | M189: nd | N189: nd | O189: nd | P189: nd | Q189: nd | R189: nd | S189: nd | T189: 22.1 | U189: 0.8841060927 | V189: 11.2 | W189: 0.3008730692 | X189: 133.5 | Y189: 3.744635494 | Z189: 1.2 | AA189: 0.03333703745 | AB189: 7.9 | AC189: 0.161201461 | AD189: 21.5 | AE189: 0.201936714 | AF189: 41 | AG189: 0.4895756215 | AH189: 20.2 | AI189: 0.2573936977 | AJ189: 75.2 | AK189: 0.6191542616 | AL189: 61.9 | AM189: 0.7392368782 | AN189: 166.064998 | AO189: 1.189550266 | AP189: 131.615137 | AQ189: 0.721231291 | AR189: 288.855449 | AS189: 0.9610204519 | AT189: 172.520536 | AU189: 0.7158765825 | AV189: 306.408175 | AW189: 1.677095603 | AX189: -82.368549 | AY189: -0.3290752403 | AZ189: 76.630701 | BA189: 0.2940740173 | BB189: 10.77438 | BC189: 0.05071625278 | BD189: 421.617602 | BE189: 1.297924501 | BF189: 488.132089 | BG189: 1.65280297 | BH189: 127.3688294 | BI189: 0.7133680372 | BJ189: 414.0637624 | BK189: 1.522667908 | BL189: 228.6192869 | BM189: 0.893672938 | BN189: 268.3888163 | BO189: 1.233509855 | BP189: 482.4867997 | BQ189: 0.9998734786 | BR189: 155.8836222 | BS189: 0.5107317526 | BT189: 231.0989554 | BU189: 0.643443756 | BV189: 275.9338687 | BW189: 0.8855269957 | BX189: 131.1131911 | BY189: 0.3852179078 | BZ189: 391.0602771 | CA189: 1.147355393 | CB189: 178.5304772 | CC189: 0.5197041205 | CD189: 496.5234398 | CE189: 1.769377141 | CF189: 461.7095964 | CG189: 1.458410024
A190: Estado de México | B190: nd | C190: nd | D190: nd | E190: nd | F190: nd | G190: nd | H190: nd | I190: nd | J190: nd | K190: nd | L190: nd | M190: nd | N190: nd | O190: nd | P190: nd | Q190: nd | R190: nd | S190: nd | T190: 186.1 | U190: 7.444893387 | V190: 212.2 | W190: 5.700470114 | X190: 312.3 | Y190: 8.759922583 | Z190: 314.1 | AA190: 8.725969552 | AB190: 291.9 | AC190: 5.956291958 | AD190: 340.5 | AE190: 3.198114005 | AF190: 611.2 | AG190: 7.298259021 | AH190: 412.1 | AI190: 5.251086278 | AJ190: 290.4 | AK190: 2.390989329 | AL190: 747 | AM190: 8.921000776 | AN190: 1129.508219 | AO190: 8.090848879 | AP190: 1312.366772 | AQ190: 7.19157388 | AR190: 2355.957129 | AS190: 7.838256098 | AT190: 1934.040601 | AU190: 8.025330827 | AV190: 1493.458753 | AW190: 8.174302493 | AX190: 3935.615017 | AY190: 15.72339774 | AZ190: 2560.455717 | BA190: 9.825872519 | BB190: 2403.104284 | BC190: 11.3116898 | BD190: 2220.914372 | BE190: 6.836951693 | BF190: 2345.891904 | BG190: 7.943130957 | BH190: 1592.380484 | BI190: 8.918613338 | BJ190: 2028.378657 | BK190: 7.459109843 | BL190: 2711.662556 | BM190: 10.59989066 | BN190: 3118.620043 | BO190: 14.33311794 | BP190: 4608.437965 | BQ190: 9.550219615 | BR190: 3580.144417 | BS190: 11.72986236 | BT190: 2957.091485 | BU190: 8.233365004 | BV190: 2405.026163 | BW190: 7.718210173 | BX190: 3761.055151 | BY190: 11.05019094 | BZ190: 2333.306179 | CA190: 6.845828088 | CB190: 2932.770662 | CC190: 8.537326632 | CD190: 2370.109444 | CE190: 8.445960724 | CF190: 1624.055134 | CG190: 5.129930817
A191: Guanajuato | B191: nd | C191: nd | D191: nd | E191: nd | F191: nd | G191: nd | H191: nd | I191: nd | J191: nd | K191: nd | L191: nd | M191: nd | N191: nd | O191: nd | P191: nd | Q191: nd | R191: nd | S191: nd | T191: 10.4 | U191: 0.416049926 | V191: 24.2 | W191: 0.6501007388 | X191: 5.2 | Y191: 0.1458584612 | Z191: 50.9 | AA191: 1.414046005 | AB191: 36.5 | AC191: 0.7447915604 | AD191: 27.4 | AE191: 0.2573519052 | AF191: 6.3 | AG191: 0.07522747355 | AH191: 9.8 | AI191: 0.1248741702 | AJ191: 41 | AK191: 0.3375708075 | AL191: 10.6 | AM191: 0.126589837 | AN191: 309.164243 | AO191: 2.214593154 | AP191: 307.371787 | AQ191: 1.68435148 | AR191: 857.237812 | AS191: 2.852025372 | AT191: 739.250864 | AU191: 3.06753268 | AV191: 722.169528 | AW191: 3.952725283 | AX191: 689.201802 | AY191: 2.753469029 | AZ191: 781.88629 | BA191: 3.000526413 | BB191: 596.469222 | BC191: 2.807649613 | BD191: 1091.994075 | BE191: 3.361638265 | BF191: 751.784794 | BG191: 2.545524395 | BH191: 508.597999 | BI191: 2.848558458 | BJ191: 399.2738735 | BK191: 1.468279934 | BL191: 1424.685597 | BM191: 5.569096905 | BN191: 1321.193332 | BO191: 6.072179228 | BP191: 2621.382919 | BQ191: 5.432379206 | BR191: 1317.88567 | BS191: 4.317875402 | BT191: 1752.81333 | BU191: 4.880319733 | BV191: 1332.59015 | BW191: 4.276548427 | BX191: 1677.917202 | BY191: 4.929814831 | BZ191: 2469.785172 | CA191: 7.246252056 | CB191: 796.0312655 | CC191: 2.317255492 | CD191: 199.3043323 | CE191: 0.7102273556 | CF191: 1797.171528 | CG191: 5.676756541
A192: Guerrero | B192: nd | C192: nd | D192: nd | E192: nd | F192: nd | G192: nd | H192: nd | I192: nd | J192: nd | K192: nd | L192: nd | M192: nd | N192: nd | O192: nd | P192: nd | Q192: nd | R192: nd | S192: nd | T192: 3 | U192: 0.1200144017 | V192: 153.7 | W192: 4.128945601 | X192: 3.5 | Y192: 0.09817396426 | Z192: 6.6 | AA192: 0.183353706 | AB192: 4.7 | AC192: 0.09590466668 | AD192: 7.1 | AE192: 0.06668607764 | AF192: 62.6 | AG192: 0.747498388 | AH192: 9.6 | AI192: 0.1223257177 | AJ192: 4.5 | AK192: 0.03705045449 | AL192: 2.6 | AM192: 0.03105033737 | AN192: 36.01426692 | AO192: 0.2579759813 | AP192: 49.84095088 | AQ192: 0.2731209659 | AR192: 216.7365331 | AS192: 0.721081225 | AT192: 302.3429455 | AU192: 1.254576641 | AV192: 159.647213 | AW192: 0.8738136275 | AX192: 219.8927307 | AY192: 0.8785058626 | AZ192: 237.0806048 | BA192: 0.9098082752 | BB192: 164.0267976 | BC192: 0.7720931071 | BD192: 112.3540048 | BE192: 0.3458750652 | BF192: 574.9460351 | BG192: 1.946752807 | BH192: 136.0141081 | BI192: 0.7617885614 | BJ192: 139.5511816 | BK192: 0.5131820868 | BL192: 241.8040872 | BM192: 0.9452123308 | BN192: 164.2846046 | BO192: 0.7550488939 | BP192: 1088.173729 | BQ192: 2.255058693 | BR192: 479.4057614 | BS192: 1.570708592 | BT192: 164.0899057 | BU192: 0.4568719276 | BV192: 180.2922638 | BW192: 0.5785939489 | BX192: 410.4140071 | BY192: 1.205819367 | BZ192: 402.1671796 | CA192: 1.179942606 | CB192: 275.5350094 | CC192: 0.8020853469 | CD192: 296.8573005 | CE192: 1.057860474 | CF192: 669.0633727 | CG192: 2.113381955
A193: Hidalgo | B193: nd | C193: nd | D193: nd | E193: nd | F193: nd | G193: nd | H193: nd | I193: nd | J193: nd | K193: nd | L193: nd | M193: nd | N193: nd | O193: nd | P193: nd | Q193: nd | R193: nd | S193: nd | T193: 0.2 | U193: 0.008000960115 | V193: 0.1 | W193: 0.002686366689 | X193: 5.2 | Y193: 0.1458584612 | Z193: 0.1 | AA193: 0.002778086454 | AB193: 3.5 | AC193: 0.0714183688 | AD193: 0.1 | AE193: 0.0009392405301 | AF193: 48.3 | AG193: 0.5767439639 | AH193: 60.2 | AI193: 0.7670841881 | AJ193: 2.4 | AK193: 0.01976024239 | AL193: 7.6 | AM193: 0.09076252463 | AN193: 6.662873 | AO193: 0.04772722999 | AP193: -84.997926 | AQ193: -0.4657759381 | AR193: 336.061288 | AS193: 1.118074012 | AT193: 157.107461 | AU193: 0.6519197939 | AV193: 98.257579 | AW193: 0.537803385 | AX193: 213.6198544 | AY193: 0.8534447405 | AZ193: 111.399544 | BA193: 0.4275011321 | BB193: 194.382045 | BC193: 0.9149787672 | BD193: 87.068187 | BE193: 0.2680341917 | BF193: 121.744071 | BG193: 0.412222361 | BH193: 111.455124 | BI193: 0.6242384689 | BJ193: 380.346931 | BK193: 1.39867846 | BL193: 265.525408 | BM193: 1.037938989 | BN193: 178.8089958 | BO193: 0.8218027171 | BP193: 470.0206862 | BQ193: 0.974039536 | BR193: -66.07296627 | BS193: -0.2164792002 | BT193: 523.7255703 | BU193: 1.458197626 | BV193: 444.573819 | BW193: 1.426726339 | BX193: 349.3534258 | BY193: 1.026419956 | BZ193: 186.4781398 | CA193: 0.5471194903 | CB193: 282.3177902 | CC193: 0.8218300938 | CD193: 278.6772836 | CE193: 0.9930754034 | CF193: 176.1339854 | CG193: 0.5563574416
A194: Jalisco | B194: nd | C194: nd | D194: nd | E194: nd | F194: nd | G194: nd | H194: nd | I194: nd | J194: nd | K194: nd | L194: nd | M194: nd | N194: nd | O194: nd | P194: nd | Q194: nd | R194: nd | S194: nd | T194: 73 | U194: 2.920350442 | V194: 109.8 | W194: 2.949630625 | X194: 216.6 | Y194: 6.075565903 | Z194: 163.8 | AA194: 4.550505612 | AB194: 117.3 | AC194: 2.393535617 | AD194: 64.3 | AE194: 0.6039316609 | AF194: 114.4 | AG194: 1.366035393 | AH194: 185.6 | AI194: 2.364963876 | AJ194: 202.5 | AK194: 1.667270452 | AL194: 362.1 | AM194: 4.324356601 | AN194: 766.7881903 | AO194: 5.492627026 | AP194: 1404.398142 | AQ194: 7.69589204 | AR194: 1736.119726 | AS194: 5.77606055 | AT194: 1170.848904 | AU194: 4.858455297 | AV194: 1258.674388 | AW194: 6.889232903 | AX194: 1422.232963 | AY194: 5.682043204 | AZ194: 827.8264045 | BA194: 3.176823822 | BB194: 992.7387848 | BC194: 4.672936276 | BD194: 1837.713503 | BE194: 5.657290801 | BF194: 1040.661332 | BG194: 3.523653084 | BH194: 1005.721114 | BI194: 5.632848321 | BJ194: 2210.295162 | BK194: 8.128085128 | BL194: 1036.265968 | BM194: 4.050764329 | BN194: 1415.26239 | BO194: 6.504518816 | BP194: 2937.916386 | BQ194: 6.088342062 | BR194: 1685.660358 | BS194: 5.522839773 | BT194: 3138.390836 | BU194: 8.738152814 | BV194: 2085.779545 | BW194: 6.693683899 | BX194: 1552.6498 | BY194: 4.561772181 | BZ194: 1008.162292 | CA194: 2.957908309 | CB194: 1565.930268 | CC194: 4.558439687 | CD194: 2131.481969 | CE194: 7.595604093 | CF194: 2142.829535 | CG194: 6.768592416
A195: Michoacán de Ocampo | B195: nd | C195: nd | D195: nd | E195: nd | F195: nd | G195: nd | H195: nd | I195: nd | J195: nd | K195: nd | L195: nd | M195: nd | N195: nd | O195: nd | P195: nd | Q195: nd | R195: nd | S195: nd | T195: 0.4 | U195: 0.01600192023 | V195: 91.5 | W195: 2.45802552 | X195: 2.3 | Y195: 0.06451431937 | Z195: 352.2 | AA195: 9.784420491 | AB195: 36.6 | AC195: 0.7468320852 | AD195: 8.5 | AE195: 0.07983544506 | AF195: 48.8 | AG195: 0.5827143983 | AH195: 1.2 | AI195: 0.01529071471 | AJ195: 4 | AK195: 0.03293373732 | AL195: 4.3 | AM195: 0.05135248104 | AN195: 25.452083 | AO195: 0.1823173605 | AP195: 28.331434 | AQ195: 0.1552520264 | AR195: 319.039813 | AS195: 1.061443661 | AT195: 204.587823 | AU195: 0.8489402766 | AV195: 134.760294 | AW195: 0.7375974761 | AX195: 368.007294 | AY195: 1.470246716 | AZ195: 247.997934 | BA195: 0.9517040532 | BB195: 63.346536 | BC195: 0.2981794713 | BD195: 1860.910894 | BE195: 5.728702577 | BF195: 187.211323 | BG195: 0.6338928289 | BH195: 156.4753051 | BI195: 0.876387746 | BJ195: 158.1951429 | BK195: 0.5817429321 | BL195: 150.6824344 | BM195: 0.5890177319 | BN195: 335.970228 | BO195: 1.544112728 | BP195: 2246.225538 | BQ195: 4.654928061 | BR195: 211.4790526 | BS195: 0.6928827136 | BT195: 419.0265978 | BU195: 1.166686571 | BV195: 193.8713054 | BW195: 0.6221718104 | BX195: 294.6867248 | BY195: 0.8658061226 | BZ195: 437.0613028 | CA195: 1.282320584 | CB195: 298.0067727 | CC195: 0.8675008891 | CD195: 272.7228193 | CE195: 0.9718564796 | CF195: 1033.536017 | CG195: 3.26464795
A196: Morelos | B196: nd | C196: nd | D196: nd | E196: nd | F196: nd | G196: nd | H196: nd | I196: nd | J196: nd | K196: nd | L196: nd | M196: nd | N196: nd | O196: nd | P196: nd | Q196: nd | R196: nd | S196: nd | T196: 3.2 | U196: 0.1280153618 | V196: 178.8 | W196: 4.80322364 | X196: 16.9 | Y196: 0.4740399989 | Z196: 16.3 | AA196: 0.452828092 | AB196: 18.4 | AC196: 0.3754565674 | AD196: 19.4 | AE196: 0.1822126628 | AF196: 67.6 | AG196: 0.8072027321 | AH196: 51.2 | AI196: 0.6524038278 | AJ196: 27.4 | AK196: 0.2255961006 | AL196: 60.8 | AM196: 0.7261001971 | AN196: 456.570548 | AO196: 3.270488204 | AP196: 132.424613 | AQ196: 0.7256670987 | AR196: 251.499354 | AS196: 0.8367369342 | AT196: 192.469832 | AU196: 0.7986564891 | AV196: 96.118116 | AW196: 0.5260932405 | AX196: 467.853608 | AY196: 1.869148362 | AZ196: 176.277503 | BA196: 0.6764734342 | BB196: 173.947325 | BC196: 0.8187901768 | BD196: 393.498015 | BE196: 1.211360039 | BF196: 284.792855 | BG196: 0.9643014408 | BH196: 121.6918864 | BI196: 0.6815725836 | BJ196: 199.379236 | BK196: 0.7331923044 | BL196: 102.4587569 | BM196: 0.4005113461 | BN196: 274.3174821 | BO196: 1.260757889 | BP196: 451.1553229 | BQ196: 0.9349442148 | BR196: 356.5158873 | BS196: 1.168076424 | BT196: 484.803179 | BU196: 1.349826865 | BV196: 234.8683602 | BW196: 0.7537395621 | BX196: 603.0703841 | BY196: 1.771854606 | BZ196: 251.8669739 | CA196: 0.7389677444 | CB196: 655.6204728 | CC196: 1.908518179 | CD196: 386.638949 | CE196: 1.377800247 | CF196: 94.42929312 | CG196: 0.2982754283
A197: Nayarit | B197: nd | C197: nd | D197: nd | E197: nd | F197: nd | G197: nd | H197: nd | I197: nd | J197: nd | K197: nd | L197: nd | M197: nd | N197: nd | O197: nd | P197: nd | Q197: nd | R197: nd | S197: nd | T197: 0.8 | U197: 0.03200384046 | V197: 0.2 | W197: 0.005372733378 | X197: 0.1 | Y197: 0.002804970408 | Z197: 7.5 | AA197: 0.2083564841 | AB197: 0.1 | AC197: 0.002040524823 | AD197: 5.6 | AE197: 0.05259746969 | AF197: 2 | AG197: 0.02388173764 | AH197: 3.6 | AI197: 0.04587214414 | AJ197: 7.6 | AK197: 0.06257410091 | AL197: 6.1 | AM197: 0.07284886845 | AN197: 40.030777 | AO197: 0.2867468884 | AP197: 54.95860281 | AQ197: 0.3011649341 | AR197: 114.8750473 | AS197: 0.3821886353 | AT197: 105.0111405 | AU197: 0.4357453215 | AV197: 146.9001025 | AW197: 0.8040435475 | AX197: 162.7448177 | AY197: 0.650191009 | AZ197: 146.8101696 | BA197: 0.5633911185 | BB197: 250.6197116 | BC197: 1.179695968 | BD197: 244.5930472 | BE197: 0.752965026 | BF197: 155.1396096 | BG197: 0.5252988144 | BH197: 104.3360081 | BI197: 0.5843656856 | BJ197: 178.1276531 | BK197: 0.6550422556 | BL197: 147.6603455 | BM197: 0.5772043846 | BN197: 157.2573861 | BO197: 0.7227519324 | BP197: 535.4329246 | BQ197: 1.109595498 | BR197: 116.8585597 | BS197: 0.3828713764 | BT197: 103.6446177 | BU197: 0.2885754372 | BV197: 90.0388891 | BW197: 0.2889528108 | BX197: 103.7788572 | BY197: 0.304908102 | BZ197: 194.2537201 | CA197: 0.5699327355 | CB197: 193.9575014 | CC197: 0.5646123521 | CD197: 800.2776391 | CE197: 2.851814935 | CF197: 250.9445555 | CG197: 0.7926628728
A198: Nuevo León | B198: nd | C198: nd | D198: nd | E198: nd | F198: nd | G198: nd | H198: nd | I198: nd | J198: nd | K198: nd | L198: nd | M198: nd | N198: nd | O198: nd | P198: nd | Q198: nd | R198: nd | S198: nd | T198: 94.5 | U198: 3.780453654 | V198: 493.6 | W198: 13.25990598 | X198: 21.3 | Y198: 0.5974586968 | Z198: 32.6 | AA198: 0.905656184 | AB198: 353.8 | AC198: 7.219376824 | AD198: 937.4 | AE198: 8.804440729 | AF198: 704.5 | AG198: 8.412342082 | AH198: 358.4 | AI198: 4.566826794 | AJ198: 2371.4 | AK198: 19.52476617 | AL198: 672.9 | AM198: 8.036066161 | AN198: 1767.665973 | AO198: 12.66207542 | AP198: 2283.589274 | AQ198: 12.51372811 | AR198: 3106.018915 | AS198: 10.33370744 | AT198: 2583.367061 | AU198: 10.71972083 | AV198: 2331.750869 | AW198: 12.76261356 | AX198: 1408.460097 | AY198: 5.627018449 | AZ198: 4835.903209 | BA198: 18.5580122 | BB198: 1727.215635 | BC198: 8.130203757 | BD198: 3593.201468 | BE198: 11.06145521 | BF198: 1670.874487 | BG198: 5.657538969 | BH198: 952.5564223 | BI198: 5.335083227 | BJ198: 4841.88555 | BK198: 17.80543097 | BL198: 1679.233926 | BM198: 6.564126488 | BN198: 1280.851827 | BO198: 5.886770445 | BP198: 2211.968659 | BQ198: 4.583936388 | BR198: 1577.858086 | BS198: 5.169640109 | BT198: 3361.886658 | BU198: 9.360427331 | BV198: 3343.256709 | BW198: 10.72917972 | BX198: 1991.569432 | BY198: 5.851342672 | BZ198: 3621.174254 | CA198: 10.62438211 | CB198: 3273.672643 | CC198: 9.529695928 | CD198: 3094.599632 | CE198: 11.02770466 | CF198: 3231.636694 | CG198: 10.20782627
A199: Oaxaca | B199: nd | C199: nd | D199: nd | E199: nd | F199: nd | G199: nd | H199: nd | I199: nd | J199: nd | K199: nd | L199: nd | M199: nd | N199: nd | O199: nd | P199: nd | Q199: nd | R199: nd | S199: nd | T199: 6.4 | U199: 0.2560307237 | V199: 0 | W199: 0 | X199: 1.2 | Y199: 0.03365964489 | Z199: 1.5 | AA199: 0.04167129681 | AB199: 5.6 | AC199: 0.1142693901 | AD199: 0.1 | AE199: 0.0009392405301 | AF199: -2 | AG199: -0.02388173764 | AH199: 0.3 | AI199: 0.003822678678 | AJ199: 6.1 | AK199: 0.05022394941 | AL199: 0.4 | AM199: 0.004776974981 | AN199: 46.902999 | AO199: 0.3359737189 | AP199: 16.690637 | AQ199: 0.09146219763 | AR199: 144.346271 | AS199: 0.4802392306 | AT199: 147.720108 | AU199: 0.6129668302 | AV199: 111.506719 | AW199: 0.6103212754 | AX199: 144.643148 | AY199: 0.5778720065 | AZ199: 126.588184 | BA199: 0.4857882719 | BB199: 110.2807789 | BC199: 0.5191043811 | BD199: 172.7584606 | BE199: 0.5318265596 | BF199: 201.1799768 | BG199: 0.6811903392 | BH199: 235.9279753 | BI199: 1.321386696 | BJ199: 117.5691321 | BK199: 0.4323458382 | BL199: 178.1169857 | BM199: 0.6962594106 | BN199: 353.7004505 | BO199: 1.625600491 | BP199: 1942.551064 | BQ199: 4.025613324 | BR199: 482.7953278 | BS199: 1.581814051 | BT199: 297.1991825 | BU199: 0.8274851695 | BV199: 195.5256068 | BW199: 0.6274807944 | BX199: 497.3612224 | BY199: 1.461275162 | BZ199: 487.8192672 | CA199: 1.431242445 | CB199: 56.61707199 | CC199: 0.1648128995 | CD199: 244.2724275 | CE199: 0.8704725994 | CF199: -92.63525112 | CG199: -0.2926085571
A200: Puebla | B200: nd | C200: nd | D200: nd | E200: nd | F200: nd | G200: nd | H200: nd | I200: nd | J200: nd | K200: nd | L200: nd | M200: nd | N200: nd | O200: nd | P200: nd | Q200: nd | R200: nd | S200: nd | T200: 10.1 | U200: 0.4040484858 | V200: 13.5 | W200: 0.362659503 | X200: 15.4 | Y200: 0.4319654428 | Z200: 8.5 | AA200: 0.2361373486 | AB200: 59.7 | AC200: 1.218193319 | AD200: 29.9 | AE200: 0.2808329185 | AF200: 25.9 | AG200: 0.3092685024 | AH200: 39.2 | AI200: 0.4994966806 | AJ200: 379.3 | AK200: 3.122941641 | AL200: 37.9 | AM200: 0.4526183794 | AN200: 296.482464 | AO200: 2.123751533 | AP200: 382.0075262 | AQ200: 2.093344182 | AR200: 778.0410464 | AS200: 2.588538179 | AT200: 708.9985271 | AU200: 2.942000149 | AV200: 458.4920979 | AW200: 2.509512292 | AX200: 638.4262457 | AY200: 2.550612737 | AZ200: 782.8723621 | BA200: 3.004310512 | BB200: 424.9798124 | BC200: 2.000429128 | BD200: 662.70076 | BE200: 2.040084543 | BF200: 381.1317123 | BG200: 1.290502387 | BH200: 182.5483941 | BI200: 1.022418046 | BJ200: 772.9024023 | BK200: 2.842252307 | BL200: 594.4525029 | BM200: 2.323715212 | BN200: 759.0416136 | BO200: 3.488540707 | BP200: 1440.820002 | BQ200: 2.985859319 | BR200: 1056.941687 | BS200: 3.462927488 | BT200: 791.4572466 | BU200: 2.203637064 | BV200: 1163.400071 | BW200: 3.73358361 | BX200: 952.1957634 | BY200: 2.797604549 | BZ200: 643.9282611 | CA200: 1.889260062 | CB200: 2043.964901 | CC200: 5.950003595 | CD200: 582.7860761 | CE200: 2.076776801 | CF200: 626.4133368 | CG200: 1.978662554
A201: Querétaro | B201: nd | C201: nd | D201: nd | E201: nd | F201: nd | G201: nd | H201: nd | I201: nd | J201: nd | K201: nd | L201: nd | M201: nd | N201: nd | O201: nd | P201: nd | Q201: nd | R201: nd | S201: nd | T201: 37.3 | U201: 1.492179061 | V201: 10.1 | W201: 0.2713230356 | X201: 42.1 | Y201: 1.180892542 | Z201: 70.5 | AA201: 1.95855095 | AB201: 61.3 | AC201: 1.250841716 | AD201: 141.1 | AE201: 1.325268388 | AF201: 42 | AG201: 0.5015164903 | AH201: 69.8 | AI201: 0.8894099058 | AJ201: 73.2 | AK201: 0.602687393 | AL201: 125.1 | AM201: 1.493998925 | AN201: 255.193758 | AO201: 1.827993897 | AP201: 628.2089449 | AQ201: 3.442491181 | AR201: 838.6784883 | AS201: 2.790278607 | AT201: 654.15458 | AU201: 2.714424358 | AV201: 271.2228045 | AW201: 1.48451187 | AX201: 456.0213478 | AY201: 1.821876632 | AZ201: 594.7610011 | BA201: 2.282424076 | BB201: 750.580545 | BC201: 3.533069434 | BD201: 815.2668774 | BE201: 2.509750186 | BF201: 1071.503836 | BG201: 3.628085026 | BH201: 1131.609862 | BI201: 6.337926714 | BJ201: 852.0334155 | BK201: 3.13324675 | BL201: 1054.761952 | BM201: 4.123065143 | BN201: 100.3356427 | BO201: 0.4611406908 | BP201: 916.0282134 | BQ201: 1.898315802 | BR201: 1116.211729 | BS201: 3.65711782 | BT201: 1438.320077 | BU201: 4.004683064 | BV201: 1070.770171 | BW201: 3.436315728 | BX201: 982.824285 | BY201: 2.887592863 | BZ201: 1223.763662 | CA201: 3.590474205 | CB201: 1167.57865 | CC201: 3.398833886 | CD201: 860.9616744 | CE201: 3.068064433 | CF201: 869.8561361 | CG201: 2.747629501
A202: Quintana Roo | B202: nd | C202: nd | D202: nd | E202: nd | F202: nd | G202: nd | H202: nd | I202: nd | J202: nd | K202: nd | L202: nd | M202: nd | N202: nd | O202: nd | P202: nd | Q202: nd | R202: nd | S202: nd | T202: 7.7 | U202: 0.3080369644 | V202: 9.3 | W202: 0.2498321021 | X202: 15.4 | Y202: 0.4319654428 | Z202: 39 | AA202: 1.083453717 | AB202: 1.01 | AC202: 0.02060930071 | AD202: 38.6 | AE202: 0.3625468446 | AF202: 24.6 | AG202: 0.2937453729 | AH202: 25.5 | AI202: 0.3249276877 | AJ202: 129.2 | AK202: 1.063759715 | AL202: 43.8 | AM202: 0.5230787604 | AN202: 133.384221 | AO202: 0.9554526093 | AP202: 201.4203372 | AQ202: 1.103753361 | AR202: 411.2790252 | AS202: 1.368323 | AT202: 246.524557 | AU202: 1.022957391 | AV202: 273.5352545 | AW202: 1.497168842 | AX202: 271.182644 | AY202: 1.083417091 | AZ202: 351.7567363 | BA202: 1.34988347 | BB202: 411.797618 | BC202: 1.938379015 | BD202: 1001.581957 | BE202: 3.083309983 | BF202: 297.2707311 | BG202: 1.006551215 | BH202: 290.4105168 | BI202: 1.626532813 | BJ202: 296.6994921 | BK202: 1.091075423 | BL202: 503.7696607 | BM202: 1.969235925 | BN202: 583.7038787 | BO202: 2.682691838 | BP202: 930.2926884 | BQ202: 1.927876549 | BR202: 223.790388 | BS202: 0.7332191505 | BT202: 325.2362632 | BU202: 0.9055481987 | BV202: 296.5654164 | BW202: 0.9517377603 | BX202: 483.5666583 | BY202: 1.420745959 | BZ202: 591.7296611 | CA202: 1.736111433 | CB202: 662.3521308 | CC202: 1.928114107 | CD202: 159.5485889 | CE202: 0.5685564941 | CF202: 313.5897011 | CG202: 0.9905411691
A203: San Luis Potosí | B203: nd | C203: nd | D203: nd | E203: nd | F203: nd | G203: nd | H203: nd | I203: nd | J203: nd | K203: nd | L203: nd | M203: nd | N203: nd | O203: nd | P203: nd | Q203: nd | R203: nd | S203: nd | T203: 23.8 | U203: 0.9521142537 | V203: 14 | W203: 0.3760913365 | X203: 25.2 | Y203: 0.7068525427 | Z203: 3.4 | AA203: 0.09445493944 | AB203: 78.1 | AC203: 1.593649887 | AD203: 14.8 | AE203: 0.1390075985 | AF203: 135.3 | AG203: 1.615599551 | AH203: 89.1 | AI203: 1.135335567 | AJ203: 1.1 | AK203: 0.009056777763 | AL203: 6.1 | AM203: 0.07284886845 | AN203: 255.417118 | AO203: 1.82959386 | AP203: 312.281535 | AQ203: 1.711256165 | AR203: 429.456201 | AS203: 1.428798362 | AT203: 265.304132 | AU203: 1.100883522 | AV203: 444.802608 | AW203: 2.434584189 | AX203: 292.248836 | AY203: 1.167579824 | AZ203: 462.367013 | BA203: 1.774355751 | BB203: 198.717272 | BC203: 0.9353851821 | BD203: 523.921987 | BE203: 1.612862414 | BF203: 460.727327 | BG203: 1.560011136 | BH203: 85.025897 | BI203: 0.4762135096 | BJ203: 473.494727 | BK203: 1.741217877 | BL203: 268.2640268 | BM203: 1.048644252 | BN203: 880.3243566 | BO203: 4.045953869 | BP203: 2008.126459 | BQ203: 4.161507401 | BR203: 1064.819352 | BS203: 3.4887376 | BT203: 1899.053073 | BU203: 5.287491845 | BV203: 814.9289544 | BW203: 2.615270072 | BX203: 1405.862446 | BY203: 4.130502701 | BZ203: 1766.422344 | CA203: 5.182613325 | CB203: 853.8282108 | CC203: 2.485503015 | CD203: 912.6961279 | CE203: 3.252421811 | CF203: 699.3431165 | CG203: 2.209027101
A204: Sinaloa | B204: nd | C204: nd | D204: nd | E204: nd | F204: nd | G204: nd | H204: nd | I204: nd | J204: nd | K204: nd | L204: nd | M204: nd | N204: nd | O204: nd | P204: nd | Q204: nd | R204: nd | S204: nd | T204: 3.4 | U204: 0.136016322 | V204: 5.6 | W204: 0.1504365346 | X204: 25.4 | Y204: 0.7124624835 | Z204: 1.8 | AA204: 0.05000555617 | AB204: 0.8 | AC204: 0.01632419858 | AD204: 46.2 | AE204: 0.4339291249 | AF204: 94.1 | AG204: 1.123635756 | AH204: 28.7 | AI204: 0.3657029269 | AJ204: 36 | AK204: 0.2964036359 | AL204: 13.6 | AM204: 0.1624171493 | AN204: 81.125646 | AO204: 0.5811160388 | AP204: 31.74318307 | AQ204: 0.1739479017 | AR204: 387.1269018 | AS204: 1.287969022 | AT204: 149.9335197 | AU204: 0.6221514157 | AV204: 140.3619506 | AW204: 0.7682576033 | AX204: 234.5691879 | AY204: 0.9371406054 | AZ204: 105.0238658 | BA204: 0.4030341592 | BB204: 144.41554 | BC204: 0.6797806491 | BD204: 278.2076613 | BE204: 0.8564455994 | BF204: 175.9162188 | BG204: 0.5956478901 | BH204: 149.5100443 | BI204: 0.8373766749 | BJ204: 217.6156725 | BK204: 0.8002545281 | BL204: 230.9441679 | BM204: 0.9027608994 | BN204: 432.5046789 | BO204: 1.987783214 | BP204: 605.4279996 | BQ204: 1.254648625 | BR204: 399.9852459 | BS204: 1.310497939 | BT204: 428.6680565 | BU204: 1.193531074 | BV204: 434.8697193 | BW204: 1.395583941 | BX204: 761.5578858 | BY204: 2.237499774 | BZ204: 414.9589345 | CA204: 1.217473109 | CB204: 262.5832504 | CC204: 0.7643826384 | CD204: 741.6464385 | CE204: 2.642880778 | CF204: 541.3897484 | CG204: 1.710097087
A205: Sonora | B205: nd | C205: nd | D205: nd | E205: nd | F205: nd | G205: nd | H205: nd | I205: nd | J205: nd | K205: nd | L205: nd | M205: nd | N205: nd | O205: nd | P205: nd | Q205: nd | R205: nd | S205: nd | T205: 12.1 | U205: 0.484058087 | V205: 25.1 | W205: 0.674278039 | X205: 6.7 | Y205: 0.1879330173 | Z205: 11.1 | AA205: 0.3083675964 | AB205: 89.6 | AC205: 1.828310241 | AD205: 107.1 | AE205: 1.005926608 | AF205: 155.4 | AG205: 1.855611014 | AH205: 108.3 | AI205: 1.379987003 | AJ205: 159.7 | AK205: 1.314879463 | AL205: 171.1 | AM205: 2.043351048 | AN205: 321.3973149 | AO205: 2.302220614 | AP205: 651.091086 | AQ205: 3.567881896 | AR205: 513.823934 | AS205: 1.709489334 | AT205: 671.0869954 | AU205: 2.784685673 | AV205: 586.2905776 | AW205: 3.209004949 | AX205: 1265.902754 | AY205: 5.057479561 | AZ205: 656.0542571 | BA205: 2.517639907 | BB205: 458.0258787 | BC205: 2.155980784 | BD205: 961.136627 | BE205: 2.958801461 | BF205: 1576.95172 | BG205: 5.339518843 | BH205: 358.1073917 | BI205: 2.005689841 | BJ205: 1108.840353 | BK205: 4.077622275 | BL205: 304.1333353 | BM205: 1.188857401 | BN205: 1171.715944 | BO205: 5.385184018 | BP205: 2088.757946 | BQ205: 4.328602719 | BR205: 993.3642579 | BS205: 3.254624579 | BT205: 609.9534083 | BU205: 1.698279905 | BV205: 506.182145 | BW205: 1.624439784 | BX205: 364.5903391 | BY205: 1.071186861 | BZ205: 155.0968953 | CA205: 0.4550481594 | CB205: 449.7028899 | CC205: 1.309089902 | CD205: 582.2931778 | CE205: 2.075020342 | CF205: 897.4544835 | CG205: 2.834804875
A206: Tabasco | B206: nd | C206: nd | D206: nd | E206: nd | F206: nd | G206: nd | H206: nd | I206: nd | J206: nd | K206: nd | L206: nd | M206: nd | N206: nd | O206: nd | P206: nd | Q206: nd | R206: nd | S206: nd | T206: 0 | U206: 0 | V206: 0 | W206: 0 | X206: 0 | Y206: 0 | Z206: 1.6 | AA206: 0.04444938326 | AB206: 2.5 | AC206: 0.05101312057 | AD206: 0.6 | AE206: 0.005635443181 | AF206: 1.2 | AG206: 0.01432904258 | AH206: 0 | AI206: 0 | AJ206: 7.6 | AK206: 0.06257410091 | AL206: 0.4 | AM206: 0.004776974981 | AN206: 32.160021 | AO206: 0.2303673984 | AP206: 79.638677 | AQ206: 0.4364080541 | AR206: 231.553504 | AS206: 0.7703772036 | AT206: 201.495179 | AU206: 0.8361073034 | AV206: 140.347601 | AW206: 0.7681790622 | AX206: 284.450151 | AY206: 1.136422857 | AZ206: 158.086737 | BA206: 0.6066654909 | BB206: 82.408777 | BC206: 0.3879076444 | BD206: 179.600399 | BE206: 0.5528890566 | BF206: 135.0834019 | BG206: 0.4573889997 | BH206: 90.36613927 | BI206: 0.5061231677 | BJ206: 141.2624873 | BK206: 0.5194752005 | BL206: 233.2425913 | BM206: 0.911745438 | BN206: 325.4679448 | BO206: 1.495844435 | BP206: 323.9347567 | BQ206: 0.6713007947 | BR206: 241.6646183 | BS206: 0.7917816656 | BT206: 737.4853953 | BU206: 2.053364421 | BV206: 112.7536675 | BW206: 0.3618490798 | BX206: 400.3783564 | BY206: 1.176334063 | BZ206: 530.2928506 | CA206: 1.55585826 | CB206: 490.5901884 | CC206: 1.428113263 | CD206: 464.7656104 | CE206: 1.656207101 | CF206: 300.1432081 | CG206: 0.9480675009
A207: Tamaulipas | B207: nd | C207: nd | D207: nd | E207: nd | F207: nd | G207: nd | H207: nd | I207: nd | J207: nd | K207: nd | L207: nd | M207: nd | N207: nd | O207: nd | P207: nd | Q207: nd | R207: nd | S207: nd | T207: 112.6 | U207: 4.504540545 | V207: 4.38 | W207: 0.117662861 | X207: 60.8 | Y207: 1.705422008 | Z207: 37.5 | AA207: 1.04178242 | AB207: 52.9 | AC207: 1.079437631 | AD207: 362.4 | AE207: 3.403807681 | AF207: 393.7 | AG207: 4.701120053 | AH207: 334.3 | AI207: 4.259738274 | AJ207: 283.7 | AK207: 2.335825319 | AL207: 345.7 | AM207: 4.128500627 | AN207: 582.576922 | AO207: 4.173092109 | AP207: 1017.561787 | AQ207: 5.576086597 | AR207: 973.1262403 | AS207: 3.237585521 | AT207: 1097.123938 | AU207: 4.552532432 | AV207: 1011.52508 | AW207: 5.536484998 | AX207: 801.967812 | AY207: 3.203986881 | AZ207: 967.8063617 | BA207: 3.71400367 | BB207: 854.093666 | BC207: 4.020317667 | BD207: 877.43561 | BE207: 2.7011329 | BF207: 932.4279434 | BG207: 3.157177554 | BH207: 603.1635742 | BI207: 3.37820185 | BJ207: 1035.875733 | BK207: 3.809303971 | BL207: 842.8219018 | BM207: 3.294591351 | BN207: 1051.421968 | BO207: 4.83231521 | BP207: 1732.418431 | BQ207: 3.590148464 | BR207: 723.8941105 | BS207: 2.371741832 | BT207: 1103.241785 | BU207: 3.071731921 | BV207: 1145.619355 | BW207: 3.676521736 | BX207: 1538.158385 | BY207: 4.519195591 | BZ207: 1511.90518 | CA207: 4.435870029 | CB207: 1623.255702 | CC207: 4.725314635 | CD207: 699.7681387 | CE207: 2.493646119 | CF207: 1271.39661 | CG207: 4.015982287
A208: Tlaxcala | B208: nd | C208: nd | D208: nd | E208: nd | F208: nd | G208: nd | H208: nd | I208: nd | J208: nd | K208: nd | L208: nd | M208: nd | N208: nd | O208: nd | P208: nd | Q208: nd | R208: nd | S208: nd | T208: 12.6 | U208: 0.5040604873 | V208: 5.4 | W208: 0.1450638012 | X208: 1.1 | Y208: 0.03085467448 | Z208: 0 | AA208: 0 | AB208: 2 | AC208: 0.04081049646 | AD208: 19.3 | AE208: 0.1812734223 | AF208: 11.2 | AG208: 0.1337377308 | AH208: 7.3 | AI208: 0.09301851451 | AJ208: 3.9 | AK208: 0.03211039389 | AL208: 8.8 | AM208: 0.1050934496 | AN208: 55.006034 | AO208: 0.3940170607 | AP208: 56.027533 | AQ208: 0.3070225119 | AR208: 84.614862 | AS208: 0.2815131693 | AT208: 134.545704 | AU208: 0.5582994408 | AV208: 202.190724 | AW208: 1.106671433 | AX208: 318.045857 | AY208: 1.270642959 | AZ208: 194.353854 | BA208: 0.7458423045 | BB208: 242.225978 | BC208: 1.140185693 | BD208: 92.695589 | BE208: 0.2853578112 | BF208: 123.709811 | BG208: 0.4188783071 | BH208: 72.191991 | BI208: 0.4043332986 | BJ208: 91.1712334 | BK208: 0.3352708539 | BL208: 251.2297042 | BM208: 0.9820570737 | BN208: 79.50908357 | BO208: 0.365422224 | BP208: 80.73515841 | BQ208: 0.1673101601 | BR208: 120.7129363 | BS208: 0.3954997238 | BT208: 152.5185184 | BU208: 0.4246539677 | BV208: 253.119961 | BW208: 0.812312601 | BX208: 168.048451 | BY208: 0.4937357727 | BZ208: 143.0563367 | CA208: 0.4197216364 | CB208: 345.7207895 | CC208: 1.0063969 | CD208: 359.7388478 | CE208: 1.281940877 | CF208: 50.77741782 | CG208: 0.1603915009
A209: Veracruz de Ignacio de la Llave | B209: nd | C209: nd | D209: nd | E209: nd | F209: nd | G209: nd | H209: nd | I209: nd | J209: nd | K209: nd | L209: nd | M209: nd | N209: nd | O209: nd | P209: nd | Q209: nd | R209: nd | S209: nd | T209: 4.3 | U209: 0.1720206425 | V209: 10.3 | W209: 0.276695769 | X209: 63.2 | Y209: 1.772741298 | Z209: 9.6 | AA209: 0.2666962996 | AB209: 152.8 | AC209: 3.11792193 | AD209: 10.2 | AE209: 0.09580253407 | AF209: 29 | AG209: 0.3462851957 | AH209: 10.4 | AI209: 0.1325195275 | AJ209: 3.7 | AK209: 0.03046370702 | AL209: 38.2 | AM209: 0.4562011106 | AN209: 56.007422 | AO209: 0.4011901639 | AP209: 311.501464 | AQ209: 1.706981493 | AR209: 796.567839 | AS209: 2.650176714 | AT209: 640.317856 | AU209: 2.657008662 | AV209: 473.222924 | AW209: 2.590140048 | AX209: 652.447884 | AY209: 2.606631376 | AZ209: 484.710835 | BA209: 1.860101247 | BB209: 252.740391 | BC209: 1.189678251 | BD209: 577.73277 | BE209: 1.778515682 | BF209: 607.7801862 | BG209: 2.057928417 | BH209: 518.4131771 | BI209: 2.903531361 | BJ209: 1230.772751 | BK209: 4.526013478 | BL209: 1189.113096 | BM209: 4.648243848 | BN209: 1061.320845 | BO209: 4.877810258 | BP209: 1702.750026 | BQ209: 3.528665639 | BR209: 1271.254203 | BS209: 4.165093661 | BT209: 1589.121548 | BU209: 4.424556293 | BV209: 1045.512964 | BW209: 3.355260296 | BX209: 914.9217883 | BY209: 2.68809152 | BZ209: 962.0664319 | CA209: 2.822664878 | CB209: 1080.6123 | CC209: 3.145673914 | CD209: 1000.431266 | CE209: 3.565068777 | CF209: 935.4231359 | CG209: 2.954737109
A210: Yucatán | B210: nd | C210: nd | D210: nd | E210: nd | F210: nd | G210: nd | H210: nd | I210: nd | J210: nd | K210: nd | L210: nd | M210: nd | N210: nd | O210: nd | P210: nd | Q210: nd | R210: nd | S210: nd | T210: 44.3 | U210: 1.772212666 | V210: 5.6 | W210: 0.1504365346 | X210: 1.6 | Y210: 0.04487952652 | Z210: 7 | AA210: 0.1944660518 | AB210: 1.9 | AC210: 0.03876997164 | AD210: 48.1 | AE210: 0.451774695 | AF210: 19.8 | AG210: 0.2364292026 | AH210: 48.6 | AI210: 0.6192739459 | AJ210: 14.2 | AK210: 0.1169147675 | AL210: 31 | AM210: 0.370215561 | AN210: 64.12119901 | AO210: 0.4593104525 | AP210: 82.88950203 | AQ210: 0.4542220897 | AR210: 228.9732465 | AS210: 0.7617927013 | AT210: 212.4142565 | AU210: 0.8814161813 | AV210: 194.4810556 | AW210: 1.064473307 | AX210: 184.3538557 | AY210: 0.7365224969 | AZ210: 91.23024645 | BA210: 0.3501004784 | BB210: 105.304849 | BC210: 0.4956821033 | BD210: 192.9766391 | BE210: 0.5940670096 | BF210: 146.0968711 | BG210: 0.4946803292 | BH210: 79.84036808 | BI210: 0.4471703708 | BJ210: 94.81755758 | BK210: 0.3486797569 | BL210: 165.5354327 | BM210: 0.6470781118 | BN210: 127.9209779 | BO210: 0.5879223626 | BP210: 516.6635074 | BQ210: 1.070699009 | BR210: 86.02851118 | BS210: 0.281860863 | BT210: 213.4897891 | BU210: 0.5944149403 | BV210: 125.0004692 | BW210: 0.4011515168 | BX210: 107.8125667 | BY210: 0.3167593668 | BZ210: 86.01460711 | CA210: 0.2523634569 | CB210: 159.9543715 | CC210: 0.4656288789 | CD210: 151.5521705 | CE210: 0.5400610014 | CF210: 145.1319297 | CG210: 0.4584307164
A211: Zacatecas | B211: nd | C211: nd | D211: nd | E211: nd | F211: nd | G211: nd | H211: nd | I211: nd | J211: nd | K211: nd | L211: nd | M211: nd | N211: nd | O211: nd | P211: nd | Q211: nd | R211: nd | S211: nd | T211: 0 | U211: 0 | V211: 0 | W211: 0 | X211: 0.2 | Y211: 0.005609940815 | Z211: 6.2 | AA211: 0.1722413602 | AB211: 0.7 | AC211: 0.01428367376 | AD211: 13.8 | AE211: 0.1296151932 | AF211: 12.2 | AG211: 0.1456785996 | AH211: 11.1 | AI211: 0.1414391111 | AJ211: 13.6 | AK211: 0.1119747069 | AL211: 13.6 | AM211: 0.1624171493 | AN211: 30.590731 | AO211: 0.2191263219 | AP211: 47.210349 | AQ211: 0.2587056606 | AR211: 62.048525 | AS211: 0.2064350932 | AT211: 209.981412 | AU211: 0.8713210561 | AV211: 119.206368 | AW211: 0.6524645618 | AX211: 233.778092 | AY211: 0.9339800535 | AZ211: -33.800504 | BA211: -0.1297110671 | BB211: 97.132104 | BC211: 0.4572120474 | BD211: 867.519411 | BE211: 2.670606476 | BF211: 1836.462303 | BG211: 6.218215147 | BH211: 301.516316 | BI211: 1.688734234 | BJ211: 381.918385 | BK211: 1.404457287 | BL211: 466.7329255 | BM211: 1.824459303 | BN211: 754.3879178 | BO211: 3.46715241 | BP211: 3973.158215 | BQ211: 8.233708214 | BR211: 758.9138019 | BS211: 2.486479148 | BT211: 107.5754891 | BU211: 0.2995200763 | BV211: 532.6161787 | BW211: 1.709271887 | BX211: 457.6370232 | BY211: 1.344563237 | BZ211: 301.735376 | CA211: 0.8852796649 | CB211: 746.4906225 | CC211: 2.173042152 | CD211: -405.5422478 | CE211: -1.445162756 | CF211: 1317.912972 | CG211: 4.162914315
A212: Total | B212: 1622.6 | C212: 100 | D212: 1701.1 | E212: 100 | F212: 626.5 | G212: 100 | H212: 683.7 | I212: 100 | J212: 1429.8 | K212: 100 | L212: 1729 | M212: 100 | N212: 2424.2 | O212: 100 | P212: 3877.2 | Q212: 100 | R212: 3157.1 | S212: 100 | T212: 2499.7 | U212: 100 | V212: 3722.5 | W212: 100 | X212: 3565.1 | Y212: 100 | Z212: 3599.6 | AA212: 100 | AB212: 4900.7 | AC212: 100 | AD212: 10646.9 | AE212: 100 | AF212: 8374.6 | AG212: 100 | AH212: 7847.9 | AI212: 100 | AJ212: 12145.6 | AK212: 100 | AL212: 8373.5 | AM212: 100 | AN212: 13960.31783 | AO212: 100 | AP212: 18248.6726 | AQ212: 100 | AR212: 30057.15939 | AS212: 100 | AT212: 24099.20092 | AU212: 100 | AV212: 18270.16745 | AW212: 100 | AX212: 25030.30885 | AY212: 100 | AZ212: 26058.30386 | BA212: 100 | BB212: 21244.43233 | BC212: 100 | BD212: 32483.98514 | BE212: 100 | BF212: 29533.59219 | BG212: 100 | BH212: 17854.57474 | BI212: 100 | BJ212: 27193.30724 | BK212: 100 | BL212: 25581.98611 | BM212: 100 | BN212: 21758.14122 | BO212: 100 | BP212: 48254.78523 | BQ212: 100 | BR212: 30521.62342 | BS212: 100 | BT212: 35915.95275 | BU212: 100 | BV212: 31160.41296 | BW212: 100 | BX212: 34036.11007 | BY212: 100 | BZ212: 34083.62216 | CA212: 100 | CB212: 34352.33052 | CC212: 100 | CD212: 28062.04671 | CE212: 100 | CF212: 31658.42176 | CG212: 100
A213: * La diferencia entre el total de IED publicado por la Secretaría de Economía y la desagregación por país de origen, se debe a que esta última sólo incuye las nuevas inversiones reportadas al RNIE más el valor de la importación temporal de maquinaria y equipo de empresas maquiladoras.
A214: nd: Dato no disponible
A215: Fuente: Secretaría de Economía

Sheet Series Históricas
A5: CONTENIDO
A6: * Nota Metodológica
A7: * IED por tipo de inversión (1980-2021), de acuerdo a los datos publicados por la Secretaría de Economía
A8: * IED por tipo de inversión (1980-2021), de acuerdo a los datos publicados por el Banco de México
A9: * IED por país de origen (1980-2021), de acuerdo a los datos publicados por la Secretaría de Economía
A10: * IED por sector económico (1980-2021), de acuerdo a los datos publicados por la Secretaría de Economía
A11: * IED por entidad federativa (1989-2021), de acuerdo a los datos publicados por la Secretaría de Economía
B67: IED por tipo de inversión (1980-2021) (millones de dólares/participación porcentual) Cifras de la Secretaría de Economía
B72: Tipo de inversión | C72: 1980 | E72: 1981 | G72: 1982 | I72: 1983 | K72: 1984 | M72: 1985 | O72: 1986 | Q72: 1987 | S72: 1988 | U72: 1989 | W72: 1990 | Y72: 1991 | AA72: 1992 | AC72: 1993 | AE72: 1994 | AG72: 1995 | AI72: 1996 | AK72: 1997 | AM72: 1998 | AO72: 1999 | AQ72: 2000 | AS72: 2001 | AU72: 2002 | AW72: 2003 | AY72: 2004 | BA72: 2005 | BC72: 2006 | BE72: 2007 | BG72: 2008 | BI72: 2009 | BK72: 2010 | BM72: 2011 | BO72: 2012 | BQ72: 2013 | BS72: 2014 | BU72: 2015 | BW72: 2016 | BY72: 2017 | CA72: 2018 | CC72: 2019 | CE72: 2020 | CG72: 2021
B73: Nuevas invesrsiones | C73: nd | D73: nd | E73: nd | F73: nd | G73: nd | H73: nd | I73: nd | J73: nd | K73: nd | L73: nd | M73: nd | N73: nd | O73: nd | P73: nd | Q73: nd | R73: nd | S73: nd | T73: nd | U73: nd | V73: nd | W73: nd | X73: nd | Y73: nd | Z73: nd | AA73: nd | AB73: nd | AC73: nd | AD73: nd | AE73: 9752.1 | AF73: 64.78810117 | AG73: 7008.3 | AH73: 72.27883088 | AI73: 6431.4 | AJ73: 63.75653833 | AK73: 10465.3 | AL73: 73.80579962 | AM73: 6263 | AN73: 50.44239584 | AO73: 6606.934209 | AP73: 47.32653144 | AQ73: 8704.298465 | AR73: 47.6982554 | AS73: 23110.77998 | AT73: 76.88943483 | AU73: 15637.67775 | AV73: 64.88878117 | AW73: 8917.70597 | AX73: 48.81020381 | AY73: 14731.96373 | AZ73: 58.85649998 | BA73: 14273.83689 | BB73: 54.77653866 | BC73: 6980.535458 | BD73: 32.85818774 | BE73: 18117.44375 | BF73: 55.77346396 | BG73: 13084.59523 | BH73: 44.3041102 | BI73: 11013.00527 | BJ73: 61.6817002 | BK73: 15640.28577 | BL73: 57.51520265 | BM73: 9649.010111 | BN73: 37.71798667 | BO73: 4332.626597 | BP73: 19.91266879 | BQ73: 22037.07087 | BR73: 45.66815657 | BS73: 6052.795625 | BT73: 19.83117196 | BU73: 13427.8052 | BV73: 37.38674368 | BW73: 10985.49765 | BX73: 35.25466003 | BY73: 11960.85615 | BZ73: 35.14166609 | CA73: 11316.93128 | CB73: 33.20342897 | CC73: 13374.17413 | CD73: 38.93236332 | CE73: 6685.351313 | CF73: 23.82346299 | CG73: 13807.04914 | CH73: 43.61256302
B74: Reinversiones | C74: nd | D74: nd | E74: nd | F74: nd | G74: nd | H74: nd | I74: nd | J74: nd | K74: nd | L74: nd | M74: nd | N74: nd | O74: nd | P74: nd | Q74: nd | R74: nd | S74: nd | T74: nd | U74: nd | V74: nd | W74: nd | X74: nd | Y74: nd | Z74: nd | AA74: nd | AB74: nd | AC74: nd | AD74: nd | AE74: 2366.601 | AF74: 15.72251977 | AG74: 1572 | AH74: 16.21253687 | AI74: 2589.736 | AJ74: 25.67288655 | AK74: 2150 | AL74: 15.16272531 | AM74: 2864 | AN74: 23.06674464 | AO74: 2367.168675 | AP74: 16.95640961 | AQ74: 3906.76736 | AR74: 21.40850157 | AS74: 3900.080174 | AT74: 12.97554477 | AU74: 2592.763463 | AV74: 10.75871134 | AW74: 2257.277719 | AX74: 12.35499196 | AY74: 2821.174987 | AZ74: 11.27103546 | BA74: 4408.848962 | BB74: 16.91917089 | BC74: 8102.918738 | BD74: 38.14137565 | BE74: 8509.977966 | BF74: 26.19745677 | BG74: 9328.889029 | BH74: 31.58738351 | BI74: 5365.221117 | BJ74: 30.04955982 | BK74: 5305.815165 | BL74: 19.51147434 | BM74: 10755.93219 | BN74: 42.04494578 | BO74: 10636.39194 | BP74: 48.88465348 | BQ74: 18398.50395 | BR74: 38.12783306 | BS74: 18016.32609 | BT74: 59.02807278 | BU74: 11948.81035 | BV74: 33.26881076 | BW74: 10661.15107 | BX74: 34.21376694 | BY74: 11965.26699 | BZ74: 35.1546254 | CA74: 13302.5142 | CB74: 39.02905077 | CC74: 18109.13167 | CD74: 52.71587515 | CE74: 16049.45327 | CF74: 57.19273949 | CG74: 12609.98278 | CH74: 39.83136895
B75: Cuentas | C75: nd | D75: nd | E75: nd | F75: nd | G75: nd | H75: nd | I75: nd | J75: nd | K75: nd | L75: nd | M75: nd | N75: nd | O75: nd | P75: nd | Q75: nd | R75: nd | S75: nd | T75: nd | U75: nd | V75: nd | W75: nd | X75: nd | Y75: nd | Z75: nd | AA75: nd | AB75: nd | AC75: nd | AD75: nd | AE75: 2933.6 | AF75: 19.48937907 | AG75: 1115.9 | AH75: 11.50863225 | AI75: 1066.3 | AJ75: 10.57057512 | AK75: 1564.209 | AL75: 11.03147507 | AM75: 3289.143 | AN75: 26.49085952 | AO75: 4986.21495 | AP75: 35.71705895 | AQ75: 5637.606776 | AR75: 30.89324303 | AS75: 3046.299236 | AT75: 10.1350204 | AU75: 5868.75971 | AV75: 24.35250749 | AW75: 7095.183763 | AX75: 38.83480423 | AY75: 7477.17014 | AZ75: 29.87246456 | BA75: 7375.618008 | BB75: 28.30429044 | BC75: 6160.97813 | BD75: 29.00043661 | BE75: 5856.563432 | BF75: 18.02907927 | BG75: 7120.10793 | BH75: 24.10850629 | BI75: 1476.34836 | BJ75: 8.26873998 | BK75: 6247.206308 | BL75: 22.973323 | BM75: 5177.04381 | BN75: 20.23706755 | BO75: 6789.122686 | BP75: 31.20267773 | BQ75: 7819.210404 | BR75: 16.20401037 | BS75: 6452.50171 | BT75: 21.14075526 | BU75: 10539.3372 | BV75: 29.34444556 | BW75: 9513.76424 | BX75: 30.53157303 | BY75: 10109.98692 | BZ75: 29.70370851 | CA75: 9464.176689 | CB75: 27.76752026 | CC75: 2869.024725 | CD75: 8.351761528 | CE75: 5327.242127 | CF75: 18.98379752 | CG75: 5241.389844 | CH75: 16.55606803
B76: Total | C76: 1622.6 | D76: 100 | E76: 1701.1 | F76: 100 | G76: 626.5 | H76: 100 | I76: 683.7 | J76: 100 | K76: 1429.8 | L76: 100 | M76: 1729 | N76: 100 | O76: 2424.2 | P76: 100 | Q76: 3877.2 | R76: 100 | S76: 3157.1 | T76: 100 | U76: 2499.7 | V76: 100 | W76: 3722.4 | X76: 100 | Y76: 3565 | Z76: 100 | AA76: 3599.6 | AB76: 100 | AC76: 4900.7 | AD76: 100 | AE76: 15052.301 | AF76: 100 | AG76: 9696.2 | AH76: 100 | AI76: 10087.436 | AJ76: 100 | AK76: 14179.509 | AL76: 100 | AM76: 12416.143 | AN76: 100 | AO76: 13960.31783 | AP76: 100 | AQ76: 18248.6726 | AR76: 100 | AS76: 30057.15939 | AT76: 100 | AU76: 24099.20092 | AV76: 100 | AW76: 18270.16745 | AX76: 100 | AY76: 25030.30885 | AZ76: 100 | BA76: 26058.30386 | BB76: 100 | BC76: 21244.43233 | BD76: 100 | BE76: 32483.98514 | BF76: 100 | BG76: 29533.59219 | BH76: 100 | BI76: 17854.57474 | BJ76: 100 | BK76: 27193.30724 | BL76: 100 | BM76: 25581.98611 | BN76: 100 | BO76: 21758.14122 | BP76: 100 | BQ76: 48254.78523 | BR76: 100 | BS76: 30521.62342 | BT76: 100 | BU76: 35915.95275 | BV76: 100 | BW76: 31160.41296 | BX76: 100 | BY76: 34036.11007 | BZ76: 100 | CA76: 34083.62216 | CB76: 100 | CC76: 34352.33052 | CD76: 100 | CE76: 28062.04671 | CF76: 100 | CG76: 31658.42176 | CH76: 100
B77: nd: Dato no disponible
B78: Fuente: Secretaría de Economía
B79: IED por tipo de inversión (1980-2021) (millones de dólares/participación porcentual) Cifras del Banco de México
B84: Tipo de inversión | C84: 1980 | E84: 1981 | G84: 1982 | I84: 1983 | K84: 1984 | M84: 1985 | O84: 1986 | Q84: 1987 | S84: 1988 | U84: 1989 | W84: 1990 | Y84: 1991 | AA84: 1992 | AC84: 1993 | AE84: 1994 | AG84: 1995 | AI84: 1996 | AK84: 1997 | AM84: 1998 | AO84: 1999 | AQ84: 2000 | AS84: 2001 | AU84: 2002 | AW84: 2003 | AY84: 2004 | BA84: 2005 | BC84: 2006 | BE84: 2007 | BG84: 2008 | BI84: 2009 | BK84: 2010 | BM84: 2011 | BO84: 2012 | BQ84: 2013 | BS84: 2014 | BU84: 2015 | BW84: 2016 | BY84: 2017 | CA84: 2018 | CC84: 2019 | CE84: 2020 | CG84: 2021
B85: Nuevas invesrsiones | C85: 811.662 | D85: 38.83990673 | E85: 1515.099 | F85: 49.25709548 | G85: 1248.9 | H85: 65.72127108 | I85: 1810.699 | J85: 82.61999572 | K85: 1272.999 | L85: 82.60868437 | M85: 1535.201 | N85: 77.39468643 | O85: 1869.901 | P85: 77.88985625 | Q85: 2318.4 | R85: 87.99821149 | S85: 2204.898 | T85: 76.55906467 | U85: 1659.402 | V85: 52.25640057 | W85: 1114.739 | X85: 42.33339334 | Y85: 3422.3 | Z85: 71.87443951 | AA85: 3012.3 | AB85: 68.57359055 | AC85: 3040.965 | AD85: 69.28919766 | AE85: 5672.3 | AF85: 51.69559793 | AG85: 6838.4 | AH85: 71.78442837 | AI85: 5529.415 | AJ85: 60.19753412 | AK85: 9115.347 | AL85: 71.04959049 | AM85: 6603.6215 | AN85: 51.76564559 | AO85: 6606.934209 | AP85: 47.32653144 | AQ85: 8704.298465 | AR85: 47.6982554 | AS85: 23110.77998 | AT85: 76.88943483 | AU85: 15637.67775 | AV85: 64.88878117 | AW85: 8917.70597 | AX85: 48.81020381 | AY85: 14731.96373 | AZ85: 58.85649998 | BA85: 14273.83689 | BB85: 54.77653866 | BC85: 6980.535458 | BD85: 32.85818774 | BE85: 18117.44375 | BF85: 55.77346396 | BG85: 13084.59523 | BH85: 44.3041102 | BI85: 11013.00527 | BJ85: 61.6817002 | BK85: 15640.28577 | BL85: 57.51520265 | BM85: 9649.010111 | BN85: 37.71798667 | BO85: 4332.626597 | BP85: 19.91266879 | BQ85: 22037.07087 | BR85: 45.66815657 | BS85: 6052.795625 | BT85: 19.83117196 | BU85: 13427.8052 | BV85: 37.38674368 | BW85: 10985.49765 | BX85: 35.25466003 | BY85: 11960.85615 | BZ85: 35.14166609 | CA85: 11316.93128 | CB85: 33.20342897 | CC85: 13374.17413 | CD85: 38.93236332 | CE85: 6685.351313 | CF85: 23.82346299 | CG85: 13807.04914 | CH85: 43.61256302
B86: Reinversiones | C86: 938.2 | D86: 44.89504312 | E86: 1356.201 | F86: 44.09119282 | G86: 640.7 | H86: 33.71576458 | I86: 225.3 | J86: 10.2801653 | K86: 428.8 | L86: 27.82610501 | M86: 524.2 | N86: 26.42669893 | O86: 595.298 | P86: 24.79686125 | Q86: 412.499 | R86: 15.65699372 | S86: 691.898 | T86: 24.02426948 | U86: 1074.998 | V86: 33.85287356 | W86: 1069.999 | X86: 40.63434448 | Y86: 1408 | Z86: 29.57052591 | AA86: 1020 | AB86: 23.21981953 | AC86: 1399.236 | AD86: 31.88196503 | AE86: 2366.601 | AF86: 21.56847377 | AG86: 1572 | AH86: 16.50168481 | AI86: 2589.736 | AJ86: 28.19389053 | AK86: 2150 | AL86: 16.75817932 | AM86: 2864 | AN86: 22.45083383 | AO86: 2367.168675 | AP86: 16.95640961 | AQ86: 3906.76736 | AR86: 21.40850157 | AS86: 3900.080174 | AT86: 12.97554477 | AU86: 2592.763463 | AV86: 10.75871134 | AW86: 2257.277719 | AX86: 12.35499196 | AY86: 2821.174987 | AZ86: 11.27103546 | BA86: 4408.848962 | BB86: 16.91917089 | BC86: 8102.918738 | BD86: 38.14137565 | BE86: 8509.977966 | BF86: 26.19745677 | BG86: 9328.889029 | BH86: 31.58738351 | BI86: 5365.221117 | BJ86: 30.04955982 | BK86: 5305.815165 | BL86: 19.51147434 | BM86: 10755.93219 | BN86: 42.04494578 | BO86: 10636.39194 | BP86: 48.88465348 | BQ86: 18398.50395 | BR86: 38.12783306 | BS86: 18016.32609 | BT86: 59.02807278 | BU86: 11948.81035 | BV86: 33.26881076 | BW86: 10661.15107 | BX86: 34.21376694 | BY86: 11965.26699 | BZ86: 35.1546254 | CA86: 13302.5142 | CB86: 39.02905077 | CC86: 18109.13167 | CD86: 52.71587515 | CE86: 16049.45327 | CF86: 57.19273949 | CG86: 12609.98278 | CH86: 39.83136895
B87: Cuentas | C87: 339.901 | D87: 16.26505015 | E87: 204.6 | F87: 6.651711694 | G87: 10.698 | H87: 0.5629643351 | I87: 155.6 | J87: 7.099838976 | K87: -160.8 | L87: -10.43478938 | M87: -75.801 | N87: -3.82138536 | O87: -64.5 | P87: -2.686717494 | Q87: -96.3 | R87: -3.655205213 | S87: -16.8 | T87: -0.5833341435 | U87: 441.1 | V87: 13.89072587 | W87: 448.5 | X87: 17.03226218 | Y87: -68.802 | Z87: -1.444965429 | AA87: 360.499 | AB87: 8.206589921 | AC87: -51.4 | AD87: -1.171162693 | AE87: 2933.6 | AF87: 26.7359283 | AG87: 1115.9 | AH87: 11.71388682 | AI87: 1066.3 | AJ87: 11.60857534 | AK87: 1564.209 | AL87: 12.19223019 | AM87: 3289.143 | AN87: 25.78352058 | AO87: 4986.21495 | AP87: 35.71705895 | AQ87: 5637.606776 | AR87: 30.89324303 | AS87: 3046.299236 | AT87: 10.1350204 | AU87: 5868.75971 | AV87: 24.35250749 | AW87: 7095.183763 | AX87: 38.83480423 | AY87: 7477.17014 | AZ87: 29.87246456 | BA87: 7375.618008 | BB87: 28.30429044 | BC87: 6160.97813 | BD87: 29.00043661 | BE87: 5856.563432 | BF87: 18.02907927 | BG87: 7120.10793 | BH87: 24.10850629 | BI87: 1476.34836 | BJ87: 8.26873998 | BK87: 6247.206308 | BL87: 22.973323 | BM87: 5177.04381 | BN87: 20.23706755 | BO87: 6789.122686 | BP87: 31.20267773 | BQ87: 7819.210404 | BR87: 16.20401037 | BS87: 6452.50171 | BT87: 21.14075526 | BU87: 10539.3372 | BV87: 29.34444556 | BW87: 9513.76424 | BX87: 30.53157303 | BY87: 10109.98692 | BZ87: 29.70370851 | CA87: 9464.176689 | CB87: 27.76752026 | CC87: 2869.024725 | CD87: 8.351761528 | CE87: 5327.242127 | CF87: 18.98379752 | CG87: 5241.389844 | CH87: 16.55606803
B88: Total | C88: 2089.763 | D88: 100 | E88: 3075.9 | F88: 100 | G88: 1900.298 | H88: 100 | I88: 2191.599 | J88: 100 | K88: 1540.999 | L88: 100 | M88: 1983.6 | N88: 100 | O88: 2400.699 | P88: 100 | Q88: 2634.599 | R88: 100 | S88: 2879.996 | T88: 100 | U88: 3175.5 | V88: 100 | W88: 2633.238 | X88: 100 | Y88: 4761.498 | Z88: 100 | AA88: 4392.799 | AB88: 100 | AC88: 4388.801 | AD88: 100 | AE88: 10972.501 | AF88: 100 | AG88: 9526.3 | AH88: 100 | AI88: 9185.451 | AJ88: 100 | AK88: 12829.556 | AL88: 100 | AM88: 12756.7645 | AN88: 100 | AO88: 13960.31783 | AP88: 100 | AQ88: 18248.6726 | AR88: 100 | AS88: 30057.15939 | AT88: 100 | AU88: 24099.20092 | AV88: 100 | AW88: 18270.16745 | AX88: 100 | AY88: 25030.30885 | AZ88: 100 | BA88: 26058.30386 | BB88: 100 | BC88: 21244.43233 | BD88: 100 | BE88: 32483.98514 | BF88: 100 | BG88: 29533.59219 | BH88: 100 | BI88: 17854.57474 | BJ88: 100 | BK88: 27193.30724 | BL88: 100 | BM88: 25581.98611 | BN88: 100 | BO88: 21758.14122 | BP88: 100 | BQ88: 48254.78523 | BR88: 100 | BS88: 30521.62342 | BT88: 100 | BU88: 35915.95275 | BV88: 100 | BW88: 31160.41296 | BX88: 100 | BY88: 34036.11007 | BZ88: 100 | CA88: 34083.62216 | CB88: 100 | CC88: 34352.33052 | CD88: 100 | CE88: 28062.04671 | CF88: 100 | CG88: 31658.42176 | CH88: 100
B89: ND: Dato no disponible
B90: Fuente: Banco de México
B92: IED por país de origen (1980-2021) (millones de dólares/participación porcentual)
B96: País de origen | C96: 1980 | E96: 1981 | G96: 1982 | I96: 1983 | K96: 1984 | M96: 1985 | O96: 1986 | Q96: 1987 | S96: 1988 | U96: 1989 | W96: 1990 | Y96: 1991 | AA96: 1992 | AC96: 1993 | AE96: 1994* | AG96: 1995* | AI96: 1996* | AK96: 1997* | AM96: 1998* | AO96: 1999 | AQ96: 2000 | AS96: 2001 | AU96: 2002 | AW96: 2003 | AY96: 2004 | BA96: 2005 | BC96: 2006 | BE96: 2007 | BG96: 2008 | BI96: 2009 | BK96: 2010 | BM96: 2011 | BO96: 2012 | BQ96: 2013 | BS96: 2014 | BU96: 2015 | BW96: 2016 | BY96: 2017 | CA96: 2018 | CC96: 2019 | CE96: 2020 | CG96: 2021
B97: Estados Unidos | C97: 1078.6 | D97: 66.47356095 | E97: 1072.1 | F97: 63.0239257 | G97: 426.1 | H97: 68.01276935 | I97: 266.6 | J97: 38.99371069 | K97: 912 | L97: 63.78514478 | M97: 1326.8 | N97: 76.73799884 | O97: 1206.4 | P97: 49.76487089 | Q97: 2669.6 | R97: 68.85381203 | S97: 1241.6 | T97: 39.32723069 | U97: 1813.8 | V97: 72.56070728 | W97: 2308 | X97: 62.00300881 | Y97: 2386.5 | Z97: 66.94249649 | AA97: 1651.7 | AB97: 45.88565396 | AC97: 3503.6 | AD97: 71.4918277 | AE97: 4951.067838 | AF97: 46.50243581 | AG97: 5518.342373 | AH97: 65.89380237 | AI97: 5328.541568 | AJ97: 67.89767413 | AK97: 7407.565965 | AL97: 60.98970791 | AM97: 5542.413049 | AN97: 66.18992117 | AO97: 7346.672878 | AP97: 52.6253984 | AQ97: 11924.27147 | AR97: 65.34322652 | AS97: 21542.71981 | AT97: 71.67250748 | AU97: 13600.63335 | AV97: 56.4360345 | AW97: 11133.11562 | AX97: 60.93603493 | AY97: 10010.1989 | AZ97: 39.99231077 | BA97: 14420.25758 | BB97: 55.33843515 | BC97: 14394.43834 | BD97: 67.75628606 | BE97: 16190.80636 | BF97: 49.84242632 | BG97: 11944.22202 | BH97: 40.4428352 | BI97: 8429.90635 | BJ97: 47.21426565 | BK97: 11191.12982 | BL97: 41.15398586 | BM97: 13099.10877 | BN97: 51.20442452 | BO97: 9748.280447 | BP97: 44.80291008 | BQ97: 16948.46119 | BR97: 35.1228611 | BS97: 10497.2339 | BT97: 34.39277705 | BU97: 19404.60095 | BV97: 54.02780508 | BW97: 11083.98806 | BX97: 35.57073545 | BY97: 15416.71775 | BZ97: 45.29518127 | CA97: 11876.64219 | CB97: 34.84559866 | CC97: 13048.66677 | CD97: 37.98480794 | CE97: 10605.47789 | CF97: 37.79295928 | CG97: 14754.86965 | CH97: 46.60645993
B98: España | C98: 80 | D98: 4.930358684 | E98: 101.8 | F98: 5.984363059 | G98: 40.4 | H98: 6.448523543 | I98: 12.7 | J98: 1.857539857 | K98: 11.7 | L98: 0.8182962652 | M98: 14 | N98: 0.8097165992 | O98: 93.7 | P98: 3.865192641 | Q98: 125.8 | R98: 3.244609512 | S98: 34.1 | T98: 1.08010516 | U98: 44 | V98: 1.760211225 | W98: 10.4 | X98: 0.2793896411 | Y98: 43.8 | Z98: 1.228611501 | AA98: 37.2 | AB98: 1.033448161 | AC98: 63.5 | AD98: 1.295733263 | AE98: 145.4702079 | AF98: 1.366315152 | AG98: 49.83656544 | AH98: 0.5950918903 | AI98: 78.90380925 | AJ98: 1.005413031 | AK98: 327.2986252 | AL98: 2.694791737 | AM98: 335.2179597 | AN98: 4.003319516 | AO98: 991.949808 | AP98: 7.105495876 | AQ98: 3731.863039 | AR98: 20.45005202 | AS98: 2851.954939 | AT98: 9.48843802 | AU98: 5415.412608 | AV98: 22.47133681 | AW98: 1959.069333 | AX98: 10.72277711 | AY98: 6527.597825 | AZ98: 26.07877459 | BA98: 2526.343012 | BB98: 9.694963364 | BC98: 1566.026058 | BD98: 7.371465773 | BE98: 4649.476619 | BF98: 14.31313491 | BG98: 5300.485479 | BH98: 17.94731046 | BI98: 2748.96111 | BJ98: 15.39639644 | BK98: 3982.534633 | BL98: 14.64527502 | BM98: 3533.242879 | BN98: 13.81144866 | BO98: -349.7568699 | BP98: -1.60747587 | BQ98: 453.8677865 | BR98: 0.9405653436 | BS98: 4457.037245 | BT98: 14.60288394 | BU98: 3905.698083 | BV98: 10.87454956 | BW98: 3567.187633 | BX98: 11.44781886 | BY98: 3360.995703 | BZ98: 9.874793849 | CA98: 4167.00501 | CB98: 12.22582796 | CC98: 4061.0592 | CD98: 11.82178658 | CE98: 3977.308681 | CF98: 14.17326655 | CG98: 4463.090647 | CH98: 14.097641
B99: Países Bajos | C99: 0 | D99: 0 | E99: 0 | F99: 0 | G99: 0 | H99: 0 | I99: 0 | J99: 0 | K99: 0 | L99: 0 | M99: 0 | N99: 0 | O99: 0 | P99: 0 | Q99: 0 | R99: 0 | S99: 218.2 | T99: 6.911406037 | U99: 47.8 | V99: 1.912229468 | W99: 126.1 | X99: 3.387599398 | Y99: 119.5 | Z99: 3.352033661 | AA99: 83.1 | AB99: 2.308589843 | AC99: 88.3 | AD99: 1.801783419 | AE99: 783.1886612 | AF99: 7.356025333 | AG99: 743.7912887 | AH99: 8.881514205 | AI99: 427.8118158 | AJ99: 5.451290355 | AK99: 368.2726978 | AL99: 3.032149073 | AM99: 1051.67556 | AN99: 12.55956959 | AO99: 326.156134 | AP99: 2.336308799 | AQ99: 1016.995602 | AR99: 5.572983988 | AS99: 1183.454641 | AT99: 3.937346924 | AU99: 454.410053 | AV99: 1.885581412 | AW99: 446.2081335 | AX99: 2.442277197 | AY99: 2905.506308 | AZ99: 11.60795228 | BA99: 1791.464838 | BB99: 6.874832867 | BC99: 216.219137 | BD99: 1.017768485 | BE99: 812.808548 | BF99: 2.502182366 | BG99: 484.354844 | BH99: 1.640013314 | BI99: 246.0837781 | BJ99: 1.378267372 | BK99: 5767.346126 | BL99: 21.20869696 | BM99: 232.2798774 | BN99: 0.9079821887 | BO99: 894.2934638 | BP99: 4.110155617 | BQ99: 1008.361563 | BR99: 2.08966128 | BS99: 570.4255282 | BT99: 1.868922633 | BU99: 299.5494325 | BV99: 0.8340289191 | BW99: 225.6082031 | BX99: 0.724021865 | BY99: -213.056015 | BZ99: -0.6259705195 | CA99: 752.9783845 | CB99: 2.209208813 | CC99: 884.0259993 | CD99: 2.573409099 | CE99: 713.2470353 | CF99: 2.541678597 | CG99: -288.6565172 | CH99: -0.9117842935
B100: Canadá | C100: 17.5 | D100: 1.078515962 | E100: 5.2 | F100: 0.3056845571 | G100: 8.1 | H100: 1.292897047 | I100: 22.1 | J100: 3.232411877 | K100: 32.5 | L100: 2.273045181 | M100: 34.9 | N100: 2.018507808 | O100: 40.6 | P100: 1.674779309 | Q100: 19.3 | R100: 0.4977819045 | S100: 33.9 | T100: 1.073770232 | U100: 37.5 | V100: 1.500180022 | W100: 56 | X100: 1.50440576 | Y100: 74.2 | Z100: 2.081346424 | AA100: 88.5 | AB100: 2.458606512 | AC100: 74.2 | AD100: 1.514069419 | AE100: 739.1758025 | AF100: 6.942638726 | AG100: 170.3231248 | AH100: 2.03380609 | AI100: 547.1498534 | AJ100: 6.971926928 | AK100: 239.5939701 | AL100: 1.972681219 | AM100: 213.2534947 | AN100: 2.546766521 | AO100: 612.503279 | AP100: 4.387459413 | AQ100: 573.488236 | AR100: 3.14262987 | AS100: 807.3953942 | AT100: 2.686199929 | AU100: 330.0011479 | AV100: 1.369344772 | AW100: 381.7802424 | AX100: 2.089637347 | AY100: 841.8361641 | AZ100: 3.363267186 | BA100: 601.1816098 | BB100: 2.307063473 | BC100: 975.1892027 | BD100: 4.590328363 | BE100: 1747.704324 | BF100: 5.380202942 | BG100: 4873.098437 | BH100: 16.50018869 | BI100: 2153.054753 | BJ100: 12.05884085 | BK100: 2131.358433 | BL100: 7.837805142 | BM100: 1589.576192 | BN100: 6.213654346 | BO100: 1680.648268 | BP100: 7.724227225 | BQ100: 5105.137564 | BR100: 10.57954675 | BS100: 2963.751263 | BT100: 9.710332973 | BU100: 1096.284276 | BV100: 3.05236028 | BW100: 2299.05336 | BX100: 7.378122246 | BY100: 2826.097886 | BZ100: 8.303234066 | CA100: 4193.818473 | CB100: 12.30449761 | CC100: 2954.947939 | CD100: 8.601884921 | CE100: 4215.051661 | CF100: 15.02047126 | CG100: 2618.547904 | CH100: 8.271252191
B101: Alemania | C101: 170.8 | D101: 10.52631579 | E101: 146.3 | F101: 8.600317442 | G101: 39.9 | H101: 6.368715084 | I101: 110 | J101: 16.08892789 | K101: 152.5 | L101: 10.66582739 | M101: 55.5 | N101: 3.209947947 | O101: 218.5 | P101: 9.013282732 | Q101: 46.9 | R101: 1.20963582 | S101: 136.7 | T101: 4.329923031 | U101: 84.7 | V101: 3.388406609 | W101: 288.2 | X101: 7.742316785 | Y101: 84.7 | Z101: 2.375876578 | AA101: 84.9 | AB101: 2.358595399 | AC101: 111.4 | AD101: 2.273144653 | AE101: 306.8741051 | AF101: 2.882285972 | AG101: 547.9420918 | AH101: 6.542904637 | AI101: 203.2067124 | AJ101: 2.589313222 | AK101: 482.7232605 | AL101: 3.974470265 | AM101: 134.0166625 | AN101: 1.60048561 | AO101: 685.711369 | AP101: 4.911860727 | AQ101: 297.5913936 | AR101: 1.630756385 | AS101: 731.1770714 | AT101: 2.432621998 | AU101: 716.533482 | AV101: 2.973266559 | AW101: 485.352271 | AX101: 2.656528859 | AY101: 450.08456 | AZ101: 1.798158236 | BA101: 503.003925 | BB101: 1.930301864 | BC101: 508.3063917 | BD101: 2.392656974 | BE101: 740.7249766 | BF101: 2.280277414 | BG101: 697.0412276 | BH101: 2.360164057 | BI101: 263.7780655 | BJ101: 1.477369634 | BK101: 606.1507944 | BL101: 2.22904404 | BM101: 854.0630941 | BN101: 3.338533179 | BO101: 1171.780352 | BP101: 5.385480036 | BQ101: 1983.113042 | BR101: 4.109671263 | BS101: 2148.837358 | BT101: 7.040377007 | BU101: 1237.856501 | BV101: 3.446536724 | BW101: 2771.086844 | BX101: 8.892972144 | BY101: 2643.298496 | BZ101: 7.766159208 | CA101: 2936.482749 | CB101: 8.615524299 | CC101: 3433.193422 | CD101: 9.994062615 | CE101: 875.7169521 | CF101: 3.120645337 | CG101: 2089.233527 | CH101: 6.599297786
B102: Japón | C102: 123.1 | D102: 7.586589424 | E102: 212.1 | F102: 12.4684028 | G102: 65.4 | H102: 10.43894653 | I102: 3.8 | J102: 0.5557993272 | K102: 35.6 | L102: 2.489858721 | M102: 79.3 | N102: 4.586466165 | O102: 142.2 | P102: 5.865852652 | Q102: 132.8 | R102: 3.425152172 | S102: 148.8 | T102: 4.713186152 | U102: 15.7 | V102: 0.628075369 | W102: 120.8 | X102: 3.245218139 | Y102: 73.5 | Z102: 2.06171108 | AA102: 86.9 | AB102: 2.414157129 | AC102: 73.6 | AD102: 1.50182627 | AE102: 629.9515828 | AF102: 5.916760586 | AG102: 155.6440001 | AH102: 1.858524587 | AI102: 145.1189277 | AJ102: 1.849143436 | AK102: 351.6862158 | AL102: 2.895585363 | AM102: 97.26059889 | AN102: 1.161528619 | AO102: 1461.174972 | AP102: 10.46663113 | AQ102: 697.056417 | AR102: 3.819765044 | AS102: 459.127714 | AT102: 1.527515319 | AU102: 415.380256 | AV102: 1.723626677 | AW102: 426.557465 | AX102: 2.334721157 | AY102: 885.99246 | AZ102: 3.539678496 | BA102: 364.423084 | BB102: 1.398491191 | BC102: 548.954849 | BD102: 2.583993964 | BE102: 711.199391 | BF102: 2.18938467 | BG102: 867.635338 | BH102: 2.937791422 | BI102: 779.6376726 | BJ102: 4.366598946 | BK102: 1267.865547 | BL102: 4.662417617 | BM102: 954.3184759 | BN102: 3.73043153 | BO102: 2307.501195 | BP102: 10.60523126 | BQ102: 1684.940266 | BR102: 3.49175788 | BS102: 2500.180111 | BT102: 8.191504353 | BU102: 2244.078789 | BV102: 6.248139384 | BW102: 1963.796843 | BX102: 6.302217 | BY102: 2459.859593 | BZ102: 7.227205425 | CA102: 2279.765836 | CB102: 6.688742838 | CC102: 1489.248939 | CD102: 4.335219521 | CE102: 1226.251043 | CF102: 4.369784768 | CG102: 1595.962414 | CH102: 5.041193858
B103: Reino Unido | C103: 48.6 | D103: 2.9951929 | E103: 40.9 | F103: 2.404326612 | G103: 7.4 | H103: 1.181165204 | I103: 49.2 | J103: 7.196138657 | K103: 44.3 | L103: 3.098335432 | M103: 56.3 | N103: 3.256217467 | O103: 104.3 | P103: 4.302450293 | Q103: 430.9 | R103: 11.11369029 | S103: 767.6 | T103: 24.31345222 | U103: 44.7 | V103: 1.788214586 | W103: 114.4 | X103: 3.073286052 | Y103: 74.2 | Z103: 2.081346424 | AA103: 426.8 | AB103: 11.85687299 | AC103: 189.2 | AD103: 3.860672965 | AE103: 592.2008464 | AF103: 5.562190369 | AG103: 223.6282458 | AH103: 2.670315547 | AI103: 82.96851097 | AJ103: 1.057206526 | AK103: 1829.653182 | AL103: 15.06432932 | AM103: 165.7981652 | AN103: 1.980034217 | AO103: 406.0156685 | AP103: 2.908355478 | AQ103: 955.709413 | AR103: 5.237144826 | AS103: 1112.274298 | AT103: 3.700530326 | AU103: 1516.436366 | AV103: 6.292475716 | AW103: 1153.683726 | AX103: 6.31457664 | AY103: 428.955018 | AZ103: 1.713742409 | BA103: 796.3390641 | BB103: 3.055989632 | BC103: 1192.239686 | BD103: 5.61201009 | BE103: 592.9884005 | BF103: 1.825479226 | BG103: 830.1151346 | BH103: 2.810748957 | BI103: 15.31597581 | BJ103: 0.0857818012 | BK103: 527.8049702 | BL103: 1.940937031 | BM103: 249.2876741 | BN103: 0.974465677 | BO103: 259.6888757 | BP103: 1.193525095 | BQ103: 1353.677251 | BR103: 2.805270491 | BS103: 238.8789765 | BT103: 0.7826548843 | BU103: 750.7078879 | BV103: 2.090179517 | BW103: 500.4207526 | BX103: 1.605950323 | BY103: 494.0280922 | BZ103: 1.451482238 | CA103: 734.5796078 | CB103: 2.155227529 | CC103: 736.6006352 | CD103: 2.144252294 | CE103: 901.2465125 | CF103: 3.211620741 | CG103: 1807.200288 | CH103: 5.708434557
B104: Suiza | C104: 111.4 | D104: 6.865524467 | E104: 74.9 | F104: 4.403033331 | G104: 23.1 | H104: 3.687150838 | I104: 16.2 | J104: 2.36946029 | K104: 59.8 | L104: 4.182403133 | M104: 141.2 | N104: 8.166570272 | O104: 34.1 | P104: 1.406649616 | Q104: 95.2 | R104: 2.455380171 | S104: 86.3 | T104: 2.73352127 | U104: 194.4 | V104: 7.776933232 | W104: 148 | X104: 3.975929508 | Y104: 68.5 | Z104: 1.921458626 | AA104: 315.3 | AB104: 8.75930659 | AC104: 101.7 | AD104: 2.075213745 | AE104: 53.72467172 | AF104: 0.5046038915 | AG104: 199.958646 | AH104: 2.38767996 | AI104: 83.76070802 | AJ104: 1.067300909 | AK104: 26.63356436 | AL104: 0.2192857031 | AM104: 51.56747783 | AN104: 0.6158413785 | AO104: 103.271914 | AP104: 0.7397533153 | AQ104: 67.37873059 | AR104: 0.3692253791 | AS104: 106.1388045 | AT104: 0.3531232049 | AU104: 250.914128 | AV104: 1.041171982 | AW104: 328.761784 | AX104: 1.799445927 | AY104: 1673.329072 | AZ104: 6.685211445 | BA104: 328.787413 | BB104: 1.261737582 | BC104: 579.535091 | BD104: 2.7279387 | BE104: 327.048857 | BF104: 1.006800291 | BG104: 425.8506755 | BH104: 1.441919672 | BI104: 101.8170322 | BJ104: 0.5702573915 | BK104: -152.3514311 | BL104: -0.5602534098 | BM104: 32.925629 | BN104: 0.1287063047 | BO104: 216.220926 | BP104: 0.9937472314 | BQ104: 439.3341854 | BR104: 0.9104468776 | BS104: 296.8035797 | BT104: 0.9724370674 | BU104: 225.7141114 | BV104: 0.6284508528 | BW104: 583.9773561 | BX104: 1.874100182 | BY104: 300.4468321 | BZ104: 0.8827296408 | CA104: 631.113466 | CB104: 1.851661959 | CC104: 721.673595 | CD104: 2.100799521 | CE104: 522.4744961 | CF104: 1.861854559 | CG104: 384.0066483 | CH104: 1.212968388
B105: Francia | C105: 19.5 | D105: 1.201774929 | E105: 10.3 | F105: 0.6054905649 | G105: 6.8 | H105: 1.085395052 | I105: 110 | J105: 16.08892789 | K105: 8.7 | L105: 0.60847671 | M105: 10.7 | N105: 0.6188548294 | O105: 316.9 | P105: 13.07235377 | Q105: 31.2 | R105: 0.8047044259 | S105: 152.4 | T105: 4.827214849 | U105: 16.5 | V105: 0.6600792095 | W105: 181 | X105: 4.862454331 | Y105: 500.5 | Z105: 14.03927069 | AA105: 69 | AB105: 1.916879653 | AC105: 76.9 | AD105: 1.569163589 | AE105: 90.3210267 | AF105: 0.84833169 | AG105: 125.7390985 | AH105: 1.50143408 | AI105: 125.1179843 | AJ105: 1.59428617 | AK105: 90.73643913 | AL105: 0.7470725129 | AM105: 124.293316 | AN105: 1.484365151 | AO105: 402.853827 | AP105: 2.885706699 | AQ105: -2184.996485 | AR105: -11.97345436 | AS105: -69.91787183 | AT105: -0.2326163658 | AU105: 314.0598951 | AV105: 1.303196301 | AW105: 726.4511554 | AX105: 3.976160357 | AY105: 404.891631 | AZ105: 1.617605413 | BA105: 809.5467561 | BB105: 3.106674788 | BC105: -282.613741 | BD105: -1.330295565 | BE105: 361.9176568 | BF105: 1.1141418 | BG105: 866.4343146 | BH105: 2.933724787 | BI105: 491.047222 | BJ105: 2.75025997 | BK105: 565.4408797 | BL105: 2.0793384 | BM105: 572.3106733 | BN105: 2.237162787 | BO105: 719.7520653 | BP105: 3.307966696 | BQ105: 769.759271 | BR105: 1.595197797 | BS105: 1200.700244 | BT105: 3.933933092 | BU105: 972.0252088 | BV105: 2.706388483 | BW105: 454.8182468 | BX105: 1.459602757 | BY105: 546.9575742 | BZ105: 1.606992024 | CA105: 620.7076996 | CB105: 1.821131852 | CC105: 1036.436933 | CD105: 3.017078949 | CE105: 292.6789933 | CF105: 1.042970943 | CG105: 480.0528179 | CH105: 1.516351072
B106: Suecia | C106: 10.9 | D106: 0.6717613706 | E106: 15.3 | F106: 0.8994180236 | G106: -2 | H106: -0.3192338388 | I106: 29.1 | J106: 4.256252742 | K106: 61.1 | L106: 4.273324941 | M106: 5.5 | N106: 0.3181029497 | O106: 24.6 | P106: 1.014767758 | Q106: 36.7 | R106: 0.9465593727 | S106: 32.5 | T106: 1.029425739 | U106: 6.9 | V106: 0.276033124 | W106: 13.3 | X106: 0.3572963679 | Y106: 13.9 | Z106: 0.3899018233 | AA106: 2 | AB106: 0.05556172908 | AC106: 2.4 | AD106: 0.04897259575 | AE106: 9.25636603 | AF106: 0.08693954137 | AG106: 60.98301244 | AH106: 0.7281901516 | AI106: 97.49683486 | AJ106: 1.242330239 | AK106: 7.20380358 | AL106: 0.05931204371 | AM106: 58.06559379 | AN106: 0.6934447219 | AO106: 726.456726 | AP106: 5.203726266 | AQ106: -193.967771 | AR106: -1.062914412 | AS106: 107.166386 | AT106: 0.3565419626 | AU106: -43.207296 | AV106: -0.1792893305 | AW106: 6.128692 | AX106: 0.03354480475 | AY106: 416.46762 | AZ106: 1.663853301 | BA106: 153.150627 | BB106: 0.5877229303 | BC106: 111.883029 | BD106: 0.5266463574 | BE106: 94.251738 | BF106: 0.2901483226 | BG106: 150.118515 | BH106: 0.5082975144 | BI106: 9.16454334 | BJ106: 0.05132882453 | BK106: -192.2483228 | BL106: -0.7069692592 | BM106: 56.442337 | BN106: 0.2206331313 | BO106: 251.09941 | BP106: 1.154048075 | BQ106: 300.0431224 | BR106: 0.6217893645 | BS106: 115.0246876 | BT106: 0.3768629408 | BU106: -33.17970403 | BV106: -0.09238152265 | BW106: 84.80482412 | BX106: 0.272155649 | BY106: -40.05781665 | BZ106: -0.1176921116 | CA106: 161.6670749 | CB106: 0.4743248066 | CC106: 84.22649354 | CD106: 0.2451842197 | CE106: 258.3080935 | CF106: 0.9204891439 | CG106: -92.14232217 | CH106: -0.2910515339
B107: Italia | C107: -29.3 | D107: -1.805743868 | E107: 5.1 | F107: 0.2998060079 | G107: 1.9 | H107: 0.3032721468 | I107: 1 | J107: 0.1462629808 | K107: 0.5 | L107: 0.03496992586 | M107: 0.6 | N107: 0.03470213997 | O107: 4 | P107: 0.1650028876 | Q107: 2.8 | R107: 0.07221706386 | S107: 0 | T107: 0 | U107: 6.6 | V107: 0.2640316838 | W107: 4.6 | X107: 0.1235761874 | Y107: 1.9 | Z107: 0.05329593268 | AA107: 7.5 | AB107: 0.2083564841 | AC107: 4.6 | AD107: 0.09386414186 | AE107: 2.503026719 | AF107: 0.02350944142 | AG107: 10.54482384 | AH107: 0.1259143582 | AI107: 18.6448915 | AJ107: 0.2375780973 | AK107: 29.29672902 | AL107: 0.2412126945 | AM107: 16.92162419 | AN107: 0.2020854384 | AO107: 69.05509376 | AP107: 0.4946527334 | AQ107: 59.54987172 | AR107: 0.3263244019 | AS107: 49.6730703 | AT107: 0.1652620251 | AU107: 49.6212698 | AV107: 0.2059042122 | AW107: 29.64923534 | AX107: 0.162282231 | AY107: 74.84864663 | AZ107: 0.2990320538 | BA107: 114.6980335 | BB107: 0.440159245 | BC107: 100.2285622 | BD107: 0.4717874341 | BE107: 131.2602532 | BF107: 0.404076817 | BG107: 167.2649139 | BH107: 0.5663547894 | BI107: 78.76987545 | BJ107: 0.4411747498 | BK107: 149.1864075 | BL107: 0.54861443 | BM107: 222.3542683 | BN107: 0.8691829762 | BO107: 564.0030526 | BP107: 2.592147219 | BQ107: -419.46687 | BR107: -0.8692751776 | BS107: 284.1098502 | BT107: 0.9308477672 | BU107: 606.6783438 | BV107: 1.689161215 | BW107: 806.2364348 | BX107: 2.587374037 | BY107: 1864.731261 | BZ107: 5.478685012 | CA107: 1530.868541 | CB107: 4.491507779 | CC107: 1502.134807 | CD107: 4.372730421 | CE107: 685.9733698 | CF107: 2.444488019 | CG107: 127.8537191 | CH107: 0.403853736
B108: Resto | C108: -8.5 | D108: -0.5238506101 | E108: 17.1 | F108: 1.005231909 | G108: 9.4 | H108: 1.500399042 | I108: 63 | J108: 9.214567793 | K108: 111.1 | L108: 7.770317527 | M108: 4.2 | N108: 0.2429149798 | O108: 238.9 | P108: 9.854797459 | Q108: 286 | R108: 7.376457237 | S108: 305 | T108: 9.660764626 | U108: 187.1 | V108: 7.484898188 | W108: 351.6 | X108: 9.44551902 | Y108: 123.8 | Z108: 3.472650771 | AA108: 746.7 | AB108: 20.74397155 | AC108: 611.3 | AD108: 12.47372824 | AE108: 2343.190537 | AF108: 22.00819522 | AG108: 567.8253757 | AH108: 6.780328323 | AI108: 709.1390918 | AJ108: 9.036036288 | AK108: 984.9691122 | AL108: 8.109678502 | AM108: 582.983976 | AN108: 6.962249669 | AO108: 828.4961648 | AP108: 5.934651164 | AQ108: 1303.732679 | AR108: 7.14426034 | AS108: 1175.99513 | AT108: 3.912529173 | AU108: 1079.005667 | AV108: 4.477350393 | AW108: 1193.409794 | AX108: 6.532013445 | AY108: 410.6006451 | AZ108: 1.640413818 | BA108: 3649.107913 | BB108: 14.00362791 | BC108: 1334.025723 | BD108: 6.279413364 | BE108: 6123.798019 | BF108: 18.85174492 | BG108: 2926.971292 | BH108: 9.910651144 | BI108: 2537.038364 | BJ108: 14.20945836 | BK108: 1349.089389 | BL108: 4.961108175 | BM108: 4186.076243 | BN108: 16.3633747 | BO108: 4294.630038 | BP108: 19.73803733 | BQ108: 18627.55686 | BR108: 38.60250703 | BS108: 5248.640684 | BT108: 17.19646629 | BU108: 5205.938877 | BV108: 14.4947815 | BW108: 6819.434403 | BX108: 21.88492948 | BY108: 4376.090708 | BZ108: 12.85719989 | CA108: 4197.993133 | CB108: 12.31674589 | CC108: 4400.115786 | CD108: 12.80878391 | CE108: 3788.311987 | CF108: 13.4997708 | CG108: 3718.402987 | CH108: 11.74538331
B109: Total | C109: 1622.6 | D109: 100 | E109: 1701.1 | F109: 100 | G109: 626.5 | H109: 100 | I109: 683.7 | J109: 100 | K109: 1429.8 | L109: 100 | M109: 1729 | N109: 100 | O109: 2424.2 | P109: 100 | Q109: 3877.2 | R109: 100 | S109: 3157.1 | T109: 100 | U109: 2499.7 | V109: 100 | W109: 3722.4 | X109: 100 | Y109: 3565 | Z109: 100 | AA109: 3599.6 | AB109: 100 | AC109: 4900.7 | AD109: 100 | AE109: 10646.9 | AF109: 100 | AG109: 8374.6 | AH109: 100 | AI109: 7847.9 | AJ109: 100 | AK109: 12145.6 | AL109: 100 | AM109: 8373.5 | AN109: 100 | AO109: 13960.31783 | AP109: 100 | AQ109: 18248.6726 | AR109: 100 | AS109: 30057.15939 | AT109: 100 | AU109: 24099.20092 | AV109: 100 | AW109: 18270.16745 | AX109: 100 | AY109: 25030.30885 | AZ109: 100 | BA109: 26058.30386 | BB109: 100 | BC109: 21244.43233 | BD109: 100 | BE109: 32483.98514 | BF109: 100 | BG109: 29533.59219 | BH109: 100 | BI109: 17854.57474 | BJ109: 100 | BK109: 27193.30724 | BL109: 100 | BM109: 25581.98611 | BN109: 100 | BO109: 21758.14122 | BP109: 100 | BQ109: 48254.78523 | BR109: 100 | BS109: 30521.62342 | BT109: 100 | BU109: 35915.95275 | BV109: 100 | BW109: 31160.41296 | BX109: 100 | BY109: 34036.11007 | BZ109: 100 | CA109: 34083.62216 | CB109: 100 | CC109: 34352.33052 | CD109: 100 | CE109: 28062.04671 | CF109: 100 | CG109: 31658.42176 | CH109: 100
B110: * La diferencia entre el total de IED publicado por la Secretaría de Economía y la desagregación por país de origen, se debe a que esta última sólo incuye las nuevas inversiones reportadas al RNIE más el valor de la importación temporal de maquinaria y equipo de empresas maquiladoras.
B111: Fuente: Secretaría de Economía
B114: IED por sector económico (1980-2021) (millones de dólares/participación porcentual)
B118: Sector económico | C118: 1980 | E118: 1981 | G118: 1982 | I118: 1983 | K118: 1984 | M118: 1985 | O118: 1986 | Q118: 1987 | S118: 1988 | U118: 1989 | W118: 1990 | Y118: 1991 | AA118: 1992 | AC118: 1993 | AE118: 1994* | AG118: 1995* | AI118: 1996* | AK118: 1997* | AM118: 1998* | AO118: 1999 | AQ118: 2000 | AS118: 2001 | AU118: 2002 | AW118: 2003 | AY118: 2004 | BA118: 2005 | BC118: 2006 | BE118: 2007 | BG118: 2008 | BI118: 2009 | BK118: 2010 | BM118: 2011 | BO118: 2012 | BQ118: 2013 | BS118: 2014 | BU118: 2015 | BW118: 2016 | BY118: 2017 | CA118: 2018 | CC118: 2019 | CE118: 2020 | CG118: 2021
B119: Agropecuario | C119: 0.9 | D119: 0.05546653519 | E119: -5.4 | F119: -0.3174416554 | G119: 1.8 | H119: 0.2873104549 | I119: 0.2 | J119: 0.02925259617 | K119: 0.8 | L119: 0.05595188138 | M119: 0.4 | N119: 0.02313475998 | O119: 0.2 | P119: 0.008250144378 | Q119: 15.2 | R119: 0.3920354895 | S119: -12 | T119: -0.3800956574 | U119: 19.3 | V119: 0.7720926511 | W119: 61.1 | X119: 1.641414141 | Y119: 44.9 | Z119: 1.259467041 | AA119: 39.3 | AB119: 1.091787976 | AC119: 34.5 | AD119: 0.7039810639 | AE119: 10.26 | AF119: 0.09636607839 | AG119: 9.99 | AH119: 0.1192892795 | AI119: 31.73 | AJ119: 0.4043119815 | AK119: 9.5 | AL119: 0.07821762614 | AM119: 27.645 | AN119: 0.3301486833 | AO119: 87.791614 | AP119: 0.6288654387 | AQ119: 97.800556 | AR119: 0.5359324381 | AS119: 75.181085 | AT119: 0.2501270464 | AU119: 17.335837 | AV119: 0.07193531874 | AW119: 1.264678 | AX119: 0.006922093097 | AY119: 24.942117 | AZ119: 0.09964765975 | BA119: 9.959782 | BB119: 0.03822114461 | BC119: -2.039788 | BD119: -0.009601518029 | BE119: 78.996996 | BF119: 0.2431875142 | BG119: 61.48692755 | BH119: 0.2081931895 | BI119: 22.24872672 | BJ119: 0.1246107905 | BK119: 101.2795637 | BL119: 0.3724429793 | BM119: 139.6361804 | BN119: 0.5458379181 | BO119: 148.2298852 | BP119: 0.6812617111 | BQ119: 214.3823283 | BR119: 0.4442716453 | BS119: 186.1133731 | BT119: 0.6097754714 | BU119: 183.5504721 | BV119: 0.5110555561 | BW119: 103.3460592 | BX119: 0.3316581823 | BY119: 136.5306184 | BZ119: 0.4011346129 | CA119: -18.293792 | CB119: -0.05367326252 | CC119: 105.9638397 | CD119: 0.3084618657 | CE119: 135.9183964 | CF119: 0.4843495481 | CG119: 204.5272673 | CH119: 0.6460437883
B120: Extractivo | C120: 86.7 | D120: 5.343276223 | E120: -189 | F120: -11.11045794 | G120: 6.7 | H120: 1.06943336 | I120: 15 | J120: 2.193944713 | K120: 5.7 | L120: 0.3986571548 | M120: 18 | N120: 1.041064199 | O120: 30.8 | P120: 1.270522234 | Q120: 48.8 | R120: 1.258640256 | S120: 24.9 | T120: 0.7886984891 | U120: 9.5 | V120: 0.3800456055 | W120: 93.9 | X120: 2.522566086 | Y120: 31 | Z120: 0.8695652174 | AA120: 8.6 | AB120: 0.238915435 | AC120: 55.1 | AD120: 1.124329177 | AE120: 92.91 | AF120: 0.8726483765 | AG120: 71.19 | AH120: 0.8500704511 | AI120: 79.895 | AJ120: 1.018043043 | AK120: 124.07 | AL120: 1.021522197 | AM120: 46.93 | AN120: 0.5604585896 | AO120: 229.078375 | AP120: 1.640925212 | AQ120: 165.423991 | AR120: 0.9064987608 | AS120: 49.962199 | AT120: 0.1662239547 | AU120: 277.995428 | AV120: 1.153546248 | AW120: 145.992586 | AX120: 0.7990763434 | AY120: 347.821528 | AZ120: 1.389601423 | BA120: 224.533319 | BB120: 0.8616574595 | BC120: 404.800328 | BD120: 1.905441961 | BE120: 1853.92545 | BF120: 5.707198306 | BG120: 4539.147168 | BH120: 15.36943809 | BI120: 1524.547492 | BJ120: 8.53869394 | BK120: 1389.843677 | BL120: 5.110976995 | BM120: 915.1439038 | BN120: 3.577298103 | BO120: 2910.623174 | BP120: 13.37716831 | BQ120: 5744.883644 | BR120: 11.90531388 | BS120: 2679.320161 | BT120: 8.778432666 | BU120: 1749.727379 | BV120: 4.871727587 | BW120: 1066.840602 | BX120: 3.423704954 | BY120: 1728.608038 | BZ120: 5.078747349 | CA120: 1732.562603 | CB120: 5.083270183 | CC120: 2006.761059 | CD120: 5.841702814 | CE120: 1413.487322 | CF120: 5.03700723 | CG120: 4780.105418 | CH120: 15.099001
B121: Industrial | C121: 1285.7 | D121: 79.23702699 | E121: 1405.6 | F121: 82.62888719 | G121: 381.3 | H121: 60.86193136 | I121: 597 | J121: 87.31899956 | K121: 1269.6 | L121: 88.79563575 | M121: 1165.8 | N121: 67.42625795 | O121: 1918.9 | P121: 79.15601023 | Q121: 2400.5 | R121: 61.91323636 | S121: 1020 | T121: 32.30813088 | U121: 982.4 | V121: 39.30071609 | W121: 1192.9 | X121: 32.04652912 | Y121: 963.6 | Z121: 27.02945302 | AA121: 1100.8 | AB121: 30.58117569 | AC121: 2320.5 | AD121: 47.35037852 | AE121: 6143.365 | AF121: 57.70097399 | AG121: 4422.06 | AH121: 52.80323836 | AI121: 4362.64 | AJ121: 55.58990303 | AK121: 6707.632 | AL121: 55.22684758 | AM121: 4912.925 | AN121: 58.67229952 | AO121: 9671.253102 | AP121: 69.27674009 | AQ121: 10656.60406 | AR121: 58.39659846 | AS121: 7645.211708 | AT121: 25.43557629 | AU121: 10261.74589 | AV121: 42.58127031 | AW121: 9856.36546 | AX121: 53.94786603 | AY121: 14248.61005 | AZ121: 56.92542644 | BA121: 14440.81481 | BB121: 55.41732451 | BC121: 11799.5825 | BD121: 55.54199954 | BE121: 17262.66287 | BF121: 53.1420723 | BG121: 10745.58906 | BH121: 36.38429418 | BI121: 7470.994936 | BJ121: 41.84358935 | BK121: 15518.2174 | BL121: 57.06631142 | BM121: 13317.83872 | BN121: 52.05944002 | BO121: 12531.10345 | BP121: 57.59271123 | BQ121: 33862.25897 | BR121: 70.17388805 | BS121: 20592.69012 | BT121: 67.46918353 | BU121: 21105.44164 | BV121: 58.76341853 | BW121: 20485.55472 | BX121: 65.74224399 | BY121: 20216.88658 | BZ121: 59.39834648 | CA121: 22484.81959 | CB121: 65.96957179 | CC121: 17500.67537 | CD121: 50.94465237 | CE121: 11742.23787 | CF121: 41.8438398 | CG121: 12497.20179 | CH121: 39.4751257
B122: Comercio | C122: 118 | D122: 7.272279058 | E122: 170.1 | F122: 9.999412145 | G122: 1.2 | H122: 0.1915403033 | I122: 58.6 | J122: 8.571010677 | K122: 31.5 | L122: 2.203105329 | M122: 109.5 | N122: 6.333140544 | O122: 151.2 | P122: 6.237109149 | Q122: -21.2 | R122: -0.5467863407 | S122: 246.8 | T122: 7.817300687 | U122: 386.3 | V122: 15.45385446 | W122: 171.4 | X122: 4.6045562 | Y122: 387.5 | Z122: 10.86956522 | AA122: 750.9 | AB122: 20.86065118 | AC122: 759.9 | AD122: 15.50594813 | AE122: 1189.02 | AF122: 11.16775775 | AG122: 911.25 | AH122: 10.88111671 | AI122: 676.98 | AJ122: 8.626256706 | AK122: 1768.1895 | AL122: 14.55827213 | AM122: 986.575 | AN122: 11.78211023 | AO122: 1470.067323 | AP122: 10.53032847 | AQ122: 2284.389071 | AR122: 12.51811088 | AS122: 2393.281529 | AT122: 7.962434167 | AU122: 1529.837139 | AV122: 6.348082428 | AW122: 1416.429091 | AX122: 7.752688061 | AY122: 1357.643089 | AZ122: 5.423996552 | BA122: 2372.13392 | BB122: 9.103178524 | BC122: 321.5479354 | BD122: 1.513563321 | BE122: 1162.338734 | BF122: 3.578190081 | BG122: 1476.996816 | BH122: 5.001074053 | BI122: 1850.265897 | BJ122: 10.36297937 | BK122: 2687.067935 | BL122: 9.881357612 | BM122: 2718.37773 | BN122: 10.62614028 | BO122: 2820.092565 | BP122: 12.96109137 | BQ122: 1444.791078 | BR122: 2.994088712 | BS122: 1953.285075 | BT122: 6.399676217 | BU122: 3032.688769 | BV122: 8.443848866 | BW122: 1966.513795 | BX122: 6.310936244 | BY122: 3097.160445 | BZ122: 9.099631065 | CA122: 2964.731841 | CB122: 8.698406019 | CC122: 3276.75792 | CD122: 9.538677201 | CE122: 2122.786317 | CF122: 7.564616861 | CG122: 2789.440502 | CH122: 8.811053572
B123: Servicios | C123: 131.3 | D123: 8.091951189 | E123: 319.8 | F123: 18.79960026 | G123: 235.5 | H123: 37.58978452 | I123: 12.9 | J123: 1.886792453 | K123: 122.2 | L123: 8.546649881 | M123: 435.3 | N123: 25.17640254 | O123: 323.1 | P123: 13.32810824 | Q123: 1433.9 | R123: 36.98287424 | S123: 1877.4 | T123: 59.4659656 | U123: 1102.2 | V123: 44.09329119 | W123: 2203.1 | X123: 59.18493445 | Y123: 2138 | Z123: 59.97194951 | AA123: 1700 | AB123: 47.22746972 | AC123: 1730.7 | AD123: 35.31536311 | AE123: 3211.345 | AF123: 30.1622538 | AG123: 2960.11 | AH123: 35.3462852 | AI123: 2696.655 | AJ123: 34.36148524 | AK123: 3536.2085 | AL123: 29.11514046 | AM123: 2399.425 | AN123: 28.65498298 | AO123: 2502.12742 | AP123: 17.92314079 | AQ123: 5044.45492 | AR123: 27.64285946 | AS123: 19893.52287 | AT123: 66.18563854 | AU123: 12012.28663 | AV123: 49.84516569 | AW123: 6850.115637 | AX123: 37.49344747 | AY123: 9051.292066 | AZ123: 36.16132793 | BA123: 9010.862026 | BB123: 34.57961836 | BC123: 8720.541347 | BD123: 41.0485967 | BE123: 12126.06109 | BF123: 37.32935179 | BG123: 12710.37221 | BH123: 43.03700049 | BI123: 6986.517691 | BJ123: 39.13012655 | BK123: 7496.898669 | BL123: 27.56891099 | BM123: 8490.989581 | BN123: 33.19128368 | BO123: 3348.092155 | BP123: 15.38776737 | BQ123: 6988.469213 | BR123: 14.48243771 | BS123: 5110.214691 | BT123: 16.74293212 | BU123: 9844.544498 | BV123: 27.40994946 | BW123: 7538.157787 | BX123: 24.19145663 | BY123: 8856.924381 | BZ123: 26.0221405 | CA123: 6919.801918 | CB123: 20.30242527 | CC123: 11462.17234 | CD123: 33.36650574 | CE123: 12647.61681 | CF123: 45.07018656 | CG123: 11387.14679 | CH123: 35.96877594
B124: Total | C124: 1622.6 | D124: 100 | E124: 1701.1 | F124: 100 | G124: 626.5 | H124: 100 | I124: 683.7 | J124: 100 | K124: 1429.8 | L124: 100 | M124: 1729 | N124: 100 | O124: 2424.2 | P124: 100 | Q124: 3877.2 | R124: 100 | S124: 3157.1 | T124: 100 | U124: 2499.7 | V124: 100 | W124: 3722.4 | X124: 100 | Y124: 3565 | Z124: 100 | AA124: 3599.6 | AB124: 100 | AC124: 4900.7 | AD124: 100 | AE124: 10646.9 | AF124: 100 | AG124: 8374.6 | AH124: 100 | AI124: 7847.9 | AJ124: 100 | AK124: 12145.6 | AL124: 100 | AM124: 8373.5 | AN124: 100 | AO124: 13960.31783 | AP124: 100 | AQ124: 18248.6726 | AR124: 100 | AS124: 30057.15939 | AT124: 100 | AU124: 24099.20092 | AV124: 100 | AW124: 18270.16745 | AX124: 100 | AY124: 25030.30885 | AZ124: 100 | BA124: 26058.30386 | BB124: 100 | BC124: 21244.43233 | BD124: 100 | BE124: 32483.98514 | BF124: 100 | BG124: 29533.59219 | BH124: 100 | BI124: 17854.57474 | BJ124: 100 | BK124: 27193.30724 | BL124: 100 | BM124: 25581.98611 | BN124: 100 | BO124: 21758.14122 | BP124: 100 | BQ124: 48254.78523 | BR124: 100 | BS124: 30521.62342 | BT124: 100 | BU124: 35915.95275 | BV124: 100 | BW124: 31160.41296 | BX124: 100 | BY124: 34036.11007 | BZ124: 100 | CA124: 34083.62216 | CB124: 100 | CC124: 34352.33052 | CD124: 100 | CE124: 28062.04671 | CF124: 100 | CG124: 31658.42176 | CH124: 100
B125: * La diferencia entre el total de IED publicado por la Secretaría de Economía y la desagregación por país de origen, se debe a que esta última sólo incuye las nuevas inversiones reportadas al RNIE más el valor de la importación temporal de maquinaria y equipo de empresas maquiladoras.
B126: Fuente: Secretaría de Economía
B128: IED por entidad federativa (1980-2021) (millones de dólares/participación porcentual)
B132: Entidad federativa | C132: 1980 | E132: 1981 | G132: 1982 | I132: 1983 | K132: 1984 | M132: 1985 | O132: 1986 | Q132: 1987 | S132: 1988 | U132: 1989 | W132: 1990 | Y132: 1991 | AA132: 1992 | AC132: 1993 | AE132: 1994* | AG132: 1995* | AI132: 1996* | AK132: 1997* | AM132: 1998* | AO132: 1999 | AQ132: 2000 | AS132: 2001 | AU132: 2002 | AW132: 2003 | AY132: 2004 | BA132: 2005 | BC132: 2006 | BE132: 2007 | BG132: 2008 | BI132: 2009 | BK132: 2010 | BM132: 2011 | BO132: 2012 | BQ132: 2013 | BS132: 2014 | BU132: 2015 | BW132: 2016 | BY132: 2017 | CA132: 2018 | CC132: 2019 | CE132: 2020 | CG132: 2021
B133: Aguascalientes | C133: nd | D133: nd | E133: nd | F133: nd | G133: nd | H133: nd | I133: nd | J133: nd | K133: nd | L133: nd | M133: nd | N133: nd | O133: nd | P133: nd | Q133: nd | R133: nd | S133: nd | T133: nd | U133: 0.4 | V133: 0.01600192023 | W133: 0 | X133: 0 | Y133: 61.8 | Z133: 1.733471712 | AA133: 31.5 | AB133: 0.875097233 | AC133: 9.3 | AD133: 0.1897688085 | AE133: 28.5 | AF133: 0.2676835511 | AG133: 27.1 | AH133: 0.323597545 | AI133: 34.8 | AJ133: 0.4434307267 | AK133: 18.1 | AL133: 0.1490251614 | AM133: 69.1 | AN133: 0.8252224279 | AO133: 818.846072 | AP133: 5.865525998 | AQ133: 288.2483511 | AR133: 1.579557907 | AS133: 254.5625875 | AT133: 0.8469282947 | AU133: 115.1542767 | AV133: 0.477834419 | AW133: 119.8299376 | AX133: 0.6558776098 | AY133: 441.5118119 | AZ133: 1.763908766 | BA133: 133.876424 | BB133: 0.513757245 | BC133: 140.5939138 | BD133: 0.6617918127 | BE133: 410.573807 | BF133: 1.26392684 | BG133: 337.4852046 | BH133: 1.142716411 | BI133: 342.2060574 | BJ133: 1.91662956 | BK133: 333.1545323 | BL133: 1.225134293 | BM133: 187.7217372 | BN133: 0.7338043901 | BO133: 355.2095029 | BP133: 1.632536067 | BQ133: 69.13911588 | BR133: 0.1432792946 | BS133: 978.7988459 | BT133: 3.206902963 | BU133: 812.5841424 | BV133: 2.262460216 | BW133: 594.8797316 | BX133: 1.909088087 | BY133: 1576.337274 | BZ133: 4.631367305 | CA133: 1196.980198 | CB133: 3.511892582 | CC133: 452.1233792 | CD133: 1.316135972 | CE133: 743.6072165 | CF133: 2.649868073 | CG133: 41.9770759 | CH133: 0.1325937099
B134: Baja California | C134: nd | D134: nd | E134: nd | F134: nd | G134: nd | H134: nd | I134: nd | J134: nd | K134: nd | L134: nd | M134: nd | N134: nd | O134: nd | P134: nd | Q134: nd | R134: nd | S134: nd | T134: nd | U134: 84.1 | V134: 3.364403728 | W134: 36.6 | X134: 0.9832102082 | Y134: 62.8 | Z134: 1.761521416 | AA134: 98.3 | AB134: 2.730858984 | AC134: 189.6 | AD134: 3.868835064 | AE134: 227.1 | AF134: 2.133015244 | AG134: 538.1 | AH134: 6.425381511 | AI134: 427.7 | AJ134: 5.449865569 | AK134: 679.4 | AL134: 5.593795284 | AM134: 726.2 | AN134: 8.672598077 | AO134: 1238.714183 | AP134: 8.873108745 | AQ134: 1054.173063 | AR134: 5.776710923 | AS134: 1326.086279 | AT134: 4.411881583 | AU134: 1535.124825 | AV134: 6.370023759 | AW134: 1099.407609 | AX134: 6.017501546 | AY134: 1365.615627 | AZ134: 5.45584809 | BA134: 1343.459457 | BB134: 5.155590573 | BC134: 1340.591468 | BD134: 6.310319086 | BE134: 1790.829226 | BF134: 5.512960366 | BG134: 1457.864111 | BH134: 4.936291196 | BI134: 829.5231895 | BJ134: 4.645998023 | BK134: 1414.82295 | BL134: 5.202835158 | BM134: 766.3223272 | BN134: 2.995554465 | BO134: 1018.515251 | BP134: 4.681076568 | BQ134: 1290.826481 | BR134: 2.675022746 | BS134: 1214.614855 | BT134: 3.979522446 | BU134: 1167.269082 | BV134: 3.25000172 | BW134: 1566.921937 | BX134: 5.028566018 | BY134: 1678.434623 | BZ134: 4.931335043 | CA134: 1638.506347 | CB134: 4.807312848 | CC134: 1184.563768 | CD134: 3.448277745 | CE134: 1196.212694 | CF134: 4.262742153 | CG134: 2225.030953 | CH134: 7.028243447
B135: Baja California Sur | C135: nd | D135: nd | E135: nd | F135: nd | G135: nd | H135: nd | I135: nd | J135: nd | K135: nd | L135: nd | M135: nd | N135: nd | O135: nd | P135: nd | Q135: nd | R135: nd | S135: nd | T135: nd | U135: 324.8 | V135: 12.99355923 | W135: 31.4 | X135: 0.8435191404 | Y135: 13.1 | Z135: 0.3674511234 | AA135: 46.8 | AB135: 1.30014446 | AC135: 147.6 | AD135: 3.011814639 | AE135: 8.3 | AF135: 0.077956964 | AG135: 20.9 | AH135: 0.2495641583 | AI135: 34.6 | AJ135: 0.4408822742 | AK135: 42.5 | AL135: 0.349920959 | AM135: 46.8 | AN135: 0.5589060727 | AO135: 135.1224975 | AP135: 0.9679041632 | AQ135: 173.5108817 | AR135: 0.9508137138 | AS135: 243.1471944 | AT135: 0.8089493462 | AU135: 330.8221803 | AV135: 1.372751658 | AW135: 155.0360055 | AX135: 0.8485746283 | AY135: 227.8124783 | AZ135: 0.9101464932 | BA135: 744.905623 | BB135: 2.858611317 | BC135: 599.5178098 | BD135: 2.821999668 | BE135: 910.1209691 | BF135: 2.801752818 | BG135: 837.646718 | BH135: 2.836250709 | BI135: 455.9895744 | BJ135: 2.553908905 | BK135: 521.6034337 | BL135: 1.918131653 | BM135: 711.1604288 | BN135: 2.779926569 | BO135: 738.6066266 | BP135: 3.394621898 | BQ135: 421.3367491 | BR135: 0.8731501904 | BS135: 238.813583 | BT135: 0.7824406315 | BU135: 372.743819 | BV135: 1.037822445 | BW135: 522.5922628 | BX135: 1.677103136 | BY135: 595.5750429 | BZ135: 1.749832874 | CA135: 491.9284237 | CB135: 1.443298548 | CC135: 640.0168738 | CD135: 1.863095936 | CE135: 678.1247979 | CF135: 2.416519382 | CG135: 1309.385511 | CH135: 4.13597848
B136: Campeche | C136: nd | D136: nd | E136: nd | F136: nd | G136: nd | H136: nd | I136: nd | J136: nd | K136: nd | L136: nd | M136: nd | N136: nd | O136: nd | P136: nd | Q136: nd | R136: nd | S136: nd | T136: nd | U136: 0 | V136: 0 | W136: 0 | X136: 0 | Y136: 0 | Z136: 0 | AA136: 0.3 | AB136: 0.008334259362 | AC136: 5.2 | AD136: 0.1061072908 | AE136: 2.1 | AF136: 0.01972405113 | AG136: 0.5 | AH136: 0.005970434409 | AI136: 0 | AJ136: 0 | AK136: 1.8 | AL136: 0.01482018179 | AM136: 0.1 | AN136: 0.001194243745 | AO136: 30.505075 | AP136: 0.2185127542 | AQ136: 25.308216 | AR136: 0.1386852433 | AS136: 51.634708 | AT136: 0.1717883827 | AU136: 190.918863 | AV136: 0.7922207197 | AW136: 65.706121 | AX136: 0.3596361181 | AY136: 149.047489 | AZ136: 0.5954680379 | BA136: 129.300058 | BB136: 0.4961952194 | BC136: 30.41914107 | BD136: 0.1431864152 | BE136: 134.523132 | BF136: 0.4141213937 | BG136: 150.0526385 | BH136: 0.5080744582 | BI136: 26.16739962 | BJ136: 0.1465585151 | BK136: 73.20354795 | BL136: 0.2691969289 | BM136: 24.79756059 | BN136: 0.09693368014 | BO136: 209.6683149 | BP136: 0.9636315562 | BQ136: 278.4169567 | BR136: 0.5769727404 | BS136: 218.5742756 | BT136: 0.7161292589 | BU136: 543.0011228 | BV136: 1.511866124 | BW136: 142.1458303 | BX136: 0.456174411 | BY136: 328.3481086 | BZ136: 0.9647051557 | CA136: 123.4900957 | CB136: 0.3623150589 | CC136: 151.8657313 | CD136: 0.4420827611 | CE136: 140.254007 | CF136: 0.4997996347 | CG136: 218.3977244 | CH136: 0.6898566393
B137: Chiapas | C137: nd | D137: nd | E137: nd | F137: nd | G137: nd | H137: nd | I137: nd | J137: nd | K137: nd | L137: nd | M137: nd | N137: nd | O137: nd | P137: nd | Q137: nd | R137: nd | S137: nd | T137: nd | U137: 0.9 | V137: 0.03600432052 | W137: 0 | X137: 0 | Y137: 2.3 | Z137: 0.06451431937 | AA137: 19.8 | AB137: 0.5500611179 | AC137: 4.2 | AD137: 0.08570204257 | AE137: 0.4 | AF137: 0.00375696212 | AG137: 0.4 | AH137: 0.004776347527 | AI137: 1 | AJ137: 0.01274226226 | AK137: 0.4 | AL137: 0.003293373732 | AM137: 0.4 | AN137: 0.004776974981 | AO137: 34.01038882 | AP137: 0.2436218804 | AQ137: 43.472612 | AR137: 0.2382234201 | AS137: 199.301561 | AT137: 0.6630751709 | AU137: 207.626804 | AV137: 0.8615505744 | AW137: 114.2917081 | AX137: 0.6255646447 | AY137: 232.204182 | AZ137: 0.9276920368 | BA137: 142.076015 | BB137: 0.5452235717 | BC137: 89.256227 | BD137: 0.4201393835 | BE137: 186.876594 | BF137: 0.5752883865 | BG137: 63.203183 | BH137: 0.2140043873 | BI137: 91.88158019 | BJ137: 0.5146108575 | BK137: 157.6758362 | BL137: 0.5798332463 | BM137: 92.80881925 | BN137: 0.3627897335 | BO137: 121.0916849 | BP137: 0.5565350628 | BQ137: 182.4139759 | BR137: 0.3780225629 | BS137: 36.56443398 | BT137: 0.1197984572 | BU137: 270.0755851 | BV137: 0.7519655317 | BW137: 138.7924341 | BX137: 0.4454126917 | BY137: 217.0837728 | BZ137: 0.6378042978 | CA137: 70.22050105 | CB137: 0.2060241741 | CC137: 256.6473096 | CD137: 0.7471030514 | CE137: 133.0748327 | CF137: 0.4742164178 | CG137: 158.921326 | CH137: 0.5019875191
B138: Chihuahua | C138: nd | D138: nd | E138: nd | F138: nd | G138: nd | H138: nd | I138: nd | J138: nd | K138: nd | L138: nd | M138: nd | N138: nd | O138: nd | P138: nd | Q138: nd | R138: nd | S138: nd | T138: nd | U138: 77.8 | V138: 3.112373485 | W138: 24.1 | X138: 0.6474143721 | Y138: 17.8 | Z138: 0.4992847325 | AA138: 95.3 | AB138: 2.647516391 | AC138: 27.2 | AD138: 0.5550227519 | AE138: 308.4 | AF138: 2.896617795 | AG138: 528.7 | AH138: 6.313137344 | AI138: 536.7 | AJ138: 6.838772156 | AK138: 504 | AL138: 4.149650902 | AM138: 620 | AN138: 7.40431122 | AO138: 635.015674 | AP138: 4.548719317 | AQ138: 1387.364799 | AR138: 7.602551866 | AS138: 1076.448629 | AT138: 3.581338527 | AU138: 1362.675931 | AV138: 5.654444457 | AW138: 1120.02145 | AX138: 6.130329416 | AY138: 1459.538949 | AZ138: 5.831086453 | BA138: 1692.013764 | BB138: 6.493184566 | BC138: 1948.818072 | BD138: 9.173312057 | BE138: 2267.159666 | BF138: 6.979315056 | BG138: 2625.23309 | BH138: 8.888973183 | BI138: 1424.710974 | BJ138: 7.979529026 | BK138: 1847.780537 | BL138: 6.794982754 | BM138: 1218.112005 | BN138: 4.761600604 | BO138: 1186.894459 | BP138: 5.454944181 | BQ138: 2311.444191 | BR138: 4.790082848 | BS138: 1933.601542 | BT138: 6.335185764 | BU138: 2480.429492 | BV138: 6.906205466 | BW138: 1983.085243 | BX138: 6.364117337 | BY138: 1822.019987 | BZ138: 5.353196895 | CA138: 1241.943411 | CB138: 3.64381287 | CC138: 1402.643371 | CD138: 4.083109791 | CE138: 634.6819601 | CF138: 2.261709442 | CG138: 1894.179459 | CH138: 5.983177157
B139: Ciudad de México | C139: nd | D139: nd | E139: nd | F139: nd | G139: nd | H139: nd | I139: nd | J139: nd | K139: nd | L139: nd | M139: nd | N139: nd | O139: nd | P139: nd | Q139: nd | R139: nd | S139: nd | T139: nd | U139: 1292.3 | V139: 51.69820378 | W139: 2226.02 | X139: 59.79905977 | Y139: 2389.4 | Z139: 67.02196292 | AA139: 2028.6 | AB139: 56.35626181 | AC139: 3088.89 | AD139: 63.0295672 | AE139: 7602.9 | AF139: 71.40951826 | AG139: 4486.4 | AH139: 53.57151386 | AI139: 4777 | AJ139: 60.86978682 | AK139: 6643.8 | AL139: 54.701291 | AM139: 4000.6 | AN139: 47.77691527 | AO139: 3640.473033 | AP139: 26.07729334 | AQ139: 5311.350189 | AR139: 29.10540566 | AS139: 10219.45417 | AT139: 34.00006645 | AU139: 6504.404235 | AV139: 26.99012409 | AW139: 3521.352366 | AX139: 19.27378266 | AY139: 5573.005617 | AZ139: 22.26502937 | BA139: 6234.294464 | BB139: 23.9244062 | BC139: 5671.130318 | BD139: 26.69466631 | BE139: 6931.510735 | BF139: 21.33824007 | BG139: 7724.060544 | BH139: 26.15347464 | BI139: 5252.792046 | BJ139: 29.41986646 | BK139: 4064.556146 | BL139: 14.94689892 | BM139: 7507.591731 | BN139: 29.34718086 | BO139: 1332.022629 | BP139: 6.12195047 | BQ139: 5813.97605 | BR139: 12.04849638 | BS139: 6123.571003 | BT139: 20.06305798 | BU139: 5907.411935 | BV139: 16.44787756 | BW139: 6743.540291 | BX139: 21.64137009 | BY139: 5103.023742 | BZ139: 14.99296991 | CA139: 5825.560017 | CB139: 17.09196279 | CC139: 8335.695829 | CD139: 24.26529933 | CE139: 6910.018965 | CF139: 24.62407335 | CG139: 5325.927689 | CH139: 16.82309917
B140: Coahuila de Zaragoza | C140: nd | D140: nd | E140: nd | F140: nd | G140: nd | H140: nd | I140: nd | J140: nd | K140: nd | L140: nd | M140: nd | N140: nd | O140: nd | P140: nd | Q140: nd | R140: nd | S140: nd | T140: nd | U140: 17.2 | V140: 0.6880825699 | W140: 3.2 | X140: 0.08596373405 | Y140: 24 | Z140: 0.6731928978 | AA140: 7.7 | AB140: 0.213912657 | AC140: 30.8 | AD140: 0.6284816455 | AE140: 102.3 | AF140: 0.9608430623 | AG140: 120.4 | AH140: 1.437680606 | AI140: 147.6 | AJ140: 1.88075791 | AK140: 114.4 | AL140: 0.9419048874 | AM140: 134.6 | AN140: 1.607452081 | AO140: 481.6971304 | AP140: 3.450473951 | AQ140: 511.216768 | AR140: 2.801391527 | AS140: 1129.868729 | AT140: 3.759066898 | AU140: 885.79995 | AV140: 3.675640337 | AW140: 824.4513931 | AX140: 4.512555209 | AY140: 841.530276 | AZ140: 3.362045115 | BA140: 642.152013 | BB140: 2.464289374 | BC140: 608.277464 | BD140: 2.863232374 | BE140: 666.2903059 | BF140: 2.051134745 | BG140: 583.083045 | BH140: 1.974304518 | BI140: 381.2102947 | BJ140: 2.135084706 | BK140: 751.200891 | BL140: 2.762447702 | BM140: 647.1415265 | BN140: 2.529676639 | BO140: 539.3666573 | BP140: 2.478918818 | BQ140: 1804.578936 | BR140: 3.739689084 | BS140: 1625.454563 | BT140: 5.325583572 | BU140: 1367.224338 | BV140: 3.806732756 | BW140: 1209.584445 | BX140: 3.881798506 | BY140: 2672.544098 | BZ140: 7.852084428 | CA140: 3290.191669 | CB140: 9.653292287 | CC140: 1491.783976 | CD140: 4.34259904 | CE140: 852.0564147 | CF140: 3.036330256 | CG140: 1037.144407 | CH140: 3.276045833
B141: Colima | C141: nd | D141: nd | E141: nd | F141: nd | G141: nd | H141: nd | I141: nd | J141: nd | K141: nd | L141: nd | M141: nd | N141: nd | O141: nd | P141: nd | Q141: nd | R141: nd | S141: nd | T141: nd | U141: 33.9 | V141: 1.35616274 | W141: 22.6 | X141: 0.6071188717 | Y141: 18.7 | Z141: 0.5245294662 | AA141: 128.3 | AB141: 3.564284921 | AC141: 18.3 | AD141: 0.3734160426 | AE141: 102.9 | AF141: 0.9664785055 | AG141: 3 | AH141: 0.03582260645 | AI141: 4 | AJ141: 0.05096904904 | AK141: 3.5 | AL141: 0.02881702016 | AM141: 4.1 | AN141: 0.04896399355 | AO141: 31.64576 | AP141: 0.2266836642 | AQ141: 15.85637245 | AR141: 0.08689055252 | AS141: 94.618385 | AT141: 0.314794834 | AU141: 65.52592756 | AV141: 0.2719008309 | AW141: 74.740079 | AX141: 0.4090826162 | AY141: 156.7449724 | AZ141: 0.6262206885 | BA141: 52.147011 | BB141: 0.2001166741 | BC141: 106.4999816 | BD141: 0.5013077305 | BE141: 118.7007917 | BF141: 0.365413268 | BG141: 187.5431177 | BH141: 0.6350162773 | BI141: 134.864699 | BJ141: 0.7553509445 | BK141: 264.8388771 | BL141: 0.9739119806 | BM141: 154.6133261 | BN141: 0.6043835904 | BO141: 60.45569382 | BP141: 0.27785321 | BQ141: 167.7873814 | BR141: 0.3477113837 | BS141: 195.635703 | BT141: 0.6409741064 | BU141: 165.322271 | BV141: 0.4603031754 | BW141: -24.22497056 | BX141: -0.07774277765 | BY141: 132.2200718 | BZ141: 0.3884699853 | CA141: 90.6961999 | CB141: 0.266099065 | CC141: 41.36634316 | CD141: 0.1204178655 | CE141: 91.90471918 | CF141: 0.327505403 | CG141: 89.75136274 | CH141: 0.2834991694
B142: Durango | C142: nd | D142: nd | E142: nd | F142: nd | G142: nd | H142: nd | I142: nd | J142: nd | K142: nd | L142: nd | M142: nd | N142: nd | O142: nd | P142: nd | Q142: nd | R142: nd | S142: nd | T142: nd | U142: 22.1 | V142: 0.8841060927 | W142: 11.2 | X142: 0.3008730692 | Y142: 133.5 | Z142: 3.744635494 | AA142: 1.2 | AB142: 0.03333703745 | AC142: 7.9 | AD142: 0.161201461 | AE142: 21.5 | AF142: 0.201936714 | AG142: 41 | AH142: 0.4895756215 | AI142: 20.2 | AJ142: 0.2573936977 | AK142: 75.2 | AL142: 0.6191542616 | AM142: 61.9 | AN142: 0.7392368782 | AO142: 166.064998 | AP142: 1.189550266 | AQ142: 131.615137 | AR142: 0.721231291 | AS142: 288.855449 | AT142: 0.9610204519 | AU142: 172.520536 | AV142: 0.7158765825 | AW142: 306.408175 | AX142: 1.677095603 | AY142: -82.368549 | AZ142: -0.3290752403 | BA142: 76.630701 | BB142: 0.2940740173 | BC142: 10.77438 | BD142: 0.05071625278 | BE142: 421.617602 | BF142: 1.297924501 | BG142: 488.132089 | BH142: 1.65280297 | BI142: 127.3688294 | BJ142: 0.7133680372 | BK142: 414.0637624 | BL142: 1.522667908 | BM142: 228.6192869 | BN142: 0.893672938 | BO142: 268.3888163 | BP142: 1.233509855 | BQ142: 482.4867997 | BR142: 0.9998734786 | BS142: 155.8836222 | BT142: 0.5107317526 | BU142: 231.0989554 | BV142: 0.643443756 | BW142: 275.9338687 | BX142: 0.8855269957 | BY142: 131.1131911 | BZ142: 0.3852179078 | CA142: 391.0602771 | CB142: 1.147355393 | CC142: 178.5304772 | CD142: 0.5197041205 | CE142: 496.5234398 | CF142: 1.769377141 | CG142: 461.7095964 | CH142: 1.458410024
B143: Estado de México | C143: nd | D143: nd | E143: nd | F143: nd | G143: nd | H143: nd | I143: nd | J143: nd | K143: nd | L143: nd | M143: nd | N143: nd | O143: nd | P143: nd | Q143: nd | R143: nd | S143: nd | T143: nd | U143: 186.1 | V143: 7.444893387 | W143: 212.2 | X143: 5.700470114 | Y143: 312.3 | Z143: 8.759922583 | AA143: 314.1 | AB143: 8.725969552 | AC143: 291.9 | AD143: 5.956291958 | AE143: 340.5 | AF143: 3.198114005 | AG143: 611.2 | AH143: 7.298259021 | AI143: 412.1 | AJ143: 5.251086278 | AK143: 290.4 | AL143: 2.390989329 | AM143: 747 | AN143: 8.921000776 | AO143: 1129.508219 | AP143: 8.090848879 | AQ143: 1312.366772 | AR143: 7.19157388 | AS143: 2355.957129 | AT143: 7.838256098 | AU143: 1934.040601 | AV143: 8.025330827 | AW143: 1493.458753 | AX143: 8.174302493 | AY143: 3935.615017 | AZ143: 15.72339774 | BA143: 2560.455717 | BB143: 9.825872519 | BC143: 2403.104284 | BD143: 11.3116898 | BE143: 2220.914372 | BF143: 6.836951693 | BG143: 2345.891904 | BH143: 7.943130957 | BI143: 1592.380484 | BJ143: 8.918613338 | BK143: 2028.378657 | BL143: 7.459109843 | BM143: 2711.662556 | BN143: 10.59989066 | BO143: 3118.620043 | BP143: 14.33311794 | BQ143: 4608.437965 | BR143: 9.550219615 | BS143: 3580.144417 | BT143: 11.72986236 | BU143: 2957.091485 | BV143: 8.233365004 | BW143: 2405.026163 | BX143: 7.718210173 | BY143: 3761.055151 | BZ143: 11.05019094 | CA143: 2333.306179 | CB143: 6.845828088 | CC143: 2932.770662 | CD143: 8.537326632 | CE143: 2370.109444 | CF143: 8.445960724 | CG143: 1624.055134 | CH143: 5.129930817
B144: Guanajuato | C144: nd | D144: nd | E144: nd | F144: nd | G144: nd | H144: nd | I144: nd | J144: nd | K144: nd | L144: nd | M144: nd | N144: nd | O144: nd | P144: nd | Q144: nd | R144: nd | S144: nd | T144: nd | U144: 10.4 | V144: 0.416049926 | W144: 24.2 | X144: 0.6501007388 | Y144: 5.2 | Z144: 0.1458584612 | AA144: 50.9 | AB144: 1.414046005 | AC144: 36.5 | AD144: 0.7447915604 | AE144: 27.4 | AF144: 0.2573519052 | AG144: 6.3 | AH144: 0.07522747355 | AI144: 9.8 | AJ144: 0.1248741702 | AK144: 41 | AL144: 0.3375708075 | AM144: 10.6 | AN144: 0.126589837 | AO144: 309.164243 | AP144: 2.214593154 | AQ144: 307.371787 | AR144: 1.68435148 | AS144: 857.237812 | AT144: 2.852025372 | AU144: 739.250864 | AV144: 3.06753268 | AW144: 722.169528 | AX144: 3.952725283 | AY144: 689.201802 | AZ144: 2.753469029 | BA144: 781.88629 | BB144: 3.000526413 | BC144: 596.469222 | BD144: 2.807649613 | BE144: 1091.994075 | BF144: 3.361638265 | BG144: 751.784794 | BH144: 2.545524395 | BI144: 508.597999 | BJ144: 2.848558458 | BK144: 399.2738735 | BL144: 1.468279934 | BM144: 1424.685597 | BN144: 5.569096905 | BO144: 1321.193332 | BP144: 6.072179228 | BQ144: 2621.382919 | BR144: 5.432379206 | BS144: 1317.88567 | BT144: 4.317875402 | BU144: 1752.81333 | BV144: 4.880319733 | BW144: 1332.59015 | BX144: 4.276548427 | BY144: 1677.917202 | BZ144: 4.929814831 | CA144: 2469.785172 | CB144: 7.246252056 | CC144: 796.0312655 | CD144: 2.317255492 | CE144: 199.3043323 | CF144: 0.7102273556 | CG144: 1797.171528 | CH144: 5.676756541
B145: Guerrero | C145: nd | D145: nd | E145: nd | F145: nd | G145: nd | H145: nd | I145: nd | J145: nd | K145: nd | L145: nd | M145: nd | N145: nd | O145: nd | P145: nd | Q145: nd | R145: nd | S145: nd | T145: nd | U145: 3 | V145: 0.1200144017 | W145: 153.7 | X145: 4.128945601 | Y145: 3.5 | Z145: 0.09817396426 | AA145: 6.6 | AB145: 0.183353706 | AC145: 4.7 | AD145: 0.09590466668 | AE145: 7.1 | AF145: 0.06668607764 | AG145: 62.6 | AH145: 0.747498388 | AI145: 9.6 | AJ145: 0.1223257177 | AK145: 4.5 | AL145: 0.03705045449 | AM145: 2.6 | AN145: 0.03105033737 | AO145: 36.01426692 | AP145: 0.2579759813 | AQ145: 49.84095088 | AR145: 0.2731209659 | AS145: 216.7365331 | AT145: 0.721081225 | AU145: 302.3429455 | AV145: 1.254576641 | AW145: 159.647213 | AX145: 0.8738136275 | AY145: 219.8927307 | AZ145: 0.8785058626 | BA145: 237.0806048 | BB145: 0.9098082752 | BC145: 164.0267976 | BD145: 0.7720931071 | BE145: 112.3540048 | BF145: 0.3458750652 | BG145: 574.9460351 | BH145: 1.946752807 | BI145: 136.0141081 | BJ145: 0.7617885614 | BK145: 139.5511816 | BL145: 0.5131820868 | BM145: 241.8040872 | BN145: 0.9452123308 | BO145: 164.2846046 | BP145: 0.7550488939 | BQ145: 1088.173729 | BR145: 2.255058693 | BS145: 479.4057614 | BT145: 1.570708592 | BU145: 164.0899057 | BV145: 0.4568719276 | BW145: 180.2922638 | BX145: 0.5785939489 | BY145: 410.4140071 | BZ145: 1.205819367 | CA145: 402.1671796 | CB145: 1.179942606 | CC145: 275.5350094 | CD145: 0.8020853469 | CE145: 296.8573005 | CF145: 1.057860474 | CG145: 669.0633727 | CH145: 2.113381955
B146: Hidalgo | C146: nd | D146: nd | E146: nd | F146: nd | G146: nd | H146: nd | I146: nd | J146: nd | K146: nd | L146: nd | M146: nd | N146: nd | O146: nd | P146: nd | Q146: nd | R146: nd | S146: nd | T146: nd | U146: 0.2 | V146: 0.008000960115 | W146: 0.1 | X146: 0.002686366689 | Y146: 5.2 | Z146: 0.1458584612 | AA146: 0.1 | AB146: 0.002778086454 | AC146: 3.5 | AD146: 0.0714183688 | AE146: 0.1 | AF146: 0.0009392405301 | AG146: 48.3 | AH146: 0.5767439639 | AI146: 60.2 | AJ146: 0.7670841881 | AK146: 2.4 | AL146: 0.01976024239 | AM146: 7.6 | AN146: 0.09076252463 | AO146: 6.662873 | AP146: 0.04772722999 | AQ146: -84.997926 | AR146: -0.4657759381 | AS146: 336.061288 | AT146: 1.118074012 | AU146: 157.107461 | AV146: 0.6519197939 | AW146: 98.257579 | AX146: 0.537803385 | AY146: 213.6198544 | AZ146: 0.8534447405 | BA146: 111.399544 | BB146: 0.4275011321 | BC146: 194.382045 | BD146: 0.9149787672 | BE146: 87.068187 | BF146: 0.2680341917 | BG146: 121.744071 | BH146: 0.412222361 | BI146: 111.455124 | BJ146: 0.6242384689 | BK146: 380.346931 | BL146: 1.39867846 | BM146: 265.525408 | BN146: 1.037938989 | BO146: 178.8089958 | BP146: 0.8218027171 | BQ146: 470.0206862 | BR146: 0.974039536 | BS146: -66.07296627 | BT146: -0.2164792002 | BU146: 523.7255703 | BV146: 1.458197626 | BW146: 444.573819 | BX146: 1.426726339 | BY146: 349.3534258 | BZ146: 1.026419956 | CA146: 186.4781398 | CB146: 0.5471194903 | CC146: 282.3177902 | CD146: 0.8218300938 | CE146: 278.6772836 | CF146: 0.9930754034 | CG146: 176.1339854 | CH146: 0.5563574416
B147: Jalisco | C147: nd | D147: nd | E147: nd | F147: nd | G147: nd | H147: nd | I147: nd | J147: nd | K147: nd | L147: nd | M147: nd | N147: nd | O147: nd | P147: nd | Q147: nd | R147: nd | S147: nd | T147: nd | U147: 73 | V147: 2.920350442 | W147: 109.8 | X147: 2.949630625 | Y147: 216.6 | Z147: 6.075565903 | AA147: 163.8 | AB147: 4.550505612 | AC147: 117.3 | AD147: 2.393535617 | AE147: 64.3 | AF147: 0.6039316609 | AG147: 114.4 | AH147: 1.366035393 | AI147: 185.6 | AJ147: 2.364963876 | AK147: 202.5 | AL147: 1.667270452 | AM147: 362.1 | AN147: 4.324356601 | AO147: 766.7881903 | AP147: 5.492627026 | AQ147: 1404.398142 | AR147: 7.69589204 | AS147: 1736.119726 | AT147: 5.77606055 | AU147: 1170.848904 | AV147: 4.858455297 | AW147: 1258.674388 | AX147: 6.889232903 | AY147: 1422.232963 | AZ147: 5.682043204 | BA147: 827.8264045 | BB147: 3.176823822 | BC147: 992.7387848 | BD147: 4.672936276 | BE147: 1837.713503 | BF147: 5.657290801 | BG147: 1040.661332 | BH147: 3.523653084 | BI147: 1005.721114 | BJ147: 5.632848321 | BK147: 2210.295162 | BL147: 8.128085128 | BM147: 1036.265968 | BN147: 4.050764329 | BO147: 1415.26239 | BP147: 6.504518816 | BQ147: 2937.916386 | BR147: 6.088342062 | BS147: 1685.660358 | BT147: 5.522839773 | BU147: 3138.390836 | BV147: 8.738152814 | BW147: 2085.779545 | BX147: 6.693683899 | BY147: 1552.6498 | BZ147: 4.561772181 | CA147: 1008.162292 | CB147: 2.957908309 | CC147: 1565.930268 | CD147: 4.558439687 | CE147: 2131.481969 | CF147: 7.595604093 | CG147: 2142.829535 | CH147: 6.768592416
B148: Michoacán de Ocampo | C148: nd | D148: nd | E148: nd | F148: nd | G148: nd | H148: nd | I148: nd | J148: nd | K148: nd | L148: nd | M148: nd | N148: nd | O148: nd | P148: nd | Q148: nd | R148: nd | S148: nd | T148: nd | U148: 0.4 | V148: 0.01600192023 | W148: 91.5 | X148: 2.45802552 | Y148: 2.3 | Z148: 0.06451431937 | AA148: 352.2 | AB148: 9.784420491 | AC148: 36.6 | AD148: 0.7468320852 | AE148: 8.5 | AF148: 0.07983544506 | AG148: 48.8 | AH148: 0.5827143983 | AI148: 1.2 | AJ148: 0.01529071471 | AK148: 4 | AL148: 0.03293373732 | AM148: 4.3 | AN148: 0.05135248104 | AO148: 25.452083 | AP148: 0.1823173605 | AQ148: 28.331434 | AR148: 0.1552520264 | AS148: 319.039813 | AT148: 1.061443661 | AU148: 204.587823 | AV148: 0.8489402766 | AW148: 134.760294 | AX148: 0.7375974761 | AY148: 368.007294 | AZ148: 1.470246716 | BA148: 247.997934 | BB148: 0.9517040532 | BC148: 63.346536 | BD148: 0.2981794713 | BE148: 1860.910894 | BF148: 5.728702577 | BG148: 187.211323 | BH148: 0.6338928289 | BI148: 156.4753051 | BJ148: 0.876387746 | BK148: 158.1951429 | BL148: 0.5817429321 | BM148: 150.6824344 | BN148: 0.5890177319 | BO148: 335.970228 | BP148: 1.544112728 | BQ148: 2246.225538 | BR148: 4.654928061 | BS148: 211.4790526 | BT148: 0.6928827136 | BU148: 419.0265978 | BV148: 1.166686571 | BW148: 193.8713054 | BX148: 0.6221718104 | BY148: 294.6867248 | BZ148: 0.8658061226 | CA148: 437.0613028 | CB148: 1.282320584 | CC148: 298.0067727 | CD148: 0.8675008891 | CE148: 272.7228193 | CF148: 0.9718564796 | CG148: 1033.536017 | CH148: 3.26464795
B149: Morelos | C149: nd | D149: nd | E149: nd | F149: nd | G149: nd | H149: nd | I149: nd | J149: nd | K149: nd | L149: nd | M149: nd | N149: nd | O149: nd | P149: nd | Q149: nd | R149: nd | S149: nd | T149: nd | U149: 3.2 | V149: 0.1280153618 | W149: 178.8 | X149: 4.80322364 | Y149: 16.9 | Z149: 0.4740399989 | AA149: 16.3 | AB149: 0.452828092 | AC149: 18.4 | AD149: 0.3754565674 | AE149: 19.4 | AF149: 0.1822126628 | AG149: 67.6 | AH149: 0.8072027321 | AI149: 51.2 | AJ149: 0.6524038278 | AK149: 27.4 | AL149: 0.2255961006 | AM149: 60.8 | AN149: 0.7261001971 | AO149: 456.570548 | AP149: 3.270488204 | AQ149: 132.424613 | AR149: 0.7256670987 | AS149: 251.499354 | AT149: 0.8367369342 | AU149: 192.469832 | AV149: 0.7986564891 | AW149: 96.118116 | AX149: 0.5260932405 | AY149: 467.853608 | AZ149: 1.869148362 | BA149: 176.277503 | BB149: 0.6764734342 | BC149: 173.947325 | BD149: 0.8187901768 | BE149: 393.498015 | BF149: 1.211360039 | BG149: 284.792855 | BH149: 0.9643014408 | BI149: 121.6918864 | BJ149: 0.6815725836 | BK149: 199.379236 | BL149: 0.7331923044 | BM149: 102.4587569 | BN149: 0.4005113461 | BO149: 274.3174821 | BP149: 1.260757889 | BQ149: 451.1553229 | BR149: 0.9349442148 | BS149: 356.5158873 | BT149: 1.168076424 | BU149: 484.803179 | BV149: 1.349826865 | BW149: 234.8683602 | BX149: 0.7537395621 | BY149: 603.0703841 | BZ149: 1.771854606 | CA149: 251.8669739 | CB149: 0.7389677444 | CC149: 655.6204728 | CD149: 1.908518179 | CE149: 386.638949 | CF149: 1.377800247 | CG149: 94.42929312 | CH149: 0.2982754283
B150: Nayarit | C150: nd | D150: nd | E150: nd | F150: nd | G150: nd | H150: nd | I150: nd | J150: nd | K150: nd | L150: nd | M150: nd | N150: nd | O150: nd | P150: nd | Q150: nd | R150: nd | S150: nd | T150: nd | U150: 0.8 | V150: 0.03200384046 | W150: 0.2 | X150: 0.005372733378 | Y150: 0.1 | Z150: 0.002804970408 | AA150: 7.5 | AB150: 0.2083564841 | AC150: 0.1 | AD150: 0.002040524823 | AE150: 5.6 | AF150: 0.05259746969 | AG150: 2 | AH150: 0.02388173764 | AI150: 3.6 | AJ150: 0.04587214414 | AK150: 7.6 | AL150: 0.06257410091 | AM150: 6.1 | AN150: 0.07284886845 | AO150: 40.030777 | AP150: 0.2867468884 | AQ150: 54.95860281 | AR150: 0.3011649341 | AS150: 114.8750473 | AT150: 0.3821886353 | AU150: 105.0111405 | AV150: 0.4357453215 | AW150: 146.9001025 | AX150: 0.8040435475 | AY150: 162.7448177 | AZ150: 0.650191009 | BA150: 146.8101696 | BB150: 0.5633911185 | BC150: 250.6197116 | BD150: 1.179695968 | BE150: 244.5930472 | BF150: 0.752965026 | BG150: 155.1396096 | BH150: 0.5252988144 | BI150: 104.3360081 | BJ150: 0.5843656856 | BK150: 178.1276531 | BL150: 0.6550422556 | BM150: 147.6603455 | BN150: 0.5772043846 | BO150: 157.2573861 | BP150: 0.7227519324 | BQ150: 535.4329246 | BR150: 1.109595498 | BS150: 116.8585597 | BT150: 0.3828713764 | BU150: 103.6446177 | BV150: 0.2885754372 | BW150: 90.0388891 | BX150: 0.2889528108 | BY150: 103.7788572 | BZ150: 0.304908102 | CA150: 194.2537201 | CB150: 0.5699327355 | CC150: 193.9575014 | CD150: 0.5646123521 | CE150: 800.2776391 | CF150: 2.851814935 | CG150: 250.9445555 | CH150: 0.7926628728
B151: Nuevo León | C151: nd | D151: nd | E151: nd | F151: nd | G151: nd | H151: nd | I151: nd | J151: nd | K151: nd | L151: nd | M151: nd | N151: nd | O151: nd | P151: nd | Q151: nd | R151: nd | S151: nd | T151: nd | U151: 94.5 | V151: 3.780453654 | W151: 493.6 | X151: 13.25990598 | Y151: 21.3 | Z151: 0.5974586968 | AA151: 32.6 | AB151: 0.905656184 | AC151: 353.8 | AD151: 7.219376824 | AE151: 937.4 | AF151: 8.804440729 | AG151: 704.5 | AH151: 8.412342082 | AI151: 358.4 | AJ151: 4.566826794 | AK151: 2371.4 | AL151: 19.52476617 | AM151: 672.9 | AN151: 8.036066161 | AO151: 1767.665973 | AP151: 12.66207542 | AQ151: 2283.589274 | AR151: 12.51372811 | AS151: 3106.018915 | AT151: 10.33370744 | AU151: 2583.367061 | AV151: 10.71972083 | AW151: 2331.750869 | AX151: 12.76261356 | AY151: 1408.460097 | AZ151: 5.627018449 | BA151: 4835.903209 | BB151: 18.5580122 | BC151: 1727.215635 | BD151: 8.130203757 | BE151: 3593.201468 | BF151: 11.06145521 | BG151: 1670.874487 | BH151: 5.657538969 | BI151: 952.5564223 | BJ151: 5.335083227 | BK151: 4841.88555 | BL151: 17.80543097 | BM151: 1679.233926 | BN151: 6.564126488 | BO151: 1280.851827 | BP151: 5.886770445 | BQ151: 2211.968659 | BR151: 4.583936388 | BS151: 1577.858086 | BT151: 5.169640109 | BU151: 3361.886658 | BV151: 9.360427331 | BW151: 3343.256709 | BX151: 10.72917972 | BY151: 1991.569432 | BZ151: 5.851342672 | CA151: 3621.174254 | CB151: 10.62438211 | CC151: 3273.672643 | CD151: 9.529695928 | CE151: 3094.599632 | CF151: 11.02770466 | CG151: 3231.636694 | CH151: 10.20782627
B152: Oaxaca | C152: nd | D152: nd | E152: nd | F152: nd | G152: nd | H152: nd | I152: nd | J152: nd | K152: nd | L152: nd | M152: nd | N152: nd | O152: nd | P152: nd | Q152: nd | R152: nd | S152: nd | T152: nd | U152: 6.4 | V152: 0.2560307237 | W152: 0 | X152: 0 | Y152: 1.2 | Z152: 0.03365964489 | AA152: 1.5 | AB152: 0.04167129681 | AC152: 5.6 | AD152: 0.1142693901 | AE152: 0.1 | AF152: 0.0009392405301 | AG152: -2 | AH152: -0.02388173764 | AI152: 0.3 | AJ152: 0.003822678678 | AK152: 6.1 | AL152: 0.05022394941 | AM152: 0.4 | AN152: 0.004776974981 | AO152: 46.902999 | AP152: 0.3359737189 | AQ152: 16.690637 | AR152: 0.09146219763 | AS152: 144.346271 | AT152: 0.4802392306 | AU152: 147.720108 | AV152: 0.6129668302 | AW152: 111.506719 | AX152: 0.6103212754 | AY152: 144.643148 | AZ152: 0.5778720065 | BA152: 126.588184 | BB152: 0.4857882719 | BC152: 110.2807789 | BD152: 0.5191043811 | BE152: 172.7584606 | BF152: 0.5318265596 | BG152: 201.1799768 | BH152: 0.6811903392 | BI152: 235.9279753 | BJ152: 1.321386696 | BK152: 117.5691321 | BL152: 0.4323458382 | BM152: 178.1169857 | BN152: 0.6962594106 | BO152: 353.7004505 | BP152: 1.625600491 | BQ152: 1942.551064 | BR152: 4.025613324 | BS152: 482.7953278 | BT152: 1.581814051 | BU152: 297.1991825 | BV152: 0.8274851695 | BW152: 195.5256068 | BX152: 0.6274807944 | BY152: 497.3612224 | BZ152: 1.461275162 | CA152: 487.8192672 | CB152: 1.431242445 | CC152: 56.61707199 | CD152: 0.1648128995 | CE152: 244.2724275 | CF152: 0.8704725994 | CG152: -92.63525112 | CH152: -0.2926085571
B153: Puebla | C153: nd | D153: nd | E153: nd | F153: nd | G153: nd | H153: nd | I153: nd | J153: nd | K153: nd | L153: nd | M153: nd | N153: nd | O153: nd | P153: nd | Q153: nd | R153: nd | S153: nd | T153: nd | U153: 10.1 | V153: 0.4040484858 | W153: 13.5 | X153: 0.362659503 | Y153: 15.4 | Z153: 0.4319654428 | AA153: 8.5 | AB153: 0.2361373486 | AC153: 59.7 | AD153: 1.218193319 | AE153: 29.9 | AF153: 0.2808329185 | AG153: 25.9 | AH153: 0.3092685024 | AI153: 39.2 | AJ153: 0.4994966806 | AK153: 379.3 | AL153: 3.122941641 | AM153: 37.9 | AN153: 0.4526183794 | AO153: 296.482464 | AP153: 2.123751533 | AQ153: 382.0075262 | AR153: 2.093344182 | AS153: 778.0410464 | AT153: 2.588538179 | AU153: 708.9985271 | AV153: 2.942000149 | AW153: 458.4920979 | AX153: 2.509512292 | AY153: 638.4262457 | AZ153: 2.550612737 | BA153: 782.8723621 | BB153: 3.004310512 | BC153: 424.9798124 | BD153: 2.000429128 | BE153: 662.70076 | BF153: 2.040084543 | BG153: 381.1317123 | BH153: 1.290502387 | BI153: 182.5483941 | BJ153: 1.022418046 | BK153: 772.9024023 | BL153: 2.842252307 | BM153: 594.4525029 | BN153: 2.323715212 | BO153: 759.0416136 | BP153: 3.488540707 | BQ153: 1440.820002 | BR153: 2.985859319 | BS153: 1056.941687 | BT153: 3.462927488 | BU153: 791.4572466 | BV153: 2.203637064 | BW153: 1163.400071 | BX153: 3.73358361 | BY153: 952.1957634 | BZ153: 2.797604549 | CA153: 643.9282611 | CB153: 1.889260062 | CC153: 2043.964901 | CD153: 5.950003595 | CE153: 582.7860761 | CF153: 2.076776801 | CG153: 626.4133368 | CH153: 1.978662554
B154: Querétaro | C154: nd | D154: nd | E154: nd | F154: nd | G154: nd | H154: nd | I154: nd | J154: nd | K154: nd | L154: nd | M154: nd | N154: nd | O154: nd | P154: nd | Q154: nd | R154: nd | S154: nd | T154: nd | U154: 37.3 | V154: 1.492179061 | W154: 10.1 | X154: 0.2713230356 | Y154: 42.1 | Z154: 1.180892542 | AA154: 70.5 | AB154: 1.95855095 | AC154: 61.3 | AD154: 1.250841716 | AE154: 141.1 | AF154: 1.325268388 | AG154: 42 | AH154: 0.5015164903 | AI154: 69.8 | AJ154: 0.8894099058 | AK154: 73.2 | AL154: 0.602687393 | AM154: 125.1 | AN154: 1.493998925 | AO154: 255.193758 | AP154: 1.827993897 | AQ154: 628.2089449 | AR154: 3.442491181 | AS154: 838.6784883 | AT154: 2.790278607 | AU154: 654.15458 | AV154: 2.714424358 | AW154: 271.2228045 | AX154: 1.48451187 | AY154: 456.0213478 | AZ154: 1.821876632 | BA154: 594.7610011 | BB154: 2.282424076 | BC154: 750.580545 | BD154: 3.533069434 | BE154: 815.2668774 | BF154: 2.509750186 | BG154: 1071.503836 | BH154: 3.628085026 | BI154: 1131.609862 | BJ154: 6.337926714 | BK154: 852.0334155 | BL154: 3.13324675 | BM154: 1054.761952 | BN154: 4.123065143 | BO154: 100.3356427 | BP154: 0.4611406908 | BQ154: 916.0282134 | BR154: 1.898315802 | BS154: 1116.211729 | BT154: 3.65711782 | BU154: 1438.320077 | BV154: 4.004683064 | BW154: 1070.770171 | BX154: 3.436315728 | BY154: 982.824285 | BZ154: 2.887592863 | CA154: 1223.763662 | CB154: 3.590474205 | CC154: 1167.57865 | CD154: 3.398833886 | CE154: 860.9616744 | CF154: 3.068064433 | CG154: 869.8561361 | CH154: 2.747629501
B155: Quintana Roo | C155: nd | D155: nd | E155: nd | F155: nd | G155: nd | H155: nd | I155: nd | J155: nd | K155: nd | L155: nd | M155: nd | N155: nd | O155: nd | P155: nd | Q155: nd | R155: nd | S155: nd | T155: nd | U155: 7.7 | V155: 0.3080369644 | W155: 9.3 | X155: 0.2498321021 | Y155: 15.4 | Z155: 0.4319654428 | AA155: 39 | AB155: 1.083453717 | AC155: 1.01 | AD155: 0.02060930071 | AE155: 38.6 | AF155: 0.3625468446 | AG155: 24.6 | AH155: 0.2937453729 | AI155: 25.5 | AJ155: 0.3249276877 | AK155: 129.2 | AL155: 1.063759715 | AM155: 43.8 | AN155: 0.5230787604 | AO155: 133.384221 | AP155: 0.9554526093 | AQ155: 201.4203372 | AR155: 1.103753361 | AS155: 411.2790252 | AT155: 1.368323 | AU155: 246.524557 | AV155: 1.022957391 | AW155: 273.5352545 | AX155: 1.497168842 | AY155: 271.182644 | AZ155: 1.083417091 | BA155: 351.7567363 | BB155: 1.34988347 | BC155: 411.797618 | BD155: 1.938379015 | BE155: 1001.581957 | BF155: 3.083309983 | BG155: 297.2707311 | BH155: 1.006551215 | BI155: 290.4105168 | BJ155: 1.626532813 | BK155: 296.6994921 | BL155: 1.091075423 | BM155: 503.7696607 | BN155: 1.969235925 | BO155: 583.7038787 | BP155: 2.682691838 | BQ155: 930.2926884 | BR155: 1.927876549 | BS155: 223.790388 | BT155: 0.7332191505 | BU155: 325.2362632 | BV155: 0.9055481987 | BW155: 296.5654164 | BX155: 0.9517377603 | BY155: 483.5666583 | BZ155: 1.420745959 | CA155: 591.7296611 | CB155: 1.736111433 | CC155: 662.3521308 | CD155: 1.928114107 | CE155: 159.5485889 | CF155: 0.5685564941 | CG155: 313.5897011 | CH155: 0.9905411691
B156: San Luis Potosí | C156: nd | D156: nd | E156: nd | F156: nd | G156: nd | H156: nd | I156: nd | J156: nd | K156: nd | L156: nd | M156: nd | N156: nd | O156: nd | P156: nd | Q156: nd | R156: nd | S156: nd | T156: nd | U156: 23.8 | V156: 0.9521142537 | W156: 14 | X156: 0.3760913365 | Y156: 25.2 | Z156: 0.7068525427 | AA156: 3.4 | AB156: 0.09445493944 | AC156: 78.1 | AD156: 1.593649887 | AE156: 14.8 | AF156: 0.1390075985 | AG156: 135.3 | AH156: 1.615599551 | AI156: 89.1 | AJ156: 1.135335567 | AK156: 1.1 | AL156: 0.009056777763 | AM156: 6.1 | AN156: 0.07284886845 | AO156: 255.417118 | AP156: 1.82959386 | AQ156: 312.281535 | AR156: 1.711256165 | AS156: 429.456201 | AT156: 1.428798362 | AU156: 265.304132 | AV156: 1.100883522 | AW156: 444.802608 | AX156: 2.434584189 | AY156: 292.248836 | AZ156: 1.167579824 | BA156: 462.367013 | BB156: 1.774355751 | BC156: 198.717272 | BD156: 0.9353851821 | BE156: 523.921987 | BF156: 1.612862414 | BG156: 460.727327 | BH156: 1.560011136 | BI156: 85.025897 | BJ156: 0.4762135096 | BK156: 473.494727 | BL156: 1.741217877 | BM156: 268.2640268 | BN156: 1.048644252 | BO156: 880.3243566 | BP156: 4.045953869 | BQ156: 2008.126459 | BR156: 4.161507401 | BS156: 1064.819352 | BT156: 3.4887376 | BU156: 1899.053073 | BV156: 5.287491845 | BW156: 814.9289544 | BX156: 2.615270072 | BY156: 1405.862446 | BZ156: 4.130502701 | CA156: 1766.422344 | CB156: 5.182613325 | CC156: 853.8282108 | CD156: 2.485503015 | CE156: 912.6961279 | CF156: 3.252421811 | CG156: 699.3431165 | CH156: 2.209027101
B157: Sinaloa | C157: nd | D157: nd | E157: nd | F157: nd | G157: nd | H157: nd | I157: nd | J157: nd | K157: nd | L157: nd | M157: nd | N157: nd | O157: nd | P157: nd | Q157: nd | R157: nd | S157: nd | T157: nd | U157: 3.4 | V157: 0.136016322 | W157: 5.6 | X157: 0.1504365346 | Y157: 25.4 | Z157: 0.7124624835 | AA157: 1.8 | AB157: 0.05000555617 | AC157: 0.8 | AD157: 0.01632419858 | AE157: 46.2 | AF157: 0.4339291249 | AG157: 94.1 | AH157: 1.123635756 | AI157: 28.7 | AJ157: 0.3657029269 | AK157: 36 | AL157: 0.2964036359 | AM157: 13.6 | AN157: 0.1624171493 | AO157: 81.125646 | AP157: 0.5811160388 | AQ157: 31.74318307 | AR157: 0.1739479017 | AS157: 387.1269018 | AT157: 1.287969022 | AU157: 149.9335197 | AV157: 0.6221514157 | AW157: 140.3619506 | AX157: 0.7682576033 | AY157: 234.5691879 | AZ157: 0.9371406054 | BA157: 105.0238658 | BB157: 0.4030341592 | BC157: 144.41554 | BD157: 0.6797806491 | BE157: 278.2076613 | BF157: 0.8564455994 | BG157: 175.9162188 | BH157: 0.5956478901 | BI157: 149.5100443 | BJ157: 0.8373766749 | BK157: 217.6156725 | BL157: 0.8002545281 | BM157: 230.9441679 | BN157: 0.9027608994 | BO157: 432.5046789 | BP157: 1.987783214 | BQ157: 605.4279996 | BR157: 1.254648625 | BS157: 399.9852459 | BT157: 1.310497939 | BU157: 428.6680565 | BV157: 1.193531074 | BW157: 434.8697193 | BX157: 1.395583941 | BY157: 761.5578858 | BZ157: 2.237499774 | CA157: 414.9589345 | CB157: 1.217473109 | CC157: 262.5832504 | CD157: 0.7643826384 | CE157: 741.6464385 | CF157: 2.642880778 | CG157: 541.3897484 | CH157: 1.710097087
B158: Sonora | C158: nd | D158: nd | E158: nd | F158: nd | G158: nd | H158: nd | I158: nd | J158: nd | K158: nd | L158: nd | M158: nd | N158: nd | O158: nd | P158: nd | Q158: nd | R158: nd | S158: nd | T158: nd | U158: 12.1 | V158: 0.484058087 | W158: 25.1 | X158: 0.674278039 | Y158: 6.7 | Z158: 0.1879330173 | AA158: 11.1 | AB158: 0.3083675964 | AC158: 89.6 | AD158: 1.828310241 | AE158: 107.1 | AF158: 1.005926608 | AG158: 155.4 | AH158: 1.855611014 | AI158: 108.3 | AJ158: 1.379987003 | AK158: 159.7 | AL158: 1.314879463 | AM158: 171.1 | AN158: 2.043351048 | AO158: 321.3973149 | AP158: 2.302220614 | AQ158: 651.091086 | AR158: 3.567881896 | AS158: 513.823934 | AT158: 1.709489334 | AU158: 671.0869954 | AV158: 2.784685673 | AW158: 586.2905776 | AX158: 3.209004949 | AY158: 1265.902754 | AZ158: 5.057479561 | BA158: 656.0542571 | BB158: 2.517639907 | BC158: 458.0258787 | BD158: 2.155980784 | BE158: 961.136627 | BF158: 2.958801461 | BG158: 1576.95172 | BH158: 5.339518843 | BI158: 358.1073917 | BJ158: 2.005689841 | BK158: 1108.840353 | BL158: 4.077622275 | BM158: 304.1333353 | BN158: 1.188857401 | BO158: 1171.715944 | BP158: 5.385184018 | BQ158: 2088.757946 | BR158: 4.328602719 | BS158: 993.3642579 | BT158: 3.254624579 | BU158: 609.9534083 | BV158: 1.698279905 | BW158: 506.182145 | BX158: 1.624439784 | BY158: 364.5903391 | BZ158: 1.071186861 | CA158: 155.0968953 | CB158: 0.4550481594 | CC158: 449.7028899 | CD158: 1.309089902 | CE158: 582.2931778 | CF158: 2.075020342 | CG158: 897.4544835 | CH158: 2.834804875
B159: Tabasco | C159: nd | D159: nd | E159: nd | F159: nd | G159: nd | H159: nd | I159: nd | J159: nd | K159: nd | L159: nd | M159: nd | N159: nd | O159: nd | P159: nd | Q159: nd | R159: nd | S159: nd | T159: nd | U159: 0 | V159: 0 | W159: 0 | X159: 0 | Y159: 0 | Z159: 0 | AA159: 1.6 | AB159: 0.04444938326 | AC159: 2.5 | AD159: 0.05101312057 | AE159: 0.6 | AF159: 0.005635443181 | AG159: 1.2 | AH159: 0.01432904258 | AI159: 0 | AJ159: 0 | AK159: 7.6 | AL159: 0.06257410091 | AM159: 0.4 | AN159: 0.004776974981 | AO159: 32.160021 | AP159: 0.2303673984 | AQ159: 79.638677 | AR159: 0.4364080541 | AS159: 231.553504 | AT159: 0.7703772036 | AU159: 201.495179 | AV159: 0.8361073034 | AW159: 140.347601 | AX159: 0.7681790622 | AY159: 284.450151 | AZ159: 1.136422857 | BA159: 158.086737 | BB159: 0.6066654909 | BC159: 82.408777 | BD159: 0.3879076444 | BE159: 179.600399 | BF159: 0.5528890566 | BG159: 135.0834019 | BH159: 0.4573889997 | BI159: 90.36613927 | BJ159: 0.5061231677 | BK159: 141.2624873 | BL159: 0.5194752005 | BM159: 233.2425913 | BN159: 0.911745438 | BO159: 325.4679448 | BP159: 1.495844435 | BQ159: 323.9347567 | BR159: 0.6713007947 | BS159: 241.6646183 | BT159: 0.7917816656 | BU159: 737.4853953 | BV159: 2.053364421 | BW159: 112.7536675 | BX159: 0.3618490798 | BY159: 400.3783564 | BZ159: 1.176334063 | CA159: 530.2928506 | CB159: 1.55585826 | CC159: 490.5901884 | CD159: 1.428113263 | CE159: 464.7656104 | CF159: 1.656207101 | CG159: 300.1432081 | CH159: 0.9480675009
B160: Tamaulipas | C160: nd | D160: nd | E160: nd | F160: nd | G160: nd | H160: nd | I160: nd | J160: nd | K160: nd | L160: nd | M160: nd | N160: nd | O160: nd | P160: nd | Q160: nd | R160: nd | S160: nd | T160: nd | U160: 112.6 | V160: 4.504540545 | W160: 4.38 | X160: 0.117662861 | Y160: 60.8 | Z160: 1.705422008 | AA160: 37.5 | AB160: 1.04178242 | AC160: 52.9 | AD160: 1.079437631 | AE160: 362.4 | AF160: 3.403807681 | AG160: 393.7 | AH160: 4.701120053 | AI160: 334.3 | AJ160: 4.259738274 | AK160: 283.7 | AL160: 2.335825319 | AM160: 345.7 | AN160: 4.128500627 | AO160: 582.576922 | AP160: 4.173092109 | AQ160: 1017.561787 | AR160: 5.576086597 | AS160: 973.1262403 | AT160: 3.237585521 | AU160: 1097.123938 | AV160: 4.552532432 | AW160: 1011.52508 | AX160: 5.536484998 | AY160: 801.967812 | AZ160: 3.203986881 | BA160: 967.8063617 | BB160: 3.71400367 | BC160: 854.093666 | BD160: 4.020317667 | BE160: 877.43561 | BF160: 2.7011329 | BG160: 932.4279434 | BH160: 3.157177554 | BI160: 603.1635742 | BJ160: 3.37820185 | BK160: 1035.875733 | BL160: 3.809303971 | BM160: 842.8219018 | BN160: 3.294591351 | BO160: 1051.421968 | BP160: 4.83231521 | BQ160: 1732.418431 | BR160: 3.590148464 | BS160: 723.8941105 | BT160: 2.371741832 | BU160: 1103.241785 | BV160: 3.071731921 | BW160: 1145.619355 | BX160: 3.676521736 | BY160: 1538.158385 | BZ160: 4.519195591 | CA160: 1511.90518 | CB160: 4.435870029 | CC160: 1623.255702 | CD160: 4.725314635 | CE160: 699.7681387 | CF160: 2.493646119 | CG160: 1271.39661 | CH160: 4.015982287
B161: Tlaxcala | C161: nd | D161: nd | E161: nd | F161: nd | G161: nd | H161: nd | I161: nd | J161: nd | K161: nd | L161: nd | M161: nd | N161: nd | O161: nd | P161: nd | Q161: nd | R161: nd | S161: nd | T161: nd | U161: 12.6 | V161: 0.5040604873 | W161: 5.4 | X161: 0.1450638012 | Y161: 1.1 | Z161: 0.03085467448 | AA161: 0 | AB161: 0 | AC161: 2 | AD161: 0.04081049646 | AE161: 19.3 | AF161: 0.1812734223 | AG161: 11.2 | AH161: 0.1337377308 | AI161: 7.3 | AJ161: 0.09301851451 | AK161: 3.9 | AL161: 0.03211039389 | AM161: 8.8 | AN161: 0.1050934496 | AO161: 55.006034 | AP161: 0.3940170607 | AQ161: 56.027533 | AR161: 0.3070225119 | AS161: 84.614862 | AT161: 0.2815131693 | AU161: 134.545704 | AV161: 0.5582994408 | AW161: 202.190724 | AX161: 1.106671433 | AY161: 318.045857 | AZ161: 1.270642959 | BA161: 194.353854 | BB161: 0.7458423045 | BC161: 242.225978 | BD161: 1.140185693 | BE161: 92.695589 | BF161: 0.2853578112 | BG161: 123.709811 | BH161: 0.4188783071 | BI161: 72.191991 | BJ161: 0.4043332986 | BK161: 91.1712334 | BL161: 0.3352708539 | BM161: 251.2297042 | BN161: 0.9820570737 | BO161: 79.50908357 | BP161: 0.365422224 | BQ161: 80.73515841 | BR161: 0.1673101601 | BS161: 120.7129363 | BT161: 0.3954997238 | BU161: 152.5185184 | BV161: 0.4246539677 | BW161: 253.119961 | BX161: 0.812312601 | BY161: 168.048451 | BZ161: 0.4937357727 | CA161: 143.0563367 | CB161: 0.4197216364 | CC161: 345.7207895 | CD161: 1.0063969 | CE161: 359.7388478 | CF161: 1.281940877 | CG161: 50.77741782 | CH161: 0.1603915009
B162: Veracruz de Ignacio de la Llave | C162: nd | D162: nd | E162: nd | F162: nd | G162: nd | H162: nd | I162: nd | J162: nd | K162: nd | L162: nd | M162: nd | N162: nd | O162: nd | P162: nd | Q162: nd | R162: nd | S162: nd | T162: nd | U162: 4.3 | V162: 0.1720206425 | W162: 10.3 | X162: 0.276695769 | Y162: 63.2 | Z162: 1.772741298 | AA162: 9.6 | AB162: 0.2666962996 | AC162: 152.8 | AD162: 3.11792193 | AE162: 10.2 | AF162: 0.09580253407 | AG162: 29 | AH162: 0.3462851957 | AI162: 10.4 | AJ162: 0.1325195275 | AK162: 3.7 | AL162: 0.03046370702 | AM162: 38.2 | AN162: 0.4562011106 | AO162: 56.007422 | AP162: 0.4011901639 | AQ162: 311.501464 | AR162: 1.706981493 | AS162: 796.567839 | AT162: 2.650176714 | AU162: 640.317856 | AV162: 2.657008662 | AW162: 473.222924 | AX162: 2.590140048 | AY162: 652.447884 | AZ162: 2.606631376 | BA162: 484.710835 | BB162: 1.860101247 | BC162: 252.740391 | BD162: 1.189678251 | BE162: 577.73277 | BF162: 1.778515682 | BG162: 607.7801862 | BH162: 2.057928417 | BI162: 518.4131771 | BJ162: 2.903531361 | BK162: 1230.772751 | BL162: 4.526013478 | BM162: 1189.113096 | BN162: 4.648243848 | BO162: 1061.320845 | BP162: 4.877810258 | BQ162: 1702.750026 | BR162: 3.528665639 | BS162: 1271.254203 | BT162: 4.165093661 | BU162: 1589.121548 | BV162: 4.424556293 | BW162: 1045.512964 | BX162: 3.355260296 | BY162: 914.9217883 | BZ162: 2.68809152 | CA162: 962.0664319 | CB162: 2.822664878 | CC162: 1080.6123 | CD162: 3.145673914 | CE162: 1000.431266 | CF162: 3.565068777 | CG162: 935.4231359 | CH162: 2.954737109
B163: Yucatán | C163: nd | D163: nd | E163: nd | F163: nd | G163: nd | H163: nd | I163: nd | J163: nd | K163: nd | L163: nd | M163: nd | N163: nd | O163: nd | P163: nd | Q163: nd | R163: nd | S163: nd | T163: nd | U163: 44.3 | V163: 1.772212666 | W163: 5.6 | X163: 0.1504365346 | Y163: 1.6 | Z163: 0.04487952652 | AA163: 7 | AB163: 0.1944660518 | AC163: 1.9 | AD163: 0.03876997164 | AE163: 48.1 | AF163: 0.451774695 | AG163: 19.8 | AH163: 0.2364292026 | AI163: 48.6 | AJ163: 0.6192739459 | AK163: 14.2 | AL163: 0.1169147675 | AM163: 31 | AN163: 0.370215561 | AO163: 64.12119901 | AP163: 0.4593104525 | AQ163: 82.88950203 | AR163: 0.4542220897 | AS163: 228.9732465 | AT163: 0.7617927013 | AU163: 212.4142565 | AV163: 0.8814161813 | AW163: 194.4810556 | AX163: 1.064473307 | AY163: 184.3538557 | AZ163: 0.7365224969 | BA163: 91.23024645 | BB163: 0.3501004784 | BC163: 105.304849 | BD163: 0.4956821033 | BE163: 192.9766391 | BF163: 0.5940670096 | BG163: 146.0968711 | BH163: 0.4946803292 | BI163: 79.84036808 | BJ163: 0.4471703708 | BK163: 94.81755758 | BL163: 0.3486797569 | BM163: 165.5354327 | BN163: 0.6470781118 | BO163: 127.9209779 | BP163: 0.5879223626 | BQ163: 516.6635074 | BR163: 1.070699009 | BS163: 86.02851118 | BT163: 0.281860863 | BU163: 213.4897891 | BV163: 0.5944149403 | BW163: 125.0004692 | BX163: 0.4011515168 | BY163: 107.8125667 | BZ163: 0.3167593668 | CA163: 86.01460711 | CB163: 0.2523634569 | CC163: 159.9543715 | CD163: 0.4656288789 | CE163: 151.5521705 | CF163: 0.5400610014 | CG163: 145.1319297 | CH163: 0.4584307164
B164: Zacatecas | C164: nd | D164: nd | E164: nd | F164: nd | G164: nd | H164: nd | I164: nd | J164: nd | K164: nd | L164: nd | M164: nd | N164: nd | O164: nd | P164: nd | Q164: nd | R164: nd | S164: nd | T164: nd | U164: 0 | V164: 0 | W164: 0 | X164: 0 | Y164: 0.2 | Z164: 0.005609940815 | AA164: 6.2 | AB164: 0.1722413602 | AC164: 0.7 | AD164: 0.01428367376 | AE164: 13.8 | AF164: 0.1296151932 | AG164: 12.2 | AH164: 0.1456785996 | AI164: 11.1 | AJ164: 0.1414391111 | AK164: 13.6 | AL164: 0.1119747069 | AM164: 13.6 | AN164: 0.1624171493 | AO164: 30.590731 | AP164: 0.2191263219 | AQ164: 47.210349 | AR164: 0.2587056606 | AS164: 62.048525 | AT164: 0.2064350932 | AU164: 209.981412 | AV164: 0.8713210561 | AW164: 119.206368 | AX164: 0.6524645618 | AY164: 233.778092 | AZ164: 0.9339800535 | BA164: -33.800504 | BB164: -0.1297110671 | BC164: 97.132104 | BD164: 0.4572120474 | BE164: 867.519411 | BF164: 2.670606476 | BG164: 1836.462303 | BH164: 6.218215147 | BI164: 301.516316 | BJ164: 1.688734234 | BK164: 381.918385 | BL164: 1.404457287 | BM164: 466.7329255 | BN164: 1.824459303 | BO164: 754.3879178 | BP164: 3.46715241 | BQ164: 3973.158215 | BR164: 8.233708214 | BS164: 758.9138019 | BT164: 2.486479148 | BU164: 107.5754891 | BV164: 0.2995200763 | BW164: 532.6161787 | BX164: 1.709271887 | BY164: 457.6370232 | BZ164: 1.344563237 | CA164: 301.735376 | CB164: 0.8852796649 | CC164: 746.4906225 | CD164: 2.173042152 | CE164: -405.5422478 | CF164: -1.445162756 | CG164: 1317.912972 | CH164: 4.162914315
B165: Total | C165: 1622.6 | D165: 100 | E165: 1701.1 | F165: 100 | G165: 626.5 | H165: 100 | I165: 683.7 | J165: 100 | K165: 1429.8 | L165: 100 | M165: 1729 | N165: 100 | O165: 2424.2 | P165: 100 | Q165: 3877.2 | R165: 100 | S165: 3157.1 | T165: 100 | U165: 2499.7 | V165: 100 | W165: 3722.5 | X165: 100 | Y165: 3565.1 | Z165: 100 | AA165: 3599.6 | AB165: 100 | AC165: 4900.7 | AD165: 100 | AE165: 10646.9 | AF165: 100 | AG165: 8374.6 | AH165: 100 | AI165: 7847.9 | AJ165: 100 | AK165: 12145.6 | AL165: 100 | AM165: 8373.5 | AN165: 100 | AO165: 13960.31783 | AP165: 100 | AQ165: 18248.6726 | AR165: 100 | AS165: 30057.15939 | AT165: 100 | AU165: 24099.20092 | AV165: 100 | AW165: 18270.16745 | AX165: 100 | AY165: 25030.30885 | AZ165: 100 | BA165: 26058.30386 | BB165: 100 | BC165: 21244.43233 | BD165: 100 | BE165: 32483.98514 | BF165: 100 | BG165: 29533.59219 | BH165: 100 | BI165: 17854.57474 | BJ165: 100 | BK165: 27193.30724 | BL165: 100 | BM165: 25581.98611 | BN165: 100 | BO165: 21758.14122 | BP165: 100 | BQ165: 48254.78523 | BR165: 100 | BS165: 30521.62342 | BT165: 100 | BU165: 35915.95275 | BV165: 100 | BW165: 31160.41296 | BX165: 100 | BY165: 34036.11007 | BZ165: 100 | CA165: 34083.62216 | CB165: 100 | CC165: 34352.33052 | CD165: 100 | CE165: 28062.04671 | CF165: 100 | CG165: 31658.42176 | CH165: 100
B166: * La diferencia entre el total de IED publicado por la Secretaría de Economía y la desagregación por país de origen, se debe a que esta última sólo incuye las nuevas inversiones reportadas al RNIE más el valor de la importación temporal de maquinaria y equipo de empresas maquiladoras.
B167: nd: Dato no disponible
B168: Fuente: Secretaría de Economía

Sheet Inward
A5: CONTENIDO
A6: * Nota Metodológica
A7: * Principales países receptores de IED
A8: * Participación de la IED recibida por México respecto al total mundial
A9: * Participación de la IED recibida por México respecto a los países en desarrollo y Latinoamérica
A10: * Acervos de IED
B28: Principales países receptores de IED (miles de millones de dólares/participación porcentual)
B32: País receptor | C32: 1996 | E32: 1997 | G32: 1998 | I32: 1999 | K32: 2000 | M32: 2001 | O32: 2002 | Q32: 2003 | S32: 2004 | U32: 2005 | W32: 2006 | Y32: 2007 | AA32: 2008 | AC32: 2009 | AE32: 2010 | AG32: 2011 | AI32: 2012 | AK32: 2013 | AM32: 2014 | AO32: 2015 | AQ32: 2016 | AS32: 2017 | AU32: 2018 | AW32: 2019 | AY32: 2020
B33: Estados Unidos | C33: 84.455 | D33: 21.49861817 | E33: 103.398 | F33: 21.51098292 | G33: 174.434 | H33: 25.59068118 | I33: 283.376 | J33: 26.28055832 | K33: 314.007 | L33: 23.14584827 | M33: 159.461 | N33: 20.62518793 | O33: 74.457 | P33: 12.61309202 | Q33: 53.146 | R33: 9.66949812 | S33: 135.826 | T33: 19.44711853 | U33: 104.773 | V33: 10.99210449 | W33: 237.136 | X33: 16.74728392 | Y33: 215.952 | Z33: 11.32578645 | AA33: 306.366 | AB33: 20.5733001 | AC33: 143.604 | AD33: 11.5894451 | AE33: 198.049 | AF33: 14.21000621 | AG33: 229.862 | AH33: 14.25155982 | AI33: 199.034 | AJ33: 13.34606885 | AK33: 201.393 | AL33: 13.85566789 | AM33: 201.733 | AN33: 14.38774815 | AO33: 467.625 | AP33: 23.00966704 | AQ33: 459.419 | AR33: 22.24533024 | AS33: 295.296 | AT33: 17.92593129 | AU33: 223.401 | AV33: 15.54924262 | AW33: 261.412 | AX33: 17.08320995 | AY33: 156.321 | AZ33: 15.64944876
B34: China | C34: 41.72552 | D34: 10.62152652 | E34: 45.25704 | F34: 9.415302177 | G34: 45.46275 | H34: 6.669701668 | I34: 40.31871 | J34: 3.739195308 | K34: 40.71481 | L34: 3.001139512 | M34: 46.87759 | N34: 6.063295123 | O34: 52.74286 | P34: 8.934694477 | Q34: 53.5047 | R34: 9.734760773 | S34: 60.63 | T34: 8.680803354 | U34: 72.406 | V34: 7.596368507 | W34: 72.715 | X34: 5.135360088 | Y34: 83.521 | Z34: 4.380329933 | AA34: 108.312 | AB34: 7.273441833 | AC34: 94.065 | AD34: 7.591440024 | AE34: 114.734 | AF34: 8.232158971 | AG34: 123.985 | AH34: 7.687132473 | AI34: 121.073 | AJ34: 8.118455109 | AK34: 123.911 | AL34: 8.524971889 | AM34: 128.502 | AN34: 9.164858564 | AO34: 135.577 | AP34: 6.671118158 | AQ34: 133.711 | AR34: 6.47436295 | AS34: 136.315 | AT34: 8.274996356 | AU34: 138.305 | AV34: 9.626357985 | AW34: 141.225 | AX34: 9.229019041 | AY34: 149.342 | AZ34: 14.95077422
B35: Reino Unido | C35: 28.44804184 | D35: 7.241650457 | E35: 33.12836833 | F35: 6.892045933 | G35: 65.06200482 | H35: 9.545048685 | I35: 90.03376711 | J35: 8.349816736 | K35: 115.3040181 | L35: 8.499203228 | M35: 35.94878033 | N35: 4.649728462 | O35: 19.68307447 | P35: 3.334332965 | Q35: 16.59014616 | R35: 3.018447053 | S35: 61.21974441 | T35: 8.765241013 | U35: 182.9279379 | V35: 19.19161432 | W35: 147.3724303 | X35: 10.40790066 | Y35: 176.8386384 | Z35: 9.274452906 | AA35: 92.15833343 | AB35: 6.188679718 | AC35: 89.70913776 | AD35: 7.239903672 | AE35: 58.20028153 | AF35: 4.175867395 | AG35: 42.20040023 | AH35: 2.616446078 | AI35: 55.44612011 | AJ35: 3.717896121 | AK35: 51.67589032 | AL35: 3.555257502 | AM35: 24.69024073 | AN35: 1.7609264 | AO35: 39.1857001 | AP35: 1.928147366 | AQ35: 258.6986755 | AR35: 12.52633755 | AS35: 96.3538315 | AT35: 5.849155298 | AU35: 65.2994135 | AV35: 4.544994979 | AW35: 45.4543714 | AX35: 2.970432 | AY35: 19.72435897 | AZ35: 1.974624938
B36: Hong Kong | C36: 10.46017371 | D36: 2.662711274 | E36: 11.36814793 | F36: 2.365036422 | G36: 13.93936733 | H36: 2.045002151 | I36: 25.35533355 | J36: 2.35147762 | K36: 54.58191774 | L36: 4.023301348 | M36: 29.0606828 | N36: 3.758800235 | O36: 3.662173737 | P36: 0.62037598 | Q36: 17.83080232 | R36: 3.244174717 | S36: 29.1538264 | T36: 4.174148672 | U36: 34.05783219 | V36: 3.573127142 | W36: 41.81064725 | X36: 2.952798311 | Y36: 58.40347014 | Z36: 3.063019701 | AA36: 58.31538636 | AB36: 3.916034887 | AC36: 55.53520173 | AD36: 4.481923703 | AE36: 70.54073987 | AF36: 5.061294686 | AG36: 96.58080678 | AH36: 5.988058685 | AI36: 70.17979944 | AJ36: 4.70585144 | AK36: 74.29422383 | AL36: 5.111379697 | AM36: 113.0377814 | AN36: 8.061938949 | AO36: 174.3528881 | AP36: 8.579100568 | AQ36: 117.386969 | AR36: 5.68394405 | AS36: 110.6845026 | AT36: 6.719098086 | AU36: 104.2457103 | AV36: 7.255750159 | AW36: 73.71402734 | AX36: 4.81719357 | AY36: 119.2293661 | AZ36: 11.93616888
B37: Singapur | C37: 11.43237071 | D37: 2.910190903 | E37: 15.70173962 | F37: 3.266599478 | G37: 5.958652008 | H37: 0.8741756985 | I37: 18.85295228 | J37: 1.74844063 | K37: 14.75179238 | L37: 1.087373046 | M37: 17.30164311 | N37: 2.237849008 | O37: 5.338352163 | P37: 0.9043223213 | Q37: 16.35324708 | R37: 2.975345123 | S37: 22.3248907 | T37: 3.19640419 | U37: 17.74777698 | V37: 1.861981799 | W37: 37.48037988 | X37: 2.646981323 | Y37: 42.60891779 | Z37: 2.23466096 | AA37: 11.81014376 | AB37: 0.7930828872 | AC37: 18.53187671 | AD37: 1.495600176 | AE37: 57.46008463 | AF37: 4.122758303 | AG37: 39.89036238 | AH37: 2.473222567 | AI37: 60.10298636 | AJ37: 4.030158637 | AK37: 56.67162151 | AL37: 3.898959578 | AM37: 73.28661063 | AN37: 5.226855777 | AO37: 59.70010838 | AP37: 2.937566675 | AQ37: 70.22127321 | AR37: 3.400154135 | AS37: 84.6709826 | AT37: 5.139948446 | AU37: 75.96871984 | AV37: 5.287604157 | AW37: 114.1618493 | AX37: 7.460448794 | AY37: 90.56185867 | AZ37: 9.066236568
B38: Brasil | C38: 10.791687 | D38: 2.747100329 | E38: 18.992934 | F38: 3.951301562 | G38: 28.85561 | H38: 4.233318709 | I38: 28.57843 | J38: 2.650390634 | K38: 32.77924 | L38: 2.416198733 | M38: 22.457353 | N38: 2.904704762 | O38: 16.590204 | P38: 2.810397541 | Q38: 10.143525 | R38: 1.845534865 | S38: 18.145883 | T38: 2.598067656 | U38: 15.066292 | V38: 1.580657764 | W38: 18.822208 | X38: 1.329283033 | Y38: 34.584901 | Z38: 1.81383457 | AA38: 45.058156 | AB38: 3.025776246 | AC38: 25.94858 | AD38: 2.094159239 | AE38: 77.686848 | AF38: 5.5740276 | AG38: 97.421786 | AH38: 6.040199821 | AI38: 82.05983 | AJ38: 5.502457576 | AK38: 59.089345 | AL38: 4.065296907 | AM38: 63.845886 | AN38: 4.553536249 | AO38: 49.96136699 | AP38: 2.458368178 | AQ38: 53.70038366 | AR38: 2.600203232 | AS38: 66.58492744 | AT38: 4.042035227 | AU38: 59.80240649 | AV38: 4.162390176 | AW38: 65.38604132 | AX38: 4.27296173 | AY38: 24.77773404 | AZ38: 2.480523277
B39: Bélgica | C39: 14.0639 | D39: 3.580065315 | E39: 11.9983 | F39: 2.496133643 | G39: 22.6905 | H39: 3.328854187 | I39: 119.692913 | J39: 11.10043398 | K39: 88.738714 | L39: 6.541041473 | M39: 88.203254 | N39: 11.40848665 | O39: 16.25052939 | P39: 2.752856314 | Q39: 33.476142 | R39: 6.090721637 | S39: 43.5578899 | T39: 6.236474959 | U39: 34.37049197 | V39: 3.605929381 | W39: 58.89296875 | X39: 4.159205133 | Y39: 93.43067292 | Z39: 4.900051164 | AA39: -13.85725272 | AB39: -0.9305517544 | AC39: 64.44044048 | AD39: 5.20061382 | AE39: 57.58332285 | AF39: 4.131600639 | AG39: 83.36634902 | AH39: 5.168755646 | AI39: 11.67039705 | AJ39: 0.7825493261 | AK39: 23.8980012 | AL39: 1.644162249 | AM39: -3.505905172 | AN39: -0.2500437739 | AO39: 28.33129923 | AP39: 1.394052418 | AQ39: 59.24265569 | AR39: 2.868563208 | AS39: -0.7083065035 | AT39: -0.04299771658 | AU39: 30.82057508 | AV39: 2.145185561 | AW39: 2.886006117 | AX39: 0.1885997905 | AY39: 8.437406483 | AZ39: 0.8446770453
B40: Alemania | C40: 6.572645653 | D40: 1.673113484 | E40: 12.24463398 | F40: 2.547381114 | G40: 24.59323623 | H40: 3.607998828 | I40: 56.07569354 | J40: 5.200512868 | K40: 198.2793394 | L40: 14.61541782 | M40: 26.4019964 | N40: 3.414917363 | O40: 53.52233118 | P40: 9.066737693 | Q40: 32.37676545 | R40: 5.890698691 | S40: -10.1921787 | T40: -1.459282518 | U40: 47.44979605 | V40: 4.978125243 | W40: 55.65456049 | X40: 3.930498641 | Y40: 80.21248142 | Z40: 4.20681186 | AA40: 8.127028234 | AB40: 0.5457517831 | AC40: 23.8055965 | AD40: 1.921211482 | AE40: 65.64298817 | AF40: 4.709881238 | AG40: 67.51366432 | AH40: 4.185881206 | AI40: 28.18112436 | AJ40: 1.889663204 | AK40: 12.7767873 | AL40: 0.8790321486 | AM40: -3.204086458 | AN40: -0.228517838 | AO40: 30.54088206 | AP40: 1.502775787 | AQ40: 15.63314737 | AR40: 0.75696592 | AS40: 48.64141842 | AT40: 2.952775264 | AU40: 62.07296769 | AV40: 4.320426653 | AW40: 54.06291225 | AX40: 3.532998028 | AY40: 35.65104979 | AZ40: 3.56906159
B41: Canadá | C41: 9.633764 | D41: 2.452342831 | E41: 11.5251838 | F41: 2.39770626 | G41: 22.803446 | H41: 3.345424151 | I41: 24.74406521 | J41: 2.294788016 | K41: 66.79505222 | L41: 4.923546749 | M41: 27.66342106 | N41: 3.578074001 | O41: 22.15545587 | P41: 3.753156905 | Q41: 7.482245459 | R41: 1.361335912 | S41: -0.4450354337 | T41: -0.06371870502 | U41: 25.69155608 | V41: 2.695391646 | W41: 60.29391022 | X41: 4.258143988 | Y41: 116.820594 | Z41: 6.126755483 | AA41: 61.55251912 | AB41: 4.13341705 | AC41: 22.69967632 | AD41: 1.831959085 | AE41: 28.40044265 | AF41: 2.037730391 | AG41: 39.66929788 | AH41: 2.459516457 | AI41: 43.11100614 | AJ41: 2.890774723 | AK41: 69.36824121 | AL41: 4.772476264 | AM41: 59.0052048 | AN41: 4.208295252 | AO41: 43.83596994 | AP41: 2.156965673 | AQ41: 36.05587423 | AR41: 1.745846013 | AS41: 22.76684593 | AT41: 1.382060427 | AU41: 38.23993802 | AV41: 2.661590924 | AW41: 47.8371532 | AX41: 3.126146205 | AY41: 23.82278532 | AZ41: 2.384922423
B42: Países Bajos | C42: 16.18676489 | D42: 4.120455602 | E42: 11.18106879 | F42: 2.326116364 | G42: 37.27725342 | H42: 5.468832381 | I42: 41.20316164 | J42: 3.82122019 | K42: 63.85498434 | L42: 4.706830672 | M42: 51.92749953 | N42: 6.716466325 | O42: 25.03825702 | P42: 4.241506371 | Q42: 32.89986615 | R42: 5.985872763 | S42: 12.45236632 | T42: 1.782888724 | U42: 39.04715714 | V42: 4.096574797 | W42: 13.97770282 | X42: 0.9871489678 | Y42: 114.1611852 | Z42: 5.987280525 | AA42: -6.776430952 | AB42: -0.4550555466 | AC42: 38.75192229 | AD42: 3.127442661 | AE42: -7.184472449 | AF42: -0.515485552 | AG42: 24.15580624 | AH42: 1.497672158 | AI42: 25.01304134 | AJ42: 1.67722988 | AK42: 51.11946344 | AL42: 3.516975804 | AM42: 45.03394311 | AN42: 3.211854439 | AO42: 163.8877177 | AP42: 8.064157854 | AQ42: 59.73412145 | AR42: 2.89236026 | AS42: 16.55765299 | AT42: 1.00513163 | AU42: 87.67058901 | AV42: 6.102082171 | AW42: 48.96271075 | AX42: 3.199701114 | AY42: -115.3002511 | AZ42: -11.54282132
B43: Australia | C43: 5.629724696 | D43: 1.433086279 | E43: 7.762472354 | F43: 1.614909478 | G43: 5.528856725 | H43: 0.8111217408 | I43: 1.84715636 | J43: 0.1713070283 | K43: 14.19096375 | L43: 1.046033667 | M43: 7.825430321 | N43: 1.012165802 | O43: 14.24620768 | P43: 2.413322165 | Q43: 6.338891375 | R43: 1.153311599 | S43: 39.61169333 | T43: 5.671471554 | U43: -28.29465356 | V43: -2.968491772 | W43: 26.31384745 | X43: 1.858365976 | Y43: 41.4795786 | Z43: 2.175431805 | AA43: 46.90566861 | AB43: 3.149841682 | AC43: 31.89230925 | AD43: 2.573843118 | AE43: 36.79551625 | AF43: 2.640076518 | AG43: 58.93159409 | AH43: 3.653788528 | AI43: 59.57438437 | AJ43: 3.994713645 | AK43: 56.76552363 | AL43: 3.905419964 | AM43: 58.50670657 | AN43: 4.172741986 | AO43: 29.5802688 | AP43: 1.455508444 | AQ43: 48.40136484 | AR43: 2.343621716 | AS43: 45.22517551 | AT43: 2.745392382 | AU43: 68.47741951 | AV43: 4.76619178 | AW43: 39.224001 | AX43: 2.563278825 | AY43: 20.14610295 | AZ43: 2.016846142
B44: Francia | C44: 21.74672761 | D44: 5.535783476 | E44: 23.38263966 | F44: 4.864538602 | G44: 31.23976193 | H44: 4.583090382 | I44: 46.54604297 | J44: 4.316724059 | K44: 27.4968683 | L44: 2.026828515 | M44: 15.94797872 | N44: 2.062761793 | O44: 21.51455686 | P44: 3.644587956 | Q44: 7.85500895 | R44: 1.429157308 | S44: -2.573579681 | T44: -0.3684766473 | U44: 33.23372581 | V44: 3.486667239 | W44: 25.32577036 | X44: 1.788584891 | Y44: 63.49956613 | Z44: 3.330288793 | AA44: 37.59342586 | AB44: 2.524499559 | AC44: 30.73348911 | AD44: 2.480321472 | AE44: 13.89009397 | AF44: 0.9966135729 | AG44: 31.6419056 | AH44: 1.961814091 | AI44: 16.06205367 | AJ44: 1.077028418 | AK44: 34.27983266 | AL44: 2.358423463 | AM44: 2.672876209 | AN44: 0.1906315265 | AO44: 45.36468731 | AP44: 2.232186796 | AQ44: 23.07721768 | AR44: 1.117412054 | AS44: 24.83252562 | AT44: 1.507457426 | AU44: 38.1850132 | AV44: 2.657768025 | AW44: 33.9648664 | AX44: 2.219595672 | AY44: 17.93248704 | AZ44: 1.79523888
B45: Espña | C45: 9.325034251 | D45: 2.373753488 | E45: 8.918367254 | F45: 1.855382558 | G45: 14.26689455 | H45: 2.093052672 | I45: 18.74338475 | J45: 1.738279233 | K45: 39.57510319 | L45: 2.917130299 | M45: 28.4081288 | N45: 3.674396845 | O45: 39.22256929 | P45: 6.64434339 | Q45: 25.81930265 | R45: 4.697619735 | S45: 24.76068367 | T45: 3.545152991 | U45: 25.02018355 | V45: 2.624955589 | W45: 30.80238001 | X45: 2.175360145 | Y45: 64.26441411 | Z45: 3.370401896 | AA45: 76.99251327 | AB45: 5.170254144 | AC45: 10.40659838 | AD45: 0.8398561362 | AE45: 39.87250959 | AF45: 2.860850641 | AG45: 28.37920637 | AH45: 1.759525095 | AI45: 25.69645275 | AJ45: 1.723055496 | AK45: 28.35541138 | AL45: 1.950828295 | AM45: 22.600825 | AN45: 1.61190771 | AO45: 8.558224786 | AP45: 0.421110725 | AQ45: 31.56939629 | AR45: 1.52860819 | AS45: 41.96631308 | AT45: 2.547563275 | AU45: 53.49491953 | AV45: 3.723374034 | AW45: 8.514725572 | AX45: 0.5564352235 | AY45: 8.928407175 | AZ45: 0.8938316065
B46: Islas Vírgenes Británicas | C46: 1.10955 | D46: 0.2824438079 | E46: 3.63665 | F46: 0.7565708819 | G46: 8.77751871 | H46: 1.287723052 | I46: 7.915398866 | J46: 0.734081579 | K46: 8.073327 | L46: 0.5950950195 | M46: 3.79126 | N46: 0.4903735083 | O46: 5.451882 | P46: 0.9235543919 | Q46: 9.660121 | R46: 1.757583296 | S46: 28.309656 | T46: 4.05328314 | U46: -7.142639 | V46: -0.7493594171 | W46: 12.029088 | X46: 0.8495317117 | Y46: 37.163179 | Z46: 1.949054554 | AA46: 52.554448 | AB46: 3.529172396 | AC46: 42.212878 | AD46: 3.406756302 | AE46: 42.38682491 | AF46: 3.041252644 | AG46: 50.78816114 | AH46: 3.148891582 | AI46: 61.12151045 | AJ46: 4.098454972 | AK46: 104.8047644 | AL46: 7.210479056 | AM46: 40.46200721 | AN46: 2.885780558 | AO46: 66.71274157 | AP46: 3.282625974 | AQ46: 49.02294594 | AR46: 2.373719028 | AS46: 39.60997133 | AT46: 2.404521648 | AU46: 34.38970912 | AV46: 2.393605806 | AW46: 39.10336161 | AX46: 2.555395071 | AY46: 39.61963521 | AZ46: 3.966360572
B47: Irlanda | C47: 2.617483 | D47: 0.6662988289 | E47: 2.028797815 | F47: 0.4220723336 | G47: 8.862216911 | H47: 1.300148867 | I47: 18.21064171 | J47: 1.68887214 | K47: 25.77943615 | L47: 1.900234446 | M47: 9.65092035 | N47: 1.248280432 | O47: 29.32379653 | P47: 4.967481151 | Q47: 22.78129282 | R47: 4.144877659 | S47: -10.6076127 | T47: -1.518762987 | U47: -31.6893001 | V47: -3.324636098 | W47: -5.542306819 | X47: -0.3914149933 | Y47: 24.70717373 | Z47: 1.295788756 | AA47: -16.45292416 | AB47: -1.104858066 | AC47: 25.71532959 | AD47: 2.075334952 | AE47: 42.80407128 | AF47: 3.071190051 | AG47: 23.54470324 | AH47: 1.459783465 | AI47: 48.88255595 | AJ47: 3.277781472 | AK47: 50.60893818 | AL47: 3.481852098 | AM47: 48.24837591 | AN47: 3.441110186 | AO47: 217.8686342 | AP47: 10.7203095 | AQ47: 39.4135618 | AR47: 1.908427162 | AS47: 52.83492053 | AT47: 3.207341634 | AU47: -16.09642265 | AV47: -1.120349421 | AW47: 81.10371263 | AX47: 5.300107687 | AY47: 33.42409989 | AZ47: 3.346119449
B48: México | C48: 9.185451 | D48: 2.338221583 | E48: 12.829556 | F48: 2.669068647 | G48: 12.756765 | H48: 1.871506163 | I48: 13.935805 | J48: 1.292419739 | K48: 18.246819 | L48: 1.344995825 | M48: 30.056232 | N48: 3.887567703 | O48: 24.097967 | P48: 4.082220279 | Q48: 18.269315 | R48: 3.323958662 | S48: 25.032077 | T48: 3.584010193 | U48: 26.055706 | V48: 2.733595896 | W48: 21.248095 | X48: 1.500606739 | Y48: 32.481856 | Z48: 1.703538585 | AA48: 29.530317 | AB48: 1.983040134 | AC48: 17.853569 | AD48: 1.440857899 | AE48: 27.139856 | AF48: 1.94728336 | AG48: 25.573616 | AH48: 1.585577078 | AI48: 21.741047 | AJ48: 1.457828864 | AK48: 48.216567 | AL48: 3.317258986 | AM48: 30.450363 | AN48: 2.17174262 | AO48: 35.4365881 | AP48: 1.743670876 | AQ48: 31.068617 | AR48: 1.504360171 | AS48: 34.200409 | AT48: 2.076134393 | AU48: 33.7296144 | AV48: 2.347661639 | AW48: 34.0969279 | AX48: 2.228225858 | AY48: 29.079433 | AZ48: 2.911170582
B49: India | C49: 2.525 | D49: 0.6427566265 | E49: 3.619 | F49: 0.7528989651 | G49: 2.633 | H49: 0.3862794154 | I49: 2.168 | J49: 0.201062371 | K49: 3.587989747 | L49: 0.2644752069 | M49: 5.477637624 | N49: 0.7084949011 | O49: 5.629671078 | P49: 0.9536720437 | Q49: 4.321076437 | R49: 0.7861859873 | S49: 5.7778072 | T49: 0.8272473713 | U49: 7.621768707 | V49: 0.7996266024 | W49: 20.32776392 | X49: 1.435610088 | Y49: 25.34989177 | Z49: 1.32949665 | AA49: 47.10241725 | AB49: 3.163053882 | AC49: 35.63393949 | AD49: 2.875808371 | AE49: 27.41707664 | AF49: 1.967173928 | AG49: 36.19045603 | AH49: 2.243826509 | AI49: 24.19576692 | AJ49: 1.622428184 | AK49: 28.19942198 | AL49: 1.940096357 | AM49: 34.58209681 | AN49: 2.466420959 | AO49: 44.06410172 | AP49: 2.168190984 | AQ49: 44.48057175 | AR49: 2.153774676 | AS49: 39.9038404 | AT49: 2.422360957 | AU49: 42.15619337 | AV49: 2.93417164 | AW49: 50.558331 | AX49: 3.303974505 | AY49: 64.06190773 | AZ49: 6.413300467
B50: Rusia | C50: 2.579321 | D50: 0.6565844216 | E50: 4.864643 | F50: 1.012043294 | G50: 2.76136 | H50: 0.4051107203 | I50: 3.28593 | J50: 0.3047402568 | K50: 2.65106 | L50: 0.1954129447 | M50: 2.808331 | N50: 0.3632383759 | O50: 3.425021 | P50: 0.5802020636 | Q50: 7.754758 | R50: 1.410917433 | S50: 15.283751 | T50: 2.18827704 | U50: 14.375052 | V50: 1.508137341 | W50: 37.441574 | X50: 2.644240731 | Y50: 54.92185 | Z50: 2.88042317 | AA50: 75.855697 | AB50: 5.093913877 | AC50: 27.752258 | AD50: 2.239723618 | AE50: 31.667969 | AF50: 2.27217525 | AG50: 36.867773 | AH50: 2.285820503 | AI50: 30.187664 | AJ50: 2.024210146 | AK50: 53.397139 | AL50: 3.673677954 | AM50: 29.151662 | AN50: 2.079118295 | AO50: 11.85781 | AP50: 0.5834680779 | AQ50: 37.17576691 | AR50: 1.800071856 | AS50: 25.95353583 | AT50: 1.575508304 | AU50: 13.22764206 | AV50: 0.9206754475 | AW50: 32.07562193 | AX50: 2.09613401 | AY50: 9.676068797 | AZ50: 0.9686807454
B51: Islas Caimán | C51: 1.23171 | D51: 0.3135405008 | E51: 3.15087 | F51: 0.6555089147 | G51: 4.35411 | H51: 0.6387782246 | I51: 6.47583 | J51: 0.6005746005 | K51: 9.358723 | L51: 0.6898431645 | M51: 2.133108 | N51: 0.2759029066 | O51: 2.802975 | P51: 0.4748268344 | Q51: 2.60257 | R51: 0.4735172115 | S51: 3.703461 | T51: 0.5302493266 | U51: 9.506484 | V51: 0.9973587226 | W51: 24.820937 | X51: 1.752931984 | Y51: 28.210535 | Z51: 1.479525519 | AA51: 19.555735 | AB51: 1.313220151 | AC51: 20.298045 | AD51: 1.638137365 | AE51: 20.96596264 | AF51: 1.504306809 | AG51: 31.13185511 | AH51: 1.930190703 | AI51: 21.48960474 | AJ51: 1.440968601 | AK51: 34.90799432 | AL51: 2.401640454 | AM51: 46.04060977 | AN51: 3.283650657 | AO51: 80.50152546 | AP51: 3.961108361 | AQ51: 58.81559079 | AR51: 2.847884481 | AS51: 15.17339523 | AT51: 0.9211003208 | AU51: 20.68081178 | AV51: 1.439433843 | AW51: 28.16512898 | AX51: 1.840584257 | AY51: 23.62104943 | AZ51: 2.364726445
B52: Resto | C52: 107.6454353 | D52: =C52/$C$54*100 -> 27.40190766 | E52: 147.9230813 | F52: =E52/$E$54*100 -> 30.77400797 | G52: 169.9502836 | H52: =G52/$G$54*100 -> 24.93288879 | I52: 255.9439261 | J52: =I52/$I$54*100 -> 23.73648184 | K52: 247.6671608 | L52: =K52/$K$54*100 -> 18.25585584 | M52: 173.1730509 | N52: =M52/$M$54*100 -> 22.39874778 | O52: 169.7394175 | P52: =O52/$O$54*100 -> 28.75403109 | Q52: 189.0648406 | R52: =Q52/$Q$54*100 -> 34.39886578 | S52: 236.1043633 | T52: =S52/$S$54*100 -> 33.80464372 | U52: 347.5116287 | V52: =U52/$U$54*100 -> 36.45866906 | W52: 546.8327817 | X52: =W52/$W$54*100 -> 38.61903654 | Y52: 618.1328278 | Z52: =Y52/$Y$54*100 -> 32.41850227 | AA52: 550.5829471 | AB52: =AA52/$AA$54*100 -> 36.97312431 | AC52: 507.4421252 | AD52: =AC52/$AC$54*100 -> 40.9527078 | AE52: 479.3796494 | AF52: =AE52/$AE$54*100 -> 34.39546674 | AG52: 563.7369158 | AH52: =AG52/$AG$54*100 -> 34.95197284 | AI52: 553.9185626 | AJ52: =AI52/$AI$54*100 -> 37.14257501 | AK52: 594.3008319 | AL52: =AK52/$AK$54*100 -> 40.88739406 | AM52: 468.5846187 | AN52: =AM52/$AM$54*100 -> 33.41980479 | AO52: 528.1987812 | AP52: =AO52/$AO$54*100 -> 25.99022312 | AQ52: 610.8832361 | AR52: =AQ52/$AQ$54*100 -> 29.57931502 | AS52: 526.7806203 | AT52: =AS52/$AS$54*100 -> 31.97819545 | AU52: 342.983222 | AV52: =AU52/$AU$54*100 -> 23.87245058 | AW52: 429.2023558 | AX52: =AW52/$AW$54*100 -> 28.04826847 | AY52: 331.0558702 | AZ52: =AY52/$AW$54*100 -> 21.63441975
B53: Ajuste | C53: -4.526103017 | D53: - | E53: -12.23610875 | F53: - | G53: -20.57664985 | H53: - | I53: -25.03076851 | J53: - | K53: -29.78929001 | L53: - | M53: -11.43810025 | N53: - | O53: -14.57909697 | P53: - | Q53: -18.64539971 | R53: - | S53: -39.63802461 | T53: - | U53: -16.56982067 | V53: - | W53: -67.78881982 | X53: - | Y53: -100.0162155 | Z53: - | AA53: -102.1424395 | AB53: - | AC53: -87.93899831 | AD53: - | AE53: -89.70360573 | AF53: - | AG53: -118.5415415 | AH53: - | AI53: -67.41037242 | AJ53: - | AK53: -304.527739 | AL53: - | AM53: -81.60825211 | AN53: - | AO53: -228.8433091 | AP53: - | AQ53: -172.4734294 | AR53: - | AS53: -76.33165805 | AT53: - | AU53: -80.32208499 | AV53: - | AW53: -100.8834674 | AX53: - | AY53: -91.22095542 | AZ53: -
B54: Total Mundial | C54: 392.8392016 | D54: 100 | E54: 480.6753851 | F54: 100 | G54: 681.6309373 | H54: 100 | I54: 1078.272374 | J54: 100 | K54: 1356.645029 | L54: 100 | M54: 773.1371977 | N54: 100 | O54: 590.3152048 | P54: 100 | Q54: 549.6252168 | R54: 100 | S54: 698.4376621 | T54: 100 | U54: 953.1659758 | V54: 100 | W54: 1415.966919 | X54: 100 | Y54: 1906.728517 | Z54: 100 | AA54: 1489.143689 | AB54: 100 | AC54: 1239.092975 | AD54: 100 | AE54: 1393.729159 | AF54: 100 | AG54: 1612.890118 | AH54: 100 | AI54: 1491.330535 | AJ54: 100 | AK54: 1453.506259 | AL54: 100 | AM54: 1402.116564 | AN54: 100 | AO54: 2032.297986 | AP54: 100 | AQ54: 2065.23794 | AR54: 100 | AS54: 1647.311904 | AT54: 100 | AU54: 1436.732357 | AV54: 100 | AW54: 1530.227637 | AX54: 100 | AY54: 998.8914142 | AZ54: =AY54/$AW$54*100 -> 65.27730842
B55: Nota: Los totales podrían no coincidir con la suma de los parciales, para más información consultar: https://unctadstat.unctad.org/wds/TableViewer/tableView.aspx?ReportId=96740
B56: Fuente: UNCTAD
B58: Participación de la IED recibida por México respecto al total mundial
B82: Fuente: UNCTAD
B84: Participación de la IED recibida por México respecto a los países en desarrollo y Latinoamérica
B106: Fuente: UNCTAD
B109: Acervos de IED
B113: País receptor | C113: 1996 | D113: 1997 | E113: 1998 | F113: 1999 | G113: 2000 | H113: 2001 | I113: 2002 | J113: 2003 | K113: 2004 | L113: 2005 | M113: 2006 | N113: 2007 | O113: 2008 | P113: 2009 | Q113: 2010 | R113: 2011 | S113: 2012 | T113: 2013 | U113: 2014 | V113: 2015 | W113: 2016 | X113: 2017 | Y113: 2018 | Z113: 2019 | AA113: 2020
B114: Estados Unidos | C114: 1229118 | D114: 1637408 | E114: 2179035 | F114: 2798193 | G114: 2783235 | H114: 2560294 | I114: 2021817 | J114: 2454877 | K114: 2717383 | L114: 2817970 | M114: 3293053 | N114: 3551307 | O114: 2486446 | P114: 2995459 | Q114: 3422293 | R114: 3498726 | S114: 3915805 | T114: 4948418 | U114: 5456888 | V114: 5731383 | W114: 6502750 | X114: 7756732 | Y114: 7333453 | Z114: 9398404 | AA114: 10802647
B115: Reino Unido | C115: 228642.5505 | D115: 252958.6484 | E115: 337386.175 | F115: 385145.9366 | G115: 439457.6745 | H115: 479680.6219 | I115: 491596.0698 | J115: 570595.6261 | K115: 659806.9758 | L115: 788149.5435 | M115: 1035206.429 | N115: 1124649.655 | O115: 911161.6482 | P115: 1026226.163 | Q115: 1068186.87 | R115: 1157504.225 | S115: 1440493.661 | T115: 1512553.562 | U115: 1581501.084 | V115: 1530629.362 | W115: 1460614.113 | X115: 1881475.727 | Y115: 1930484.461 | Z115: 2045059.29 | AA115: 2206202.183
B116: Hong Kong | C116: 237992.2962 | D116: 249360.4441 | E116: 225078.2339 | F116: 405265.9889 | G116: 435417.137 | H116: 401186.7385 | I116: 315063.3496 | J116: 363680.4071 | K116: 427052.4217 | L116: 493894.7436 | M116: 703563.1873 | N116: 1147889.252 | O116: 783257.3382 | P116: 904300.0451 | Q116: 1067519.969 | R116: 1078748.825 | S116: 1244646.281 | T116: 1352021.668 | U116: 1496082.651 | V116: 1591627.379 | W116: 1626013.412 | X116: 1943917.072 | Y116: 1963319.632 | Z116: 1867697.316 | AA116: 1884881.336
B117: Países Bajos | C117: 127384.2206 | D117: 125099.5721 | E117: 164225.71 | F117: 192228.1125 | G117: 243732.8904 | H117: 282881.4037 | I117: 349968.7488 | J117: 458223.6418 | K117: 519479.1326 | L117: 479420.4841 | M117: 552747.988 | N117: 767456.3007 | O117: 647414.0834 | P117: 646288.0769 | Q117: 588076.8208 | R117: 610677.1369 | S117: 663302.7232 | T117: 779056.1721 | U117: 1453322.204 | V117: 1269648.242 | W117: 1328835.856 | X117: 1531776.642 | Y117: 1492638.791 | Z117: 1491694.259 | AA117: 2890578.72
B118: Alemania | C118: 316600.4879 | D118: 314305.5901 | E118: 403621.8238 | F118: 235254.2291 | G118: 470937.6657 | H118: 424307.9608 | I118: 538018.5033 | J118: 686716.7825 | K118: 727999.3462 | L118: 640058.1356 | M118: 799246.939 | N118: 952220.073 | O118: 914509.3007 | P118: 963511.0314 | Q118: 955881.3508 | R118: 997726.617 | S118: 1077018.683 | T118: 967687.7057 | U118: 859564.9878 | V118: 781717.5269 | W118: 794527.1324 | X118: 963098.7503 | Y118: 940576.7597 | Z118: 934741.629 | AA118: 1059326.21
B119: Canadá | C119: 132977.5117 | D119: 135943.6009 | E119: 143344.6586 | F119: 174989.9536 | G119: 325019.9973 | H119: 317369.082 | I119: 290472.9045 | J119: 439939.6472 | K119: 544146.7265 | L119: 638650.0644 | M119: 706901.2272 | N119: 1032966.299 | O119: 620191.0828 | P119: 867386.7762 | Q119: 983889.4995 | R119: 862698.335 | S119: 953502.8135 | T119: 982529.1353 | U119: 994711.6131 | V119: 806297.6879 | W119: 903453.4892 | X119: 943501.7935 | Y119: 844785.5729 | Z119: 1062726.855 | AA119: 1099894.213
B120: China | C120: 128069 | D120: 153995 | E120: 175156 | F120: 186189 | G120: 193348 | H120: 203142 | I120: 216503 | J120: 228371 | K120: 245467 | L120: 272094 | M120: 292559 | N120: 327087 | O120: 378083 | P120: 472148 | Q120: 586882 | R120: 710867 | S120: 831940 | T120: 955851 | U120: 1084353 | V120: 1219930 | W120: 1353641 | X120: 1489956 | Y120: 1628261 | Z120: 1769486 | AA120: 1918828
B121: Singapur | C121: 89494 | D121: 74768.30797 | E121: 86839.62662 | F121: 102533.4934 | G121: 110570.3044 | H121: 138774.7704 | I121: 161225.5111 | J121: 183968.4266 | K121: 216323.1118 | L121: 237506.79 | M121: 313809.5331 | N121: 421667.4993 | O121: 459471.0256 | P121: 506830.9106 | Q121: 633353.5534 | R121: 689455.2933 | S121: 829263.4246 | T121: 897610.132 | U121: 1028270.718 | V121: 1091560.577 | W121: 1144985.964 | X121: 1466400.943 | Y121: 1548848.549 | Z121: 1751226.395 | AA121: 1855370.32
B122: Francia | C122: 314647.0766 | D122: 328950.7246 | E122: 454046.404 | F122: 597282.9587 | G122: 184214.9829 | H122: 195513.312 | I122: 251728.7811 | J122: 345576.8497 | K122: 403440.6669 | L122: 379384.5032 | M122: 493763.3429 | N122: 623625.4273 | O122: 563005.0129 | P122: 648012.3315 | Q122: 630710.4174 | R122: 698871.1133 | S122: 680409.5419 | T122: 761371.7072 | U122: 700064.9544 | V122: 687371.9595 | W122: 694896.0661 | X122: 819307.5244 | Y122: 820570.3935 | Z122: 868686.7666 | AA122: 968138.3677
B123: Liechtenstein | C123: 53918.22638 | D123: 59518.9308 | E123: 71995.13258 | F123: 75994.87372 | G123: 101634.7795 | H123: 103772.9894 | I123: 143617.8634 | J123: 184198.8267 | K123: 222692.6813 | L123: 192342.4447 | M123: 293730.0103 | N123: 381391.0436 | O123: 478224.2032 | P123: 532404.9914 | Q123: 648091.6998 | R123: 720565.851 | S123: 781079.2788 | T123: 822051.2208 | U123: 826996.0063 | V123: 982396.2492 | W123: 1282422.412 | X123: 1427238.873 | Y123: 1418472.957 | Z123: 1453897.14 | AA123: 1536254.236
B124: España | C124: 110224.0722 | D124: 106007.375 | E124: 126059.9418 | F124: 125360.9056 | G124: 156348.2427 | H124: 177253.5536 | I124: 257105.6921 | J124: 339651.9211 | K124: 407472.3017 | L124: 384538.4777 | M124: 461527.5299 | N124: 585857.33 | O124: 588900.9013 | P124: 632246.1597 | Q124: 628341.0036 | R124: 628949.9403 | S124: 592267.1826 | T124: 649224.7394 | U124: 596701.2888 | V124: 561571.2062 | W124: 591537.7156 | X124: 713219.8796 | Y124: 745395.3802 | Z124: 763222.6507 | AA124: 853290.6436
B125: Australia | C125: 122701.8933 | D125: 106451.276 | E125: 113102.466 | F125: 127144.4636 | G125: 121685.8259 | H125: 123670.9081 | I125: 154274.8109 | J125: 219094.2977 | K125: 291009.5817 | L125: 247747.8998 | M125: 302078.7504 | N125: 391760.5572 | O125: 307751.0357 | P125: 439623.3015 | Q125: 527728.2331 | R125: 555574.6263 | S125: 615813.9419 | T125: 569825.2706 | U125: 582535.4123 | V125: 566419.4807 | W125: 611128.2363 | X125: 699404.8594 | Y125: 701315.8238 | Z125: 731176.091 | AA125: 790655.0089
B126: Irland | C126: 46803.989 | D126: 47970.18634 | E126: 62205.24991 | F126: 72815.42182 | G126: 127088.7419 | H126: 134052.4725 | I126: 182897.3889 | J126: 222837.3029 | K126: 207646.8345 | L126: 163530.0405 | M126: 156491.2992 | N126: 203682.6036 | O126: 188289.9633 | P126: 250102.6428 | Q126: 285575.3209 | R126: 290494.8781 | S126: 383205.3515 | T126: 414740.6397 | U126: 429847.4483 | V126: 890096.1319 | W126: 840663.8698 | X126: 1057987.335 | Y126: 1048647.64 | Z126: 1152372.511 | AA126: 1350054.606
B127: Bélgica | C127: 123883 | D127: 128728 | E127: 180492 | F127: 179924 | G127: 195219 | H127: 203537 | I127: ND | J127: ND | K127: ND | L127: 378156.4353 | M127: 481355.8786 | N127: 810944.1751 | O127: 407403.2839 | P127: 458295.3375 | Q127: 473357.7769 | R127: 484119.7013 | S127: 561811.273 | T127: 625200.8313 | U127: 556044.7032 | V127: 549340.7945 | W127: 534038.8751 | X127: 597644.5756 | Y127: 563522.3424 | Z127: 577139.4613 | AA127: 635929.4663
B128: Brasil | C128: 54846.01781 | D128: 69721.49804 | E128: 99505.43792 | F128: 102330.6989 | G128: ND | H128: 117610.6898 | I128: 96860.85832 | J128: 127725.8011 | K128: 157777.4779 | L128: 177914.954 | M128: 213021.1497 | N128: 292530.5947 | O128: 260530.5955 | P128: 367183.1998 | Q128: 640329.6269 | R128: 649126.3993 | S128: 664208.4594 | T128: 627788.7233 | U128: 601489.939 | V128: 429843 | W128: 563539.49 | X128: 623020.8466 | Y128: 568741.4369 | Z128: 705030.9595 | AA128: 608085.718
B129: Islas Vírgenes Británicas | C129: 1885.89 | D129: 5522.54 | E129: 14300.059 | F129: 22215.458 | G129: 30288.785 | H129: 34080.045 | I129: 39531.927 | J129: 49192.048 | K129: 77501.704 | L129: 70359.065 | M129: 82388.153 | N129: 119551.332 | O129: 172105.78 | P129: 214318.658 | Q129: 265782.706 | R129: 427654.0801 | S129: 493138.8184 | T129: 588507.8934 | U129: 628765.2852 | V129: 740836.8946 | W129: 796223.9762 | X129: 817471.5224 | Y129: 865169.8347 | Z129: 909346.0023 | AA129: 950876.146
B130: México | C130: 46912 | D130: 55810 | E130: 63610.4 | F130: 88470.25549 | G130: 121691.036 | H130: 159607.3405 | I130: 164330.3023 | J130: 175259.631 | K130: 206783.553 | L130: 248180.827 | M130: 277460.311 | N130: 311821.058 | O130: 280877.841 | P130: 286620.208 | Q130: 355512.125 | R130: 336179.119 | S130: 426101.291 | T130: 469235.862 | U130: 456568.782 | V130: 430576.471 | W130: 432742.364 | X130: 495953.098 | Y130: 515014.956 | Z130: 567746.688 | AA130: 596826.121
B131: Italia | C131: 74640.079 | D131: 85468.447 | E131: 108821.63 | F131: 117334.2736 | G131: 122533.0095 | H131: 114800.5182 | I131: 134743.205 | J131: 188164.1798 | K131: 231791.4351 | L131: 237473.6484 | M131: 312463.7002 | N131: 376512.9501 | O131: 327910.8088 | P131: 364427.2533 | Q131: 328058.4614 | R131: 355126.4982 | S131: 375029.4226 | T131: 364959.158 | U131: 352501.5607 | V131: 340465.9978 | W131: 352633.6699 | X131: 424732.9244 | Y131: 433385.1244 | Z131: 444507.3549 | AA131: 485841.7287
B132: Rusia | C132: 8144.7 | D132: 13611.9 | E132: 12911.9 | F132: 18302.7 | G132: 29738 | H132: 50544 | I132: 68847 | J132: 94511 | K132: 120201 | L132: 178635 | M132: 263903 | N132: 488280 | O132: 212887 | P132: 367379 | Q132: 464228 | R132: 408942 | S132: 438194 | T132: 471474.664 | U132: 290038.56 | V132: 262747.88 | W132: 393910.3503 | X132: 441123.413 | Y132: 408097.3543 | Z132: 493155.8 | AA132: 446656.4879
B133: Suecia | C133: 34835.10406 | D133: 41453.59909 | E133: 51002.64533 | F133: 73300.81783 | G133: 93791.19853 | H133: 91941.99152 | I133: 119145.4721 | J133: 160586.8525 | K133: 199562.483 | L133: 173777.3924 | M133: 229991.842 | N133: 297183.1733 | O133: 281961.5651 | P133: 336580.2009 | Q133: 352645.8709 | R133: 357530.3802 | S133: 382476.7469 | T133: 396179.6756 | U133: 323652.8966 | V133: 317407.1178 | W133: 317160.8439 | X133: 367705.653 | Y133: 340572.8992 | Z133: 340853.3976 | AA133: 408824.1696
B134: Total mundial | C134: 4134151.489 | D134: 4719952.569 | E134: 5916795.963 | F134: 7086810.944 | G134: 7377351.712 | H134: 7470811.054 | I134: 7332017.308 | J134: 9143380.749 | K134: 10641675.57 | L134: 11525331.52 | M134: 14200433.97 | N134: 18094002.99 | O134: 15074931.48 | P134: 17783085.27 | Q134: 19898877.86 | R134: 20612274.68 | S134: 22970983.46 | T134: 24971776.05 | U134: 26228779.63 | V134: 26523698.36 | W134: 28466254.3 | X134: 33162199.63 | Y134: 32784109.6 | Z134: 36377437.13 | AA134: 41354248.66
B135: ND: Dato no disponible
B136: Nota: Los totales podrían no coincidir con la suma de los parciales, para más información consultar: https://unctadstat.unctad.org/wds/ReportFolders/reportFolders.aspx?sCSNDChosenLang=en
B137: Fuente: UNCTAD

Sheet Outward
A5: CONTENIDO
A6: * Nota Metodológica
A7: * Principales países emisores de IED
B16: Principales países emisores de IED (miles de millones de dólares/participación porcentual)
B20: País emisor | C20: 1996 | E20: 1997 | G20: 1998 | I20: 1999 | K20: 2000 | M20: 2001 | O20: 2002 | Q20: 2003 | S20: 2004 | U20: 2005 | W20: 2006 | Y20: 2007 | AA20: 2008 | AC20: 2009 | AE20: 2010 | AG20: 2011 | AI20: 2012 | AK20: 2013 | AM20: 2014 | AO20: 2015 | AQ20: 2016 | AS20: 2017 | AU20: 2018 | AW20: 2019 | AY20: 2020
B21: Estados Unidos | C21: 84.426 | D21: 21.40376958 | E21: 95.769 | F21: 20.5828525 | G21: 131.004 | H21: 19.27953415 | I21: 209.391 | J21: 19.43914524 | K21: 142.626 | L21: 12.26899229 | M21: 124.873 | N21: 18.32190273 | O21: 134.946 | P21: 27.17491265 | Q21: 129.352 | R21: 24.51988752 | S21: 294.905 | T21: 32.34655258 | U21: 15.369 | V21: 1.835859266 | W21: 224.22 | X21: 16.46193765 | Y21: 393.518 | Z21: 17.95728358 | AA21: 308.296 | AB21: 17.98483307 | AC21: 287.901 | AD21: 24.32177486 | AE21: 277.779 | AF21: 19.95275518 | AG21: 396.569 | AH21: 24.36775002 | AI21: 318.196 | AJ21: 24.34698795 | AK21: 303.432 | AL21: 21.31703271 | AM21: 333.014 | AN21: 24.29311735 | AO21: 264.359 | AP21: 15.56693258 | AQ21: 284.469 | AR21: 17.60177801 | AS21: 327.781 | AT21: 20.42634488 | AU21: -194.412 | AV21: -22.32785341 | AW21: 93.552 | AX21: 7.665485075 | AY21: 92.811 | AZ21: 12.54418889
B22: Japón | C22: 23.42781051 | D22: 5.939443513 | E22: 25.99308792 | F22: 5.586483044 | G22: 24.15206677 | H22: 3.554399835 | I22: 22.74301579 | J22: 2.111383904 | K22: 31.55738319 | L22: 2.714633314 | M22: 38.33288927 | N22: 5.624366105 | O22: 32.28079322 | P22: 6.500583464 | Q22: 28.80047269 | R22: 5.459400326 | S22: 30.95140628 | T22: 3.394894256 | U22: 45.78124626 | V22: 5.468665832 | W22: 50.2659464 | X22: 3.690459706 | Y22: 73.54881703 | Z22: 3.356230119 | AA22: 128.0195387 | AB22: 7.468180039 | AC22: 74.69874137 | AD22: 6.310523305 | AE22: 56.26341224 | AF22: 4.041378543 | AG22: 107.5991459 | AH22: 6.611583584 | AI22: 122.5487307 | AJ22: 9.376901249 | AK22: 135.7488233 | AL22: 9.536773006 | AM22: 130.8431812 | AN22: 9.544910291 | AO22: 136.2485192 | AP22: 8.023072841 | AQ22: 155.9367476 | AR22: 9.648728032 | AS22: 164.5878519 | AT22: 10.25662935 | AU22: 143.0942259 | AV22: 16.43410335 | AW22: 226.647912 | AX22: 18.57112822 | AY22: 115.7028193 | AZ22: 15.6382112
B23: Reino Unido | C23: 36.3845993 | D23: 9.224262429 | E23: 60.64475571 | F23: 13.03388426 | G23: 122.8155886 | H23: 18.07446593 | I23: 203.4262212 | J23: 18.88539555 | K23: 232.7444166 | L23: 20.02117042 | M23: 57.20681489 | N23: 8.393629511 | O23: 53.80210215 | P23: 10.83446287 | Q23: 64.20375136 | R23: 12.17042459 | S23: 103.2040719 | T23: 11.31990281 | U23: 88.56032204 | V23: 10.57871611 | W23: 81.10037591 | X23: 5.954282987 | Y23: 335.8851636 | Z23: 15.32734241 | AA23: 198.1851807 | AB23: 11.56138059 | AC23: 28.96471362 | AD23: 2.446928783 | AE23: 48.09179531 | AF23: 3.454414546 | AG23: 95.58737529 | AH23: 5.87350314 | AI23: 20.69988484 | AJ23: 1.583866066 | AK23: 40.48557046 | AL23: 2.844236039 | AM23: -151.2859329 | AN23: -11.03619344 | AO23: -66.82148041 | AP23: -3.934821514 | AQ23: -37.60582207 | AR23: -2.326894431 | AS23: 142.3730341 | AT23: 8.872267448 | AU23: 41.42451556 | AV23: 4.757527884 | AW23: -6.080835285 | AX23: -0.498252866 | AY23: -33.40897436 | AZ23: -4.515504464
B24: Alemania | C24: 50.8047077 | D24: 12.88006369 | E24: 41.79814424 | F24: 8.983335292 | G24: 88.82487057 | H24: 13.07213616 | I24: 108.6883821 | J24: 10.09025816 | K24: 57.08594435 | L24: 4.910654516 | M24: 39.88942202 | N24: 5.852747273 | O24: 18.94259282 | P24: 3.814587356 | Q24: 5.568085423 | R24: 1.055482933 | S24: 20.31154073 | T24: 2.227864296 | U24: 74.54306571 | V24: 8.904325455 | W24: 116.6801833 | X24: 8.566505673 | Y24: 169.3198807 | Z24: 7.726521055 | AA24: 71.50673161 | AB24: 4.171434697 | AC24: 68.54104992 | AD24: 5.790323705 | AE24: 125.4508142 | AF24: 9.011082132 | AG24: 77.92890298 | AH24: 4.788453025 | AI24: 62.16449054 | AJ24: 4.756559172 | AK24: 39.53025965 | AL24: 2.777122512 | AM24: 84.07581337 | AN24: 6.133266471 | AO24: 99.02518806 | AP24: 5.831155462 | AQ24: 63.66095836 | AR24: 3.939079678 | AS24: 86.51752691 | AT24: 5.391517028 | AU24: 86.24395941 | AV24: 9.904956912 | AW24: 139.2781682 | AX24: 11.41220626 | AY24: 34.94987242 | AZ24: 4.723769824
B25: Francia | C25: 30.12353392 | D25: 7.636950455 | E25: 35.905979 | F25: 7.716980125 | G25: 49.01629953 | H25: 7.213607375 | I25: 126.8544374 | J25: 11.77673268 | K25: 161.9476691 | L25: 13.93108342 | M25: 52.82368838 | N25: 7.75051837 | O25: 23.29960943 | P25: 4.691986803 | Q25: 18.4406016 | R25: 3.495589377 | S25: 22.96474269 | T25: 2.518879832 | U25: 68.05700642 | V25: 8.129552077 | W25: 76.76684551 | X25: 5.636120881 | Y25: 110.6430271 | Z25: 5.048938583 | AA25: 103.2811235 | AB25: 6.025033622 | AC25: 100.8657582 | AD25: 8.521103651 | AE25: 48.15480932 | AF25: 3.458940817 | AG25: 51.4149078 | AH25: 3.159262627 | AI25: 35.43776516 | AJ25: 2.711545215 | AK25: 20.37452686 | AL25: 1.431373275 | AM25: 49.84948427 | AN25: 3.636481864 | AO25: 53.21791213 | AP25: 3.13376753 | AQ25: 64.84789245 | AR25: 4.012522304 | AS25: 35.9846816 | AT25: 2.242459193 | AU25: 105.6352832 | AV25: 12.13201406 | AW25: 38.66330227 | AX25: 3.168002464 | AY25: 44.20300946 | AZ25: 5.974409283
